Workbook

Sheet الواجهة
B1: السنة المالية: | C1: 2023
B2: الـوزارة: | C2: وزارة البيئة و الطاقات المتجددة
B3: الهيئة الإدارية: | C3: مديرية البيئة لولاية المسيلة
B4: الآمر بالصرف: | C4: 144 0 28 01 | F4: متابعة العناوين 1. نفقات المستخدمين 2. نفقات تسيير المصالح.
B6: حافظة البرنامج: | C6: 030 | D6: البيئة و الطاقات المتجددة
B7: البرنــامج: | C7: 116 | D7: الإدارة العامة | F7: ملاحظات:
B8: النشـــــاط: | C8: 2001 | D8: الإدارة العامة | F8: 1 | G8: قم بالتعديل في بيانات الهيئة الادارية.
B9: النشاط الفرعي: | C9: 000 | D9: ///
B10: البرنامج الفرعي: | C10: 02 | D10: /// | F10: 2 | G10: في حالة التكفل "الاخذ بالحسبان" يتم ادراج مبلغ رخصة الالتزام للصنف في "العمود F" و توزيعه على الاصناف الفرعية في الاسفل مباشرة في "العمود G".
B11: المجال الإقليمي | C11: 028
F12: 3 | G12: في حالة الالتزام يتم ادراج مبلغ الالتزام في الصنف الفرعي في "العمود I".
B13: كتابة المبلغ بالحروف: | C13: لا
F14: 4 | G14: في حالة وجود خطا في الترميز او تسمية الاصنف او الاصناف الفرعية توجه الى ورقة "Nomenclature" وقم بالتصحيح.

Sheet 11000
A1: رقم الاستمارة | B1: التاريخ | C1: الترميز | D1: الصنف / الصنف الفرعي | E1: ملاحظات المصلحة | F1: AP Cat | G1: =IF(SUM(G4:G203)-SUM(F4:F203)<0,"نقص في توزيع الاعتمادات على الاصناف الفرعية", IF(SUM(G4:G203)-SUM(F4:F203)>0,"تجاوز في الاعتمادات الموزعة على الاصناف الفرعية","AP S.Cat")) -> AP S.Cat | H1: AP Sous_Cat | I1: =IF(I3>G3,"تجاوز في الالتزامات","∑ Engagements") -> ∑ Engagements | J1: ∑ Eng Sous_Cat | K1: Reste | L1: السند القانوني للعنوان الرابع | N1: 4
F3: =SUM(F4:F203) -> 11944593 | G3: =SUM(G4:G203) -> 11944593 | I3: =SUM(I5:I203) -> 0 | K3: =SUM(K4:K104) -> 11944593
A4: 1 | B4: 2023-03-13 | C4: =IFERROR(VLOOKUP(D4,Nomenclature!$B$2:$C$196,2,0),"") -> 11000 | D4: الرواتب | E4: تكفل برخصة الالتزام المفتوحة لسنة 2023. | F4: 11944593 | H4: =IF(C4="",0,IF(SUMIFS($G4:G$5,$C4:C$5,C4)-SUMIFS($I3:I$4,$C3:C$4,C4)<0,0,SUMIFS($G4:G$5,$C4:C$5,C4)-SUMIFS($I3:I$4,$C3:C$4,C4))) -> 0 | J4: =IF(I4=0,0,IF(C4="",0,SUMIFS($I4:I$4,$C4:C$4,C4))) -> 0 | K4: =IF(C4="",0,H4-I4) -> 0 | O4: الجمهورية الجزائرية الديمقراطية الشعبية
A5: 2 | B5: 2023-04-01 | C5: =IFERROR(VLOOKUP(D5,Nomenclature!$B$2:$C$196,2,0),"") -> 11100 | D5: رواتب الموظفين و الأعوان العموميين | E5: التزام في الجدول الأصلي الأولي رقم 2023/01 الخاص بالمرتبات الشهرية للموظفين من 2023/01/01 إلى غاية 2023/12/31 | G5: 6500000 | H5: =IF(C5="",0,IF(SUMIFS($G$5:G5,$C$5:C5,C5)-SUMIFS($I$4:I4,$C$4:C4,C5)<0,0,SUMIFS($G$5:G5,$C$5:C5,C5)-SUMIFS($I$4:I4,$C$4:C4,C5))) -> 6500000 | J5: =IF(C5="",0,IF(C5=$C$4,SUMIFS($I$4:I4,$C$4:C4,C4),SUMIFS($I$4:I4,$C$4:C4,C5))) -> 0 | K5: 6500000 | O5: الـوزارة: | T5: =الواجهة!C2 -> وزارة البيئة و الطاقات المتجددة
A6: 3 | C6: =IFERROR(VLOOKUP(D6,Nomenclature!$B$2:$C$196,2,0),"") -> 11210 | D6: رواتب المستخدمين المتعاقدين بالتوقيت الكامل | E6: التزام في الجدول الأصلي الأولي رقم 2023/02 الخاص بالمرتبات الشهرية للاعوان المتعاقدين بالتوقيت الكامل من 2023/01/01 إلى غاية 2023/12/31 | G6: 4000000 | H6: =IF(C6="",0,IF(SUMIFS($G$5:G6,$C$5:C6,C6)-SUMIFS($I$4:I5,$C$4:C5,C6)<0,0,SUMIFS($G$5:G6,$C$5:C6,C6)-SUMIFS($I$4:I5,$C$4:C5,C6))) -> 4000000 | J6: =IF(C6="",0,IF(C6=$C$4,SUMIFS($I$4:I5,$C$4:C5,C5),SUMIFS($I$4:I5,$C$4:C5,C6))) -> 0 | K6: 4000000 | O6: الهيئة الإدارية: | T6: =الواجهة!C3 -> مديرية البيئة لولاية المسيلة
A7: 4 | C7: =IFERROR(VLOOKUP(D7,Nomenclature!$B$2:$C$196,2,0),"") -> 11220 | D7: رواتب المستخدمين المتعاقدين بالتوقيت الجزئي | E7: التزام في الجدول الأصلي الأولي رقم 2023/02 الخاص بالمرتبات الشهرية للاعوان المتعاقدين بالتوقيت الجزئي من 2023/01/01 إلى غاية 2023/12/31 | G7: 1444593 | H7: =IF(C7="",0,IF(SUMIFS($G$5:G7,$C$5:C7,C7)-SUMIFS($I$4:I6,$C$4:C6,C7)<0,0,SUMIFS($G$5:G7,$C$5:C7,C7)-SUMIFS($I$4:I6,$C$4:C6,C7))) -> 1444593 | J7: =IF(C7="",0,IF(C7=$C$4,SUMIFS($I$4:I6,$C$4:C6,C6),SUMIFS($I$4:I6,$C$4:C6,C7))) -> 0 | K7: 1444593 | O7: رمز الآمر بالصرف: | T7: =الواجهة!C4 -> 144 0 28 01
A8: 5 | C8: =IFERROR(VLOOKUP(D8,Nomenclature!$B$2:$C$196,2,0),"") ->  | H8: =IF(C8="",0,IF(SUMIFS($G$5:G8,$C$5:C8,C8)-SUMIFS($I$4:I7,$C$4:C7,C8)<0,0,SUMIFS($G$5:G8,$C$5:C8,C8)-SUMIFS($I$4:I7,$C$4:C7,C8))) -> 0 | J8: =IF(C8="",0,IF(C8=$C$4,SUMIFS($I$4:I7,$C$4:C7,C7),SUMIFS($I$4:I7,$C$4:C7,C8))) -> 0 | K8: 0 | AH8: .
A9: 6 | C9: =IFERROR(VLOOKUP(D9,Nomenclature!$B$2:$C$196,2,0),"") ->  | H9: =IF(C9="",0,IF(SUMIFS($G$5:G9,$C$5:C9,C9)-SUMIFS($I$4:I8,$C$4:C8,C9)<0,0,SUMIFS($G$5:G9,$C$5:C9,C9)-SUMIFS($I$4:I8,$C$4:C8,C9))) -> 0 | J9: =IF(C9="",0,IF(C9=$C$4,SUMIFS($I$4:I8,$C$4:C8,C8),SUMIFS($I$4:I8,$C$4:C8,C9))) -> 0 | K9: 0
A10: 7 | C10: =IFERROR(VLOOKUP(D10,Nomenclature!$B$2:$C$196,2,0),"") ->  | H10: =IF(C10="",0,IF(SUMIFS($G$5:G10,$C$5:C10,C10)-SUMIFS($I$4:I9,$C$4:C9,C10)<0,0,SUMIFS($G$5:G10,$C$5:C10,C10)-SUMIFS($I$4:I9,$C$4:C9,C10))) -> 0 | J10: =IF(C10="",0,IF(C10=$C$4,SUMIFS($I$4:I9,$C$4:C9,C9),SUMIFS($I$4:I9,$C$4:C9,C10))) -> 0 | K10: 0
A11: 8 | C11: =IFERROR(VLOOKUP(D11,Nomenclature!$B$2:$C$196,2,0),"") ->  | H11: =IF(C11="",0,IF(SUMIFS($G$5:G11,$C$5:C11,C11)-SUMIFS($I$4:I10,$C$4:C10,C11)<0,0,SUMIFS($G$5:G11,$C$5:C11,C11)-SUMIFS($I$4:I10,$C$4:C10,C11))) -> 0 | J11: =IF(C11="",0,IF(C11=$C$4,SUMIFS($I$4:I10,$C$4:C10,C10),SUMIFS($I$4:I10,$C$4:C10,C11))) -> 0 | K11: 0 | P11: رقم بطاقة الالتزام: | U11: =IFERROR(VLOOKUP(N1,A4:L203,1,0),0) -> 4 | AF11: التاريخ: | AH11: =IF(IFERROR(VLOOKUP(N1,A4:L203,2,0),0)=0,"",IFERROR(VLOOKUP(N1,A4:L203,2,0),0)) -> 
A12: 9 | C12: =IFERROR(VLOOKUP(D12,Nomenclature!$B$2:$C$196,2,0),"") ->  | H12: =IF(C12="",0,IF(SUMIFS($G$5:G12,$C$5:C12,C12)-SUMIFS($I$4:I11,$C$4:C11,C12)<0,0,SUMIFS($G$5:G12,$C$5:C12,C12)-SUMIFS($I$4:I11,$C$4:C11,C12))) -> 0 | J12: =IF(C12="",0,IF(C12=$C$4,SUMIFS($I$4:I11,$C$4:C11,C11),SUMIFS($I$4:I11,$C$4:C11,C12))) -> 0 | K12: 0
A13: 10 | C13: =IFERROR(VLOOKUP(D13,Nomenclature!$B$2:$C$196,2,0),"") ->  | H13: =IF(C13="",0,IF(SUMIFS($G$5:G13,$C$5:C13,C13)-SUMIFS($I$4:I12,$C$4:C12,C13)<0,0,SUMIFS($G$5:G13,$C$5:C13,C13)-SUMIFS($I$4:I12,$C$4:C12,C13))) -> 0 | J13: =IF(C13="",0,IF(C13=$C$4,SUMIFS($I$4:I12,$C$4:C12,C12),SUMIFS($I$4:I12,$C$4:C12,C13))) -> 0 | K13: 0
A14: 11 | C14: =IFERROR(VLOOKUP(D14,Nomenclature!$B$2:$C$196,2,0),"") ->  | H14: =IF(C14="",0,IF(SUMIFS($G$5:G14,$C$5:C14,C14)-SUMIFS($I$4:I13,$C$4:C13,C14)<0,0,SUMIFS($G$5:G14,$C$5:C14,C14)-SUMIFS($I$4:I13,$C$4:C13,C14))) -> 0 | J14: =IF(C14="",0,IF(C14=$C$4,SUMIFS($I$4:I13,$C$4:C13,C13),SUMIFS($I$4:I13,$C$4:C13,C14))) -> 0 | K14: 0 | O14: رمز البرنــامج: | T14: =الواجهة!C7 -> 116
A15: 12 | C15: =IFERROR(VLOOKUP(D15,Nomenclature!$B$2:$C$196,2,0),"") ->  | H15: =IF(C15="",0,IF(SUMIFS($G$5:G15,$C$5:C15,C15)-SUMIFS($I$4:I14,$C$4:C14,C15)<0,0,SUMIFS($G$5:G15,$C$5:C15,C15)-SUMIFS($I$4:I14,$C$4:C14,C15))) -> 0 | J15: =IF(C15="",0,IF(C15=$C$4,SUMIFS($I$4:I14,$C$4:C14,C14),SUMIFS($I$4:I14,$C$4:C14,C15))) -> 0 | K15: 0 | O15: رمز النشــاط: | T15: =الواجهة!C6&" "&الواجهة!C7&" "&الواجهة!C10&" "&الواجهة!C8&" "&الواجهة!C9&" "&الواجهة!C11 -> 030 116 02 2001 000 028
A16: 13 | C16: =IFERROR(VLOOKUP(D16,Nomenclature!$B$2:$C$196,2,0),"") ->  | H16: =IF(C16="",0,IF(SUMIFS($G$5:G16,$C$5:C16,C16)-SUMIFS($I$4:I15,$C$4:C15,C16)<0,0,SUMIFS($G$5:G16,$C$5:C16,C16)-SUMIFS($I$4:I15,$C$4:C15,C16))) -> 0 | J16: =IF(C16="",0,IF(C16=$C$4,SUMIFS($I$4:I15,$C$4:C15,C15),SUMIFS($I$4:I15,$C$4:C15,C16))) -> 0 | K16: 0 | O16: رمز النشــاط الفرعي: | T16: =الواجهة!C9 -> 000
A17: 14 | C17: =IFERROR(VLOOKUP(D17,Nomenclature!$B$2:$C$196,2,0),"") ->  | H17: =IF(C17="",0,IF(SUMIFS($G$5:G17,$C$5:C17,C17)-SUMIFS($I$4:I16,$C$4:C16,C17)<0,0,SUMIFS($G$5:G17,$C$5:C17,C17)-SUMIFS($I$4:I16,$C$4:C16,C17))) -> 0 | J17: =IF(C17="",0,IF(C17=$C$4,SUMIFS($I$4:I16,$C$4:C16,C16),SUMIFS($I$4:I16,$C$4:C16,C17))) -> 0 | K17: 0 | O17: رمز البرنـامج الفرعي: | T17: =الواجهة!C10 -> 02
A18: 15 | C18: =IFERROR(VLOOKUP(D18,Nomenclature!$B$2:$C$196,2,0),"") ->  | H18: =IF(C18="",0,IF(SUMIFS($G$5:G18,$C$5:C18,C18)-SUMIFS($I$4:I17,$C$4:C17,C18)<0,0,SUMIFS($G$5:G18,$C$5:C18,C18)-SUMIFS($I$4:I17,$C$4:C17,C18))) -> 0 | J18: =IF(C18="",0,IF(C18=$C$4,SUMIFS($I$4:I17,$C$4:C17,C17),SUMIFS($I$4:I17,$C$4:C17,C18))) -> 0 | K18: 0
A19: 16 | C19: =IFERROR(VLOOKUP(D19,Nomenclature!$B$2:$C$196,2,0),"") ->  | H19: =IF(C19="",0,IF(SUMIFS($G$5:G19,$C$5:C19,C19)-SUMIFS($I$4:I18,$C$4:C18,C19)<0,0,SUMIFS($G$5:G19,$C$5:C19,C19)-SUMIFS($I$4:I18,$C$4:C18,C19))) -> 0 | J19: =IF(C19="",0,IF(C19=$C$4,SUMIFS($I$4:I18,$C$4:C18,C18),SUMIFS($I$4:I18,$C$4:C18,C19))) -> 0 | K19: 0
A20: 17 | C20: =IFERROR(VLOOKUP(D20,Nomenclature!$B$2:$C$196,2,0),"") ->  | H20: =IF(C20="",0,IF(SUMIFS($G$5:G20,$C$5:C20,C20)-SUMIFS($I$4:I19,$C$4:C19,C20)<0,0,SUMIFS($G$5:G20,$C$5:C20,C20)-SUMIFS($I$4:I19,$C$4:C19,C20))) -> 0 | J20: =IF(C20="",0,IF(C20=$C$4,SUMIFS($I$4:I19,$C$4:C19,C19),SUMIFS($I$4:I19,$C$4:C19,C20))) -> 0 | K20: 0 | O20: العنوان:
A21: 18 | C21: =IFERROR(VLOOKUP(D21,Nomenclature!$B$2:$C$196,2,0),"") ->  | H21: =IF(C21="",0,IF(SUMIFS($G$5:G21,$C$5:C21,C21)-SUMIFS($I$4:I20,$C$4:C20,C21)<0,0,SUMIFS($G$5:G21,$C$5:C21,C21)-SUMIFS($I$4:I20,$C$4:C20,C21))) -> 0 | J21: =IF(C21="",0,IF(C21=$C$4,SUMIFS($I$4:I20,$C$4:C20,C20),SUMIFS($I$4:I20,$C$4:C20,C21))) -> 0 | K21: 0 | Q21: =IF(C4<20000,"X","") -> X | S21: العنوان الأول: | W21: نفقات المستخدمين
A22: 19 | C22: =IFERROR(VLOOKUP(D22,Nomenclature!$B$2:$C$196,2,0),"") ->  | H22: =IF(C22="",0,IF(SUMIFS($G$5:G22,$C$5:C22,C22)-SUMIFS($I$4:I21,$C$4:C21,C22)<0,0,SUMIFS($G$5:G22,$C$5:C22,C22)-SUMIFS($I$4:I21,$C$4:C21,C22))) -> 0 | J22: =IF(C22="",0,IF(C22=$C$4,SUMIFS($I$4:I21,$C$4:C21,C21),SUMIFS($I$4:I21,$C$4:C21,C22))) -> 0 | K22: 0 | Q22: =IF(AND(C4>19999,C4<40000),"X","") ->  | S22: العنوان الثاني: | W22: نفقات تسيير المصالح
A23: 20 | C23: =IFERROR(VLOOKUP(D23,Nomenclature!$B$2:$C$196,2,0),"") ->  | H23: =IF(C23="",0,IF(SUMIFS($G$5:G23,$C$5:C23,C23)-SUMIFS($I$4:I22,$C$4:C22,C23)<0,0,SUMIFS($G$5:G23,$C$5:C23,C23)-SUMIFS($I$4:I22,$C$4:C22,C23))) -> 0 | J23: =IF(C23="",0,IF(C23=$C$4,SUMIFS($I$4:I22,$C$4:C22,C22),SUMIFS($I$4:I22,$C$4:C22,C23))) -> 0 | K23: 0 | Q23: =IF(AND(Q21="",Q22=""),"X","") ->  | S23: العنوان الرابع: | W23: نفقات التحويل
A24: 21 | C24: =IFERROR(VLOOKUP(D24,Nomenclature!$B$2:$C$196,2,0),"") ->  | H24: =IF(C24="",0,IF(SUMIFS($G$5:G24,$C$5:C24,C24)-SUMIFS($I$4:I23,$C$4:C23,C24)<0,0,SUMIFS($G$5:G24,$C$5:C24,C24)-SUMIFS($I$4:I23,$C$4:C23,C24))) -> 0 | J24: =IF(C24="",0,IF(C24=$C$4,SUMIFS($I$4:I23,$C$4:C23,C23),SUMIFS($I$4:I23,$C$4:C23,C24))) -> 0 | K24: 0 | R24: =IF(VLOOKUP(N1,A4:L203,12,0)="","- - - - - - - - - - - - - - - - - - - - - - - - - - - - - - - - - - - - - - - - - - - - - - - / / / - - - - - - - - - - - - - - - - - - - - - - - - - - - - - - - - - - - - - - - - - - - - - - -"& CHAR(10)&"- - - - - - - - - - - - - - - - - - - - - - - - - - - - - - - - - - - - - - - - - - - - - - - / / / - - - - - - - - - - - - - - - - - - - - - - - - - - - - - - - - - - - - - - - - - - - - - - -",VLOOKUP(N1,A4:L203,12,0)) -> - - - - - - - - - - - - - - - - - - - - - - - - - - - - - - - - - - - - - - - - - - - - - - - / / / - - - - - - - - - - - - - - - - - - - - - - - - - - - - - - - - - - - - - - - - - - - - - - - - - - - - - - - - - - - - - - - - - - - - - - - - - - - - - - - - - - - - - - - - - - - - - - / / / - - - - - - - - - - - - - - - - - - - - - - - - - - - - - - - - - - - - - - - - - - - - - - -
A25: 22 | C25: =IFERROR(VLOOKUP(D25,Nomenclature!$B$2:$C$196,2,0),"") ->  | H25: =IF(C25="",0,IF(SUMIFS($G$5:G25,$C$5:C25,C25)-SUMIFS($I$4:I24,$C$4:C24,C25)<0,0,SUMIFS($G$5:G25,$C$5:C25,C25)-SUMIFS($I$4:I24,$C$4:C24,C25))) -> 0 | J25: =IF(C25="",0,IF(C25=$C$4,SUMIFS($I$4:I24,$C$4:C24,C24),SUMIFS($I$4:I24,$C$4:C24,C25))) -> 0 | K25: 0
A26: 23 | C26: =IFERROR(VLOOKUP(D26,Nomenclature!$B$2:$C$196,2,0),"") ->  | H26: =IF(C26="",0,IF(SUMIFS($G$5:G26,$C$5:C26,C26)-SUMIFS($I$4:I25,$C$4:C25,C26)<0,0,SUMIFS($G$5:G26,$C$5:C26,C26)-SUMIFS($I$4:I25,$C$4:C25,C26))) -> 0 | J26: =IF(C26="",0,IF(C26=$C$4,SUMIFS($I$4:I25,$C$4:C25,C25),SUMIFS($I$4:I25,$C$4:C25,C26))) -> 0 | K26: 0
A27: 24 | C27: =IFERROR(VLOOKUP(D27,Nomenclature!$B$2:$C$196,2,0),"") ->  | H27: =IF(C27="",0,IF(SUMIFS($G$5:G27,$C$5:C27,C27)-SUMIFS($I$4:I26,$C$4:C26,C27)<0,0,SUMIFS($G$5:G27,$C$5:C27,C27)-SUMIFS($I$4:I26,$C$4:C26,C27))) -> 0 | J27: =IF(C27="",0,IF(C27=$C$4,SUMIFS($I$4:I26,$C$4:C26,C26),SUMIFS($I$4:I26,$C$4:C26,C27))) -> 0 | K27: 0 | O27: الصنف / الصنف الفرعي | W27: رخصة الالتزام المفتوحة/المعدلة | AA27: مجموع الالتزامات السابقة | AE27: الرصيد الأولي | AI27: الالتزام المقترح | AM27: الرصيد المتبقى
A28: 25 | C28: =IFERROR(VLOOKUP(D28,Nomenclature!$B$2:$C$196,2,0),"") ->  | H28: =IF(C28="",0,IF(SUMIFS($G$5:G28,$C$5:C28,C28)-SUMIFS($I$4:I27,$C$4:C27,C28)<0,0,SUMIFS($G$5:G28,$C$5:C28,C28)-SUMIFS($I$4:I27,$C$4:C27,C28))) -> 0 | J28: =IF(C28="",0,IF(C28=$C$4,SUMIFS($I$4:I27,$C$4:C27,C27),SUMIFS($I$4:I27,$C$4:C27,C28))) -> 0 | K28: 0
A29: 26 | C29: =IFERROR(VLOOKUP(D29,Nomenclature!$B$2:$C$196,2,0),"") ->  | H29: =IF(C29="",0,IF(SUMIFS($G$5:G29,$C$5:C29,C29)-SUMIFS($I$4:I28,$C$4:C28,C29)<0,0,SUMIFS($G$5:G29,$C$5:C29,C29)-SUMIFS($I$4:I28,$C$4:C28,C29))) -> 0 | J29: =IF(C29="",0,IF(C29=$C$4,SUMIFS($I$4:I28,$C$4:C28,C28),SUMIFS($I$4:I28,$C$4:C28,C29))) -> 0 | K29: 0 | O29: الصنف | S29: =C4 -> 11000 | W29: =SUM($F$4:INDIRECT("f"&N1+3)) -> 11944593 | AA29: =SUM($I$4:INDIRECT("i"&N1+2)) -> 0 | AE29: =W29-AA29 -> 11944593 | AI29: =IF(S31="",0,VLOOKUP(N1,A4:L103,9,0)) -> 0 | AM29: =IF((AE29-AI29)<0,"رصيد غير كاف",AE29-AI29) -> 11944593
A30: 27 | C30: =IFERROR(VLOOKUP(D30,Nomenclature!$B$2:$C$196,2,0),"") ->  | H30: =IF(C30="",0,IF(SUMIFS($G$5:G30,$C$5:C30,C30)-SUMIFS($I$4:I29,$C$4:C29,C30)<0,0,SUMIFS($G$5:G30,$C$5:C30,C30)-SUMIFS($I$4:I29,$C$4:C29,C30))) -> 0 | J30: =IF(C30="",0,IF(C30=$C$4,SUMIFS($I$4:I29,$C$4:C29,C29),SUMIFS($I$4:I29,$C$4:C29,C30))) -> 0 | K30: 0
A31: 28 | C31: =IFERROR(VLOOKUP(D31,Nomenclature!$B$2:$C$196,2,0),"") ->  | H31: =IF(C31="",0,IF(SUMIFS($G$5:G31,$C$5:C31,C31)-SUMIFS($I$4:I30,$C$4:C30,C31)<0,0,SUMIFS($G$5:G31,$C$5:C31,C31)-SUMIFS($I$4:I30,$C$4:C30,C31))) -> 0 | J31: =IF(C31="",0,IF(C31=$C$4,SUMIFS($I$4:I30,$C$4:C30,C30),SUMIFS($I$4:I30,$C$4:C30,C31))) -> 0 | K31: 0 | O31: الصنف الفرعي | S31: =IF(IFERROR(VLOOKUP(N1,A4:L103,3,0),"انتبه خطأ")=S29,"",IFERROR(VLOOKUP(N1,A4:L103,3,0),"انتبه خطأ")) -> 11220 | W31: =IF(S31="","",VLOOKUP(N1,A4:L103,8,0)) -> 1444593 | AA31: =IF(S31="","",VLOOKUP(N1,A4:L103,10,0)) -> 0 | AE31: =IF(S31="","",W31-AA31) -> 1444593 | AI31: =IF(S31="","",VLOOKUP(N1,A4:L103,9,0)) -> 0 | AM31: =IF(S31="","",IF((AE31-AI31)<0,"رصيد غير كاف",AE31-AI31)) -> 1444593
A32: 29 | C32: =IFERROR(VLOOKUP(D32,Nomenclature!$B$2:$C$196,2,0),"") ->  | H32: =IF(C32="",0,IF(SUMIFS($G$5:G32,$C$5:C32,C32)-SUMIFS($I$4:I31,$C$4:C31,C32)<0,0,SUMIFS($G$5:G32,$C$5:C32,C32)-SUMIFS($I$4:I31,$C$4:C31,C32))) -> 0 | J32: =IF(C32="",0,IF(C32=$C$4,SUMIFS($I$4:I31,$C$4:C31,C31),SUMIFS($I$4:I31,$C$4:C31,C32))) -> 0 | K32: 0
A33: 30 | C33: =IFERROR(VLOOKUP(D33,Nomenclature!$B$2:$C$196,2,0),"") ->  | H33: =IF(C33="",0,IF(SUMIFS($G$5:G33,$C$5:C33,C33)-SUMIFS($I$4:I32,$C$4:C32,C33)<0,0,SUMIFS($G$5:G33,$C$5:C33,C33)-SUMIFS($I$4:I32,$C$4:C32,C33))) -> 0 | J33: =IF(C33="",0,IF(C33=$C$4,SUMIFS($I$4:I32,$C$4:C32,C32),SUMIFS($I$4:I32,$C$4:C32,C33))) -> 0 | K33: 0
A34: 31 | C34: =IFERROR(VLOOKUP(D34,Nomenclature!$B$2:$C$196,2,0),"") ->  | H34: =IF(C34="",0,IF(SUMIFS($G$5:G34,$C$5:C34,C34)-SUMIFS($I$4:I33,$C$4:C33,C34)<0,0,SUMIFS($G$5:G34,$C$5:C34,C34)-SUMIFS($I$4:I33,$C$4:C33,C34))) -> 0 | J34: =IF(C34="",0,IF(C34=$C$4,SUMIFS($I$4:I33,$C$4:C33,C33),SUMIFS($I$4:I33,$C$4:C33,C34))) -> 0 | K34: 0 | O34: موضوع الالتزام:
A35: 32 | C35: =IFERROR(VLOOKUP(D35,Nomenclature!$B$2:$C$196,2,0),"") ->  | H35: =IF(C35="",0,IF(SUMIFS($G$5:G35,$C$5:C35,C35)-SUMIFS($I$4:I34,$C$4:C34,C35)<0,0,SUMIFS($G$5:G35,$C$5:C35,C35)-SUMIFS($I$4:I34,$C$4:C34,C35))) -> 0 | J35: =IF(C35="",0,IF(C35=$C$4,SUMIFS($I$4:I34,$C$4:C34,C34),SUMIFS($I$4:I34,$C$4:C34,C35))) -> 0 | K35: 0 | O35: =IF(VLOOKUP(N1,A4:L203,5,0)=0,"",IFERROR(VLOOKUP(N1,A4:L203,5,0),"انتبه خطأ")) -> التزام في الجدول الأصلي الأولي رقم 2023/02 الخاص بالمرتبات الشهرية للاعوان المتعاقدين بالتوقيت الجزئي من 2023/01/01 إلى غاية 2023/12/31
A36: 33 | C36: =IFERROR(VLOOKUP(D36,Nomenclature!$B$2:$C$196,2,0),"") ->  | H36: =IF(C36="",0,IF(SUMIFS($G$5:G36,$C$5:C36,C36)-SUMIFS($I$4:I35,$C$4:C35,C36)<0,0,SUMIFS($G$5:G36,$C$5:C36,C36)-SUMIFS($I$4:I35,$C$4:C35,C36))) -> 0 | J36: =IF(C36="",0,IF(C36=$C$4,SUMIFS($I$4:I35,$C$4:C35,C35),SUMIFS($I$4:I35,$C$4:C35,C36))) -> 0 | K36: =IF(C36="",0,H36-I36) -> 0
A37: 34 | C37: =IFERROR(VLOOKUP(D37,Nomenclature!$B$2:$C$196,2,0),"") ->  | H37: =IF(C37="",0,IF(SUMIFS($G$5:G37,$C$5:C37,C37)-SUMIFS($I$4:I36,$C$4:C36,C37)<0,0,SUMIFS($G$5:G37,$C$5:C37,C37)-SUMIFS($I$4:I36,$C$4:C36,C37))) -> 0 | J37: =IF(C37="",0,IF(C37=$C$4,SUMIFS($I$4:I36,$C$4:C36,C36),SUMIFS($I$4:I36,$C$4:C36,C37))) -> 0 | K37: 0
A38: 35 | C38: =IFERROR(VLOOKUP(D38,Nomenclature!$B$2:$C$196,2,0),"") ->  | H38: =IF(C38="",0,IF(SUMIFS($G$5:G38,$C$5:C38,C38)-SUMIFS($I$4:I37,$C$4:C37,C38)<0,0,SUMIFS($G$5:G38,$C$5:C38,C38)-SUMIFS($I$4:I37,$C$4:C37,C38))) -> 0 | J38: =IF(C38="",0,IF(C38=$C$4,SUMIFS($I$4:I37,$C$4:C37,C37),SUMIFS($I$4:I37,$C$4:C37,C38))) -> 0 | K38: 0
A39: 36 | C39: =IFERROR(VLOOKUP(D39,Nomenclature!$B$2:$C$196,2,0),"") ->  | H39: =IF(C39="",0,IF(SUMIFS($G$5:G39,$C$5:C39,C39)-SUMIFS($I$4:I38,$C$4:C38,C39)<0,0,SUMIFS($G$5:G39,$C$5:C39,C39)-SUMIFS($I$4:I38,$C$4:C38,C39))) -> 0 | J39: =IF(C39="",0,IF(C39=$C$4,SUMIFS($I$4:I38,$C$4:C38,C38),SUMIFS($I$4:I38,$C$4:C38,C39))) -> 0 | K39: 0
A40: 37 | C40: =IFERROR(VLOOKUP(D40,Nomenclature!$B$2:$C$196,2,0),"") ->  | H40: =IF(C40="",0,IF(SUMIFS($G$5:G40,$C$5:C40,C40)-SUMIFS($I$4:I39,$C$4:C39,C40)<0,0,SUMIFS($G$5:G40,$C$5:C40,C40)-SUMIFS($I$4:I39,$C$4:C39,C40))) -> 0 | J40: =IF(C40="",0,IF(C40=$C$4,SUMIFS($I$4:I39,$C$4:C39,C39),SUMIFS($I$4:I39,$C$4:C39,C40))) -> 0 | K40: 0 | O40: المبلغ بالحروف: | S40: =IFERROR(arretera(AI31),"") -> 
A41: 38 | C41: =IFERROR(VLOOKUP(D41,Nomenclature!$B$2:$C$196,2,0),"") ->  | H41: =IF(C41="",0,IF(SUMIFS($G$5:G41,$C$5:C41,C41)-SUMIFS($I$4:I40,$C$4:C40,C41)<0,0,SUMIFS($G$5:G41,$C$5:C41,C41)-SUMIFS($I$4:I40,$C$4:C40,C41))) -> 0 | J41: =IF(C41="",0,IF(C41=$C$4,SUMIFS($I$4:I40,$C$4:C40,C40),SUMIFS($I$4:I40,$C$4:C40,C41))) -> 0 | K41: 0
A42: 39 | C42: =IFERROR(VLOOKUP(D42,Nomenclature!$B$2:$C$196,2,0),"") ->  | H42: =IF(C42="",0,IF(SUMIFS($G$5:G42,$C$5:C42,C42)-SUMIFS($I$4:I41,$C$4:C41,C42)<0,0,SUMIFS($G$5:G42,$C$5:C42,C42)-SUMIFS($I$4:I41,$C$4:C41,C42))) -> 0 | J42: =IF(C42="",0,IF(C42=$C$4,SUMIFS($I$4:I41,$C$4:C41,C41),SUMIFS($I$4:I41,$C$4:C41,C42))) -> 0 | K42: 0
A43: 40 | C43: =IFERROR(VLOOKUP(D43,Nomenclature!$B$2:$C$196,2,0),"") ->  | H43: =IF(C43="",0,IF(SUMIFS($G$5:G43,$C$5:C43,C43)-SUMIFS($I$4:I42,$C$4:C42,C43)<0,0,SUMIFS($G$5:G43,$C$5:C43,C43)-SUMIFS($I$4:I42,$C$4:C42,C43))) -> 0 | J43: =IF(C43="",0,IF(C43=$C$4,SUMIFS($I$4:I42,$C$4:C42,C42),SUMIFS($I$4:I42,$C$4:C42,C43))) -> 0 | K43: 0 | O43: إطار مخصص للمراقب الميزانياتي | AC43: إطار مخصص للآمر بالصرف
A44: 41 | C44: =IFERROR(VLOOKUP(D44,Nomenclature!$B$2:$C$196,2,0),"") ->  | H44: =IF(C44="",0,IF(SUMIFS($G$5:G44,$C$5:C44,C44)-SUMIFS($I$4:I43,$C$4:C43,C44)<0,0,SUMIFS($G$5:G44,$C$5:C44,C44)-SUMIFS($I$4:I43,$C$4:C43,C44))) -> 0 | J44: =IF(C44="",0,IF(C44=$C$4,SUMIFS($I$4:I43,$C$4:C43,C43),SUMIFS($I$4:I43,$C$4:C43,C44))) -> 0 | K44: 0
A45: 42 | C45: =IFERROR(VLOOKUP(D45,Nomenclature!$B$2:$C$196,2,0),"") ->  | H45: =IF(C45="",0,IF(SUMIFS($G$5:G45,$C$5:C45,C45)-SUMIFS($I$4:I44,$C$4:C44,C45)<0,0,SUMIFS($G$5:G45,$C$5:C45,C45)-SUMIFS($I$4:I44,$C$4:C44,C45))) -> 0 | J45: =IF(C45="",0,IF(C45=$C$4,SUMIFS($I$4:I44,$C$4:C44,C44),SUMIFS($I$4:I44,$C$4:C44,C45))) -> 0 | K45: 0 | O45: رقم التأشيرة: | AD45: ختم
A46: 43 | C46: =IFERROR(VLOOKUP(D46,Nomenclature!$B$2:$C$196,2,0),"") ->  | H46: =IF(C46="",0,IF(SUMIFS($G$5:G46,$C$5:C46,C46)-SUMIFS($I$4:I45,$C$4:C45,C46)<0,0,SUMIFS($G$5:G46,$C$5:C46,C46)-SUMIFS($I$4:I45,$C$4:C45,C46))) -> 0 | J46: =IF(C46="",0,IF(C46=$C$4,SUMIFS($I$4:I45,$C$4:C45,C45),SUMIFS($I$4:I45,$C$4:C45,C46))) -> 0 | K46: 0
A47: 44 | C47: =IFERROR(VLOOKUP(D47,Nomenclature!$B$2:$C$196,2,0),"") ->  | H47: =IF(C47="",0,IF(SUMIFS($G$5:G47,$C$5:C47,C47)-SUMIFS($I$4:I46,$C$4:C46,C47)<0,0,SUMIFS($G$5:G47,$C$5:C47,C47)-SUMIFS($I$4:I46,$C$4:C46,C47))) -> 0 | J47: =IF(C47="",0,IF(C47=$C$4,SUMIFS($I$4:I46,$C$4:C46,C46),SUMIFS($I$4:I46,$C$4:C46,C47))) -> 0 | K47: 0 | O47: تاريخ التأشيرة:
A48: 45 | C48: =IFERROR(VLOOKUP(D48,Nomenclature!$B$2:$C$196,2,0),"") ->  | H48: =IF(C48="",0,IF(SUMIFS($G$5:G48,$C$5:C48,C48)-SUMIFS($I$4:I47,$C$4:C47,C48)<0,0,SUMIFS($G$5:G48,$C$5:C48,C48)-SUMIFS($I$4:I47,$C$4:C47,C48))) -> 0 | J48: =IF(C48="",0,IF(C48=$C$4,SUMIFS($I$4:I47,$C$4:C47,C47),SUMIFS($I$4:I47,$C$4:C47,C48))) -> 0 | K48: 0 | AD48: امضاء
A49: 46 | C49: =IFERROR(VLOOKUP(D49,Nomenclature!$B$2:$C$196,2,0),"") ->  | H49: =IF(C49="",0,IF(SUMIFS($G$5:G49,$C$5:C49,C49)-SUMIFS($I$4:I48,$C$4:C48,C49)<0,0,SUMIFS($G$5:G49,$C$5:C49,C49)-SUMIFS($I$4:I48,$C$4:C48,C49))) -> 0 | J49: =IF(C49="",0,IF(C49=$C$4,SUMIFS($I$4:I48,$C$4:C48,C48),SUMIFS($I$4:I48,$C$4:C48,C49))) -> 0 | K49: 0
A50: 47 | C50: =IFERROR(VLOOKUP(D50,Nomenclature!$B$2:$C$196,2,0),"") ->  | H50: =IF(C50="",0,IF(SUMIFS($G$5:G50,$C$5:C50,C50)-SUMIFS($I$4:I49,$C$4:C49,C50)<0,0,SUMIFS($G$5:G50,$C$5:C50,C50)-SUMIFS($I$4:I49,$C$4:C49,C50))) -> 0 | J50: =IF(C50="",0,IF(C50=$C$4,SUMIFS($I$4:I49,$C$4:C49,C49),SUMIFS($I$4:I49,$C$4:C49,C50))) -> 0 | K50: 0
A51: 48 | C51: =IFERROR(VLOOKUP(D51,Nomenclature!$B$2:$C$196,2,0),"") ->  | H51: =IF(C51="",0,IF(SUMIFS($G$5:G51,$C$5:C51,C51)-SUMIFS($I$4:I50,$C$4:C50,C51)<0,0,SUMIFS($G$5:G51,$C$5:C51,C51)-SUMIFS($I$4:I50,$C$4:C50,C51))) -> 0 | J51: =IF(C51="",0,IF(C51=$C$4,SUMIFS($I$4:I50,$C$4:C50,C50),SUMIFS($I$4:I50,$C$4:C50,C51))) -> 0 | K51: 0 | P51: =AD48 -> امضاء | X51: =AD45 -> ختم
A52: 49 | C52: =IFERROR(VLOOKUP(D52,Nomenclature!$B$2:$C$196,2,0),"") ->  | H52: =IF(C52="",0,IF(SUMIFS($G$5:G52,$C$5:C52,C52)-SUMIFS($I$4:I51,$C$4:C51,C52)<0,0,SUMIFS($G$5:G52,$C$5:C52,C52)-SUMIFS($I$4:I51,$C$4:C51,C52))) -> 0 | J52: =IF(C52="",0,IF(C52=$C$4,SUMIFS($I$4:I51,$C$4:C51,C51),SUMIFS($I$4:I51,$C$4:C51,C52))) -> 0 | K52: 0
A53: 50 | C53: =IFERROR(VLOOKUP(D53,Nomenclature!$B$2:$C$196,2,0),"") ->  | H53: =IF(C53="",0,IF(SUMIFS($G$5:G53,$C$5:C53,C53)-SUMIFS($I$4:I52,$C$4:C52,C53)<0,0,SUMIFS($G$5:G53,$C$5:C53,C53)-SUMIFS($I$4:I52,$C$4:C52,C53))) -> 0 | J53: =IF(C53="",0,IF(C53=$C$4,SUMIFS($I$4:I52,$C$4:C52,C52),SUMIFS($I$4:I52,$C$4:C52,C53))) -> 0 | K53: 0
A54: 51 | C54: =IFERROR(VLOOKUP(D54,Nomenclature!$B$2:$C$196,2,0),"") ->  | H54: =IF(C54="",0,IF(SUMIFS($G$5:G54,$C$5:C54,C54)-SUMIFS($I$4:I53,$C$4:C53,C54)<0,0,SUMIFS($G$5:G54,$C$5:C54,C54)-SUMIFS($I$4:I53,$C$4:C53,C54))) -> 0 | J54: =IF(C54="",0,IF(C54=$C$4,SUMIFS($I$4:I53,$C$4:C53,C53),SUMIFS($I$4:I53,$C$4:C53,C54))) -> 0 | K54: 0
A55: 52 | C55: =IFERROR(VLOOKUP(D55,Nomenclature!$B$2:$C$196,2,0),"") ->  | H55: =IF(C55="",0,IF(SUMIFS($G$5:G55,$C$5:C55,C55)-SUMIFS($I$4:I54,$C$4:C54,C55)<0,0,SUMIFS($G$5:G55,$C$5:C55,C55)-SUMIFS($I$4:I54,$C$4:C54,C55))) -> 0 | J55: =IF(C55="",0,IF(C55=$C$4,SUMIFS($I$4:I54,$C$4:C54,C54),SUMIFS($I$4:I54,$C$4:C54,C55))) -> 0 | K55: 0
A56: 53 | C56: =IFERROR(VLOOKUP(D56,Nomenclature!$B$2:$C$196,2,0),"") ->  | H56: =IF(C56="",0,IF(SUMIFS($G$5:G56,$C$5:C56,C56)-SUMIFS($I$4:I55,$C$4:C55,C56)<0,0,SUMIFS($G$5:G56,$C$5:C56,C56)-SUMIFS($I$4:I55,$C$4:C55,C56))) -> 0 | J56: =IF(C56="",0,IF(C56=$C$4,SUMIFS($I$4:I55,$C$4:C55,C55),SUMIFS($I$4:I55,$C$4:C55,C56))) -> 0 | K56: 0
A57: 54 | C57: =IFERROR(VLOOKUP(D57,Nomenclature!$B$2:$C$196,2,0),"") ->  | H57: =IF(C57="",0,IF(SUMIFS($G$5:G57,$C$5:C57,C57)-SUMIFS($I$4:I56,$C$4:C56,C57)<0,0,SUMIFS($G$5:G57,$C$5:C57,C57)-SUMIFS($I$4:I56,$C$4:C56,C57))) -> 0 | J57: =IF(C57="",0,IF(C57=$C$4,SUMIFS($I$4:I56,$C$4:C56,C56),SUMIFS($I$4:I56,$C$4:C56,C57))) -> 0 | K57: 0
A58: 55 | C58: =IFERROR(VLOOKUP(D58,Nomenclature!$B$2:$C$196,2,0),"") ->  | H58: =IF(C58="",0,IF(SUMIFS($G$5:G58,$C$5:C58,C58)-SUMIFS($I$4:I57,$C$4:C57,C58)<0,0,SUMIFS($G$5:G58,$C$5:C58,C58)-SUMIFS($I$4:I57,$C$4:C57,C58))) -> 0 | J58: =IF(C58="",0,IF(C58=$C$4,SUMIFS($I$4:I57,$C$4:C57,C57),SUMIFS($I$4:I57,$C$4:C57,C58))) -> 0 | K58: 0
A59: 56 | C59: =IFERROR(VLOOKUP(D59,Nomenclature!$B$2:$C$196,2,0),"") ->  | H59: =IF(C59="",0,IF(SUMIFS($G$5:G59,$C$5:C59,C59)-SUMIFS($I$4:I58,$C$4:C58,C59)<0,0,SUMIFS($G$5:G59,$C$5:C59,C59)-SUMIFS($I$4:I58,$C$4:C58,C59))) -> 0 | J59: =IF(C59="",0,IF(C59=$C$4,SUMIFS($I$4:I58,$C$4:C58,C58),SUMIFS($I$4:I58,$C$4:C58,C59))) -> 0 | K59: 0
A60: 57 | C60: =IFERROR(VLOOKUP(D60,Nomenclature!$B$2:$C$196,2,0),"") ->  | H60: =IF(C60="",0,IF(SUMIFS($G$5:G60,$C$5:C60,C60)-SUMIFS($I$4:I59,$C$4:C59,C60)<0,0,SUMIFS($G$5:G60,$C$5:C60,C60)-SUMIFS($I$4:I59,$C$4:C59,C60))) -> 0 | J60: =IF(C60="",0,IF(C60=$C$4,SUMIFS($I$4:I59,$C$4:C59,C59),SUMIFS($I$4:I59,$C$4:C59,C60))) -> 0 | K60: 0
A61: 58 | C61: =IFERROR(VLOOKUP(D61,Nomenclature!$B$2:$C$196,2,0),"") ->  | H61: =IF(C61="",0,IF(SUMIFS($G$5:G61,$C$5:C61,C61)-SUMIFS($I$4:I60,$C$4:C60,C61)<0,0,SUMIFS($G$5:G61,$C$5:C61,C61)-SUMIFS($I$4:I60,$C$4:C60,C61))) -> 0 | J61: =IF(C61="",0,IF(C61=$C$4,SUMIFS($I$4:I60,$C$4:C60,C60),SUMIFS($I$4:I60,$C$4:C60,C61))) -> 0 | K61: 0
A62: 59 | C62: =IFERROR(VLOOKUP(D62,Nomenclature!$B$2:$C$196,2,0),"") ->  | H62: =IF(C62="",0,IF(SUMIFS($G$5:G62,$C$5:C62,C62)-SUMIFS($I$4:I61,$C$4:C61,C62)<0,0,SUMIFS($G$5:G62,$C$5:C62,C62)-SUMIFS($I$4:I61,$C$4:C61,C62))) -> 0 | J62: =IF(C62="",0,IF(C62=$C$4,SUMIFS($I$4:I61,$C$4:C61,C61),SUMIFS($I$4:I61,$C$4:C61,C62))) -> 0 | K62: 0
A63: 60 | C63: =IFERROR(VLOOKUP(D63,Nomenclature!$B$2:$C$196,2,0),"") ->  | H63: =IF(C63="",0,IF(SUMIFS($G$5:G63,$C$5:C63,C63)-SUMIFS($I$4:I62,$C$4:C62,C63)<0,0,SUMIFS($G$5:G63,$C$5:C63,C63)-SUMIFS($I$4:I62,$C$4:C62,C63))) -> 0 | J63: =IF(C63="",0,IF(C63=$C$4,SUMIFS($I$4:I62,$C$4:C62,C62),SUMIFS($I$4:I62,$C$4:C62,C63))) -> 0 | K63: 0
A64: 61 | C64: =IFERROR(VLOOKUP(D64,Nomenclature!$B$2:$C$196,2,0),"") ->  | H64: =IF(C64="",0,IF(SUMIFS($G$5:G64,$C$5:C64,C64)-SUMIFS($I$4:I63,$C$4:C63,C64)<0,0,SUMIFS($G$5:G64,$C$5:C64,C64)-SUMIFS($I$4:I63,$C$4:C63,C64))) -> 0 | J64: =IF(C64="",0,IF(C64=$C$4,SUMIFS($I$4:I63,$C$4:C63,C63),SUMIFS($I$4:I63,$C$4:C63,C64))) -> 0 | K64: 0
A65: 62 | C65: =IFERROR(VLOOKUP(D65,Nomenclature!$B$2:$C$196,2,0),"") ->  | H65: =IF(C65="",0,IF(SUMIFS($G$5:G65,$C$5:C65,C65)-SUMIFS($I$4:I64,$C$4:C64,C65)<0,0,SUMIFS($G$5:G65,$C$5:C65,C65)-SUMIFS($I$4:I64,$C$4:C64,C65))) -> 0 | J65: =IF(C65="",0,IF(C65=$C$4,SUMIFS($I$4:I64,$C$4:C64,C64),SUMIFS($I$4:I64,$C$4:C64,C65))) -> 0 | K65: 0
A66: 63 | C66: =IFERROR(VLOOKUP(D66,Nomenclature!$B$2:$C$196,2,0),"") ->  | H66: =IF(C66="",0,IF(SUMIFS($G$5:G66,$C$5:C66,C66)-SUMIFS($I$4:I65,$C$4:C65,C66)<0,0,SUMIFS($G$5:G66,$C$5:C66,C66)-SUMIFS($I$4:I65,$C$4:C65,C66))) -> 0 | J66: =IF(C66="",0,IF(C66=$C$4,SUMIFS($I$4:I65,$C$4:C65,C65),SUMIFS($I$4:I65,$C$4:C65,C66))) -> 0 | K66: 0
A67: 64 | C67: =IFERROR(VLOOKUP(D67,Nomenclature!$B$2:$C$196,2,0),"") ->  | H67: =IF(C67="",0,IF(SUMIFS($G$5:G67,$C$5:C67,C67)-SUMIFS($I$4:I66,$C$4:C66,C67)<0,0,SUMIFS($G$5:G67,$C$5:C67,C67)-SUMIFS($I$4:I66,$C$4:C66,C67))) -> 0 | J67: =IF(C67="",0,IF(C67=$C$4,SUMIFS($I$4:I66,$C$4:C66,C66),SUMIFS($I$4:I66,$C$4:C66,C67))) -> 0 | K67: 0
A68: 65 | C68: =IFERROR(VLOOKUP(D68,Nomenclature!$B$2:$C$196,2,0),"") ->  | H68: =IF(C68="",0,IF(SUMIFS($G$5:G68,$C$5:C68,C68)-SUMIFS($I$4:I67,$C$4:C67,C68)<0,0,SUMIFS($G$5:G68,$C$5:C68,C68)-SUMIFS($I$4:I67,$C$4:C67,C68))) -> 0 | J68: =IF(C68="",0,IF(C68=$C$4,SUMIFS($I$4:I67,$C$4:C67,C67),SUMIFS($I$4:I67,$C$4:C67,C68))) -> 0 | K68: =IF(C68="",0,H68-I68) -> 0
A69: 66 | C69: =IFERROR(VLOOKUP(D69,Nomenclature!$B$2:$C$196,2,0),"") ->  | H69: =IF(C69="",0,IF(SUMIFS($G$5:G69,$C$5:C69,C69)-SUMIFS($I$4:I68,$C$4:C68,C69)<0,0,SUMIFS($G$5:G69,$C$5:C69,C69)-SUMIFS($I$4:I68,$C$4:C68,C69))) -> 0 | J69: =IF(C69="",0,IF(C69=$C$4,SUMIFS($I$4:I68,$C$4:C68,C68),SUMIFS($I$4:I68,$C$4:C68,C69))) -> 0 | K69: 0
A70: 67 | C70: =IFERROR(VLOOKUP(D70,Nomenclature!$B$2:$C$196,2,0),"") ->  | H70: =IF(C70="",0,IF(SUMIFS($G$5:G70,$C$5:C70,C70)-SUMIFS($I$4:I69,$C$4:C69,C70)<0,0,SUMIFS($G$5:G70,$C$5:C70,C70)-SUMIFS($I$4:I69,$C$4:C69,C70))) -> 0 | J70: =IF(C70="",0,IF(C70=$C$4,SUMIFS($I$4:I69,$C$4:C69,C69),SUMIFS($I$4:I69,$C$4:C69,C70))) -> 0 | K70: 0
A71: 68 | C71: =IFERROR(VLOOKUP(D71,Nomenclature!$B$2:$C$196,2,0),"") ->  | H71: =IF(C71="",0,IF(SUMIFS($G$5:G71,$C$5:C71,C71)-SUMIFS($I$4:I70,$C$4:C70,C71)<0,0,SUMIFS($G$5:G71,$C$5:C71,C71)-SUMIFS($I$4:I70,$C$4:C70,C71))) -> 0 | J71: =IF(C71="",0,IF(C71=$C$4,SUMIFS($I$4:I70,$C$4:C70,C70),SUMIFS($I$4:I70,$C$4:C70,C71))) -> 0 | K71: 0
A72: 69 | C72: =IFERROR(VLOOKUP(D72,Nomenclature!$B$2:$C$196,2,0),"") ->  | H72: =IF(C72="",0,IF(SUMIFS($G$5:G72,$C$5:C72,C72)-SUMIFS($I$4:I71,$C$4:C71,C72)<0,0,SUMIFS($G$5:G72,$C$5:C72,C72)-SUMIFS($I$4:I71,$C$4:C71,C72))) -> 0 | J72: =IF(C72="",0,IF(C72=$C$4,SUMIFS($I$4:I71,$C$4:C71,C71),SUMIFS($I$4:I71,$C$4:C71,C72))) -> 0 | K72: 0
A73: 70 | C73: =IFERROR(VLOOKUP(D73,Nomenclature!$B$2:$C$196,2,0),"") ->  | H73: =IF(C73="",0,IF(SUMIFS($G$5:G73,$C$5:C73,C73)-SUMIFS($I$4:I72,$C$4:C72,C73)<0,0,SUMIFS($G$5:G73,$C$5:C73,C73)-SUMIFS($I$4:I72,$C$4:C72,C73))) -> 0 | J73: =IF(C73="",0,IF(C73=$C$4,SUMIFS($I$4:I72,$C$4:C72,C72),SUMIFS($I$4:I72,$C$4:C72,C73))) -> 0 | K73: 0
A74: 71 | C74: =IFERROR(VLOOKUP(D74,Nomenclature!$B$2:$C$196,2,0),"") ->  | H74: =IF(C74="",0,IF(SUMIFS($G$5:G74,$C$5:C74,C74)-SUMIFS($I$4:I73,$C$4:C73,C74)<0,0,SUMIFS($G$5:G74,$C$5:C74,C74)-SUMIFS($I$4:I73,$C$4:C73,C74))) -> 0 | J74: =IF(C74="",0,IF(C74=$C$4,SUMIFS($I$4:I73,$C$4:C73,C73),SUMIFS($I$4:I73,$C$4:C73,C74))) -> 0 | K74: 0
A75: 72 | C75: =IFERROR(VLOOKUP(D75,Nomenclature!$B$2:$C$196,2,0),"") ->  | H75: =IF(C75="",0,IF(SUMIFS($G$5:G75,$C$5:C75,C75)-SUMIFS($I$4:I74,$C$4:C74,C75)<0,0,SUMIFS($G$5:G75,$C$5:C75,C75)-SUMIFS($I$4:I74,$C$4:C74,C75))) -> 0 | J75: =IF(C75="",0,IF(C75=$C$4,SUMIFS($I$4:I74,$C$4:C74,C74),SUMIFS($I$4:I74,$C$4:C74,C75))) -> 0 | K75: 0
A76: 73 | C76: =IFERROR(VLOOKUP(D76,Nomenclature!$B$2:$C$196,2,0),"") ->  | H76: =IF(C76="",0,IF(SUMIFS($G$5:G76,$C$5:C76,C76)-SUMIFS($I$4:I75,$C$4:C75,C76)<0,0,SUMIFS($G$5:G76,$C$5:C76,C76)-SUMIFS($I$4:I75,$C$4:C75,C76))) -> 0 | J76: =IF(C76="",0,IF(C76=$C$4,SUMIFS($I$4:I75,$C$4:C75,C75),SUMIFS($I$4:I75,$C$4:C75,C76))) -> 0 | K76: 0
A77: 74 | C77: =IFERROR(VLOOKUP(D77,Nomenclature!$B$2:$C$196,2,0),"") ->  | H77: =IF(C77="",0,IF(SUMIFS($G$5:G77,$C$5:C77,C77)-SUMIFS($I$4:I76,$C$4:C76,C77)<0,0,SUMIFS($G$5:G77,$C$5:C77,C77)-SUMIFS($I$4:I76,$C$4:C76,C77))) -> 0 | J77: =IF(C77="",0,IF(C77=$C$4,SUMIFS($I$4:I76,$C$4:C76,C76),SUMIFS($I$4:I76,$C$4:C76,C77))) -> 0 | K77: 0
A78: 75 | C78: =IFERROR(VLOOKUP(D78,Nomenclature!$B$2:$C$196,2,0),"") ->  | H78: =IF(C78="",0,IF(SUMIFS($G$5:G78,$C$5:C78,C78)-SUMIFS($I$4:I77,$C$4:C77,C78)<0,0,SUMIFS($G$5:G78,$C$5:C78,C78)-SUMIFS($I$4:I77,$C$4:C77,C78))) -> 0 | J78: =IF(C78="",0,IF(C78=$C$4,SUMIFS($I$4:I77,$C$4:C77,C77),SUMIFS($I$4:I77,$C$4:C77,C78))) -> 0 | K78: 0
A79: 76 | C79: =IFERROR(VLOOKUP(D79,Nomenclature!$B$2:$C$196,2,0),"") ->  | H79: =IF(C79="",0,IF(SUMIFS($G$5:G79,$C$5:C79,C79)-SUMIFS($I$4:I78,$C$4:C78,C79)<0,0,SUMIFS($G$5:G79,$C$5:C79,C79)-SUMIFS($I$4:I78,$C$4:C78,C79))) -> 0 | J79: =IF(C79="",0,IF(C79=$C$4,SUMIFS($I$4:I78,$C$4:C78,C78),SUMIFS($I$4:I78,$C$4:C78,C79))) -> 0 | K79: 0
A80: 77 | C80: =IFERROR(VLOOKUP(D80,Nomenclature!$B$2:$C$196,2,0),"") ->  | H80: =IF(C80="",0,IF(SUMIFS($G$5:G80,$C$5:C80,C80)-SUMIFS($I$4:I79,$C$4:C79,C80)<0,0,SUMIFS($G$5:G80,$C$5:C80,C80)-SUMIFS($I$4:I79,$C$4:C79,C80))) -> 0 | J80: =IF(C80="",0,IF(C80=$C$4,SUMIFS($I$4:I79,$C$4:C79,C79),SUMIFS($I$4:I79,$C$4:C79,C80))) -> 0 | K80: 0
A81: 78 | C81: =IFERROR(VLOOKUP(D81,Nomenclature!$B$2:$C$196,2,0),"") ->  | H81: =IF(C81="",0,IF(SUMIFS($G$5:G81,$C$5:C81,C81)-SUMIFS($I$4:I80,$C$4:C80,C81)<0,0,SUMIFS($G$5:G81,$C$5:C81,C81)-SUMIFS($I$4:I80,$C$4:C80,C81))) -> 0 | J81: =IF(C81="",0,IF(C81=$C$4,SUMIFS($I$4:I80,$C$4:C80,C80),SUMIFS($I$4:I80,$C$4:C80,C81))) -> 0 | K81: 0
A82: 79 | C82: =IFERROR(VLOOKUP(D82,Nomenclature!$B$2:$C$196,2,0),"") ->  | H82: =IF(C82="",0,IF(SUMIFS($G$5:G82,$C$5:C82,C82)-SUMIFS($I$4:I81,$C$4:C81,C82)<0,0,SUMIFS($G$5:G82,$C$5:C82,C82)-SUMIFS($I$4:I81,$C$4:C81,C82))) -> 0 | J82: =IF(C82="",0,IF(C82=$C$4,SUMIFS($I$4:I81,$C$4:C81,C81),SUMIFS($I$4:I81,$C$4:C81,C82))) -> 0 | K82: 0
A83: 80 | C83: =IFERROR(VLOOKUP(D83,Nomenclature!$B$2:$C$196,2,0),"") ->  | H83: =IF(C83="",0,IF(SUMIFS($G$5:G83,$C$5:C83,C83)-SUMIFS($I$4:I82,$C$4:C82,C83)<0,0,SUMIFS($G$5:G83,$C$5:C83,C83)-SUMIFS($I$4:I82,$C$4:C82,C83))) -> 0 | J83: =IF(C83="",0,IF(C83=$C$4,SUMIFS($I$4:I82,$C$4:C82,C82),SUMIFS($I$4:I82,$C$4:C82,C83))) -> 0 | K83: 0
A84: 81 | C84: =IFERROR(VLOOKUP(D84,Nomenclature!$B$2:$C$196,2,0),"") ->  | H84: =IF(C84="",0,IF(SUMIFS($G$5:G84,$C$5:C84,C84)-SUMIFS($I$4:I83,$C$4:C83,C84)<0,0,SUMIFS($G$5:G84,$C$5:C84,C84)-SUMIFS($I$4:I83,$C$4:C83,C84))) -> 0 | J84: =IF(C84="",0,IF(C84=$C$4,SUMIFS($I$4:I83,$C$4:C83,C83),SUMIFS($I$4:I83,$C$4:C83,C84))) -> 0 | K84: 0
A85: 82 | C85: =IFERROR(VLOOKUP(D85,Nomenclature!$B$2:$C$196,2,0),"") ->  | H85: =IF(C85="",0,IF(SUMIFS($G$5:G85,$C$5:C85,C85)-SUMIFS($I$4:I84,$C$4:C84,C85)<0,0,SUMIFS($G$5:G85,$C$5:C85,C85)-SUMIFS($I$4:I84,$C$4:C84,C85))) -> 0 | J85: =IF(C85="",0,IF(C85=$C$4,SUMIFS($I$4:I84,$C$4:C84,C84),SUMIFS($I$4:I84,$C$4:C84,C85))) -> 0 | K85: 0
A86: 83 | C86: =IFERROR(VLOOKUP(D86,Nomenclature!$B$2:$C$196,2,0),"") ->  | H86: =IF(C86="",0,IF(SUMIFS($G$5:G86,$C$5:C86,C86)-SUMIFS($I$4:I85,$C$4:C85,C86)<0,0,SUMIFS($G$5:G86,$C$5:C86,C86)-SUMIFS($I$4:I85,$C$4:C85,C86))) -> 0 | J86: =IF(C86="",0,IF(C86=$C$4,SUMIFS($I$4:I85,$C$4:C85,C85),SUMIFS($I$4:I85,$C$4:C85,C86))) -> 0 | K86: 0
A87: 84 | C87: =IFERROR(VLOOKUP(D87,Nomenclature!$B$2:$C$196,2,0),"") ->  | H87: =IF(C87="",0,IF(SUMIFS($G$5:G87,$C$5:C87,C87)-SUMIFS($I$4:I86,$C$4:C86,C87)<0,0,SUMIFS($G$5:G87,$C$5:C87,C87)-SUMIFS($I$4:I86,$C$4:C86,C87))) -> 0 | J87: =IF(C87="",0,IF(C87=$C$4,SUMIFS($I$4:I86,$C$4:C86,C86),SUMIFS($I$4:I86,$C$4:C86,C87))) -> 0 | K87: 0
A88: 85 | C88: =IFERROR(VLOOKUP(D88,Nomenclature!$B$2:$C$196,2,0),"") ->  | H88: =IF(C88="",0,IF(SUMIFS($G$5:G88,$C$5:C88,C88)-SUMIFS($I$4:I87,$C$4:C87,C88)<0,0,SUMIFS($G$5:G88,$C$5:C88,C88)-SUMIFS($I$4:I87,$C$4:C87,C88))) -> 0 | J88: =IF(C88="",0,IF(C88=$C$4,SUMIFS($I$4:I87,$C$4:C87,C87),SUMIFS($I$4:I87,$C$4:C87,C88))) -> 0 | K88: 0
A89: 86 | C89: =IFERROR(VLOOKUP(D89,Nomenclature!$B$2:$C$196,2,0),"") ->  | H89: =IF(C89="",0,IF(SUMIFS($G$5:G89,$C$5:C89,C89)-SUMIFS($I$4:I88,$C$4:C88,C89)<0,0,SUMIFS($G$5:G89,$C$5:C89,C89)-SUMIFS($I$4:I88,$C$4:C88,C89))) -> 0 | J89: =IF(C89="",0,IF(C89=$C$4,SUMIFS($I$4:I88,$C$4:C88,C88),SUMIFS($I$4:I88,$C$4:C88,C89))) -> 0 | K89: 0
A90: 87 | C90: =IFERROR(VLOOKUP(D90,Nomenclature!$B$2:$C$196,2,0),"") ->  | H90: =IF(C90="",0,IF(SUMIFS($G$5:G90,$C$5:C90,C90)-SUMIFS($I$4:I89,$C$4:C89,C90)<0,0,SUMIFS($G$5:G90,$C$5:C90,C90)-SUMIFS($I$4:I89,$C$4:C89,C90))) -> 0 | J90: =IF(C90="",0,IF(C90=$C$4,SUMIFS($I$4:I89,$C$4:C89,C89),SUMIFS($I$4:I89,$C$4:C89,C90))) -> 0 | K90: 0
A91: 88 | C91: =IFERROR(VLOOKUP(D91,Nomenclature!$B$2:$C$196,2,0),"") ->  | H91: =IF(C91="",0,IF(SUMIFS($G$5:G91,$C$5:C91,C91)-SUMIFS($I$4:I90,$C$4:C90,C91)<0,0,SUMIFS($G$5:G91,$C$5:C91,C91)-SUMIFS($I$4:I90,$C$4:C90,C91))) -> 0 | J91: =IF(C91="",0,IF(C91=$C$4,SUMIFS($I$4:I90,$C$4:C90,C90),SUMIFS($I$4:I90,$C$4:C90,C91))) -> 0 | K91: 0
A92: 89 | C92: =IFERROR(VLOOKUP(D92,Nomenclature!$B$2:$C$196,2,0),"") ->  | H92: =IF(C92="",0,IF(SUMIFS($G$5:G92,$C$5:C92,C92)-SUMIFS($I$4:I91,$C$4:C91,C92)<0,0,SUMIFS($G$5:G92,$C$5:C92,C92)-SUMIFS($I$4:I91,$C$4:C91,C92))) -> 0 | J92: =IF(C92="",0,IF(C92=$C$4,SUMIFS($I$4:I91,$C$4:C91,C91),SUMIFS($I$4:I91,$C$4:C91,C92))) -> 0 | K92: 0
A93: 90 | C93: =IFERROR(VLOOKUP(D93,Nomenclature!$B$2:$C$196,2,0),"") ->  | H93: =IF(C93="",0,IF(SUMIFS($G$5:G93,$C$5:C93,C93)-SUMIFS($I$4:I92,$C$4:C92,C93)<0,0,SUMIFS($G$5:G93,$C$5:C93,C93)-SUMIFS($I$4:I92,$C$4:C92,C93))) -> 0 | J93: =IF(C93="",0,IF(C93=$C$4,SUMIFS($I$4:I92,$C$4:C92,C92),SUMIFS($I$4:I92,$C$4:C92,C93))) -> 0 | K93: 0
A94: 91 | C94: =IFERROR(VLOOKUP(D94,Nomenclature!$B$2:$C$196,2,0),"") ->  | H94: =IF(C94="",0,IF(SUMIFS($G$5:G94,$C$5:C94,C94)-SUMIFS($I$4:I93,$C$4:C93,C94)<0,0,SUMIFS($G$5:G94,$C$5:C94,C94)-SUMIFS($I$4:I93,$C$4:C93,C94))) -> 0 | J94: =IF(C94="",0,IF(C94=$C$4,SUMIFS($I$4:I93,$C$4:C93,C93),SUMIFS($I$4:I93,$C$4:C93,C94))) -> 0 | K94: 0
A95: 92 | C95: =IFERROR(VLOOKUP(D95,Nomenclature!$B$2:$C$196,2,0),"") ->  | H95: =IF(C95="",0,IF(SUMIFS($G$5:G95,$C$5:C95,C95)-SUMIFS($I$4:I94,$C$4:C94,C95)<0,0,SUMIFS($G$5:G95,$C$5:C95,C95)-SUMIFS($I$4:I94,$C$4:C94,C95))) -> 0 | J95: =IF(C95="",0,IF(C95=$C$4,SUMIFS($I$4:I94,$C$4:C94,C94),SUMIFS($I$4:I94,$C$4:C94,C95))) -> 0 | K95: 0
A96: 93 | C96: =IFERROR(VLOOKUP(D96,Nomenclature!$B$2:$C$196,2,0),"") ->  | H96: =IF(C96="",0,IF(SUMIFS($G$5:G96,$C$5:C96,C96)-SUMIFS($I$4:I95,$C$4:C95,C96)<0,0,SUMIFS($G$5:G96,$C$5:C96,C96)-SUMIFS($I$4:I95,$C$4:C95,C96))) -> 0 | J96: =IF(C96="",0,IF(C96=$C$4,SUMIFS($I$4:I95,$C$4:C95,C95),SUMIFS($I$4:I95,$C$4:C95,C96))) -> 0 | K96: 0
A97: 94 | C97: =IFERROR(VLOOKUP(D97,Nomenclature!$B$2:$C$196,2,0),"") ->  | H97: =IF(C97="",0,IF(SUMIFS($G$5:G97,$C$5:C97,C97)-SUMIFS($I$4:I96,$C$4:C96,C97)<0,0,SUMIFS($G$5:G97,$C$5:C97,C97)-SUMIFS($I$4:I96,$C$4:C96,C97))) -> 0 | J97: =IF(C97="",0,IF(C97=$C$4,SUMIFS($I$4:I96,$C$4:C96,C96),SUMIFS($I$4:I96,$C$4:C96,C97))) -> 0 | K97: 0
A98: 95 | C98: =IFERROR(VLOOKUP(D98,Nomenclature!$B$2:$C$196,2,0),"") ->  | H98: =IF(C98="",0,IF(SUMIFS($G$5:G98,$C$5:C98,C98)-SUMIFS($I$4:I97,$C$4:C97,C98)<0,0,SUMIFS($G$5:G98,$C$5:C98,C98)-SUMIFS($I$4:I97,$C$4:C97,C98))) -> 0 | J98: =IF(C98="",0,IF(C98=$C$4,SUMIFS($I$4:I97,$C$4:C97,C97),SUMIFS($I$4:I97,$C$4:C97,C98))) -> 0 | K98: 0
A99: 96 | C99: =IFERROR(VLOOKUP(D99,Nomenclature!$B$2:$C$196,2,0),"") ->  | H99: =IF(C99="",0,IF(SUMIFS($G$5:G99,$C$5:C99,C99)-SUMIFS($I$4:I98,$C$4:C98,C99)<0,0,SUMIFS($G$5:G99,$C$5:C99,C99)-SUMIFS($I$4:I98,$C$4:C98,C99))) -> 0 | J99: =IF(C99="",0,IF(C99=$C$4,SUMIFS($I$4:I98,$C$4:C98,C98),SUMIFS($I$4:I98,$C$4:C98,C99))) -> 0 | K99: 0
A100: 97 | C100: =IFERROR(VLOOKUP(D100,Nomenclature!$B$2:$C$196,2,0),"") ->  | H100: =IF(C100="",0,IF(SUMIFS($G$5:G100,$C$5:C100,C100)-SUMIFS($I$4:I99,$C$4:C99,C100)<0,0,SUMIFS($G$5:G100,$C$5:C100,C100)-SUMIFS($I$4:I99,$C$4:C99,C100))) -> 0 | J100: =IF(C100="",0,IF(C100=$C$4,SUMIFS($I$4:I99,$C$4:C99,C99),SUMIFS($I$4:I99,$C$4:C99,C100))) -> 0 | K100: =IF(C100="",0,H100-I100) -> 0
A101: 98 | C101: =IFERROR(VLOOKUP(D101,Nomenclature!$B$2:$C$196,2,0),"") ->  | H101: =IF(C101="",0,IF(SUMIFS($G$5:G101,$C$5:C101,C101)-SUMIFS($I$4:I100,$C$4:C100,C101)<0,0,SUMIFS($G$5:G101,$C$5:C101,C101)-SUMIFS($I$4:I100,$C$4:C100,C101))) -> 0 | J101: =IF(C101="",0,IF(C101=$C$4,SUMIFS($I$4:I100,$C$4:C100,C100),SUMIFS($I$4:I100,$C$4:C100,C101))) -> 0 | K101: 0
A102: 99 | C102: =IFERROR(VLOOKUP(D102,Nomenclature!$B$2:$C$196,2,0),"") ->  | H102: =IF(C102="",0,IF(SUMIFS($G$5:G102,$C$5:C102,C102)-SUMIFS($I$4:I101,$C$4:C101,C102)<0,0,SUMIFS($G$5:G102,$C$5:C102,C102)-SUMIFS($I$4:I101,$C$4:C101,C102))) -> 0 | J102: =IF(C102="",0,IF(C102=$C$4,SUMIFS($I$4:I101,$C$4:C101,C101),SUMIFS($I$4:I101,$C$4:C101,C102))) -> 0 | K102: 0
A103: 100 | C103: =IFERROR(VLOOKUP(D103,Nomenclature!$B$2:$C$196,2,0),"") ->  | H103: =IF(C103="",0,IF(SUMIFS($G$5:G103,$C$5:C103,C103)-SUMIFS($I$4:I102,$C$4:C102,C103)<0,0,SUMIFS($G$5:G103,$C$5:C103,C103)-SUMIFS($I$4:I102,$C$4:C102,C103))) -> 0 | J103: =IF(C103="",0,IF(C103=$C$4,SUMIFS($I$4:I102,$C$4:C102,C102),SUMIFS($I$4:I102,$C$4:C102,C103))) -> 0 | K103: 0
A104: 101 | C104: =IFERROR(VLOOKUP(D104,Nomenclature!$B$2:$C$196,2,0),"") ->  | H104: =IF(C104="",0,IF(SUMIFS($G$5:G104,$C$5:C104,C104)-SUMIFS($I$4:I103,$C$4:C103,C104)<0,0,SUMIFS($G$5:G104,$C$5:C104,C104)-SUMIFS($I$4:I103,$C$4:C103,C104))) -> 0 | J104: =IF(C104="",0,IF(C104=$C$4,SUMIFS($I$4:I103,$C$4:C103,C103),SUMIFS($I$4:I103,$C$4:C103,C104))) -> 0 | K104: 0
A105: 102 | C105: =IFERROR(VLOOKUP(D105,Nomenclature!$B$2:$C$196,2,0),"") ->  | H105: =IF(C105="",0,IF(SUMIFS($G$5:G105,$C$5:C105,C105)-SUMIFS($I$4:I104,$C$4:C104,C105)<0,0,SUMIFS($G$5:G105,$C$5:C105,C105)-SUMIFS($I$4:I104,$C$4:C104,C105))) -> 0 | J105: =IF(C105="",0,IF(C105=$C$4,SUMIFS($I$4:I104,$C$4:C104,C104),SUMIFS($I$4:I104,$C$4:C104,C105))) -> 0 | K105: 0
A106: 103 | C106: =IFERROR(VLOOKUP(D106,Nomenclature!$B$2:$C$196,2,0),"") ->  | H106: =IF(C106="",0,IF(SUMIFS($G$5:G106,$C$5:C106,C106)-SUMIFS($I$4:I105,$C$4:C105,C106)<0,0,SUMIFS($G$5:G106,$C$5:C106,C106)-SUMIFS($I$4:I105,$C$4:C105,C106))) -> 0 | J106: =IF(C106="",0,IF(C106=$C$4,SUMIFS($I$4:I105,$C$4:C105,C105),SUMIFS($I$4:I105,$C$4:C105,C106))) -> 0 | K106: 0
A107: 104 | C107: =IFERROR(VLOOKUP(D107,Nomenclature!$B$2:$C$196,2,0),"") ->  | H107: =IF(C107="",0,IF(SUMIFS($G$5:G107,$C$5:C107,C107)-SUMIFS($I$4:I106,$C$4:C106,C107)<0,0,SUMIFS($G$5:G107,$C$5:C107,C107)-SUMIFS($I$4:I106,$C$4:C106,C107))) -> 0 | J107: =IF(C107="",0,IF(C107=$C$4,SUMIFS($I$4:I106,$C$4:C106,C106),SUMIFS($I$4:I106,$C$4:C106,C107))) -> 0 | K107: 0
A108: 105 | C108: =IFERROR(VLOOKUP(D108,Nomenclature!$B$2:$C$196,2,0),"") ->  | H108: =IF(C108="",0,IF(SUMIFS($G$5:G108,$C$5:C108,C108)-SUMIFS($I$4:I107,$C$4:C107,C108)<0,0,SUMIFS($G$5:G108,$C$5:C108,C108)-SUMIFS($I$4:I107,$C$4:C107,C108))) -> 0 | J108: =IF(C108="",0,IF(C108=$C$4,SUMIFS($I$4:I107,$C$4:C107,C107),SUMIFS($I$4:I107,$C$4:C107,C108))) -> 0 | K108: 0
A109: 106 | C109: =IFERROR(VLOOKUP(D109,Nomenclature!$B$2:$C$196,2,0),"") ->  | H109: =IF(C109="",0,IF(SUMIFS($G$5:G109,$C$5:C109,C109)-SUMIFS($I$4:I108,$C$4:C108,C109)<0,0,SUMIFS($G$5:G109,$C$5:C109,C109)-SUMIFS($I$4:I108,$C$4:C108,C109))) -> 0 | J109: =IF(C109="",0,IF(C109=$C$4,SUMIFS($I$4:I108,$C$4:C108,C108),SUMIFS($I$4:I108,$C$4:C108,C109))) -> 0 | K109: 0
A110: 107 | C110: =IFERROR(VLOOKUP(D110,Nomenclature!$B$2:$C$196,2,0),"") ->  | H110: =IF(C110="",0,IF(SUMIFS($G$5:G110,$C$5:C110,C110)-SUMIFS($I$4:I109,$C$4:C109,C110)<0,0,SUMIFS($G$5:G110,$C$5:C110,C110)-SUMIFS($I$4:I109,$C$4:C109,C110))) -> 0 | J110: =IF(C110="",0,IF(C110=$C$4,SUMIFS($I$4:I109,$C$4:C109,C109),SUMIFS($I$4:I109,$C$4:C109,C110))) -> 0 | K110: 0
A111: 108 | C111: =IFERROR(VLOOKUP(D111,Nomenclature!$B$2:$C$196,2,0),"") ->  | H111: =IF(C111="",0,IF(SUMIFS($G$5:G111,$C$5:C111,C111)-SUMIFS($I$4:I110,$C$4:C110,C111)<0,0,SUMIFS($G$5:G111,$C$5:C111,C111)-SUMIFS($I$4:I110,$C$4:C110,C111))) -> 0 | J111: =IF(C111="",0,IF(C111=$C$4,SUMIFS($I$4:I110,$C$4:C110,C110),SUMIFS($I$4:I110,$C$4:C110,C111))) -> 0 | K111: 0
A112: 109 | C112: =IFERROR(VLOOKUP(D112,Nomenclature!$B$2:$C$196,2,0),"") ->  | H112: =IF(C112="",0,IF(SUMIFS($G$5:G112,$C$5:C112,C112)-SUMIFS($I$4:I111,$C$4:C111,C112)<0,0,SUMIFS($G$5:G112,$C$5:C112,C112)-SUMIFS($I$4:I111,$C$4:C111,C112))) -> 0 | J112: =IF(C112="",0,IF(C112=$C$4,SUMIFS($I$4:I111,$C$4:C111,C111),SUMIFS($I$4:I111,$C$4:C111,C112))) -> 0 | K112: 0
A113: 110 | C113: =IFERROR(VLOOKUP(D113,Nomenclature!$B$2:$C$196,2,0),"") ->  | H113: =IF(C113="",0,IF(SUMIFS($G$5:G113,$C$5:C113,C113)-SUMIFS($I$4:I112,$C$4:C112,C113)<0,0,SUMIFS($G$5:G113,$C$5:C113,C113)-SUMIFS($I$4:I112,$C$4:C112,C113))) -> 0 | J113: =IF(C113="",0,IF(C113=$C$4,SUMIFS($I$4:I112,$C$4:C112,C112),SUMIFS($I$4:I112,$C$4:C112,C113))) -> 0 | K113: 0
A114: 111 | C114: =IFERROR(VLOOKUP(D114,Nomenclature!$B$2:$C$196,2,0),"") ->  | H114: =IF(C114="",0,IF(SUMIFS($G$5:G114,$C$5:C114,C114)-SUMIFS($I$4:I113,$C$4:C113,C114)<0,0,SUMIFS($G$5:G114,$C$5:C114,C114)-SUMIFS($I$4:I113,$C$4:C113,C114))) -> 0 | J114: =IF(C114="",0,IF(C114=$C$4,SUMIFS($I$4:I113,$C$4:C113,C113),SUMIFS($I$4:I113,$C$4:C113,C114))) -> 0 | K114: 0
A115: 112 | C115: =IFERROR(VLOOKUP(D115,Nomenclature!$B$2:$C$196,2,0),"") ->  | H115: =IF(C115="",0,IF(SUMIFS($G$5:G115,$C$5:C115,C115)-SUMIFS($I$4:I114,$C$4:C114,C115)<0,0,SUMIFS($G$5:G115,$C$5:C115,C115)-SUMIFS($I$4:I114,$C$4:C114,C115))) -> 0 | J115: =IF(C115="",0,IF(C115=$C$4,SUMIFS($I$4:I114,$C$4:C114,C114),SUMIFS($I$4:I114,$C$4:C114,C115))) -> 0 | K115: 0
A116: 113 | C116: =IFERROR(VLOOKUP(D116,Nomenclature!$B$2:$C$196,2,0),"") ->  | H116: =IF(C116="",0,IF(SUMIFS($G$5:G116,$C$5:C116,C116)-SUMIFS($I$4:I115,$C$4:C115,C116)<0,0,SUMIFS($G$5:G116,$C$5:C116,C116)-SUMIFS($I$4:I115,$C$4:C115,C116))) -> 0 | J116: =IF(C116="",0,IF(C116=$C$4,SUMIFS($I$4:I115,$C$4:C115,C115),SUMIFS($I$4:I115,$C$4:C115,C116))) -> 0 | K116: 0
A117: 114 | C117: =IFERROR(VLOOKUP(D117,Nomenclature!$B$2:$C$196,2,0),"") ->  | H117: =IF(C117="",0,IF(SUMIFS($G$5:G117,$C$5:C117,C117)-SUMIFS($I$4:I116,$C$4:C116,C117)<0,0,SUMIFS($G$5:G117,$C$5:C117,C117)-SUMIFS($I$4:I116,$C$4:C116,C117))) -> 0 | J117: =IF(C117="",0,IF(C117=$C$4,SUMIFS($I$4:I116,$C$4:C116,C116),SUMIFS($I$4:I116,$C$4:C116,C117))) -> 0 | K117: 0
A118: 115 | C118: =IFERROR(VLOOKUP(D118,Nomenclature!$B$2:$C$196,2,0),"") ->  | H118: =IF(C118="",0,IF(SUMIFS($G$5:G118,$C$5:C118,C118)-SUMIFS($I$4:I117,$C$4:C117,C118)<0,0,SUMIFS($G$5:G118,$C$5:C118,C118)-SUMIFS($I$4:I117,$C$4:C117,C118))) -> 0 | J118: =IF(C118="",0,IF(C118=$C$4,SUMIFS($I$4:I117,$C$4:C117,C117),SUMIFS($I$4:I117,$C$4:C117,C118))) -> 0 | K118: 0
A119: 116 | C119: =IFERROR(VLOOKUP(D119,Nomenclature!$B$2:$C$196,2,0),"") ->  | H119: =IF(C119="",0,IF(SUMIFS($G$5:G119,$C$5:C119,C119)-SUMIFS($I$4:I118,$C$4:C118,C119)<0,0,SUMIFS($G$5:G119,$C$5:C119,C119)-SUMIFS($I$4:I118,$C$4:C118,C119))) -> 0 | J119: =IF(C119="",0,IF(C119=$C$4,SUMIFS($I$4:I118,$C$4:C118,C118),SUMIFS($I$4:I118,$C$4:C118,C119))) -> 0 | K119: 0
A120: 117 | C120: =IFERROR(VLOOKUP(D120,Nomenclature!$B$2:$C$196,2,0),"") ->  | H120: =IF(C120="",0,IF(SUMIFS($G$5:G120,$C$5:C120,C120)-SUMIFS($I$4:I119,$C$4:C119,C120)<0,0,SUMIFS($G$5:G120,$C$5:C120,C120)-SUMIFS($I$4:I119,$C$4:C119,C120))) -> 0 | J120: =IF(C120="",0,IF(C120=$C$4,SUMIFS($I$4:I119,$C$4:C119,C119),SUMIFS($I$4:I119,$C$4:C119,C120))) -> 0 | K120: 0
A121: 118 | C121: =IFERROR(VLOOKUP(D121,Nomenclature!$B$2:$C$196,2,0),"") ->  | H121: =IF(C121="",0,IF(SUMIFS($G$5:G121,$C$5:C121,C121)-SUMIFS($I$4:I120,$C$4:C120,C121)<0,0,SUMIFS($G$5:G121,$C$5:C121,C121)-SUMIFS($I$4:I120,$C$4:C120,C121))) -> 0 | J121: =IF(C121="",0,IF(C121=$C$4,SUMIFS($I$4:I120,$C$4:C120,C120),SUMIFS($I$4:I120,$C$4:C120,C121))) -> 0 | K121: 0
A122: 119 | C122: =IFERROR(VLOOKUP(D122,Nomenclature!$B$2:$C$196,2,0),"") ->  | H122: =IF(C122="",0,IF(SUMIFS($G$5:G122,$C$5:C122,C122)-SUMIFS($I$4:I121,$C$4:C121,C122)<0,0,SUMIFS($G$5:G122,$C$5:C122,C122)-SUMIFS($I$4:I121,$C$4:C121,C122))) -> 0 | J122: =IF(C122="",0,IF(C122=$C$4,SUMIFS($I$4:I121,$C$4:C121,C121),SUMIFS($I$4:I121,$C$4:C121,C122))) -> 0 | K122: 0
A123: 120 | C123: =IFERROR(VLOOKUP(D123,Nomenclature!$B$2:$C$196,2,0),"") ->  | H123: =IF(C123="",0,IF(SUMIFS($G$5:G123,$C$5:C123,C123)-SUMIFS($I$4:I122,$C$4:C122,C123)<0,0,SUMIFS($G$5:G123,$C$5:C123,C123)-SUMIFS($I$4:I122,$C$4:C122,C123))) -> 0 | J123: =IF(C123="",0,IF(C123=$C$4,SUMIFS($I$4:I122,$C$4:C122,C122),SUMIFS($I$4:I122,$C$4:C122,C123))) -> 0 | K123: 0
A124: 121 | C124: =IFERROR(VLOOKUP(D124,Nomenclature!$B$2:$C$196,2,0),"") ->  | H124: =IF(C124="",0,IF(SUMIFS($G$5:G124,$C$5:C124,C124)-SUMIFS($I$4:I123,$C$4:C123,C124)<0,0,SUMIFS($G$5:G124,$C$5:C124,C124)-SUMIFS($I$4:I123,$C$4:C123,C124))) -> 0 | J124: =IF(C124="",0,IF(C124=$C$4,SUMIFS($I$4:I123,$C$4:C123,C123),SUMIFS($I$4:I123,$C$4:C123,C124))) -> 0 | K124: 0
A125: 122 | C125: =IFERROR(VLOOKUP(D125,Nomenclature!$B$2:$C$196,2,0),"") ->  | H125: =IF(C125="",0,IF(SUMIFS($G$5:G125,$C$5:C125,C125)-SUMIFS($I$4:I124,$C$4:C124,C125)<0,0,SUMIFS($G$5:G125,$C$5:C125,C125)-SUMIFS($I$4:I124,$C$4:C124,C125))) -> 0 | J125: =IF(C125="",0,IF(C125=$C$4,SUMIFS($I$4:I124,$C$4:C124,C124),SUMIFS($I$4:I124,$C$4:C124,C125))) -> 0 | K125: 0
A126: 123 | C126: =IFERROR(VLOOKUP(D126,Nomenclature!$B$2:$C$196,2,0),"") ->  | H126: =IF(C126="",0,IF(SUMIFS($G$5:G126,$C$5:C126,C126)-SUMIFS($I$4:I125,$C$4:C125,C126)<0,0,SUMIFS($G$5:G126,$C$5:C126,C126)-SUMIFS($I$4:I125,$C$4:C125,C126))) -> 0 | J126: =IF(C126="",0,IF(C126=$C$4,SUMIFS($I$4:I125,$C$4:C125,C125),SUMIFS($I$4:I125,$C$4:C125,C126))) -> 0 | K126: 0
A127: 124 | C127: =IFERROR(VLOOKUP(D127,Nomenclature!$B$2:$C$196,2,0),"") ->  | H127: =IF(C127="",0,IF(SUMIFS($G$5:G127,$C$5:C127,C127)-SUMIFS($I$4:I126,$C$4:C126,C127)<0,0,SUMIFS($G$5:G127,$C$5:C127,C127)-SUMIFS($I$4:I126,$C$4:C126,C127))) -> 0 | J127: =IF(C127="",0,IF(C127=$C$4,SUMIFS($I$4:I126,$C$4:C126,C126),SUMIFS($I$4:I126,$C$4:C126,C127))) -> 0 | K127: 0
A128: 125 | C128: =IFERROR(VLOOKUP(D128,Nomenclature!$B$2:$C$196,2,0),"") ->  | H128: =IF(C128="",0,IF(SUMIFS($G$5:G128,$C$5:C128,C128)-SUMIFS($I$4:I127,$C$4:C127,C128)<0,0,SUMIFS($G$5:G128,$C$5:C128,C128)-SUMIFS($I$4:I127,$C$4:C127,C128))) -> 0 | J128: =IF(C128="",0,IF(C128=$C$4,SUMIFS($I$4:I127,$C$4:C127,C127),SUMIFS($I$4:I127,$C$4:C127,C128))) -> 0 | K128: 0
A129: 126 | C129: =IFERROR(VLOOKUP(D129,Nomenclature!$B$2:$C$196,2,0),"") ->  | H129: =IF(C129="",0,IF(SUMIFS($G$5:G129,$C$5:C129,C129)-SUMIFS($I$4:I128,$C$4:C128,C129)<0,0,SUMIFS($G$5:G129,$C$5:C129,C129)-SUMIFS($I$4:I128,$C$4:C128,C129))) -> 0 | J129: =IF(C129="",0,IF(C129=$C$4,SUMIFS($I$4:I128,$C$4:C128,C128),SUMIFS($I$4:I128,$C$4:C128,C129))) -> 0 | K129: 0
A130: 127 | C130: =IFERROR(VLOOKUP(D130,Nomenclature!$B$2:$C$196,2,0),"") ->  | H130: =IF(C130="",0,IF(SUMIFS($G$5:G130,$C$5:C130,C130)-SUMIFS($I$4:I129,$C$4:C129,C130)<0,0,SUMIFS($G$5:G130,$C$5:C130,C130)-SUMIFS($I$4:I129,$C$4:C129,C130))) -> 0 | J130: =IF(C130="",0,IF(C130=$C$4,SUMIFS($I$4:I129,$C$4:C129,C129),SUMIFS($I$4:I129,$C$4:C129,C130))) -> 0 | K130: 0
A131: 128 | C131: =IFERROR(VLOOKUP(D131,Nomenclature!$B$2:$C$196,2,0),"") ->  | H131: =IF(C131="",0,IF(SUMIFS($G$5:G131,$C$5:C131,C131)-SUMIFS($I$4:I130,$C$4:C130,C131)<0,0,SUMIFS($G$5:G131,$C$5:C131,C131)-SUMIFS($I$4:I130,$C$4:C130,C131))) -> 0 | J131: =IF(C131="",0,IF(C131=$C$4,SUMIFS($I$4:I130,$C$4:C130,C130),SUMIFS($I$4:I130,$C$4:C130,C131))) -> 0 | K131: 0
A132: 129 | C132: =IFERROR(VLOOKUP(D132,Nomenclature!$B$2:$C$196,2,0),"") ->  | H132: =IF(C132="",0,IF(SUMIFS($G$5:G132,$C$5:C132,C132)-SUMIFS($I$4:I131,$C$4:C131,C132)<0,0,SUMIFS($G$5:G132,$C$5:C132,C132)-SUMIFS($I$4:I131,$C$4:C131,C132))) -> 0 | J132: =IF(C132="",0,IF(C132=$C$4,SUMIFS($I$4:I131,$C$4:C131,C131),SUMIFS($I$4:I131,$C$4:C131,C132))) -> 0 | K132: =IF(C132="",0,H132-I132) -> 0
A133: 130 | C133: =IFERROR(VLOOKUP(D133,Nomenclature!$B$2:$C$196,2,0),"") ->  | H133: =IF(C133="",0,IF(SUMIFS($G$5:G133,$C$5:C133,C133)-SUMIFS($I$4:I132,$C$4:C132,C133)<0,0,SUMIFS($G$5:G133,$C$5:C133,C133)-SUMIFS($I$4:I132,$C$4:C132,C133))) -> 0 | J133: =IF(C133="",0,IF(C133=$C$4,SUMIFS($I$4:I132,$C$4:C132,C132),SUMIFS($I$4:I132,$C$4:C132,C133))) -> 0 | K133: 0
A134: 131 | C134: =IFERROR(VLOOKUP(D134,Nomenclature!$B$2:$C$196,2,0),"") ->  | H134: =IF(C134="",0,IF(SUMIFS($G$5:G134,$C$5:C134,C134)-SUMIFS($I$4:I133,$C$4:C133,C134)<0,0,SUMIFS($G$5:G134,$C$5:C134,C134)-SUMIFS($I$4:I133,$C$4:C133,C134))) -> 0 | J134: =IF(C134="",0,IF(C134=$C$4,SUMIFS($I$4:I133,$C$4:C133,C133),SUMIFS($I$4:I133,$C$4:C133,C134))) -> 0 | K134: 0
A135: 132 | C135: =IFERROR(VLOOKUP(D135,Nomenclature!$B$2:$C$196,2,0),"") ->  | H135: =IF(C135="",0,IF(SUMIFS($G$5:G135,$C$5:C135,C135)-SUMIFS($I$4:I134,$C$4:C134,C135)<0,0,SUMIFS($G$5:G135,$C$5:C135,C135)-SUMIFS($I$4:I134,$C$4:C134,C135))) -> 0 | J135: =IF(C135="",0,IF(C135=$C$4,SUMIFS($I$4:I134,$C$4:C134,C134),SUMIFS($I$4:I134,$C$4:C134,C135))) -> 0 | K135: 0
A136: 133 | C136: =IFERROR(VLOOKUP(D136,Nomenclature!$B$2:$C$196,2,0),"") ->  | H136: =IF(C136="",0,IF(SUMIFS($G$5:G136,$C$5:C136,C136)-SUMIFS($I$4:I135,$C$4:C135,C136)<0,0,SUMIFS($G$5:G136,$C$5:C136,C136)-SUMIFS($I$4:I135,$C$4:C135,C136))) -> 0 | J136: =IF(C136="",0,IF(C136=$C$4,SUMIFS($I$4:I135,$C$4:C135,C135),SUMIFS($I$4:I135,$C$4:C135,C136))) -> 0 | K136: 0
A137: 134 | C137: =IFERROR(VLOOKUP(D137,Nomenclature!$B$2:$C$196,2,0),"") ->  | H137: =IF(C137="",0,IF(SUMIFS($G$5:G137,$C$5:C137,C137)-SUMIFS($I$4:I136,$C$4:C136,C137)<0,0,SUMIFS($G$5:G137,$C$5:C137,C137)-SUMIFS($I$4:I136,$C$4:C136,C137))) -> 0 | J137: =IF(C137="",0,IF(C137=$C$4,SUMIFS($I$4:I136,$C$4:C136,C136),SUMIFS($I$4:I136,$C$4:C136,C137))) -> 0 | K137: 0
A138: 135 | C138: =IFERROR(VLOOKUP(D138,Nomenclature!$B$2:$C$196,2,0),"") ->  | H138: =IF(C138="",0,IF(SUMIFS($G$5:G138,$C$5:C138,C138)-SUMIFS($I$4:I137,$C$4:C137,C138)<0,0,SUMIFS($G$5:G138,$C$5:C138,C138)-SUMIFS($I$4:I137,$C$4:C137,C138))) -> 0 | J138: =IF(C138="",0,IF(C138=$C$4,SUMIFS($I$4:I137,$C$4:C137,C137),SUMIFS($I$4:I137,$C$4:C137,C138))) -> 0 | K138: 0
A139: 136 | C139: =IFERROR(VLOOKUP(D139,Nomenclature!$B$2:$C$196,2,0),"") ->  | H139: =IF(C139="",0,IF(SUMIFS($G$5:G139,$C$5:C139,C139)-SUMIFS($I$4:I138,$C$4:C138,C139)<0,0,SUMIFS($G$5:G139,$C$5:C139,C139)-SUMIFS($I$4:I138,$C$4:C138,C139))) -> 0 | J139: =IF(C139="",0,IF(C139=$C$4,SUMIFS($I$4:I138,$C$4:C138,C138),SUMIFS($I$4:I138,$C$4:C138,C139))) -> 0 | K139: 0
A140: 137 | C140: =IFERROR(VLOOKUP(D140,Nomenclature!$B$2:$C$196,2,0),"") ->  | H140: =IF(C140="",0,IF(SUMIFS($G$5:G140,$C$5:C140,C140)-SUMIFS($I$4:I139,$C$4:C139,C140)<0,0,SUMIFS($G$5:G140,$C$5:C140,C140)-SUMIFS($I$4:I139,$C$4:C139,C140))) -> 0 | J140: =IF(C140="",0,IF(C140=$C$4,SUMIFS($I$4:I139,$C$4:C139,C139),SUMIFS($I$4:I139,$C$4:C139,C140))) -> 0 | K140: 0
A141: 138 | C141: =IFERROR(VLOOKUP(D141,Nomenclature!$B$2:$C$196,2,0),"") ->  | H141: =IF(C141="",0,IF(SUMIFS($G$5:G141,$C$5:C141,C141)-SUMIFS($I$4:I140,$C$4:C140,C141)<0,0,SUMIFS($G$5:G141,$C$5:C141,C141)-SUMIFS($I$4:I140,$C$4:C140,C141))) -> 0 | J141: =IF(C141="",0,IF(C141=$C$4,SUMIFS($I$4:I140,$C$4:C140,C140),SUMIFS($I$4:I140,$C$4:C140,C141))) -> 0 | K141: 0
A142: 139 | C142: =IFERROR(VLOOKUP(D142,Nomenclature!$B$2:$C$196,2,0),"") ->  | H142: =IF(C142="",0,IF(SUMIFS($G$5:G142,$C$5:C142,C142)-SUMIFS($I$4:I141,$C$4:C141,C142)<0,0,SUMIFS($G$5:G142,$C$5:C142,C142)-SUMIFS($I$4:I141,$C$4:C141,C142))) -> 0 | J142: =IF(C142="",0,IF(C142=$C$4,SUMIFS($I$4:I141,$C$4:C141,C141),SUMIFS($I$4:I141,$C$4:C141,C142))) -> 0 | K142: 0
A143: 140 | C143: =IFERROR(VLOOKUP(D143,Nomenclature!$B$2:$C$196,2,0),"") ->  | H143: =IF(C143="",0,IF(SUMIFS($G$5:G143,$C$5:C143,C143)-SUMIFS($I$4:I142,$C$4:C142,C143)<0,0,SUMIFS($G$5:G143,$C$5:C143,C143)-SUMIFS($I$4:I142,$C$4:C142,C143))) -> 0 | J143: =IF(C143="",0,IF(C143=$C$4,SUMIFS($I$4:I142,$C$4:C142,C142),SUMIFS($I$4:I142,$C$4:C142,C143))) -> 0 | K143: 0
A144: 141 | C144: =IFERROR(VLOOKUP(D144,Nomenclature!$B$2:$C$196,2,0),"") ->  | H144: =IF(C144="",0,IF(SUMIFS($G$5:G144,$C$5:C144,C144)-SUMIFS($I$4:I143,$C$4:C143,C144)<0,0,SUMIFS($G$5:G144,$C$5:C144,C144)-SUMIFS($I$4:I143,$C$4:C143,C144))) -> 0 | J144: =IF(C144="",0,IF(C144=$C$4,SUMIFS($I$4:I143,$C$4:C143,C143),SUMIFS($I$4:I143,$C$4:C143,C144))) -> 0 | K144: 0
A145: 142 | C145: =IFERROR(VLOOKUP(D145,Nomenclature!$B$2:$C$196,2,0),"") ->  | H145: =IF(C145="",0,IF(SUMIFS($G$5:G145,$C$5:C145,C145)-SUMIFS($I$4:I144,$C$4:C144,C145)<0,0,SUMIFS($G$5:G145,$C$5:C145,C145)-SUMIFS($I$4:I144,$C$4:C144,C145))) -> 0 | J145: =IF(C145="",0,IF(C145=$C$4,SUMIFS($I$4:I144,$C$4:C144,C144),SUMIFS($I$4:I144,$C$4:C144,C145))) -> 0 | K145: 0
A146: 143 | C146: =IFERROR(VLOOKUP(D146,Nomenclature!$B$2:$C$196,2,0),"") ->  | H146: =IF(C146="",0,IF(SUMIFS($G$5:G146,$C$5:C146,C146)-SUMIFS($I$4:I145,$C$4:C145,C146)<0,0,SUMIFS($G$5:G146,$C$5:C146,C146)-SUMIFS($I$4:I145,$C$4:C145,C146))) -> 0 | J146: =IF(C146="",0,IF(C146=$C$4,SUMIFS($I$4:I145,$C$4:C145,C145),SUMIFS($I$4:I145,$C$4:C145,C146))) -> 0 | K146: 0
A147: 144 | C147: =IFERROR(VLOOKUP(D147,Nomenclature!$B$2:$C$196,2,0),"") ->  | H147: =IF(C147="",0,IF(SUMIFS($G$5:G147,$C$5:C147,C147)-SUMIFS($I$4:I146,$C$4:C146,C147)<0,0,SUMIFS($G$5:G147,$C$5:C147,C147)-SUMIFS($I$4:I146,$C$4:C146,C147))) -> 0 | J147: =IF(C147="",0,IF(C147=$C$4,SUMIFS($I$4:I146,$C$4:C146,C146),SUMIFS($I$4:I146,$C$4:C146,C147))) -> 0 | K147: 0
A148: 145 | C148: =IFERROR(VLOOKUP(D148,Nomenclature!$B$2:$C$196,2,0),"") ->  | H148: =IF(C148="",0,IF(SUMIFS($G$5:G148,$C$5:C148,C148)-SUMIFS($I$4:I147,$C$4:C147,C148)<0,0,SUMIFS($G$5:G148,$C$5:C148,C148)-SUMIFS($I$4:I147,$C$4:C147,C148))) -> 0 | J148: =IF(C148="",0,IF(C148=$C$4,SUMIFS($I$4:I147,$C$4:C147,C147),SUMIFS($I$4:I147,$C$4:C147,C148))) -> 0 | K148: 0
A149: 146 | C149: =IFERROR(VLOOKUP(D149,Nomenclature!$B$2:$C$196,2,0),"") ->  | H149: =IF(C149="",0,IF(SUMIFS($G$5:G149,$C$5:C149,C149)-SUMIFS($I$4:I148,$C$4:C148,C149)<0,0,SUMIFS($G$5:G149,$C$5:C149,C149)-SUMIFS($I$4:I148,$C$4:C148,C149))) -> 0 | J149: =IF(C149="",0,IF(C149=$C$4,SUMIFS($I$4:I148,$C$4:C148,C148),SUMIFS($I$4:I148,$C$4:C148,C149))) -> 0 | K149: 0
A150: 147 | C150: =IFERROR(VLOOKUP(D150,Nomenclature!$B$2:$C$196,2,0),"") ->  | H150: =IF(C150="",0,IF(SUMIFS($G$5:G150,$C$5:C150,C150)-SUMIFS($I$4:I149,$C$4:C149,C150)<0,0,SUMIFS($G$5:G150,$C$5:C150,C150)-SUMIFS($I$4:I149,$C$4:C149,C150))) -> 0 | J150: =IF(C150="",0,IF(C150=$C$4,SUMIFS($I$4:I149,$C$4:C149,C149),SUMIFS($I$4:I149,$C$4:C149,C150))) -> 0 | K150: 0
A151: 148 | C151: =IFERROR(VLOOKUP(D151,Nomenclature!$B$2:$C$196,2,0),"") ->  | H151: =IF(C151="",0,IF(SUMIFS($G$5:G151,$C$5:C151,C151)-SUMIFS($I$4:I150,$C$4:C150,C151)<0,0,SUMIFS($G$5:G151,$C$5:C151,C151)-SUMIFS($I$4:I150,$C$4:C150,C151))) -> 0 | J151: =IF(C151="",0,IF(C151=$C$4,SUMIFS($I$4:I150,$C$4:C150,C150),SUMIFS($I$4:I150,$C$4:C150,C151))) -> 0 | K151: 0
A152: 149 | C152: =IFERROR(VLOOKUP(D152,Nomenclature!$B$2:$C$196,2,0),"") ->  | H152: =IF(C152="",0,IF(SUMIFS($G$5:G152,$C$5:C152,C152)-SUMIFS($I$4:I151,$C$4:C151,C152)<0,0,SUMIFS($G$5:G152,$C$5:C152,C152)-SUMIFS($I$4:I151,$C$4:C151,C152))) -> 0 | J152: =IF(C152="",0,IF(C152=$C$4,SUMIFS($I$4:I151,$C$4:C151,C151),SUMIFS($I$4:I151,$C$4:C151,C152))) -> 0 | K152: 0
A153: 150 | C153: =IFERROR(VLOOKUP(D153,Nomenclature!$B$2:$C$196,2,0),"") ->  | H153: =IF(C153="",0,IF(SUMIFS($G$5:G153,$C$5:C153,C153)-SUMIFS($I$4:I152,$C$4:C152,C153)<0,0,SUMIFS($G$5:G153,$C$5:C153,C153)-SUMIFS($I$4:I152,$C$4:C152,C153))) -> 0 | J153: =IF(C153="",0,IF(C153=$C$4,SUMIFS($I$4:I152,$C$4:C152,C152),SUMIFS($I$4:I152,$C$4:C152,C153))) -> 0 | K153: 0
A154: 151 | C154: =IFERROR(VLOOKUP(D154,Nomenclature!$B$2:$C$196,2,0),"") ->  | H154: =IF(C154="",0,IF(SUMIFS($G$5:G154,$C$5:C154,C154)-SUMIFS($I$4:I153,$C$4:C153,C154)<0,0,SUMIFS($G$5:G154,$C$5:C154,C154)-SUMIFS($I$4:I153,$C$4:C153,C154))) -> 0 | J154: =IF(C154="",0,IF(C154=$C$4,SUMIFS($I$4:I153,$C$4:C153,C153),SUMIFS($I$4:I153,$C$4:C153,C154))) -> 0 | K154: 0
A155: 152 | C155: =IFERROR(VLOOKUP(D155,Nomenclature!$B$2:$C$196,2,0),"") ->  | H155: =IF(C155="",0,IF(SUMIFS($G$5:G155,$C$5:C155,C155)-SUMIFS($I$4:I154,$C$4:C154,C155)<0,0,SUMIFS($G$5:G155,$C$5:C155,C155)-SUMIFS($I$4:I154,$C$4:C154,C155))) -> 0 | J155: =IF(C155="",0,IF(C155=$C$4,SUMIFS($I$4:I154,$C$4:C154,C154),SUMIFS($I$4:I154,$C$4:C154,C155))) -> 0 | K155: 0
A156: 153 | C156: =IFERROR(VLOOKUP(D156,Nomenclature!$B$2:$C$196,2,0),"") ->  | H156: =IF(C156="",0,IF(SUMIFS($G$5:G156,$C$5:C156,C156)-SUMIFS($I$4:I155,$C$4:C155,C156)<0,0,SUMIFS($G$5:G156,$C$5:C156,C156)-SUMIFS($I$4:I155,$C$4:C155,C156))) -> 0 | J156: =IF(C156="",0,IF(C156=$C$4,SUMIFS($I$4:I155,$C$4:C155,C155),SUMIFS($I$4:I155,$C$4:C155,C156))) -> 0 | K156: 0
A157: 154 | C157: =IFERROR(VLOOKUP(D157,Nomenclature!$B$2:$C$196,2,0),"") ->  | H157: =IF(C157="",0,IF(SUMIFS($G$5:G157,$C$5:C157,C157)-SUMIFS($I$4:I156,$C$4:C156,C157)<0,0,SUMIFS($G$5:G157,$C$5:C157,C157)-SUMIFS($I$4:I156,$C$4:C156,C157))) -> 0 | J157: =IF(C157="",0,IF(C157=$C$4,SUMIFS($I$4:I156,$C$4:C156,C156),SUMIFS($I$4:I156,$C$4:C156,C157))) -> 0 | K157: 0
A158: 155 | C158: =IFERROR(VLOOKUP(D158,Nomenclature!$B$2:$C$196,2,0),"") ->  | H158: =IF(C158="",0,IF(SUMIFS($G$5:G158,$C$5:C158,C158)-SUMIFS($I$4:I157,$C$4:C157,C158)<0,0,SUMIFS($G$5:G158,$C$5:C158,C158)-SUMIFS($I$4:I157,$C$4:C157,C158))) -> 0 | J158: =IF(C158="",0,IF(C158=$C$4,SUMIFS($I$4:I157,$C$4:C157,C157),SUMIFS($I$4:I157,$C$4:C157,C158))) -> 0 | K158: 0
A159: 156 | C159: =IFERROR(VLOOKUP(D159,Nomenclature!$B$2:$C$196,2,0),"") ->  | H159: =IF(C159="",0,IF(SUMIFS($G$5:G159,$C$5:C159,C159)-SUMIFS($I$4:I158,$C$4:C158,C159)<0,0,SUMIFS($G$5:G159,$C$5:C159,C159)-SUMIFS($I$4:I158,$C$4:C158,C159))) -> 0 | J159: =IF(C159="",0,IF(C159=$C$4,SUMIFS($I$4:I158,$C$4:C158,C158),SUMIFS($I$4:I158,$C$4:C158,C159))) -> 0 | K159: 0
A160: 157 | C160: =IFERROR(VLOOKUP(D160,Nomenclature!$B$2:$C$196,2,0),"") ->  | H160: =IF(C160="",0,IF(SUMIFS($G$5:G160,$C$5:C160,C160)-SUMIFS($I$4:I159,$C$4:C159,C160)<0,0,SUMIFS($G$5:G160,$C$5:C160,C160)-SUMIFS($I$4:I159,$C$4:C159,C160))) -> 0 | J160: =IF(C160="",0,IF(C160=$C$4,SUMIFS($I$4:I159,$C$4:C159,C159),SUMIFS($I$4:I159,$C$4:C159,C160))) -> 0 | K160: 0
A161: 158 | C161: =IFERROR(VLOOKUP(D161,Nomenclature!$B$2:$C$196,2,0),"") ->  | H161: =IF(C161="",0,IF(SUMIFS($G$5:G161,$C$5:C161,C161)-SUMIFS($I$4:I160,$C$4:C160,C161)<0,0,SUMIFS($G$5:G161,$C$5:C161,C161)-SUMIFS($I$4:I160,$C$4:C160,C161))) -> 0 | J161: =IF(C161="",0,IF(C161=$C$4,SUMIFS($I$4:I160,$C$4:C160,C160),SUMIFS($I$4:I160,$C$4:C160,C161))) -> 0 | K161: 0
A162: 159 | C162: =IFERROR(VLOOKUP(D162,Nomenclature!$B$2:$C$196,2,0),"") ->  | H162: =IF(C162="",0,IF(SUMIFS($G$5:G162,$C$5:C162,C162)-SUMIFS($I$4:I161,$C$4:C161,C162)<0,0,SUMIFS($G$5:G162,$C$5:C162,C162)-SUMIFS($I$4:I161,$C$4:C161,C162))) -> 0 | J162: =IF(C162="",0,IF(C162=$C$4,SUMIFS($I$4:I161,$C$4:C161,C161),SUMIFS($I$4:I161,$C$4:C161,C162))) -> 0 | K162: 0
A163: 160 | C163: =IFERROR(VLOOKUP(D163,Nomenclature!$B$2:$C$196,2,0),"") ->  | H163: =IF(C163="",0,IF(SUMIFS($G$5:G163,$C$5:C163,C163)-SUMIFS($I$4:I162,$C$4:C162,C163)<0,0,SUMIFS($G$5:G163,$C$5:C163,C163)-SUMIFS($I$4:I162,$C$4:C162,C163))) -> 0 | J163: =IF(C163="",0,IF(C163=$C$4,SUMIFS($I$4:I162,$C$4:C162,C162),SUMIFS($I$4:I162,$C$4:C162,C163))) -> 0 | K163: 0
A164: 161 | C164: =IFERROR(VLOOKUP(D164,Nomenclature!$B$2:$C$196,2,0),"") ->  | H164: =IF(C164="",0,IF(SUMIFS($G$5:G164,$C$5:C164,C164)-SUMIFS($I$4:I163,$C$4:C163,C164)<0,0,SUMIFS($G$5:G164,$C$5:C164,C164)-SUMIFS($I$4:I163,$C$4:C163,C164))) -> 0 | J164: =IF(C164="",0,IF(C164=$C$4,SUMIFS($I$4:I163,$C$4:C163,C163),SUMIFS($I$4:I163,$C$4:C163,C164))) -> 0 | K164: =IF(C164="",0,H164-I164) -> 0
A165: 162 | C165: =IFERROR(VLOOKUP(D165,Nomenclature!$B$2:$C$196,2,0),"") ->  | H165: =IF(C165="",0,IF(SUMIFS($G$5:G165,$C$5:C165,C165)-SUMIFS($I$4:I164,$C$4:C164,C165)<0,0,SUMIFS($G$5:G165,$C$5:C165,C165)-SUMIFS($I$4:I164,$C$4:C164,C165))) -> 0 | J165: =IF(C165="",0,IF(C165=$C$4,SUMIFS($I$4:I164,$C$4:C164,C164),SUMIFS($I$4:I164,$C$4:C164,C165))) -> 0 | K165: 0
A166: 163 | C166: =IFERROR(VLOOKUP(D166,Nomenclature!$B$2:$C$196,2,0),"") ->  | H166: =IF(C166="",0,IF(SUMIFS($G$5:G166,$C$5:C166,C166)-SUMIFS($I$4:I165,$C$4:C165,C166)<0,0,SUMIFS($G$5:G166,$C$5:C166,C166)-SUMIFS($I$4:I165,$C$4:C165,C166))) -> 0 | J166: =IF(C166="",0,IF(C166=$C$4,SUMIFS($I$4:I165,$C$4:C165,C165),SUMIFS($I$4:I165,$C$4:C165,C166))) -> 0 | K166: 0
A167: 164 | C167: =IFERROR(VLOOKUP(D167,Nomenclature!$B$2:$C$196,2,0),"") ->  | H167: =IF(C167="",0,IF(SUMIFS($G$5:G167,$C$5:C167,C167)-SUMIFS($I$4:I166,$C$4:C166,C167)<0,0,SUMIFS($G$5:G167,$C$5:C167,C167)-SUMIFS($I$4:I166,$C$4:C166,C167))) -> 0 | J167: =IF(C167="",0,IF(C167=$C$4,SUMIFS($I$4:I166,$C$4:C166,C166),SUMIFS($I$4:I166,$C$4:C166,C167))) -> 0 | K167: 0
A168: 165 | C168: =IFERROR(VLOOKUP(D168,Nomenclature!$B$2:$C$196,2,0),"") ->  | H168: =IF(C168="",0,IF(SUMIFS($G$5:G168,$C$5:C168,C168)-SUMIFS($I$4:I167,$C$4:C167,C168)<0,0,SUMIFS($G$5:G168,$C$5:C168,C168)-SUMIFS($I$4:I167,$C$4:C167,C168))) -> 0 | J168: =IF(C168="",0,IF(C168=$C$4,SUMIFS($I$4:I167,$C$4:C167,C167),SUMIFS($I$4:I167,$C$4:C167,C168))) -> 0 | K168: 0
A169: 166 | C169: =IFERROR(VLOOKUP(D169,Nomenclature!$B$2:$C$196,2,0),"") ->  | H169: =IF(C169="",0,IF(SUMIFS($G$5:G169,$C$5:C169,C169)-SUMIFS($I$4:I168,$C$4:C168,C169)<0,0,SUMIFS($G$5:G169,$C$5:C169,C169)-SUMIFS($I$4:I168,$C$4:C168,C169))) -> 0 | J169: =IF(C169="",0,IF(C169=$C$4,SUMIFS($I$4:I168,$C$4:C168,C168),SUMIFS($I$4:I168,$C$4:C168,C169))) -> 0 | K169: 0
A170: 167 | C170: =IFERROR(VLOOKUP(D170,Nomenclature!$B$2:$C$196,2,0),"") ->  | H170: =IF(C170="",0,IF(SUMIFS($G$5:G170,$C$5:C170,C170)-SUMIFS($I$4:I169,$C$4:C169,C170)<0,0,SUMIFS($G$5:G170,$C$5:C170,C170)-SUMIFS($I$4:I169,$C$4:C169,C170))) -> 0 | J170: =IF(C170="",0,IF(C170=$C$4,SUMIFS($I$4:I169,$C$4:C169,C169),SUMIFS($I$4:I169,$C$4:C169,C170))) -> 0 | K170: 0
A171: 168 | C171: =IFERROR(VLOOKUP(D171,Nomenclature!$B$2:$C$196,2,0),"") ->  | H171: =IF(C171="",0,IF(SUMIFS($G$5:G171,$C$5:C171,C171)-SUMIFS($I$4:I170,$C$4:C170,C171)<0,0,SUMIFS($G$5:G171,$C$5:C171,C171)-SUMIFS($I$4:I170,$C$4:C170,C171))) -> 0 | J171: =IF(C171="",0,IF(C171=$C$4,SUMIFS($I$4:I170,$C$4:C170,C170),SUMIFS($I$4:I170,$C$4:C170,C171))) -> 0 | K171: 0
A172: 169 | C172: =IFERROR(VLOOKUP(D172,Nomenclature!$B$2:$C$196,2,0),"") ->  | H172: =IF(C172="",0,IF(SUMIFS($G$5:G172,$C$5:C172,C172)-SUMIFS($I$4:I171,$C$4:C171,C172)<0,0,SUMIFS($G$5:G172,$C$5:C172,C172)-SUMIFS($I$4:I171,$C$4:C171,C172))) -> 0 | J172: =IF(C172="",0,IF(C172=$C$4,SUMIFS($I$4:I171,$C$4:C171,C171),SUMIFS($I$4:I171,$C$4:C171,C172))) -> 0 | K172: 0
A173: 170 | C173: =IFERROR(VLOOKUP(D173,Nomenclature!$B$2:$C$196,2,0),"") ->  | H173: =IF(C173="",0,IF(SUMIFS($G$5:G173,$C$5:C173,C173)-SUMIFS($I$4:I172,$C$4:C172,C173)<0,0,SUMIFS($G$5:G173,$C$5:C173,C173)-SUMIFS($I$4:I172,$C$4:C172,C173))) -> 0 | J173: =IF(C173="",0,IF(C173=$C$4,SUMIFS($I$4:I172,$C$4:C172,C172),SUMIFS($I$4:I172,$C$4:C172,C173))) -> 0 | K173: 0
A174: 171 | C174: =IFERROR(VLOOKUP(D174,Nomenclature!$B$2:$C$196,2,0),"") ->  | H174: =IF(C174="",0,IF(SUMIFS($G$5:G174,$C$5:C174,C174)-SUMIFS($I$4:I173,$C$4:C173,C174)<0,0,SUMIFS($G$5:G174,$C$5:C174,C174)-SUMIFS($I$4:I173,$C$4:C173,C174))) -> 0 | J174: =IF(C174="",0,IF(C174=$C$4,SUMIFS($I$4:I173,$C$4:C173,C173),SUMIFS($I$4:I173,$C$4:C173,C174))) -> 0 | K174: 0
A175: 172 | C175: =IFERROR(VLOOKUP(D175,Nomenclature!$B$2:$C$196,2,0),"") ->  | H175: =IF(C175="",0,IF(SUMIFS($G$5:G175,$C$5:C175,C175)-SUMIFS($I$4:I174,$C$4:C174,C175)<0,0,SUMIFS($G$5:G175,$C$5:C175,C175)-SUMIFS($I$4:I174,$C$4:C174,C175))) -> 0 | J175: =IF(C175="",0,IF(C175=$C$4,SUMIFS($I$4:I174,$C$4:C174,C174),SUMIFS($I$4:I174,$C$4:C174,C175))) -> 0 | K175: 0
A176: 173 | C176: =IFERROR(VLOOKUP(D176,Nomenclature!$B$2:$C$196,2,0),"") ->  | H176: =IF(C176="",0,IF(SUMIFS($G$5:G176,$C$5:C176,C176)-SUMIFS($I$4:I175,$C$4:C175,C176)<0,0,SUMIFS($G$5:G176,$C$5:C176,C176)-SUMIFS($I$4:I175,$C$4:C175,C176))) -> 0 | J176: =IF(C176="",0,IF(C176=$C$4,SUMIFS($I$4:I175,$C$4:C175,C175),SUMIFS($I$4:I175,$C$4:C175,C176))) -> 0 | K176: 0
A177: 174 | C177: =IFERROR(VLOOKUP(D177,Nomenclature!$B$2:$C$196,2,0),"") ->  | H177: =IF(C177="",0,IF(SUMIFS($G$5:G177,$C$5:C177,C177)-SUMIFS($I$4:I176,$C$4:C176,C177)<0,0,SUMIFS($G$5:G177,$C$5:C177,C177)-SUMIFS($I$4:I176,$C$4:C176,C177))) -> 0 | J177: =IF(C177="",0,IF(C177=$C$4,SUMIFS($I$4:I176,$C$4:C176,C176),SUMIFS($I$4:I176,$C$4:C176,C177))) -> 0 | K177: 0
A178: 175 | C178: =IFERROR(VLOOKUP(D178,Nomenclature!$B$2:$C$196,2,0),"") ->  | H178: =IF(C178="",0,IF(SUMIFS($G$5:G178,$C$5:C178,C178)-SUMIFS($I$4:I177,$C$4:C177,C178)<0,0,SUMIFS($G$5:G178,$C$5:C178,C178)-SUMIFS($I$4:I177,$C$4:C177,C178))) -> 0 | J178: =IF(C178="",0,IF(C178=$C$4,SUMIFS($I$4:I177,$C$4:C177,C177),SUMIFS($I$4:I177,$C$4:C177,C178))) -> 0 | K178: 0
A179: 176 | C179: =IFERROR(VLOOKUP(D179,Nomenclature!$B$2:$C$196,2,0),"") ->  | H179: =IF(C179="",0,IF(SUMIFS($G$5:G179,$C$5:C179,C179)-SUMIFS($I$4:I178,$C$4:C178,C179)<0,0,SUMIFS($G$5:G179,$C$5:C179,C179)-SUMIFS($I$4:I178,$C$4:C178,C179))) -> 0 | J179: =IF(C179="",0,IF(C179=$C$4,SUMIFS($I$4:I178,$C$4:C178,C178),SUMIFS($I$4:I178,$C$4:C178,C179))) -> 0 | K179: 0
A180: 177 | C180: =IFERROR(VLOOKUP(D180,Nomenclature!$B$2:$C$196,2,0),"") ->  | H180: =IF(C180="",0,IF(SUMIFS($G$5:G180,$C$5:C180,C180)-SUMIFS($I$4:I179,$C$4:C179,C180)<0,0,SUMIFS($G$5:G180,$C$5:C180,C180)-SUMIFS($I$4:I179,$C$4:C179,C180))) -> 0 | J180: =IF(C180="",0,IF(C180=$C$4,SUMIFS($I$4:I179,$C$4:C179,C179),SUMIFS($I$4:I179,$C$4:C179,C180))) -> 0 | K180: 0
A181: 178 | C181: =IFERROR(VLOOKUP(D181,Nomenclature!$B$2:$C$196,2,0),"") ->  | H181: =IF(C181="",0,IF(SUMIFS($G$5:G181,$C$5:C181,C181)-SUMIFS($I$4:I180,$C$4:C180,C181)<0,0,SUMIFS($G$5:G181,$C$5:C181,C181)-SUMIFS($I$4:I180,$C$4:C180,C181))) -> 0 | J181: =IF(C181="",0,IF(C181=$C$4,SUMIFS($I$4:I180,$C$4:C180,C180),SUMIFS($I$4:I180,$C$4:C180,C181))) -> 0 | K181: 0
A182: 179 | C182: =IFERROR(VLOOKUP(D182,Nomenclature!$B$2:$C$196,2,0),"") ->  | H182: =IF(C182="",0,IF(SUMIFS($G$5:G182,$C$5:C182,C182)-SUMIFS($I$4:I181,$C$4:C181,C182)<0,0,SUMIFS($G$5:G182,$C$5:C182,C182)-SUMIFS($I$4:I181,$C$4:C181,C182))) -> 0 | J182: =IF(C182="",0,IF(C182=$C$4,SUMIFS($I$4:I181,$C$4:C181,C181),SUMIFS($I$4:I181,$C$4:C181,C182))) -> 0 | K182: 0
A183: 180 | C183: =IFERROR(VLOOKUP(D183,Nomenclature!$B$2:$C$196,2,0),"") ->  | H183: =IF(C183="",0,IF(SUMIFS($G$5:G183,$C$5:C183,C183)-SUMIFS($I$4:I182,$C$4:C182,C183)<0,0,SUMIFS($G$5:G183,$C$5:C183,C183)-SUMIFS($I$4:I182,$C$4:C182,C183))) -> 0 | J183: =IF(C183="",0,IF(C183=$C$4,SUMIFS($I$4:I182,$C$4:C182,C182),SUMIFS($I$4:I182,$C$4:C182,C183))) -> 0 | K183: 0
A184: 181 | C184: =IFERROR(VLOOKUP(D184,Nomenclature!$B$2:$C$196,2,0),"") ->  | H184: =IF(C184="",0,IF(SUMIFS($G$5:G184,$C$5:C184,C184)-SUMIFS($I$4:I183,$C$4:C183,C184)<0,0,SUMIFS($G$5:G184,$C$5:C184,C184)-SUMIFS($I$4:I183,$C$4:C183,C184))) -> 0 | J184: =IF(C184="",0,IF(C184=$C$4,SUMIFS($I$4:I183,$C$4:C183,C183),SUMIFS($I$4:I183,$C$4:C183,C184))) -> 0 | K184: 0
A185: 182 | C185: =IFERROR(VLOOKUP(D185,Nomenclature!$B$2:$C$196,2,0),"") ->  | H185: =IF(C185="",0,IF(SUMIFS($G$5:G185,$C$5:C185,C185)-SUMIFS($I$4:I184,$C$4:C184,C185)<0,0,SUMIFS($G$5:G185,$C$5:C185,C185)-SUMIFS($I$4:I184,$C$4:C184,C185))) -> 0 | J185: =IF(C185="",0,IF(C185=$C$4,SUMIFS($I$4:I184,$C$4:C184,C184),SUMIFS($I$4:I184,$C$4:C184,C185))) -> 0 | K185: 0
A186: 183 | C186: =IFERROR(VLOOKUP(D186,Nomenclature!$B$2:$C$196,2,0),"") ->  | H186: =IF(C186="",0,IF(SUMIFS($G$5:G186,$C$5:C186,C186)-SUMIFS($I$4:I185,$C$4:C185,C186)<0,0,SUMIFS($G$5:G186,$C$5:C186,C186)-SUMIFS($I$4:I185,$C$4:C185,C186))) -> 0 | J186: =IF(C186="",0,IF(C186=$C$4,SUMIFS($I$4:I185,$C$4:C185,C185),SUMIFS($I$4:I185,$C$4:C185,C186))) -> 0 | K186: 0
A187: 184 | C187: =IFERROR(VLOOKUP(D187,Nomenclature!$B$2:$C$196,2,0),"") ->  | H187: =IF(C187="",0,IF(SUMIFS($G$5:G187,$C$5:C187,C187)-SUMIFS($I$4:I186,$C$4:C186,C187)<0,0,SUMIFS($G$5:G187,$C$5:C187,C187)-SUMIFS($I$4:I186,$C$4:C186,C187))) -> 0 | J187: =IF(C187="",0,IF(C187=$C$4,SUMIFS($I$4:I186,$C$4:C186,C186),SUMIFS($I$4:I186,$C$4:C186,C187))) -> 0 | K187: 0
A188: 185 | C188: =IFERROR(VLOOKUP(D188,Nomenclature!$B$2:$C$196,2,0),"") ->  | H188: =IF(C188="",0,IF(SUMIFS($G$5:G188,$C$5:C188,C188)-SUMIFS($I$4:I187,$C$4:C187,C188)<0,0,SUMIFS($G$5:G188,$C$5:C188,C188)-SUMIFS($I$4:I187,$C$4:C187,C188))) -> 0 | J188: =IF(C188="",0,IF(C188=$C$4,SUMIFS($I$4:I187,$C$4:C187,C187),SUMIFS($I$4:I187,$C$4:C187,C188))) -> 0 | K188: 0
A189: 186 | C189: =IFERROR(VLOOKUP(D189,Nomenclature!$B$2:$C$196,2,0),"") ->  | H189: =IF(C189="",0,IF(SUMIFS($G$5:G189,$C$5:C189,C189)-SUMIFS($I$4:I188,$C$4:C188,C189)<0,0,SUMIFS($G$5:G189,$C$5:C189,C189)-SUMIFS($I$4:I188,$C$4:C188,C189))) -> 0 | J189: =IF(C189="",0,IF(C189=$C$4,SUMIFS($I$4:I188,$C$4:C188,C188),SUMIFS($I$4:I188,$C$4:C188,C189))) -> 0 | K189: 0
A190: 187 | C190: =IFERROR(VLOOKUP(D190,Nomenclature!$B$2:$C$196,2,0),"") ->  | H190: =IF(C190="",0,IF(SUMIFS($G$5:G190,$C$5:C190,C190)-SUMIFS($I$4:I189,$C$4:C189,C190)<0,0,SUMIFS($G$5:G190,$C$5:C190,C190)-SUMIFS($I$4:I189,$C$4:C189,C190))) -> 0 | J190: =IF(C190="",0,IF(C190=$C$4,SUMIFS($I$4:I189,$C$4:C189,C189),SUMIFS($I$4:I189,$C$4:C189,C190))) -> 0 | K190: 0
A191: 188 | C191: =IFERROR(VLOOKUP(D191,Nomenclature!$B$2:$C$196,2,0),"") ->  | H191: =IF(C191="",0,IF(SUMIFS($G$5:G191,$C$5:C191,C191)-SUMIFS($I$4:I190,$C$4:C190,C191)<0,0,SUMIFS($G$5:G191,$C$5:C191,C191)-SUMIFS($I$4:I190,$C$4:C190,C191))) -> 0 | J191: =IF(C191="",0,IF(C191=$C$4,SUMIFS($I$4:I190,$C$4:C190,C190),SUMIFS($I$4:I190,$C$4:C190,C191))) -> 0 | K191: 0
A192: 189 | C192: =IFERROR(VLOOKUP(D192,Nomenclature!$B$2:$C$196,2,0),"") ->  | H192: =IF(C192="",0,IF(SUMIFS($G$5:G192,$C$5:C192,C192)-SUMIFS($I$4:I191,$C$4:C191,C192)<0,0,SUMIFS($G$5:G192,$C$5:C192,C192)-SUMIFS($I$4:I191,$C$4:C191,C192))) -> 0 | J192: =IF(C192="",0,IF(C192=$C$4,SUMIFS($I$4:I191,$C$4:C191,C191),SUMIFS($I$4:I191,$C$4:C191,C192))) -> 0 | K192: 0
A193: 190 | C193: =IFERROR(VLOOKUP(D193,Nomenclature!$B$2:$C$196,2,0),"") ->  | H193: =IF(C193="",0,IF(SUMIFS($G$5:G193,$C$5:C193,C193)-SUMIFS($I$4:I192,$C$4:C192,C193)<0,0,SUMIFS($G$5:G193,$C$5:C193,C193)-SUMIFS($I$4:I192,$C$4:C192,C193))) -> 0 | J193: =IF(C193="",0,IF(C193=$C$4,SUMIFS($I$4:I192,$C$4:C192,C192),SUMIFS($I$4:I192,$C$4:C192,C193))) -> 0 | K193: 0
A194: 191 | C194: =IFERROR(VLOOKUP(D194,Nomenclature!$B$2:$C$196,2,0),"") ->  | H194: =IF(C194="",0,IF(SUMIFS($G$5:G194,$C$5:C194,C194)-SUMIFS($I$4:I193,$C$4:C193,C194)<0,0,SUMIFS($G$5:G194,$C$5:C194,C194)-SUMIFS($I$4:I193,$C$4:C193,C194))) -> 0 | J194: =IF(C194="",0,IF(C194=$C$4,SUMIFS($I$4:I193,$C$4:C193,C193),SUMIFS($I$4:I193,$C$4:C193,C194))) -> 0 | K194: 0
A195: 192 | C195: =IFERROR(VLOOKUP(D195,Nomenclature!$B$2:$C$196,2,0),"") ->  | H195: =IF(C195="",0,IF(SUMIFS($G$5:G195,$C$5:C195,C195)-SUMIFS($I$4:I194,$C$4:C194,C195)<0,0,SUMIFS($G$5:G195,$C$5:C195,C195)-SUMIFS($I$4:I194,$C$4:C194,C195))) -> 0 | J195: =IF(C195="",0,IF(C195=$C$4,SUMIFS($I$4:I194,$C$4:C194,C194),SUMIFS($I$4:I194,$C$4:C194,C195))) -> 0 | K195: 0
A196: 193 | C196: =IFERROR(VLOOKUP(D196,Nomenclature!$B$2:$C$196,2,0),"") ->  | H196: =IF(C196="",0,IF(SUMIFS($G$5:G196,$C$5:C196,C196)-SUMIFS($I$4:I195,$C$4:C195,C196)<0,0,SUMIFS($G$5:G196,$C$5:C196,C196)-SUMIFS($I$4:I195,$C$4:C195,C196))) -> 0 | J196: =IF(C196="",0,IF(C196=$C$4,SUMIFS($I$4:I195,$C$4:C195,C195),SUMIFS($I$4:I195,$C$4:C195,C196))) -> 0 | K196: =IF(C196="",0,H196-I196) -> 0
A197: 194 | C197: =IFERROR(VLOOKUP(D197,Nomenclature!$B$2:$C$196,2,0),"") ->  | H197: =IF(C197="",0,IF(SUMIFS($G$5:G197,$C$5:C197,C197)-SUMIFS($I$4:I196,$C$4:C196,C197)<0,0,SUMIFS($G$5:G197,$C$5:C197,C197)-SUMIFS($I$4:I196,$C$4:C196,C197))) -> 0 | J197: =IF(C197="",0,IF(C197=$C$4,SUMIFS($I$4:I196,$C$4:C196,C196),SUMIFS($I$4:I196,$C$4:C196,C197))) -> 0 | K197: 0
A198: 195 | C198: =IFERROR(VLOOKUP(D198,Nomenclature!$B$2:$C$196,2,0),"") ->  | H198: =IF(C198="",0,IF(SUMIFS($G$5:G198,$C$5:C198,C198)-SUMIFS($I$4:I197,$C$4:C197,C198)<0,0,SUMIFS($G$5:G198,$C$5:C198,C198)-SUMIFS($I$4:I197,$C$4:C197,C198))) -> 0 | J198: =IF(C198="",0,IF(C198=$C$4,SUMIFS($I$4:I197,$C$4:C197,C197),SUMIFS($I$4:I197,$C$4:C197,C198))) -> 0 | K198: 0
A199: 196 | C199: =IFERROR(VLOOKUP(D199,Nomenclature!$B$2:$C$196,2,0),"") ->  | H199: =IF(C199="",0,IF(SUMIFS($G$5:G199,$C$5:C199,C199)-SUMIFS($I$4:I198,$C$4:C198,C199)<0,0,SUMIFS($G$5:G199,$C$5:C199,C199)-SUMIFS($I$4:I198,$C$4:C198,C199))) -> 0 | J199: =IF(C199="",0,IF(C199=$C$4,SUMIFS($I$4:I198,$C$4:C198,C198),SUMIFS($I$4:I198,$C$4:C198,C199))) -> 0 | K199: 0
A200: 197 | C200: =IFERROR(VLOOKUP(D200,Nomenclature!$B$2:$C$196,2,0),"") ->  | H200: =IF(C200="",0,IF(SUMIFS($G$5:G200,$C$5:C200,C200)-SUMIFS($I$4:I199,$C$4:C199,C200)<0,0,SUMIFS($G$5:G200,$C$5:C200,C200)-SUMIFS($I$4:I199,$C$4:C199,C200))) -> 0 | J200: =IF(C200="",0,IF(C200=$C$4,SUMIFS($I$4:I199,$C$4:C199,C199),SUMIFS($I$4:I199,$C$4:C199,C200))) -> 0 | K200: 0
A201: 198 | C201: =IFERROR(VLOOKUP(D201,Nomenclature!$B$2:$C$196,2,0),"") ->  | H201: =IF(C201="",0,IF(SUMIFS($G$5:G201,$C$5:C201,C201)-SUMIFS($I$4:I200,$C$4:C200,C201)<0,0,SUMIFS($G$5:G201,$C$5:C201,C201)-SUMIFS($I$4:I200,$C$4:C200,C201))) -> 0 | J201: =IF(C201="",0,IF(C201=$C$4,SUMIFS($I$4:I200,$C$4:C200,C200),SUMIFS($I$4:I200,$C$4:C200,C201))) -> 0 | K201: 0
... 2 more rows

Sheet 12000
A1: رقم الاستمارة | B1: التاريخ | C1: الترميز | D1: الصنف / الصنف الفرعي | E1: ملاحظات المصلحة | F1: AP Cat | G1: =IF(SUM(G4:G203)-SUM(F4:F203)<0,"نقص في توزيع الاعتمادات على الاصناف الفرعية", IF(SUM(G4:G203)-SUM(F4:F203)>0,"تجاوز في الاعتمادات الموزعة على الاصناف الفرعية","AP S.Cat")) -> AP S.Cat | H1: AP Sous_Cat | I1: =IF(I3>G3,"تجاوز في الالتزامات","∑ Engagements") -> ∑ Engagements | J1: ∑ Eng Sous_Cat | K1: Reste | L1: السند القانوني للعنوان الرابع | N1: 1
F3: =SUM(F4:F203) -> 10500000 | G3: =SUM(G4:G203) -> 10500000 | I3: =SUM(I5:I203) -> 0 | K3: =SUM(K4:K104) -> 10500000
A4: 1 | B4: 2023-03-13 | C4: =IFERROR(VLOOKUP(D4,Nomenclature!$B$2:$C$196,2,0),"") -> 12000 | D4: العلاوات و التعويضات | E4: تكفل برخصة الالتزام المفتوحة لسنة 2023. | F4: 10500000 | H4: =IF(C4="",0,IF(SUMIFS($G4:G$5,$C4:C$5,C4)-SUMIFS($I3:I$4,$C3:C$4,C4)<0,0,SUMIFS($G4:G$5,$C4:C$5,C4)-SUMIFS($I3:I$4,$C3:C$4,C4))) -> 0 | J4: =IF(I4=0,0,IF(C4="",0,SUMIFS($I4:I$4,$C4:C$4,C4))) -> 0 | K4: =IF(C4="",0,H4-I4) -> 0 | O4: الجمهورية الجزائرية الديمقراطية الشعبية
A5: 2 | B5: 2023-04-01 | C5: =IFERROR(VLOOKUP(D5,Nomenclature!$B$2:$C$196,2,0),"") -> 12100 | D5: علاوات و تعويضات الموظفين و الأعوان العموميين | E5: التزام في الجدول الأصلي الأولي رقم 2023/01 الخاص بالمرتبات الشهرية للموظفين من 2023/01/01 إلى غاية 2023/12/31 | G5: 6500000 | H5: =IF(C5="",0,IF(SUMIFS($G$5:G5,$C$5:C5,C5)-SUMIFS($I$4:I4,$C$4:C4,C5)<0,0,SUMIFS($G$5:G5,$C$5:C5,C5)-SUMIFS($I$4:I4,$C$4:C4,C5))) -> 6500000 | J5: =IF(C5="",0,IF(C5=$C$4,SUMIFS($I$4:I4,$C$4:C4,C4),SUMIFS($I$4:I4,$C$4:C4,C5))) -> 0 | K5: 6500000 | O5: الـوزارة: | T5: =الواجهة!C2 -> وزارة البيئة و الطاقات المتجددة
A6: 3 | C6: =IFERROR(VLOOKUP(D6,Nomenclature!$B$2:$C$196,2,0),"") -> 12200 | D6: علاوات و تعويضات المستخدمين المتعاقدين | E6: التزام في الجدول الأصلي الأولي رقم 2023/02 الخاص بالمرتبات الشهرية للاعوان المتعاقدين بالتوقيت الكامل من 2023/01/01 إلى غاية 2023/12/31 | G6: 4000000 | H6: =IF(C6="",0,IF(SUMIFS($G$5:G6,$C$5:C6,C6)-SUMIFS($I$4:I5,$C$4:C5,C6)<0,0,SUMIFS($G$5:G6,$C$5:C6,C6)-SUMIFS($I$4:I5,$C$4:C5,C6))) -> 4000000 | J6: =IF(C6="",0,IF(C6=$C$4,SUMIFS($I$4:I5,$C$4:C5,C5),SUMIFS($I$4:I5,$C$4:C5,C6))) -> 0 | K6: 4000000 | O6: الهيئة الإدارية: | T6: =الواجهة!C3 -> مديرية البيئة لولاية المسيلة
A7: 4 | C7: =IFERROR(VLOOKUP(D7,Nomenclature!$B$2:$C$196,2,0),"") ->  | H7: =IF(C7="",0,IF(SUMIFS($G$5:G7,$C$5:C7,C7)-SUMIFS($I$4:I6,$C$4:C6,C7)<0,0,SUMIFS($G$5:G7,$C$5:C7,C7)-SUMIFS($I$4:I6,$C$4:C6,C7))) -> 0 | J7: =IF(C7="",0,IF(C7=$C$4,SUMIFS($I$4:I6,$C$4:C6,C6),SUMIFS($I$4:I6,$C$4:C6,C7))) -> 0 | K7: 0 | O7: رمز الآمر بالصرف: | T7: =الواجهة!C4 -> 144 0 28 01
A8: 5 | C8: =IFERROR(VLOOKUP(D8,Nomenclature!$B$2:$C$196,2,0),"") ->  | H8: =IF(C8="",0,IF(SUMIFS($G$5:G8,$C$5:C8,C8)-SUMIFS($I$4:I7,$C$4:C7,C8)<0,0,SUMIFS($G$5:G8,$C$5:C8,C8)-SUMIFS($I$4:I7,$C$4:C7,C8))) -> 0 | J8: =IF(C8="",0,IF(C8=$C$4,SUMIFS($I$4:I7,$C$4:C7,C7),SUMIFS($I$4:I7,$C$4:C7,C8))) -> 0 | K8: 0 | AH8: .
A9: 6 | C9: =IFERROR(VLOOKUP(D9,Nomenclature!$B$2:$C$196,2,0),"") ->  | H9: =IF(C9="",0,IF(SUMIFS($G$5:G9,$C$5:C9,C9)-SUMIFS($I$4:I8,$C$4:C8,C9)<0,0,SUMIFS($G$5:G9,$C$5:C9,C9)-SUMIFS($I$4:I8,$C$4:C8,C9))) -> 0 | J9: =IF(C9="",0,IF(C9=$C$4,SUMIFS($I$4:I8,$C$4:C8,C8),SUMIFS($I$4:I8,$C$4:C8,C9))) -> 0 | K9: 0
A10: 7 | C10: =IFERROR(VLOOKUP(D10,Nomenclature!$B$2:$C$196,2,0),"") ->  | H10: =IF(C10="",0,IF(SUMIFS($G$5:G10,$C$5:C10,C10)-SUMIFS($I$4:I9,$C$4:C9,C10)<0,0,SUMIFS($G$5:G10,$C$5:C10,C10)-SUMIFS($I$4:I9,$C$4:C9,C10))) -> 0 | J10: =IF(C10="",0,IF(C10=$C$4,SUMIFS($I$4:I9,$C$4:C9,C9),SUMIFS($I$4:I9,$C$4:C9,C10))) -> 0 | K10: 0
A11: 8 | C11: =IFERROR(VLOOKUP(D11,Nomenclature!$B$2:$C$196,2,0),"") ->  | H11: =IF(C11="",0,IF(SUMIFS($G$5:G11,$C$5:C11,C11)-SUMIFS($I$4:I10,$C$4:C10,C11)<0,0,SUMIFS($G$5:G11,$C$5:C11,C11)-SUMIFS($I$4:I10,$C$4:C10,C11))) -> 0 | J11: =IF(C11="",0,IF(C11=$C$4,SUMIFS($I$4:I10,$C$4:C10,C10),SUMIFS($I$4:I10,$C$4:C10,C11))) -> 0 | K11: 0 | P11: رقم بطاقة الالتزام: | U11: =IFERROR(VLOOKUP(N1,A4:L203,1,0),0) -> 1 | AF11: التاريخ: | AH11: =IF(IFERROR(VLOOKUP(N1,A4:L203,2,0),0)=0,"",IFERROR(VLOOKUP(N1,A4:L203,2,0),0)) -> 2023-03-13
A12: 9 | C12: =IFERROR(VLOOKUP(D12,Nomenclature!$B$2:$C$196,2,0),"") ->  | H12: =IF(C12="",0,IF(SUMIFS($G$5:G12,$C$5:C12,C12)-SUMIFS($I$4:I11,$C$4:C11,C12)<0,0,SUMIFS($G$5:G12,$C$5:C12,C12)-SUMIFS($I$4:I11,$C$4:C11,C12))) -> 0 | J12: =IF(C12="",0,IF(C12=$C$4,SUMIFS($I$4:I11,$C$4:C11,C11),SUMIFS($I$4:I11,$C$4:C11,C12))) -> 0 | K12: 0
A13: 10 | C13: =IFERROR(VLOOKUP(D13,Nomenclature!$B$2:$C$196,2,0),"") ->  | H13: =IF(C13="",0,IF(SUMIFS($G$5:G13,$C$5:C13,C13)-SUMIFS($I$4:I12,$C$4:C12,C13)<0,0,SUMIFS($G$5:G13,$C$5:C13,C13)-SUMIFS($I$4:I12,$C$4:C12,C13))) -> 0 | J13: =IF(C13="",0,IF(C13=$C$4,SUMIFS($I$4:I12,$C$4:C12,C12),SUMIFS($I$4:I12,$C$4:C12,C13))) -> 0 | K13: 0
A14: 11 | C14: =IFERROR(VLOOKUP(D14,Nomenclature!$B$2:$C$196,2,0),"") ->  | H14: =IF(C14="",0,IF(SUMIFS($G$5:G14,$C$5:C14,C14)-SUMIFS($I$4:I13,$C$4:C13,C14)<0,0,SUMIFS($G$5:G14,$C$5:C14,C14)-SUMIFS($I$4:I13,$C$4:C13,C14))) -> 0 | J14: =IF(C14="",0,IF(C14=$C$4,SUMIFS($I$4:I13,$C$4:C13,C13),SUMIFS($I$4:I13,$C$4:C13,C14))) -> 0 | K14: 0 | O14: رمز البرنــامج: | T14: =الواجهة!C7 -> 116
A15: 12 | C15: =IFERROR(VLOOKUP(D15,Nomenclature!$B$2:$C$196,2,0),"") ->  | H15: =IF(C15="",0,IF(SUMIFS($G$5:G15,$C$5:C15,C15)-SUMIFS($I$4:I14,$C$4:C14,C15)<0,0,SUMIFS($G$5:G15,$C$5:C15,C15)-SUMIFS($I$4:I14,$C$4:C14,C15))) -> 0 | J15: =IF(C15="",0,IF(C15=$C$4,SUMIFS($I$4:I14,$C$4:C14,C14),SUMIFS($I$4:I14,$C$4:C14,C15))) -> 0 | K15: 0 | O15: رمز النشــاط: | T15: =الواجهة!C6&" "&الواجهة!C7&" "&الواجهة!C10&" "&الواجهة!C8&" "&الواجهة!C9&" "&الواجهة!C11 -> 030 116 02 2001 000 028
A16: 13 | C16: =IFERROR(VLOOKUP(D16,Nomenclature!$B$2:$C$196,2,0),"") ->  | H16: =IF(C16="",0,IF(SUMIFS($G$5:G16,$C$5:C16,C16)-SUMIFS($I$4:I15,$C$4:C15,C16)<0,0,SUMIFS($G$5:G16,$C$5:C16,C16)-SUMIFS($I$4:I15,$C$4:C15,C16))) -> 0 | J16: =IF(C16="",0,IF(C16=$C$4,SUMIFS($I$4:I15,$C$4:C15,C15),SUMIFS($I$4:I15,$C$4:C15,C16))) -> 0 | K16: 0 | O16: رمز النشــاط الفرعي: | T16: =الواجهة!C9 -> 000
A17: 14 | C17: =IFERROR(VLOOKUP(D17,Nomenclature!$B$2:$C$196,2,0),"") ->  | H17: =IF(C17="",0,IF(SUMIFS($G$5:G17,$C$5:C17,C17)-SUMIFS($I$4:I16,$C$4:C16,C17)<0,0,SUMIFS($G$5:G17,$C$5:C17,C17)-SUMIFS($I$4:I16,$C$4:C16,C17))) -> 0 | J17: =IF(C17="",0,IF(C17=$C$4,SUMIFS($I$4:I16,$C$4:C16,C16),SUMIFS($I$4:I16,$C$4:C16,C17))) -> 0 | K17: 0 | O17: رمز البرنـامج الفرعي: | T17: =الواجهة!C10 -> 02
A18: 15 | C18: =IFERROR(VLOOKUP(D18,Nomenclature!$B$2:$C$196,2,0),"") ->  | H18: =IF(C18="",0,IF(SUMIFS($G$5:G18,$C$5:C18,C18)-SUMIFS($I$4:I17,$C$4:C17,C18)<0,0,SUMIFS($G$5:G18,$C$5:C18,C18)-SUMIFS($I$4:I17,$C$4:C17,C18))) -> 0 | J18: =IF(C18="",0,IF(C18=$C$4,SUMIFS($I$4:I17,$C$4:C17,C17),SUMIFS($I$4:I17,$C$4:C17,C18))) -> 0 | K18: 0
A19: 16 | C19: =IFERROR(VLOOKUP(D19,Nomenclature!$B$2:$C$196,2,0),"") ->  | H19: =IF(C19="",0,IF(SUMIFS($G$5:G19,$C$5:C19,C19)-SUMIFS($I$4:I18,$C$4:C18,C19)<0,0,SUMIFS($G$5:G19,$C$5:C19,C19)-SUMIFS($I$4:I18,$C$4:C18,C19))) -> 0 | J19: =IF(C19="",0,IF(C19=$C$4,SUMIFS($I$4:I18,$C$4:C18,C18),SUMIFS($I$4:I18,$C$4:C18,C19))) -> 0 | K19: 0
A20: 17 | C20: =IFERROR(VLOOKUP(D20,Nomenclature!$B$2:$C$196,2,0),"") ->  | H20: =IF(C20="",0,IF(SUMIFS($G$5:G20,$C$5:C20,C20)-SUMIFS($I$4:I19,$C$4:C19,C20)<0,0,SUMIFS($G$5:G20,$C$5:C20,C20)-SUMIFS($I$4:I19,$C$4:C19,C20))) -> 0 | J20: =IF(C20="",0,IF(C20=$C$4,SUMIFS($I$4:I19,$C$4:C19,C19),SUMIFS($I$4:I19,$C$4:C19,C20))) -> 0 | K20: 0 | O20: العنوان:
A21: 18 | C21: =IFERROR(VLOOKUP(D21,Nomenclature!$B$2:$C$196,2,0),"") ->  | H21: =IF(C21="",0,IF(SUMIFS($G$5:G21,$C$5:C21,C21)-SUMIFS($I$4:I20,$C$4:C20,C21)<0,0,SUMIFS($G$5:G21,$C$5:C21,C21)-SUMIFS($I$4:I20,$C$4:C20,C21))) -> 0 | J21: =IF(C21="",0,IF(C21=$C$4,SUMIFS($I$4:I20,$C$4:C20,C20),SUMIFS($I$4:I20,$C$4:C20,C21))) -> 0 | K21: 0 | Q21: =IF(C4<20000,"X","") -> X | S21: العنوان الأول: | W21: نفقات المستخدمين
A22: 19 | C22: =IFERROR(VLOOKUP(D22,Nomenclature!$B$2:$C$196,2,0),"") ->  | H22: =IF(C22="",0,IF(SUMIFS($G$5:G22,$C$5:C22,C22)-SUMIFS($I$4:I21,$C$4:C21,C22)<0,0,SUMIFS($G$5:G22,$C$5:C22,C22)-SUMIFS($I$4:I21,$C$4:C21,C22))) -> 0 | J22: =IF(C22="",0,IF(C22=$C$4,SUMIFS($I$4:I21,$C$4:C21,C21),SUMIFS($I$4:I21,$C$4:C21,C22))) -> 0 | K22: 0 | Q22: =IF(AND(C4>19999,C4<40000),"X","") ->  | S22: العنوان الثاني: | W22: نفقات تسيير المصالح
A23: 20 | C23: =IFERROR(VLOOKUP(D23,Nomenclature!$B$2:$C$196,2,0),"") ->  | H23: =IF(C23="",0,IF(SUMIFS($G$5:G23,$C$5:C23,C23)-SUMIFS($I$4:I22,$C$4:C22,C23)<0,0,SUMIFS($G$5:G23,$C$5:C23,C23)-SUMIFS($I$4:I22,$C$4:C22,C23))) -> 0 | J23: =IF(C23="",0,IF(C23=$C$4,SUMIFS($I$4:I22,$C$4:C22,C22),SUMIFS($I$4:I22,$C$4:C22,C23))) -> 0 | K23: 0 | Q23: =IF(AND(Q21="",Q22=""),"X","") ->  | S23: العنوان الرابع: | W23: نفقات التحويل
A24: 21 | C24: =IFERROR(VLOOKUP(D24,Nomenclature!$B$2:$C$196,2,0),"") ->  | H24: =IF(C24="",0,IF(SUMIFS($G$5:G24,$C$5:C24,C24)-SUMIFS($I$4:I23,$C$4:C23,C24)<0,0,SUMIFS($G$5:G24,$C$5:C24,C24)-SUMIFS($I$4:I23,$C$4:C23,C24))) -> 0 | J24: =IF(C24="",0,IF(C24=$C$4,SUMIFS($I$4:I23,$C$4:C23,C23),SUMIFS($I$4:I23,$C$4:C23,C24))) -> 0 | K24: 0 | R24: =IF(VLOOKUP(N1,A4:L203,12,0)="","- - - - - - - - - - - - - - - - - - - - - - - - - - - - - - - - - - - - - - - - - - - - - - - / / / - - - - - - - - - - - - - - - - - - - - - - - - - - - - - - - - - - - - - - - - - - - - - - -"& CHAR(10)&"- - - - - - - - - - - - - - - - - - - - - - - - - - - - - - - - - - - - - - - - - - - - - - - / / / - - - - - - - - - - - - - - - - - - - - - - - - - - - - - - - - - - - - - - - - - - - - - - -",VLOOKUP(N1,A4:L203,12,0)) -> - - - - - - - - - - - - - - - - - - - - - - - - - - - - - - - - - - - - - - - - - - - - - - - / / / - - - - - - - - - - - - - - - - - - - - - - - - - - - - - - - - - - - - - - - - - - - - - - - - - - - - - - - - - - - - - - - - - - - - - - - - - - - - - - - - - - - - - - - - - - - - - - / / / - - - - - - - - - - - - - - - - - - - - - - - - - - - - - - - - - - - - - - - - - - - - - - -
A25: 22 | C25: =IFERROR(VLOOKUP(D25,Nomenclature!$B$2:$C$196,2,0),"") ->  | H25: =IF(C25="",0,IF(SUMIFS($G$5:G25,$C$5:C25,C25)-SUMIFS($I$4:I24,$C$4:C24,C25)<0,0,SUMIFS($G$5:G25,$C$5:C25,C25)-SUMIFS($I$4:I24,$C$4:C24,C25))) -> 0 | J25: =IF(C25="",0,IF(C25=$C$4,SUMIFS($I$4:I24,$C$4:C24,C24),SUMIFS($I$4:I24,$C$4:C24,C25))) -> 0 | K25: 0
A26: 23 | C26: =IFERROR(VLOOKUP(D26,Nomenclature!$B$2:$C$196,2,0),"") ->  | H26: =IF(C26="",0,IF(SUMIFS($G$5:G26,$C$5:C26,C26)-SUMIFS($I$4:I25,$C$4:C25,C26)<0,0,SUMIFS($G$5:G26,$C$5:C26,C26)-SUMIFS($I$4:I25,$C$4:C25,C26))) -> 0 | J26: =IF(C26="",0,IF(C26=$C$4,SUMIFS($I$4:I25,$C$4:C25,C25),SUMIFS($I$4:I25,$C$4:C25,C26))) -> 0 | K26: 0
A27: 24 | C27: =IFERROR(VLOOKUP(D27,Nomenclature!$B$2:$C$196,2,0),"") ->  | H27: =IF(C27="",0,IF(SUMIFS($G$5:G27,$C$5:C27,C27)-SUMIFS($I$4:I26,$C$4:C26,C27)<0,0,SUMIFS($G$5:G27,$C$5:C27,C27)-SUMIFS($I$4:I26,$C$4:C26,C27))) -> 0 | J27: =IF(C27="",0,IF(C27=$C$4,SUMIFS($I$4:I26,$C$4:C26,C26),SUMIFS($I$4:I26,$C$4:C26,C27))) -> 0 | K27: 0 | O27: الصنف / الصنف الفرعي | W27: رخصة الالتزام المفتوحة/المعدلة | AA27: مجموع الالتزامات السابقة | AE27: الرصيد الأولي | AI27: الالتزام المقترح | AM27: الرصيد المتبقى
A28: 25 | C28: =IFERROR(VLOOKUP(D28,Nomenclature!$B$2:$C$196,2,0),"") ->  | H28: =IF(C28="",0,IF(SUMIFS($G$5:G28,$C$5:C28,C28)-SUMIFS($I$4:I27,$C$4:C27,C28)<0,0,SUMIFS($G$5:G28,$C$5:C28,C28)-SUMIFS($I$4:I27,$C$4:C27,C28))) -> 0 | J28: =IF(C28="",0,IF(C28=$C$4,SUMIFS($I$4:I27,$C$4:C27,C27),SUMIFS($I$4:I27,$C$4:C27,C28))) -> 0 | K28: 0
A29: 26 | C29: =IFERROR(VLOOKUP(D29,Nomenclature!$B$2:$C$196,2,0),"") ->  | H29: =IF(C29="",0,IF(SUMIFS($G$5:G29,$C$5:C29,C29)-SUMIFS($I$4:I28,$C$4:C28,C29)<0,0,SUMIFS($G$5:G29,$C$5:C29,C29)-SUMIFS($I$4:I28,$C$4:C28,C29))) -> 0 | J29: =IF(C29="",0,IF(C29=$C$4,SUMIFS($I$4:I28,$C$4:C28,C28),SUMIFS($I$4:I28,$C$4:C28,C29))) -> 0 | K29: 0 | O29: الصنف | S29: =C4 -> 12000 | W29: =SUM($F$4:INDIRECT("f"&N1+3)) -> 10500000 | AA29: =SUM($I$4:INDIRECT("i"&N1+2)) -> 0 | AE29: =W29-AA29 -> 10500000 | AI29: =IF(S31="",0,VLOOKUP(N1,A4:L103,9,0)) -> 0 | AM29: =IF((AE29-AI29)<0,"رصيد غير كاف",AE29-AI29) -> 10500000
A30: 27 | C30: =IFERROR(VLOOKUP(D30,Nomenclature!$B$2:$C$196,2,0),"") ->  | H30: =IF(C30="",0,IF(SUMIFS($G$5:G30,$C$5:C30,C30)-SUMIFS($I$4:I29,$C$4:C29,C30)<0,0,SUMIFS($G$5:G30,$C$5:C30,C30)-SUMIFS($I$4:I29,$C$4:C29,C30))) -> 0 | J30: =IF(C30="",0,IF(C30=$C$4,SUMIFS($I$4:I29,$C$4:C29,C29),SUMIFS($I$4:I29,$C$4:C29,C30))) -> 0 | K30: 0
A31: 28 | C31: =IFERROR(VLOOKUP(D31,Nomenclature!$B$2:$C$196,2,0),"") ->  | H31: =IF(C31="",0,IF(SUMIFS($G$5:G31,$C$5:C31,C31)-SUMIFS($I$4:I30,$C$4:C30,C31)<0,0,SUMIFS($G$5:G31,$C$5:C31,C31)-SUMIFS($I$4:I30,$C$4:C30,C31))) -> 0 | J31: =IF(C31="",0,IF(C31=$C$4,SUMIFS($I$4:I30,$C$4:C30,C30),SUMIFS($I$4:I30,$C$4:C30,C31))) -> 0 | K31: 0 | O31: الصنف الفرعي | S31: =IF(IFERROR(VLOOKUP(N1,A4:L103,3,0),"انتبه خطأ")=S29,"",IFERROR(VLOOKUP(N1,A4:L103,3,0),"انتبه خطأ")) ->  | W31: =IF(S31="","",VLOOKUP(N1,A4:L103,8,0)) ->  | AA31: =IF(S31="","",VLOOKUP(N1,A4:L103,10,0)) ->  | AE31: =IF(S31="","",W31-AA31) ->  | AI31: =IF(S31="","",VLOOKUP(N1,A4:L103,9,0)) ->  | AM31: =IF(S31="","",IF((AE31-AI31)<0,"رصيد غير كاف",AE31-AI31)) -> 
A32: 29 | C32: =IFERROR(VLOOKUP(D32,Nomenclature!$B$2:$C$196,2,0),"") ->  | H32: =IF(C32="",0,IF(SUMIFS($G$5:G32,$C$5:C32,C32)-SUMIFS($I$4:I31,$C$4:C31,C32)<0,0,SUMIFS($G$5:G32,$C$5:C32,C32)-SUMIFS($I$4:I31,$C$4:C31,C32))) -> 0 | J32: =IF(C32="",0,IF(C32=$C$4,SUMIFS($I$4:I31,$C$4:C31,C31),SUMIFS($I$4:I31,$C$4:C31,C32))) -> 0 | K32: 0
A33: 30 | C33: =IFERROR(VLOOKUP(D33,Nomenclature!$B$2:$C$196,2,0),"") ->  | H33: =IF(C33="",0,IF(SUMIFS($G$5:G33,$C$5:C33,C33)-SUMIFS($I$4:I32,$C$4:C32,C33)<0,0,SUMIFS($G$5:G33,$C$5:C33,C33)-SUMIFS($I$4:I32,$C$4:C32,C33))) -> 0 | J33: =IF(C33="",0,IF(C33=$C$4,SUMIFS($I$4:I32,$C$4:C32,C32),SUMIFS($I$4:I32,$C$4:C32,C33))) -> 0 | K33: 0
A34: 31 | C34: =IFERROR(VLOOKUP(D34,Nomenclature!$B$2:$C$196,2,0),"") ->  | H34: =IF(C34="",0,IF(SUMIFS($G$5:G34,$C$5:C34,C34)-SUMIFS($I$4:I33,$C$4:C33,C34)<0,0,SUMIFS($G$5:G34,$C$5:C34,C34)-SUMIFS($I$4:I33,$C$4:C33,C34))) -> 0 | J34: =IF(C34="",0,IF(C34=$C$4,SUMIFS($I$4:I33,$C$4:C33,C33),SUMIFS($I$4:I33,$C$4:C33,C34))) -> 0 | K34: 0 | O34: موضوع الالتزام:
A35: 32 | C35: =IFERROR(VLOOKUP(D35,Nomenclature!$B$2:$C$196,2,0),"") ->  | H35: =IF(C35="",0,IF(SUMIFS($G$5:G35,$C$5:C35,C35)-SUMIFS($I$4:I34,$C$4:C34,C35)<0,0,SUMIFS($G$5:G35,$C$5:C35,C35)-SUMIFS($I$4:I34,$C$4:C34,C35))) -> 0 | J35: =IF(C35="",0,IF(C35=$C$4,SUMIFS($I$4:I34,$C$4:C34,C34),SUMIFS($I$4:I34,$C$4:C34,C35))) -> 0 | K35: 0 | O35: =IF(VLOOKUP(N1,A4:L203,5,0)=0,"",IFERROR(VLOOKUP(N1,A4:L203,5,0),"انتبه خطأ")) -> تكفل برخصة الالتزام المفتوحة لسنة 2023.
A36: 33 | C36: =IFERROR(VLOOKUP(D36,Nomenclature!$B$2:$C$196,2,0),"") ->  | H36: =IF(C36="",0,IF(SUMIFS($G$5:G36,$C$5:C36,C36)-SUMIFS($I$4:I35,$C$4:C35,C36)<0,0,SUMIFS($G$5:G36,$C$5:C36,C36)-SUMIFS($I$4:I35,$C$4:C35,C36))) -> 0 | J36: =IF(C36="",0,IF(C36=$C$4,SUMIFS($I$4:I35,$C$4:C35,C35),SUMIFS($I$4:I35,$C$4:C35,C36))) -> 0 | K36: 0
A37: 34 | C37: =IFERROR(VLOOKUP(D37,Nomenclature!$B$2:$C$196,2,0),"") ->  | H37: =IF(C37="",0,IF(SUMIFS($G$5:G37,$C$5:C37,C37)-SUMIFS($I$4:I36,$C$4:C36,C37)<0,0,SUMIFS($G$5:G37,$C$5:C37,C37)-SUMIFS($I$4:I36,$C$4:C36,C37))) -> 0 | J37: =IF(C37="",0,IF(C37=$C$4,SUMIFS($I$4:I36,$C$4:C36,C36),SUMIFS($I$4:I36,$C$4:C36,C37))) -> 0 | K37: 0
A38: 35 | C38: =IFERROR(VLOOKUP(D38,Nomenclature!$B$2:$C$196,2,0),"") ->  | H38: =IF(C38="",0,IF(SUMIFS($G$5:G38,$C$5:C38,C38)-SUMIFS($I$4:I37,$C$4:C37,C38)<0,0,SUMIFS($G$5:G38,$C$5:C38,C38)-SUMIFS($I$4:I37,$C$4:C37,C38))) -> 0 | J38: =IF(C38="",0,IF(C38=$C$4,SUMIFS($I$4:I37,$C$4:C37,C37),SUMIFS($I$4:I37,$C$4:C37,C38))) -> 0 | K38: 0
A39: 36 | C39: =IFERROR(VLOOKUP(D39,Nomenclature!$B$2:$C$196,2,0),"") ->  | H39: =IF(C39="",0,IF(SUMIFS($G$5:G39,$C$5:C39,C39)-SUMIFS($I$4:I38,$C$4:C38,C39)<0,0,SUMIFS($G$5:G39,$C$5:C39,C39)-SUMIFS($I$4:I38,$C$4:C38,C39))) -> 0 | J39: =IF(C39="",0,IF(C39=$C$4,SUMIFS($I$4:I38,$C$4:C38,C38),SUMIFS($I$4:I38,$C$4:C38,C39))) -> 0 | K39: 0
A40: 37 | C40: =IFERROR(VLOOKUP(D40,Nomenclature!$B$2:$C$196,2,0),"") ->  | H40: =IF(C40="",0,IF(SUMIFS($G$5:G40,$C$5:C40,C40)-SUMIFS($I$4:I39,$C$4:C39,C40)<0,0,SUMIFS($G$5:G40,$C$5:C40,C40)-SUMIFS($I$4:I39,$C$4:C39,C40))) -> 0 | J40: =IF(C40="",0,IF(C40=$C$4,SUMIFS($I$4:I39,$C$4:C39,C39),SUMIFS($I$4:I39,$C$4:C39,C40))) -> 0 | K40: 0 | O40: المبلغ بالحروف: | S40: =IFERROR(arretera(AI31),"") -> 
A41: 38 | C41: =IFERROR(VLOOKUP(D41,Nomenclature!$B$2:$C$196,2,0),"") ->  | H41: =IF(C41="",0,IF(SUMIFS($G$5:G41,$C$5:C41,C41)-SUMIFS($I$4:I40,$C$4:C40,C41)<0,0,SUMIFS($G$5:G41,$C$5:C41,C41)-SUMIFS($I$4:I40,$C$4:C40,C41))) -> 0 | J41: =IF(C41="",0,IF(C41=$C$4,SUMIFS($I$4:I40,$C$4:C40,C40),SUMIFS($I$4:I40,$C$4:C40,C41))) -> 0 | K41: 0
A42: 39 | C42: =IFERROR(VLOOKUP(D42,Nomenclature!$B$2:$C$196,2,0),"") ->  | H42: =IF(C42="",0,IF(SUMIFS($G$5:G42,$C$5:C42,C42)-SUMIFS($I$4:I41,$C$4:C41,C42)<0,0,SUMIFS($G$5:G42,$C$5:C42,C42)-SUMIFS($I$4:I41,$C$4:C41,C42))) -> 0 | J42: =IF(C42="",0,IF(C42=$C$4,SUMIFS($I$4:I41,$C$4:C41,C41),SUMIFS($I$4:I41,$C$4:C41,C42))) -> 0 | K42: 0
A43: 40 | C43: =IFERROR(VLOOKUP(D43,Nomenclature!$B$2:$C$196,2,0),"") ->  | H43: =IF(C43="",0,IF(SUMIFS($G$5:G43,$C$5:C43,C43)-SUMIFS($I$4:I42,$C$4:C42,C43)<0,0,SUMIFS($G$5:G43,$C$5:C43,C43)-SUMIFS($I$4:I42,$C$4:C42,C43))) -> 0 | J43: =IF(C43="",0,IF(C43=$C$4,SUMIFS($I$4:I42,$C$4:C42,C42),SUMIFS($I$4:I42,$C$4:C42,C43))) -> 0 | K43: 0 | O43: إطار مخصص للمراقب الميزانياتي | AC43: إطار مخصص للآمر بالصرف
A44: 41 | C44: =IFERROR(VLOOKUP(D44,Nomenclature!$B$2:$C$196,2,0),"") ->  | H44: =IF(C44="",0,IF(SUMIFS($G$5:G44,$C$5:C44,C44)-SUMIFS($I$4:I43,$C$4:C43,C44)<0,0,SUMIFS($G$5:G44,$C$5:C44,C44)-SUMIFS($I$4:I43,$C$4:C43,C44))) -> 0 | J44: =IF(C44="",0,IF(C44=$C$4,SUMIFS($I$4:I43,$C$4:C43,C43),SUMIFS($I$4:I43,$C$4:C43,C44))) -> 0 | K44: 0
A45: 42 | C45: =IFERROR(VLOOKUP(D45,Nomenclature!$B$2:$C$196,2,0),"") ->  | H45: =IF(C45="",0,IF(SUMIFS($G$5:G45,$C$5:C45,C45)-SUMIFS($I$4:I44,$C$4:C44,C45)<0,0,SUMIFS($G$5:G45,$C$5:C45,C45)-SUMIFS($I$4:I44,$C$4:C44,C45))) -> 0 | J45: =IF(C45="",0,IF(C45=$C$4,SUMIFS($I$4:I44,$C$4:C44,C44),SUMIFS($I$4:I44,$C$4:C44,C45))) -> 0 | K45: 0 | O45: رقم التأشيرة: | AD45: ختم
A46: 43 | C46: =IFERROR(VLOOKUP(D46,Nomenclature!$B$2:$C$196,2,0),"") ->  | H46: =IF(C46="",0,IF(SUMIFS($G$5:G46,$C$5:C46,C46)-SUMIFS($I$4:I45,$C$4:C45,C46)<0,0,SUMIFS($G$5:G46,$C$5:C46,C46)-SUMIFS($I$4:I45,$C$4:C45,C46))) -> 0 | J46: =IF(C46="",0,IF(C46=$C$4,SUMIFS($I$4:I45,$C$4:C45,C45),SUMIFS($I$4:I45,$C$4:C45,C46))) -> 0 | K46: 0
A47: 44 | C47: =IFERROR(VLOOKUP(D47,Nomenclature!$B$2:$C$196,2,0),"") ->  | H47: =IF(C47="",0,IF(SUMIFS($G$5:G47,$C$5:C47,C47)-SUMIFS($I$4:I46,$C$4:C46,C47)<0,0,SUMIFS($G$5:G47,$C$5:C47,C47)-SUMIFS($I$4:I46,$C$4:C46,C47))) -> 0 | J47: =IF(C47="",0,IF(C47=$C$4,SUMIFS($I$4:I46,$C$4:C46,C46),SUMIFS($I$4:I46,$C$4:C46,C47))) -> 0 | K47: 0 | O47: تاريخ التأشيرة:
A48: 45 | C48: =IFERROR(VLOOKUP(D48,Nomenclature!$B$2:$C$196,2,0),"") ->  | H48: =IF(C48="",0,IF(SUMIFS($G$5:G48,$C$5:C48,C48)-SUMIFS($I$4:I47,$C$4:C47,C48)<0,0,SUMIFS($G$5:G48,$C$5:C48,C48)-SUMIFS($I$4:I47,$C$4:C47,C48))) -> 0 | J48: =IF(C48="",0,IF(C48=$C$4,SUMIFS($I$4:I47,$C$4:C47,C47),SUMIFS($I$4:I47,$C$4:C47,C48))) -> 0 | K48: 0 | AD48: امضاء
A49: 46 | C49: =IFERROR(VLOOKUP(D49,Nomenclature!$B$2:$C$196,2,0),"") ->  | H49: =IF(C49="",0,IF(SUMIFS($G$5:G49,$C$5:C49,C49)-SUMIFS($I$4:I48,$C$4:C48,C49)<0,0,SUMIFS($G$5:G49,$C$5:C49,C49)-SUMIFS($I$4:I48,$C$4:C48,C49))) -> 0 | J49: =IF(C49="",0,IF(C49=$C$4,SUMIFS($I$4:I48,$C$4:C48,C48),SUMIFS($I$4:I48,$C$4:C48,C49))) -> 0 | K49: 0
A50: 47 | C50: =IFERROR(VLOOKUP(D50,Nomenclature!$B$2:$C$196,2,0),"") ->  | H50: =IF(C50="",0,IF(SUMIFS($G$5:G50,$C$5:C50,C50)-SUMIFS($I$4:I49,$C$4:C49,C50)<0,0,SUMIFS($G$5:G50,$C$5:C50,C50)-SUMIFS($I$4:I49,$C$4:C49,C50))) -> 0 | J50: =IF(C50="",0,IF(C50=$C$4,SUMIFS($I$4:I49,$C$4:C49,C49),SUMIFS($I$4:I49,$C$4:C49,C50))) -> 0 | K50: 0
A51: 48 | C51: =IFERROR(VLOOKUP(D51,Nomenclature!$B$2:$C$196,2,0),"") ->  | H51: =IF(C51="",0,IF(SUMIFS($G$5:G51,$C$5:C51,C51)-SUMIFS($I$4:I50,$C$4:C50,C51)<0,0,SUMIFS($G$5:G51,$C$5:C51,C51)-SUMIFS($I$4:I50,$C$4:C50,C51))) -> 0 | J51: =IF(C51="",0,IF(C51=$C$4,SUMIFS($I$4:I50,$C$4:C50,C50),SUMIFS($I$4:I50,$C$4:C50,C51))) -> 0 | K51: 0 | P51: =AD48 -> امضاء | X51: =AD45 -> ختم
A52: 49 | C52: =IFERROR(VLOOKUP(D52,Nomenclature!$B$2:$C$196,2,0),"") ->  | H52: =IF(C52="",0,IF(SUMIFS($G$5:G52,$C$5:C52,C52)-SUMIFS($I$4:I51,$C$4:C51,C52)<0,0,SUMIFS($G$5:G52,$C$5:C52,C52)-SUMIFS($I$4:I51,$C$4:C51,C52))) -> 0 | J52: =IF(C52="",0,IF(C52=$C$4,SUMIFS($I$4:I51,$C$4:C51,C51),SUMIFS($I$4:I51,$C$4:C51,C52))) -> 0 | K52: 0
A53: 50 | C53: =IFERROR(VLOOKUP(D53,Nomenclature!$B$2:$C$196,2,0),"") ->  | H53: =IF(C53="",0,IF(SUMIFS($G$5:G53,$C$5:C53,C53)-SUMIFS($I$4:I52,$C$4:C52,C53)<0,0,SUMIFS($G$5:G53,$C$5:C53,C53)-SUMIFS($I$4:I52,$C$4:C52,C53))) -> 0 | J53: =IF(C53="",0,IF(C53=$C$4,SUMIFS($I$4:I52,$C$4:C52,C52),SUMIFS($I$4:I52,$C$4:C52,C53))) -> 0 | K53: 0
A54: 51 | C54: =IFERROR(VLOOKUP(D54,Nomenclature!$B$2:$C$196,2,0),"") ->  | H54: =IF(C54="",0,IF(SUMIFS($G$5:G54,$C$5:C54,C54)-SUMIFS($I$4:I53,$C$4:C53,C54)<0,0,SUMIFS($G$5:G54,$C$5:C54,C54)-SUMIFS($I$4:I53,$C$4:C53,C54))) -> 0 | J54: =IF(C54="",0,IF(C54=$C$4,SUMIFS($I$4:I53,$C$4:C53,C53),SUMIFS($I$4:I53,$C$4:C53,C54))) -> 0 | K54: 0
A55: 52 | C55: =IFERROR(VLOOKUP(D55,Nomenclature!$B$2:$C$196,2,0),"") ->  | H55: =IF(C55="",0,IF(SUMIFS($G$5:G55,$C$5:C55,C55)-SUMIFS($I$4:I54,$C$4:C54,C55)<0,0,SUMIFS($G$5:G55,$C$5:C55,C55)-SUMIFS($I$4:I54,$C$4:C54,C55))) -> 0 | J55: =IF(C55="",0,IF(C55=$C$4,SUMIFS($I$4:I54,$C$4:C54,C54),SUMIFS($I$4:I54,$C$4:C54,C55))) -> 0 | K55: 0
A56: 53 | C56: =IFERROR(VLOOKUP(D56,Nomenclature!$B$2:$C$196,2,0),"") ->  | H56: =IF(C56="",0,IF(SUMIFS($G$5:G56,$C$5:C56,C56)-SUMIFS($I$4:I55,$C$4:C55,C56)<0,0,SUMIFS($G$5:G56,$C$5:C56,C56)-SUMIFS($I$4:I55,$C$4:C55,C56))) -> 0 | J56: =IF(C56="",0,IF(C56=$C$4,SUMIFS($I$4:I55,$C$4:C55,C55),SUMIFS($I$4:I55,$C$4:C55,C56))) -> 0 | K56: 0
A57: 54 | C57: =IFERROR(VLOOKUP(D57,Nomenclature!$B$2:$C$196,2,0),"") ->  | H57: =IF(C57="",0,IF(SUMIFS($G$5:G57,$C$5:C57,C57)-SUMIFS($I$4:I56,$C$4:C56,C57)<0,0,SUMIFS($G$5:G57,$C$5:C57,C57)-SUMIFS($I$4:I56,$C$4:C56,C57))) -> 0 | J57: =IF(C57="",0,IF(C57=$C$4,SUMIFS($I$4:I56,$C$4:C56,C56),SUMIFS($I$4:I56,$C$4:C56,C57))) -> 0 | K57: 0
A58: 55 | C58: =IFERROR(VLOOKUP(D58,Nomenclature!$B$2:$C$196,2,0),"") ->  | H58: =IF(C58="",0,IF(SUMIFS($G$5:G58,$C$5:C58,C58)-SUMIFS($I$4:I57,$C$4:C57,C58)<0,0,SUMIFS($G$5:G58,$C$5:C58,C58)-SUMIFS($I$4:I57,$C$4:C57,C58))) -> 0 | J58: =IF(C58="",0,IF(C58=$C$4,SUMIFS($I$4:I57,$C$4:C57,C57),SUMIFS($I$4:I57,$C$4:C57,C58))) -> 0 | K58: 0
A59: 56 | C59: =IFERROR(VLOOKUP(D59,Nomenclature!$B$2:$C$196,2,0),"") ->  | H59: =IF(C59="",0,IF(SUMIFS($G$5:G59,$C$5:C59,C59)-SUMIFS($I$4:I58,$C$4:C58,C59)<0,0,SUMIFS($G$5:G59,$C$5:C59,C59)-SUMIFS($I$4:I58,$C$4:C58,C59))) -> 0 | J59: =IF(C59="",0,IF(C59=$C$4,SUMIFS($I$4:I58,$C$4:C58,C58),SUMIFS($I$4:I58,$C$4:C58,C59))) -> 0 | K59: 0
A60: 57 | C60: =IFERROR(VLOOKUP(D60,Nomenclature!$B$2:$C$196,2,0),"") ->  | H60: =IF(C60="",0,IF(SUMIFS($G$5:G60,$C$5:C60,C60)-SUMIFS($I$4:I59,$C$4:C59,C60)<0,0,SUMIFS($G$5:G60,$C$5:C60,C60)-SUMIFS($I$4:I59,$C$4:C59,C60))) -> 0 | J60: =IF(C60="",0,IF(C60=$C$4,SUMIFS($I$4:I59,$C$4:C59,C59),SUMIFS($I$4:I59,$C$4:C59,C60))) -> 0 | K60: 0
A61: 58 | C61: =IFERROR(VLOOKUP(D61,Nomenclature!$B$2:$C$196,2,0),"") ->  | H61: =IF(C61="",0,IF(SUMIFS($G$5:G61,$C$5:C61,C61)-SUMIFS($I$4:I60,$C$4:C60,C61)<0,0,SUMIFS($G$5:G61,$C$5:C61,C61)-SUMIFS($I$4:I60,$C$4:C60,C61))) -> 0 | J61: =IF(C61="",0,IF(C61=$C$4,SUMIFS($I$4:I60,$C$4:C60,C60),SUMIFS($I$4:I60,$C$4:C60,C61))) -> 0 | K61: 0
A62: 59 | C62: =IFERROR(VLOOKUP(D62,Nomenclature!$B$2:$C$196,2,0),"") ->  | H62: =IF(C62="",0,IF(SUMIFS($G$5:G62,$C$5:C62,C62)-SUMIFS($I$4:I61,$C$4:C61,C62)<0,0,SUMIFS($G$5:G62,$C$5:C62,C62)-SUMIFS($I$4:I61,$C$4:C61,C62))) -> 0 | J62: =IF(C62="",0,IF(C62=$C$4,SUMIFS($I$4:I61,$C$4:C61,C61),SUMIFS($I$4:I61,$C$4:C61,C62))) -> 0 | K62: 0
A63: 60 | C63: =IFERROR(VLOOKUP(D63,Nomenclature!$B$2:$C$196,2,0),"") ->  | H63: =IF(C63="",0,IF(SUMIFS($G$5:G63,$C$5:C63,C63)-SUMIFS($I$4:I62,$C$4:C62,C63)<0,0,SUMIFS($G$5:G63,$C$5:C63,C63)-SUMIFS($I$4:I62,$C$4:C62,C63))) -> 0 | J63: =IF(C63="",0,IF(C63=$C$4,SUMIFS($I$4:I62,$C$4:C62,C62),SUMIFS($I$4:I62,$C$4:C62,C63))) -> 0 | K63: 0
A64: 61 | C64: =IFERROR(VLOOKUP(D64,Nomenclature!$B$2:$C$196,2,0),"") ->  | H64: =IF(C64="",0,IF(SUMIFS($G$5:G64,$C$5:C64,C64)-SUMIFS($I$4:I63,$C$4:C63,C64)<0,0,SUMIFS($G$5:G64,$C$5:C64,C64)-SUMIFS($I$4:I63,$C$4:C63,C64))) -> 0 | J64: =IF(C64="",0,IF(C64=$C$4,SUMIFS($I$4:I63,$C$4:C63,C63),SUMIFS($I$4:I63,$C$4:C63,C64))) -> 0 | K64: 0
A65: 62 | C65: =IFERROR(VLOOKUP(D65,Nomenclature!$B$2:$C$196,2,0),"") ->  | H65: =IF(C65="",0,IF(SUMIFS($G$5:G65,$C$5:C65,C65)-SUMIFS($I$4:I64,$C$4:C64,C65)<0,0,SUMIFS($G$5:G65,$C$5:C65,C65)-SUMIFS($I$4:I64,$C$4:C64,C65))) -> 0 | J65: =IF(C65="",0,IF(C65=$C$4,SUMIFS($I$4:I64,$C$4:C64,C64),SUMIFS($I$4:I64,$C$4:C64,C65))) -> 0 | K65: 0
A66: 63 | C66: =IFERROR(VLOOKUP(D66,Nomenclature!$B$2:$C$196,2,0),"") ->  | H66: =IF(C66="",0,IF(SUMIFS($G$5:G66,$C$5:C66,C66)-SUMIFS($I$4:I65,$C$4:C65,C66)<0,0,SUMIFS($G$5:G66,$C$5:C66,C66)-SUMIFS($I$4:I65,$C$4:C65,C66))) -> 0 | J66: =IF(C66="",0,IF(C66=$C$4,SUMIFS($I$4:I65,$C$4:C65,C65),SUMIFS($I$4:I65,$C$4:C65,C66))) -> 0 | K66: 0
A67: 64 | C67: =IFERROR(VLOOKUP(D67,Nomenclature!$B$2:$C$196,2,0),"") ->  | H67: =IF(C67="",0,IF(SUMIFS($G$5:G67,$C$5:C67,C67)-SUMIFS($I$4:I66,$C$4:C66,C67)<0,0,SUMIFS($G$5:G67,$C$5:C67,C67)-SUMIFS($I$4:I66,$C$4:C66,C67))) -> 0 | J67: =IF(C67="",0,IF(C67=$C$4,SUMIFS($I$4:I66,$C$4:C66,C66),SUMIFS($I$4:I66,$C$4:C66,C67))) -> 0 | K67: 0
A68: 65 | C68: =IFERROR(VLOOKUP(D68,Nomenclature!$B$2:$C$196,2,0),"") ->  | H68: =IF(C68="",0,IF(SUMIFS($G$5:G68,$C$5:C68,C68)-SUMIFS($I$4:I67,$C$4:C67,C68)<0,0,SUMIFS($G$5:G68,$C$5:C68,C68)-SUMIFS($I$4:I67,$C$4:C67,C68))) -> 0 | J68: =IF(C68="",0,IF(C68=$C$4,SUMIFS($I$4:I67,$C$4:C67,C67),SUMIFS($I$4:I67,$C$4:C67,C68))) -> 0 | K68: =IF(C68="",0,H68-I68) -> 0
A69: 66 | C69: =IFERROR(VLOOKUP(D69,Nomenclature!$B$2:$C$196,2,0),"") ->  | H69: =IF(C69="",0,IF(SUMIFS($G$5:G69,$C$5:C69,C69)-SUMIFS($I$4:I68,$C$4:C68,C69)<0,0,SUMIFS($G$5:G69,$C$5:C69,C69)-SUMIFS($I$4:I68,$C$4:C68,C69))) -> 0 | J69: =IF(C69="",0,IF(C69=$C$4,SUMIFS($I$4:I68,$C$4:C68,C68),SUMIFS($I$4:I68,$C$4:C68,C69))) -> 0 | K69: 0
A70: 67 | C70: =IFERROR(VLOOKUP(D70,Nomenclature!$B$2:$C$196,2,0),"") ->  | H70: =IF(C70="",0,IF(SUMIFS($G$5:G70,$C$5:C70,C70)-SUMIFS($I$4:I69,$C$4:C69,C70)<0,0,SUMIFS($G$5:G70,$C$5:C70,C70)-SUMIFS($I$4:I69,$C$4:C69,C70))) -> 0 | J70: =IF(C70="",0,IF(C70=$C$4,SUMIFS($I$4:I69,$C$4:C69,C69),SUMIFS($I$4:I69,$C$4:C69,C70))) -> 0 | K70: 0
A71: 68 | C71: =IFERROR(VLOOKUP(D71,Nomenclature!$B$2:$C$196,2,0),"") ->  | H71: =IF(C71="",0,IF(SUMIFS($G$5:G71,$C$5:C71,C71)-SUMIFS($I$4:I70,$C$4:C70,C71)<0,0,SUMIFS($G$5:G71,$C$5:C71,C71)-SUMIFS($I$4:I70,$C$4:C70,C71))) -> 0 | J71: =IF(C71="",0,IF(C71=$C$4,SUMIFS($I$4:I70,$C$4:C70,C70),SUMIFS($I$4:I70,$C$4:C70,C71))) -> 0 | K71: 0
A72: 69 | C72: =IFERROR(VLOOKUP(D72,Nomenclature!$B$2:$C$196,2,0),"") ->  | H72: =IF(C72="",0,IF(SUMIFS($G$5:G72,$C$5:C72,C72)-SUMIFS($I$4:I71,$C$4:C71,C72)<0,0,SUMIFS($G$5:G72,$C$5:C72,C72)-SUMIFS($I$4:I71,$C$4:C71,C72))) -> 0 | J72: =IF(C72="",0,IF(C72=$C$4,SUMIFS($I$4:I71,$C$4:C71,C71),SUMIFS($I$4:I71,$C$4:C71,C72))) -> 0 | K72: 0
A73: 70 | C73: =IFERROR(VLOOKUP(D73,Nomenclature!$B$2:$C$196,2,0),"") ->  | H73: =IF(C73="",0,IF(SUMIFS($G$5:G73,$C$5:C73,C73)-SUMIFS($I$4:I72,$C$4:C72,C73)<0,0,SUMIFS($G$5:G73,$C$5:C73,C73)-SUMIFS($I$4:I72,$C$4:C72,C73))) -> 0 | J73: =IF(C73="",0,IF(C73=$C$4,SUMIFS($I$4:I72,$C$4:C72,C72),SUMIFS($I$4:I72,$C$4:C72,C73))) -> 0 | K73: 0
A74: 71 | C74: =IFERROR(VLOOKUP(D74,Nomenclature!$B$2:$C$196,2,0),"") ->  | H74: =IF(C74="",0,IF(SUMIFS($G$5:G74,$C$5:C74,C74)-SUMIFS($I$4:I73,$C$4:C73,C74)<0,0,SUMIFS($G$5:G74,$C$5:C74,C74)-SUMIFS($I$4:I73,$C$4:C73,C74))) -> 0 | J74: =IF(C74="",0,IF(C74=$C$4,SUMIFS($I$4:I73,$C$4:C73,C73),SUMIFS($I$4:I73,$C$4:C73,C74))) -> 0 | K74: 0
A75: 72 | C75: =IFERROR(VLOOKUP(D75,Nomenclature!$B$2:$C$196,2,0),"") ->  | H75: =IF(C75="",0,IF(SUMIFS($G$5:G75,$C$5:C75,C75)-SUMIFS($I$4:I74,$C$4:C74,C75)<0,0,SUMIFS($G$5:G75,$C$5:C75,C75)-SUMIFS($I$4:I74,$C$4:C74,C75))) -> 0 | J75: =IF(C75="",0,IF(C75=$C$4,SUMIFS($I$4:I74,$C$4:C74,C74),SUMIFS($I$4:I74,$C$4:C74,C75))) -> 0 | K75: 0
A76: 73 | C76: =IFERROR(VLOOKUP(D76,Nomenclature!$B$2:$C$196,2,0),"") ->  | H76: =IF(C76="",0,IF(SUMIFS($G$5:G76,$C$5:C76,C76)-SUMIFS($I$4:I75,$C$4:C75,C76)<0,0,SUMIFS($G$5:G76,$C$5:C76,C76)-SUMIFS($I$4:I75,$C$4:C75,C76))) -> 0 | J76: =IF(C76="",0,IF(C76=$C$4,SUMIFS($I$4:I75,$C$4:C75,C75),SUMIFS($I$4:I75,$C$4:C75,C76))) -> 0 | K76: 0
A77: 74 | C77: =IFERROR(VLOOKUP(D77,Nomenclature!$B$2:$C$196,2,0),"") ->  | H77: =IF(C77="",0,IF(SUMIFS($G$5:G77,$C$5:C77,C77)-SUMIFS($I$4:I76,$C$4:C76,C77)<0,0,SUMIFS($G$5:G77,$C$5:C77,C77)-SUMIFS($I$4:I76,$C$4:C76,C77))) -> 0 | J77: =IF(C77="",0,IF(C77=$C$4,SUMIFS($I$4:I76,$C$4:C76,C76),SUMIFS($I$4:I76,$C$4:C76,C77))) -> 0 | K77: 0
A78: 75 | C78: =IFERROR(VLOOKUP(D78,Nomenclature!$B$2:$C$196,2,0),"") ->  | H78: =IF(C78="",0,IF(SUMIFS($G$5:G78,$C$5:C78,C78)-SUMIFS($I$4:I77,$C$4:C77,C78)<0,0,SUMIFS($G$5:G78,$C$5:C78,C78)-SUMIFS($I$4:I77,$C$4:C77,C78))) -> 0 | J78: =IF(C78="",0,IF(C78=$C$4,SUMIFS($I$4:I77,$C$4:C77,C77),SUMIFS($I$4:I77,$C$4:C77,C78))) -> 0 | K78: 0
A79: 76 | C79: =IFERROR(VLOOKUP(D79,Nomenclature!$B$2:$C$196,2,0),"") ->  | H79: =IF(C79="",0,IF(SUMIFS($G$5:G79,$C$5:C79,C79)-SUMIFS($I$4:I78,$C$4:C78,C79)<0,0,SUMIFS($G$5:G79,$C$5:C79,C79)-SUMIFS($I$4:I78,$C$4:C78,C79))) -> 0 | J79: =IF(C79="",0,IF(C79=$C$4,SUMIFS($I$4:I78,$C$4:C78,C78),SUMIFS($I$4:I78,$C$4:C78,C79))) -> 0 | K79: 0
A80: 77 | C80: =IFERROR(VLOOKUP(D80,Nomenclature!$B$2:$C$196,2,0),"") ->  | H80: =IF(C80="",0,IF(SUMIFS($G$5:G80,$C$5:C80,C80)-SUMIFS($I$4:I79,$C$4:C79,C80)<0,0,SUMIFS($G$5:G80,$C$5:C80,C80)-SUMIFS($I$4:I79,$C$4:C79,C80))) -> 0 | J80: =IF(C80="",0,IF(C80=$C$4,SUMIFS($I$4:I79,$C$4:C79,C79),SUMIFS($I$4:I79,$C$4:C79,C80))) -> 0 | K80: 0
A81: 78 | C81: =IFERROR(VLOOKUP(D81,Nomenclature!$B$2:$C$196,2,0),"") ->  | H81: =IF(C81="",0,IF(SUMIFS($G$5:G81,$C$5:C81,C81)-SUMIFS($I$4:I80,$C$4:C80,C81)<0,0,SUMIFS($G$5:G81,$C$5:C81,C81)-SUMIFS($I$4:I80,$C$4:C80,C81))) -> 0 | J81: =IF(C81="",0,IF(C81=$C$4,SUMIFS($I$4:I80,$C$4:C80,C80),SUMIFS($I$4:I80,$C$4:C80,C81))) -> 0 | K81: 0
A82: 79 | C82: =IFERROR(VLOOKUP(D82,Nomenclature!$B$2:$C$196,2,0),"") ->  | H82: =IF(C82="",0,IF(SUMIFS($G$5:G82,$C$5:C82,C82)-SUMIFS($I$4:I81,$C$4:C81,C82)<0,0,SUMIFS($G$5:G82,$C$5:C82,C82)-SUMIFS($I$4:I81,$C$4:C81,C82))) -> 0 | J82: =IF(C82="",0,IF(C82=$C$4,SUMIFS($I$4:I81,$C$4:C81,C81),SUMIFS($I$4:I81,$C$4:C81,C82))) -> 0 | K82: 0
A83: 80 | C83: =IFERROR(VLOOKUP(D83,Nomenclature!$B$2:$C$196,2,0),"") ->  | H83: =IF(C83="",0,IF(SUMIFS($G$5:G83,$C$5:C83,C83)-SUMIFS($I$4:I82,$C$4:C82,C83)<0,0,SUMIFS($G$5:G83,$C$5:C83,C83)-SUMIFS($I$4:I82,$C$4:C82,C83))) -> 0 | J83: =IF(C83="",0,IF(C83=$C$4,SUMIFS($I$4:I82,$C$4:C82,C82),SUMIFS($I$4:I82,$C$4:C82,C83))) -> 0 | K83: 0
A84: 81 | C84: =IFERROR(VLOOKUP(D84,Nomenclature!$B$2:$C$196,2,0),"") ->  | H84: =IF(C84="",0,IF(SUMIFS($G$5:G84,$C$5:C84,C84)-SUMIFS($I$4:I83,$C$4:C83,C84)<0,0,SUMIFS($G$5:G84,$C$5:C84,C84)-SUMIFS($I$4:I83,$C$4:C83,C84))) -> 0 | J84: =IF(C84="",0,IF(C84=$C$4,SUMIFS($I$4:I83,$C$4:C83,C83),SUMIFS($I$4:I83,$C$4:C83,C84))) -> 0 | K84: 0
A85: 82 | C85: =IFERROR(VLOOKUP(D85,Nomenclature!$B$2:$C$196,2,0),"") ->  | H85: =IF(C85="",0,IF(SUMIFS($G$5:G85,$C$5:C85,C85)-SUMIFS($I$4:I84,$C$4:C84,C85)<0,0,SUMIFS($G$5:G85,$C$5:C85,C85)-SUMIFS($I$4:I84,$C$4:C84,C85))) -> 0 | J85: =IF(C85="",0,IF(C85=$C$4,SUMIFS($I$4:I84,$C$4:C84,C84),SUMIFS($I$4:I84,$C$4:C84,C85))) -> 0 | K85: 0
A86: 83 | C86: =IFERROR(VLOOKUP(D86,Nomenclature!$B$2:$C$196,2,0),"") ->  | H86: =IF(C86="",0,IF(SUMIFS($G$5:G86,$C$5:C86,C86)-SUMIFS($I$4:I85,$C$4:C85,C86)<0,0,SUMIFS($G$5:G86,$C$5:C86,C86)-SUMIFS($I$4:I85,$C$4:C85,C86))) -> 0 | J86: =IF(C86="",0,IF(C86=$C$4,SUMIFS($I$4:I85,$C$4:C85,C85),SUMIFS($I$4:I85,$C$4:C85,C86))) -> 0 | K86: 0
A87: 84 | C87: =IFERROR(VLOOKUP(D87,Nomenclature!$B$2:$C$196,2,0),"") ->  | H87: =IF(C87="",0,IF(SUMIFS($G$5:G87,$C$5:C87,C87)-SUMIFS($I$4:I86,$C$4:C86,C87)<0,0,SUMIFS($G$5:G87,$C$5:C87,C87)-SUMIFS($I$4:I86,$C$4:C86,C87))) -> 0 | J87: =IF(C87="",0,IF(C87=$C$4,SUMIFS($I$4:I86,$C$4:C86,C86),SUMIFS($I$4:I86,$C$4:C86,C87))) -> 0 | K87: 0
A88: 85 | C88: =IFERROR(VLOOKUP(D88,Nomenclature!$B$2:$C$196,2,0),"") ->  | H88: =IF(C88="",0,IF(SUMIFS($G$5:G88,$C$5:C88,C88)-SUMIFS($I$4:I87,$C$4:C87,C88)<0,0,SUMIFS($G$5:G88,$C$5:C88,C88)-SUMIFS($I$4:I87,$C$4:C87,C88))) -> 0 | J88: =IF(C88="",0,IF(C88=$C$4,SUMIFS($I$4:I87,$C$4:C87,C87),SUMIFS($I$4:I87,$C$4:C87,C88))) -> 0 | K88: 0
A89: 86 | C89: =IFERROR(VLOOKUP(D89,Nomenclature!$B$2:$C$196,2,0),"") ->  | H89: =IF(C89="",0,IF(SUMIFS($G$5:G89,$C$5:C89,C89)-SUMIFS($I$4:I88,$C$4:C88,C89)<0,0,SUMIFS($G$5:G89,$C$5:C89,C89)-SUMIFS($I$4:I88,$C$4:C88,C89))) -> 0 | J89: =IF(C89="",0,IF(C89=$C$4,SUMIFS($I$4:I88,$C$4:C88,C88),SUMIFS($I$4:I88,$C$4:C88,C89))) -> 0 | K89: 0
A90: 87 | C90: =IFERROR(VLOOKUP(D90,Nomenclature!$B$2:$C$196,2,0),"") ->  | H90: =IF(C90="",0,IF(SUMIFS($G$5:G90,$C$5:C90,C90)-SUMIFS($I$4:I89,$C$4:C89,C90)<0,0,SUMIFS($G$5:G90,$C$5:C90,C90)-SUMIFS($I$4:I89,$C$4:C89,C90))) -> 0 | J90: =IF(C90="",0,IF(C90=$C$4,SUMIFS($I$4:I89,$C$4:C89,C89),SUMIFS($I$4:I89,$C$4:C89,C90))) -> 0 | K90: 0
A91: 88 | C91: =IFERROR(VLOOKUP(D91,Nomenclature!$B$2:$C$196,2,0),"") ->  | H91: =IF(C91="",0,IF(SUMIFS($G$5:G91,$C$5:C91,C91)-SUMIFS($I$4:I90,$C$4:C90,C91)<0,0,SUMIFS($G$5:G91,$C$5:C91,C91)-SUMIFS($I$4:I90,$C$4:C90,C91))) -> 0 | J91: =IF(C91="",0,IF(C91=$C$4,SUMIFS($I$4:I90,$C$4:C90,C90),SUMIFS($I$4:I90,$C$4:C90,C91))) -> 0 | K91: 0
A92: 89 | C92: =IFERROR(VLOOKUP(D92,Nomenclature!$B$2:$C$196,2,0),"") ->  | H92: =IF(C92="",0,IF(SUMIFS($G$5:G92,$C$5:C92,C92)-SUMIFS($I$4:I91,$C$4:C91,C92)<0,0,SUMIFS($G$5:G92,$C$5:C92,C92)-SUMIFS($I$4:I91,$C$4:C91,C92))) -> 0 | J92: =IF(C92="",0,IF(C92=$C$4,SUMIFS($I$4:I91,$C$4:C91,C91),SUMIFS($I$4:I91,$C$4:C91,C92))) -> 0 | K92: 0
A93: 90 | C93: =IFERROR(VLOOKUP(D93,Nomenclature!$B$2:$C$196,2,0),"") ->  | H93: =IF(C93="",0,IF(SUMIFS($G$5:G93,$C$5:C93,C93)-SUMIFS($I$4:I92,$C$4:C92,C93)<0,0,SUMIFS($G$5:G93,$C$5:C93,C93)-SUMIFS($I$4:I92,$C$4:C92,C93))) -> 0 | J93: =IF(C93="",0,IF(C93=$C$4,SUMIFS($I$4:I92,$C$4:C92,C92),SUMIFS($I$4:I92,$C$4:C92,C93))) -> 0 | K93: 0
A94: 91 | C94: =IFERROR(VLOOKUP(D94,Nomenclature!$B$2:$C$196,2,0),"") ->  | H94: =IF(C94="",0,IF(SUMIFS($G$5:G94,$C$5:C94,C94)-SUMIFS($I$4:I93,$C$4:C93,C94)<0,0,SUMIFS($G$5:G94,$C$5:C94,C94)-SUMIFS($I$4:I93,$C$4:C93,C94))) -> 0 | J94: =IF(C94="",0,IF(C94=$C$4,SUMIFS($I$4:I93,$C$4:C93,C93),SUMIFS($I$4:I93,$C$4:C93,C94))) -> 0 | K94: 0
A95: 92 | C95: =IFERROR(VLOOKUP(D95,Nomenclature!$B$2:$C$196,2,0),"") ->  | H95: =IF(C95="",0,IF(SUMIFS($G$5:G95,$C$5:C95,C95)-SUMIFS($I$4:I94,$C$4:C94,C95)<0,0,SUMIFS($G$5:G95,$C$5:C95,C95)-SUMIFS($I$4:I94,$C$4:C94,C95))) -> 0 | J95: =IF(C95="",0,IF(C95=$C$4,SUMIFS($I$4:I94,$C$4:C94,C94),SUMIFS($I$4:I94,$C$4:C94,C95))) -> 0 | K95: 0
A96: 93 | C96: =IFERROR(VLOOKUP(D96,Nomenclature!$B$2:$C$196,2,0),"") ->  | H96: =IF(C96="",0,IF(SUMIFS($G$5:G96,$C$5:C96,C96)-SUMIFS($I$4:I95,$C$4:C95,C96)<0,0,SUMIFS($G$5:G96,$C$5:C96,C96)-SUMIFS($I$4:I95,$C$4:C95,C96))) -> 0 | J96: =IF(C96="",0,IF(C96=$C$4,SUMIFS($I$4:I95,$C$4:C95,C95),SUMIFS($I$4:I95,$C$4:C95,C96))) -> 0 | K96: 0
A97: 94 | C97: =IFERROR(VLOOKUP(D97,Nomenclature!$B$2:$C$196,2,0),"") ->  | H97: =IF(C97="",0,IF(SUMIFS($G$5:G97,$C$5:C97,C97)-SUMIFS($I$4:I96,$C$4:C96,C97)<0,0,SUMIFS($G$5:G97,$C$5:C97,C97)-SUMIFS($I$4:I96,$C$4:C96,C97))) -> 0 | J97: =IF(C97="",0,IF(C97=$C$4,SUMIFS($I$4:I96,$C$4:C96,C96),SUMIFS($I$4:I96,$C$4:C96,C97))) -> 0 | K97: 0
A98: 95 | C98: =IFERROR(VLOOKUP(D98,Nomenclature!$B$2:$C$196,2,0),"") ->  | H98: =IF(C98="",0,IF(SUMIFS($G$5:G98,$C$5:C98,C98)-SUMIFS($I$4:I97,$C$4:C97,C98)<0,0,SUMIFS($G$5:G98,$C$5:C98,C98)-SUMIFS($I$4:I97,$C$4:C97,C98))) -> 0 | J98: =IF(C98="",0,IF(C98=$C$4,SUMIFS($I$4:I97,$C$4:C97,C97),SUMIFS($I$4:I97,$C$4:C97,C98))) -> 0 | K98: 0
A99: 96 | C99: =IFERROR(VLOOKUP(D99,Nomenclature!$B$2:$C$196,2,0),"") ->  | H99: =IF(C99="",0,IF(SUMIFS($G$5:G99,$C$5:C99,C99)-SUMIFS($I$4:I98,$C$4:C98,C99)<0,0,SUMIFS($G$5:G99,$C$5:C99,C99)-SUMIFS($I$4:I98,$C$4:C98,C99))) -> 0 | J99: =IF(C99="",0,IF(C99=$C$4,SUMIFS($I$4:I98,$C$4:C98,C98),SUMIFS($I$4:I98,$C$4:C98,C99))) -> 0 | K99: 0
A100: 97 | C100: =IFERROR(VLOOKUP(D100,Nomenclature!$B$2:$C$196,2,0),"") ->  | H100: =IF(C100="",0,IF(SUMIFS($G$5:G100,$C$5:C100,C100)-SUMIFS($I$4:I99,$C$4:C99,C100)<0,0,SUMIFS($G$5:G100,$C$5:C100,C100)-SUMIFS($I$4:I99,$C$4:C99,C100))) -> 0 | J100: =IF(C100="",0,IF(C100=$C$4,SUMIFS($I$4:I99,$C$4:C99,C99),SUMIFS($I$4:I99,$C$4:C99,C100))) -> 0 | K100: 0
A101: 98 | C101: =IFERROR(VLOOKUP(D101,Nomenclature!$B$2:$C$196,2,0),"") ->  | H101: =IF(C101="",0,IF(SUMIFS($G$5:G101,$C$5:C101,C101)-SUMIFS($I$4:I100,$C$4:C100,C101)<0,0,SUMIFS($G$5:G101,$C$5:C101,C101)-SUMIFS($I$4:I100,$C$4:C100,C101))) -> 0 | J101: =IF(C101="",0,IF(C101=$C$4,SUMIFS($I$4:I100,$C$4:C100,C100),SUMIFS($I$4:I100,$C$4:C100,C101))) -> 0 | K101: 0
A102: 99 | C102: =IFERROR(VLOOKUP(D102,Nomenclature!$B$2:$C$196,2,0),"") ->  | H102: =IF(C102="",0,IF(SUMIFS($G$5:G102,$C$5:C102,C102)-SUMIFS($I$4:I101,$C$4:C101,C102)<0,0,SUMIFS($G$5:G102,$C$5:C102,C102)-SUMIFS($I$4:I101,$C$4:C101,C102))) -> 0 | J102: =IF(C102="",0,IF(C102=$C$4,SUMIFS($I$4:I101,$C$4:C101,C101),SUMIFS($I$4:I101,$C$4:C101,C102))) -> 0 | K102: 0
A103: 100 | C103: =IFERROR(VLOOKUP(D103,Nomenclature!$B$2:$C$196,2,0),"") ->  | H103: =IF(C103="",0,IF(SUMIFS($G$5:G103,$C$5:C103,C103)-SUMIFS($I$4:I102,$C$4:C102,C103)<0,0,SUMIFS($G$5:G103,$C$5:C103,C103)-SUMIFS($I$4:I102,$C$4:C102,C103))) -> 0 | J103: =IF(C103="",0,IF(C103=$C$4,SUMIFS($I$4:I102,$C$4:C102,C102),SUMIFS($I$4:I102,$C$4:C102,C103))) -> 0 | K103: 0
A104: 101 | C104: =IFERROR(VLOOKUP(D104,Nomenclature!$B$2:$C$196,2,0),"") ->  | H104: =IF(C104="",0,IF(SUMIFS($G$5:G104,$C$5:C104,C104)-SUMIFS($I$4:I103,$C$4:C103,C104)<0,0,SUMIFS($G$5:G104,$C$5:C104,C104)-SUMIFS($I$4:I103,$C$4:C103,C104))) -> 0 | J104: =IF(C104="",0,IF(C104=$C$4,SUMIFS($I$4:I103,$C$4:C103,C103),SUMIFS($I$4:I103,$C$4:C103,C104))) -> 0 | K104: 0
A105: 102 | C105: =IFERROR(VLOOKUP(D105,Nomenclature!$B$2:$C$196,2,0),"") ->  | H105: =IF(C105="",0,IF(SUMIFS($G$5:G105,$C$5:C105,C105)-SUMIFS($I$4:I104,$C$4:C104,C105)<0,0,SUMIFS($G$5:G105,$C$5:C105,C105)-SUMIFS($I$4:I104,$C$4:C104,C105))) -> 0 | J105: =IF(C105="",0,IF(C105=$C$4,SUMIFS($I$4:I104,$C$4:C104,C104),SUMIFS($I$4:I104,$C$4:C104,C105))) -> 0 | K105: 0
A106: 103 | C106: =IFERROR(VLOOKUP(D106,Nomenclature!$B$2:$C$196,2,0),"") ->  | H106: =IF(C106="",0,IF(SUMIFS($G$5:G106,$C$5:C106,C106)-SUMIFS($I$4:I105,$C$4:C105,C106)<0,0,SUMIFS($G$5:G106,$C$5:C106,C106)-SUMIFS($I$4:I105,$C$4:C105,C106))) -> 0 | J106: =IF(C106="",0,IF(C106=$C$4,SUMIFS($I$4:I105,$C$4:C105,C105),SUMIFS($I$4:I105,$C$4:C105,C106))) -> 0 | K106: 0
A107: 104 | C107: =IFERROR(VLOOKUP(D107,Nomenclature!$B$2:$C$196,2,0),"") ->  | H107: =IF(C107="",0,IF(SUMIFS($G$5:G107,$C$5:C107,C107)-SUMIFS($I$4:I106,$C$4:C106,C107)<0,0,SUMIFS($G$5:G107,$C$5:C107,C107)-SUMIFS($I$4:I106,$C$4:C106,C107))) -> 0 | J107: =IF(C107="",0,IF(C107=$C$4,SUMIFS($I$4:I106,$C$4:C106,C106),SUMIFS($I$4:I106,$C$4:C106,C107))) -> 0 | K107: 0
A108: 105 | C108: =IFERROR(VLOOKUP(D108,Nomenclature!$B$2:$C$196,2,0),"") ->  | H108: =IF(C108="",0,IF(SUMIFS($G$5:G108,$C$5:C108,C108)-SUMIFS($I$4:I107,$C$4:C107,C108)<0,0,SUMIFS($G$5:G108,$C$5:C108,C108)-SUMIFS($I$4:I107,$C$4:C107,C108))) -> 0 | J108: =IF(C108="",0,IF(C108=$C$4,SUMIFS($I$4:I107,$C$4:C107,C107),SUMIFS($I$4:I107,$C$4:C107,C108))) -> 0 | K108: 0
A109: 106 | C109: =IFERROR(VLOOKUP(D109,Nomenclature!$B$2:$C$196,2,0),"") ->  | H109: =IF(C109="",0,IF(SUMIFS($G$5:G109,$C$5:C109,C109)-SUMIFS($I$4:I108,$C$4:C108,C109)<0,0,SUMIFS($G$5:G109,$C$5:C109,C109)-SUMIFS($I$4:I108,$C$4:C108,C109))) -> 0 | J109: =IF(C109="",0,IF(C109=$C$4,SUMIFS($I$4:I108,$C$4:C108,C108),SUMIFS($I$4:I108,$C$4:C108,C109))) -> 0 | K109: 0
A110: 107 | C110: =IFERROR(VLOOKUP(D110,Nomenclature!$B$2:$C$196,2,0),"") ->  | H110: =IF(C110="",0,IF(SUMIFS($G$5:G110,$C$5:C110,C110)-SUMIFS($I$4:I109,$C$4:C109,C110)<0,0,SUMIFS($G$5:G110,$C$5:C110,C110)-SUMIFS($I$4:I109,$C$4:C109,C110))) -> 0 | J110: =IF(C110="",0,IF(C110=$C$4,SUMIFS($I$4:I109,$C$4:C109,C109),SUMIFS($I$4:I109,$C$4:C109,C110))) -> 0 | K110: 0
A111: 108 | C111: =IFERROR(VLOOKUP(D111,Nomenclature!$B$2:$C$196,2,0),"") ->  | H111: =IF(C111="",0,IF(SUMIFS($G$5:G111,$C$5:C111,C111)-SUMIFS($I$4:I110,$C$4:C110,C111)<0,0,SUMIFS($G$5:G111,$C$5:C111,C111)-SUMIFS($I$4:I110,$C$4:C110,C111))) -> 0 | J111: =IF(C111="",0,IF(C111=$C$4,SUMIFS($I$4:I110,$C$4:C110,C110),SUMIFS($I$4:I110,$C$4:C110,C111))) -> 0 | K111: 0
A112: 109 | C112: =IFERROR(VLOOKUP(D112,Nomenclature!$B$2:$C$196,2,0),"") ->  | H112: =IF(C112="",0,IF(SUMIFS($G$5:G112,$C$5:C112,C112)-SUMIFS($I$4:I111,$C$4:C111,C112)<0,0,SUMIFS($G$5:G112,$C$5:C112,C112)-SUMIFS($I$4:I111,$C$4:C111,C112))) -> 0 | J112: =IF(C112="",0,IF(C112=$C$4,SUMIFS($I$4:I111,$C$4:C111,C111),SUMIFS($I$4:I111,$C$4:C111,C112))) -> 0 | K112: 0
A113: 110 | C113: =IFERROR(VLOOKUP(D113,Nomenclature!$B$2:$C$196,2,0),"") ->  | H113: =IF(C113="",0,IF(SUMIFS($G$5:G113,$C$5:C113,C113)-SUMIFS($I$4:I112,$C$4:C112,C113)<0,0,SUMIFS($G$5:G113,$C$5:C113,C113)-SUMIFS($I$4:I112,$C$4:C112,C113))) -> 0 | J113: =IF(C113="",0,IF(C113=$C$4,SUMIFS($I$4:I112,$C$4:C112,C112),SUMIFS($I$4:I112,$C$4:C112,C113))) -> 0 | K113: 0
A114: 111 | C114: =IFERROR(VLOOKUP(D114,Nomenclature!$B$2:$C$196,2,0),"") ->  | H114: =IF(C114="",0,IF(SUMIFS($G$5:G114,$C$5:C114,C114)-SUMIFS($I$4:I113,$C$4:C113,C114)<0,0,SUMIFS($G$5:G114,$C$5:C114,C114)-SUMIFS($I$4:I113,$C$4:C113,C114))) -> 0 | J114: =IF(C114="",0,IF(C114=$C$4,SUMIFS($I$4:I113,$C$4:C113,C113),SUMIFS($I$4:I113,$C$4:C113,C114))) -> 0 | K114: 0
A115: 112 | C115: =IFERROR(VLOOKUP(D115,Nomenclature!$B$2:$C$196,2,0),"") ->  | H115: =IF(C115="",0,IF(SUMIFS($G$5:G115,$C$5:C115,C115)-SUMIFS($I$4:I114,$C$4:C114,C115)<0,0,SUMIFS($G$5:G115,$C$5:C115,C115)-SUMIFS($I$4:I114,$C$4:C114,C115))) -> 0 | J115: =IF(C115="",0,IF(C115=$C$4,SUMIFS($I$4:I114,$C$4:C114,C114),SUMIFS($I$4:I114,$C$4:C114,C115))) -> 0 | K115: 0
A116: 113 | C116: =IFERROR(VLOOKUP(D116,Nomenclature!$B$2:$C$196,2,0),"") ->  | H116: =IF(C116="",0,IF(SUMIFS($G$5:G116,$C$5:C116,C116)-SUMIFS($I$4:I115,$C$4:C115,C116)<0,0,SUMIFS($G$5:G116,$C$5:C116,C116)-SUMIFS($I$4:I115,$C$4:C115,C116))) -> 0 | J116: =IF(C116="",0,IF(C116=$C$4,SUMIFS($I$4:I115,$C$4:C115,C115),SUMIFS($I$4:I115,$C$4:C115,C116))) -> 0 | K116: 0
A117: 114 | C117: =IFERROR(VLOOKUP(D117,Nomenclature!$B$2:$C$196,2,0),"") ->  | H117: =IF(C117="",0,IF(SUMIFS($G$5:G117,$C$5:C117,C117)-SUMIFS($I$4:I116,$C$4:C116,C117)<0,0,SUMIFS($G$5:G117,$C$5:C117,C117)-SUMIFS($I$4:I116,$C$4:C116,C117))) -> 0 | J117: =IF(C117="",0,IF(C117=$C$4,SUMIFS($I$4:I116,$C$4:C116,C116),SUMIFS($I$4:I116,$C$4:C116,C117))) -> 0 | K117: 0
A118: 115 | C118: =IFERROR(VLOOKUP(D118,Nomenclature!$B$2:$C$196,2,0),"") ->  | H118: =IF(C118="",0,IF(SUMIFS($G$5:G118,$C$5:C118,C118)-SUMIFS($I$4:I117,$C$4:C117,C118)<0,0,SUMIFS($G$5:G118,$C$5:C118,C118)-SUMIFS($I$4:I117,$C$4:C117,C118))) -> 0 | J118: =IF(C118="",0,IF(C118=$C$4,SUMIFS($I$4:I117,$C$4:C117,C117),SUMIFS($I$4:I117,$C$4:C117,C118))) -> 0 | K118: 0
A119: 116 | C119: =IFERROR(VLOOKUP(D119,Nomenclature!$B$2:$C$196,2,0),"") ->  | H119: =IF(C119="",0,IF(SUMIFS($G$5:G119,$C$5:C119,C119)-SUMIFS($I$4:I118,$C$4:C118,C119)<0,0,SUMIFS($G$5:G119,$C$5:C119,C119)-SUMIFS($I$4:I118,$C$4:C118,C119))) -> 0 | J119: =IF(C119="",0,IF(C119=$C$4,SUMIFS($I$4:I118,$C$4:C118,C118),SUMIFS($I$4:I118,$C$4:C118,C119))) -> 0 | K119: 0
A120: 117 | C120: =IFERROR(VLOOKUP(D120,Nomenclature!$B$2:$C$196,2,0),"") ->  | H120: =IF(C120="",0,IF(SUMIFS($G$5:G120,$C$5:C120,C120)-SUMIFS($I$4:I119,$C$4:C119,C120)<0,0,SUMIFS($G$5:G120,$C$5:C120,C120)-SUMIFS($I$4:I119,$C$4:C119,C120))) -> 0 | J120: =IF(C120="",0,IF(C120=$C$4,SUMIFS($I$4:I119,$C$4:C119,C119),SUMIFS($I$4:I119,$C$4:C119,C120))) -> 0 | K120: 0
A121: 118 | C121: =IFERROR(VLOOKUP(D121,Nomenclature!$B$2:$C$196,2,0),"") ->  | H121: =IF(C121="",0,IF(SUMIFS($G$5:G121,$C$5:C121,C121)-SUMIFS($I$4:I120,$C$4:C120,C121)<0,0,SUMIFS($G$5:G121,$C$5:C121,C121)-SUMIFS($I$4:I120,$C$4:C120,C121))) -> 0 | J121: =IF(C121="",0,IF(C121=$C$4,SUMIFS($I$4:I120,$C$4:C120,C120),SUMIFS($I$4:I120,$C$4:C120,C121))) -> 0 | K121: 0
A122: 119 | C122: =IFERROR(VLOOKUP(D122,Nomenclature!$B$2:$C$196,2,0),"") ->  | H122: =IF(C122="",0,IF(SUMIFS($G$5:G122,$C$5:C122,C122)-SUMIFS($I$4:I121,$C$4:C121,C122)<0,0,SUMIFS($G$5:G122,$C$5:C122,C122)-SUMIFS($I$4:I121,$C$4:C121,C122))) -> 0 | J122: =IF(C122="",0,IF(C122=$C$4,SUMIFS($I$4:I121,$C$4:C121,C121),SUMIFS($I$4:I121,$C$4:C121,C122))) -> 0 | K122: 0
A123: 120 | C123: =IFERROR(VLOOKUP(D123,Nomenclature!$B$2:$C$196,2,0),"") ->  | H123: =IF(C123="",0,IF(SUMIFS($G$5:G123,$C$5:C123,C123)-SUMIFS($I$4:I122,$C$4:C122,C123)<0,0,SUMIFS($G$5:G123,$C$5:C123,C123)-SUMIFS($I$4:I122,$C$4:C122,C123))) -> 0 | J123: =IF(C123="",0,IF(C123=$C$4,SUMIFS($I$4:I122,$C$4:C122,C122),SUMIFS($I$4:I122,$C$4:C122,C123))) -> 0 | K123: 0
A124: 121 | C124: =IFERROR(VLOOKUP(D124,Nomenclature!$B$2:$C$196,2,0),"") ->  | H124: =IF(C124="",0,IF(SUMIFS($G$5:G124,$C$5:C124,C124)-SUMIFS($I$4:I123,$C$4:C123,C124)<0,0,SUMIFS($G$5:G124,$C$5:C124,C124)-SUMIFS($I$4:I123,$C$4:C123,C124))) -> 0 | J124: =IF(C124="",0,IF(C124=$C$4,SUMIFS($I$4:I123,$C$4:C123,C123),SUMIFS($I$4:I123,$C$4:C123,C124))) -> 0 | K124: 0
A125: 122 | C125: =IFERROR(VLOOKUP(D125,Nomenclature!$B$2:$C$196,2,0),"") ->  | H125: =IF(C125="",0,IF(SUMIFS($G$5:G125,$C$5:C125,C125)-SUMIFS($I$4:I124,$C$4:C124,C125)<0,0,SUMIFS($G$5:G125,$C$5:C125,C125)-SUMIFS($I$4:I124,$C$4:C124,C125))) -> 0 | J125: =IF(C125="",0,IF(C125=$C$4,SUMIFS($I$4:I124,$C$4:C124,C124),SUMIFS($I$4:I124,$C$4:C124,C125))) -> 0 | K125: 0
A126: 123 | C126: =IFERROR(VLOOKUP(D126,Nomenclature!$B$2:$C$196,2,0),"") ->  | H126: =IF(C126="",0,IF(SUMIFS($G$5:G126,$C$5:C126,C126)-SUMIFS($I$4:I125,$C$4:C125,C126)<0,0,SUMIFS($G$5:G126,$C$5:C126,C126)-SUMIFS($I$4:I125,$C$4:C125,C126))) -> 0 | J126: =IF(C126="",0,IF(C126=$C$4,SUMIFS($I$4:I125,$C$4:C125,C125),SUMIFS($I$4:I125,$C$4:C125,C126))) -> 0 | K126: 0
A127: 124 | C127: =IFERROR(VLOOKUP(D127,Nomenclature!$B$2:$C$196,2,0),"") ->  | H127: =IF(C127="",0,IF(SUMIFS($G$5:G127,$C$5:C127,C127)-SUMIFS($I$4:I126,$C$4:C126,C127)<0,0,SUMIFS($G$5:G127,$C$5:C127,C127)-SUMIFS($I$4:I126,$C$4:C126,C127))) -> 0 | J127: =IF(C127="",0,IF(C127=$C$4,SUMIFS($I$4:I126,$C$4:C126,C126),SUMIFS($I$4:I126,$C$4:C126,C127))) -> 0 | K127: 0
A128: 125 | C128: =IFERROR(VLOOKUP(D128,Nomenclature!$B$2:$C$196,2,0),"") ->  | H128: =IF(C128="",0,IF(SUMIFS($G$5:G128,$C$5:C128,C128)-SUMIFS($I$4:I127,$C$4:C127,C128)<0,0,SUMIFS($G$5:G128,$C$5:C128,C128)-SUMIFS($I$4:I127,$C$4:C127,C128))) -> 0 | J128: =IF(C128="",0,IF(C128=$C$4,SUMIFS($I$4:I127,$C$4:C127,C127),SUMIFS($I$4:I127,$C$4:C127,C128))) -> 0 | K128: 0
A129: 126 | C129: =IFERROR(VLOOKUP(D129,Nomenclature!$B$2:$C$196,2,0),"") ->  | H129: =IF(C129="",0,IF(SUMIFS($G$5:G129,$C$5:C129,C129)-SUMIFS($I$4:I128,$C$4:C128,C129)<0,0,SUMIFS($G$5:G129,$C$5:C129,C129)-SUMIFS($I$4:I128,$C$4:C128,C129))) -> 0 | J129: =IF(C129="",0,IF(C129=$C$4,SUMIFS($I$4:I128,$C$4:C128,C128),SUMIFS($I$4:I128,$C$4:C128,C129))) -> 0 | K129: 0
A130: 127 | C130: =IFERROR(VLOOKUP(D130,Nomenclature!$B$2:$C$196,2,0),"") ->  | H130: =IF(C130="",0,IF(SUMIFS($G$5:G130,$C$5:C130,C130)-SUMIFS($I$4:I129,$C$4:C129,C130)<0,0,SUMIFS($G$5:G130,$C$5:C130,C130)-SUMIFS($I$4:I129,$C$4:C129,C130))) -> 0 | J130: =IF(C130="",0,IF(C130=$C$4,SUMIFS($I$4:I129,$C$4:C129,C129),SUMIFS($I$4:I129,$C$4:C129,C130))) -> 0 | K130: 0
A131: 128 | C131: =IFERROR(VLOOKUP(D131,Nomenclature!$B$2:$C$196,2,0),"") ->  | H131: =IF(C131="",0,IF(SUMIFS($G$5:G131,$C$5:C131,C131)-SUMIFS($I$4:I130,$C$4:C130,C131)<0,0,SUMIFS($G$5:G131,$C$5:C131,C131)-SUMIFS($I$4:I130,$C$4:C130,C131))) -> 0 | J131: =IF(C131="",0,IF(C131=$C$4,SUMIFS($I$4:I130,$C$4:C130,C130),SUMIFS($I$4:I130,$C$4:C130,C131))) -> 0 | K131: 0
A132: 129 | C132: =IFERROR(VLOOKUP(D132,Nomenclature!$B$2:$C$196,2,0),"") ->  | H132: =IF(C132="",0,IF(SUMIFS($G$5:G132,$C$5:C132,C132)-SUMIFS($I$4:I131,$C$4:C131,C132)<0,0,SUMIFS($G$5:G132,$C$5:C132,C132)-SUMIFS($I$4:I131,$C$4:C131,C132))) -> 0 | J132: =IF(C132="",0,IF(C132=$C$4,SUMIFS($I$4:I131,$C$4:C131,C131),SUMIFS($I$4:I131,$C$4:C131,C132))) -> 0 | K132: =IF(C132="",0,H132-I132) -> 0
A133: 130 | C133: =IFERROR(VLOOKUP(D133,Nomenclature!$B$2:$C$196,2,0),"") ->  | H133: =IF(C133="",0,IF(SUMIFS($G$5:G133,$C$5:C133,C133)-SUMIFS($I$4:I132,$C$4:C132,C133)<0,0,SUMIFS($G$5:G133,$C$5:C133,C133)-SUMIFS($I$4:I132,$C$4:C132,C133))) -> 0 | J133: =IF(C133="",0,IF(C133=$C$4,SUMIFS($I$4:I132,$C$4:C132,C132),SUMIFS($I$4:I132,$C$4:C132,C133))) -> 0 | K133: 0
A134: 131 | C134: =IFERROR(VLOOKUP(D134,Nomenclature!$B$2:$C$196,2,0),"") ->  | H134: =IF(C134="",0,IF(SUMIFS($G$5:G134,$C$5:C134,C134)-SUMIFS($I$4:I133,$C$4:C133,C134)<0,0,SUMIFS($G$5:G134,$C$5:C134,C134)-SUMIFS($I$4:I133,$C$4:C133,C134))) -> 0 | J134: =IF(C134="",0,IF(C134=$C$4,SUMIFS($I$4:I133,$C$4:C133,C133),SUMIFS($I$4:I133,$C$4:C133,C134))) -> 0 | K134: 0
A135: 132 | C135: =IFERROR(VLOOKUP(D135,Nomenclature!$B$2:$C$196,2,0),"") ->  | H135: =IF(C135="",0,IF(SUMIFS($G$5:G135,$C$5:C135,C135)-SUMIFS($I$4:I134,$C$4:C134,C135)<0,0,SUMIFS($G$5:G135,$C$5:C135,C135)-SUMIFS($I$4:I134,$C$4:C134,C135))) -> 0 | J135: =IF(C135="",0,IF(C135=$C$4,SUMIFS($I$4:I134,$C$4:C134,C134),SUMIFS($I$4:I134,$C$4:C134,C135))) -> 0 | K135: 0
A136: 133 | C136: =IFERROR(VLOOKUP(D136,Nomenclature!$B$2:$C$196,2,0),"") ->  | H136: =IF(C136="",0,IF(SUMIFS($G$5:G136,$C$5:C136,C136)-SUMIFS($I$4:I135,$C$4:C135,C136)<0,0,SUMIFS($G$5:G136,$C$5:C136,C136)-SUMIFS($I$4:I135,$C$4:C135,C136))) -> 0 | J136: =IF(C136="",0,IF(C136=$C$4,SUMIFS($I$4:I135,$C$4:C135,C135),SUMIFS($I$4:I135,$C$4:C135,C136))) -> 0 | K136: 0
A137: 134 | C137: =IFERROR(VLOOKUP(D137,Nomenclature!$B$2:$C$196,2,0),"") ->  | H137: =IF(C137="",0,IF(SUMIFS($G$5:G137,$C$5:C137,C137)-SUMIFS($I$4:I136,$C$4:C136,C137)<0,0,SUMIFS($G$5:G137,$C$5:C137,C137)-SUMIFS($I$4:I136,$C$4:C136,C137))) -> 0 | J137: =IF(C137="",0,IF(C137=$C$4,SUMIFS($I$4:I136,$C$4:C136,C136),SUMIFS($I$4:I136,$C$4:C136,C137))) -> 0 | K137: 0
A138: 135 | C138: =IFERROR(VLOOKUP(D138,Nomenclature!$B$2:$C$196,2,0),"") ->  | H138: =IF(C138="",0,IF(SUMIFS($G$5:G138,$C$5:C138,C138)-SUMIFS($I$4:I137,$C$4:C137,C138)<0,0,SUMIFS($G$5:G138,$C$5:C138,C138)-SUMIFS($I$4:I137,$C$4:C137,C138))) -> 0 | J138: =IF(C138="",0,IF(C138=$C$4,SUMIFS($I$4:I137,$C$4:C137,C137),SUMIFS($I$4:I137,$C$4:C137,C138))) -> 0 | K138: 0
A139: 136 | C139: =IFERROR(VLOOKUP(D139,Nomenclature!$B$2:$C$196,2,0),"") ->  | H139: =IF(C139="",0,IF(SUMIFS($G$5:G139,$C$5:C139,C139)-SUMIFS($I$4:I138,$C$4:C138,C139)<0,0,SUMIFS($G$5:G139,$C$5:C139,C139)-SUMIFS($I$4:I138,$C$4:C138,C139))) -> 0 | J139: =IF(C139="",0,IF(C139=$C$4,SUMIFS($I$4:I138,$C$4:C138,C138),SUMIFS($I$4:I138,$C$4:C138,C139))) -> 0 | K139: 0
A140: 137 | C140: =IFERROR(VLOOKUP(D140,Nomenclature!$B$2:$C$196,2,0),"") ->  | H140: =IF(C140="",0,IF(SUMIFS($G$5:G140,$C$5:C140,C140)-SUMIFS($I$4:I139,$C$4:C139,C140)<0,0,SUMIFS($G$5:G140,$C$5:C140,C140)-SUMIFS($I$4:I139,$C$4:C139,C140))) -> 0 | J140: =IF(C140="",0,IF(C140=$C$4,SUMIFS($I$4:I139,$C$4:C139,C139),SUMIFS($I$4:I139,$C$4:C139,C140))) -> 0 | K140: 0
A141: 138 | C141: =IFERROR(VLOOKUP(D141,Nomenclature!$B$2:$C$196,2,0),"") ->  | H141: =IF(C141="",0,IF(SUMIFS($G$5:G141,$C$5:C141,C141)-SUMIFS($I$4:I140,$C$4:C140,C141)<0,0,SUMIFS($G$5:G141,$C$5:C141,C141)-SUMIFS($I$4:I140,$C$4:C140,C141))) -> 0 | J141: =IF(C141="",0,IF(C141=$C$4,SUMIFS($I$4:I140,$C$4:C140,C140),SUMIFS($I$4:I140,$C$4:C140,C141))) -> 0 | K141: 0
A142: 139 | C142: =IFERROR(VLOOKUP(D142,Nomenclature!$B$2:$C$196,2,0),"") ->  | H142: =IF(C142="",0,IF(SUMIFS($G$5:G142,$C$5:C142,C142)-SUMIFS($I$4:I141,$C$4:C141,C142)<0,0,SUMIFS($G$5:G142,$C$5:C142,C142)-SUMIFS($I$4:I141,$C$4:C141,C142))) -> 0 | J142: =IF(C142="",0,IF(C142=$C$4,SUMIFS($I$4:I141,$C$4:C141,C141),SUMIFS($I$4:I141,$C$4:C141,C142))) -> 0 | K142: 0
A143: 140 | C143: =IFERROR(VLOOKUP(D143,Nomenclature!$B$2:$C$196,2,0),"") ->  | H143: =IF(C143="",0,IF(SUMIFS($G$5:G143,$C$5:C143,C143)-SUMIFS($I$4:I142,$C$4:C142,C143)<0,0,SUMIFS($G$5:G143,$C$5:C143,C143)-SUMIFS($I$4:I142,$C$4:C142,C143))) -> 0 | J143: =IF(C143="",0,IF(C143=$C$4,SUMIFS($I$4:I142,$C$4:C142,C142),SUMIFS($I$4:I142,$C$4:C142,C143))) -> 0 | K143: 0
A144: 141 | C144: =IFERROR(VLOOKUP(D144,Nomenclature!$B$2:$C$196,2,0),"") ->  | H144: =IF(C144="",0,IF(SUMIFS($G$5:G144,$C$5:C144,C144)-SUMIFS($I$4:I143,$C$4:C143,C144)<0,0,SUMIFS($G$5:G144,$C$5:C144,C144)-SUMIFS($I$4:I143,$C$4:C143,C144))) -> 0 | J144: =IF(C144="",0,IF(C144=$C$4,SUMIFS($I$4:I143,$C$4:C143,C143),SUMIFS($I$4:I143,$C$4:C143,C144))) -> 0 | K144: 0
A145: 142 | C145: =IFERROR(VLOOKUP(D145,Nomenclature!$B$2:$C$196,2,0),"") ->  | H145: =IF(C145="",0,IF(SUMIFS($G$5:G145,$C$5:C145,C145)-SUMIFS($I$4:I144,$C$4:C144,C145)<0,0,SUMIFS($G$5:G145,$C$5:C145,C145)-SUMIFS($I$4:I144,$C$4:C144,C145))) -> 0 | J145: =IF(C145="",0,IF(C145=$C$4,SUMIFS($I$4:I144,$C$4:C144,C144),SUMIFS($I$4:I144,$C$4:C144,C145))) -> 0 | K145: 0
A146: 143 | C146: =IFERROR(VLOOKUP(D146,Nomenclature!$B$2:$C$196,2,0),"") ->  | H146: =IF(C146="",0,IF(SUMIFS($G$5:G146,$C$5:C146,C146)-SUMIFS($I$4:I145,$C$4:C145,C146)<0,0,SUMIFS($G$5:G146,$C$5:C146,C146)-SUMIFS($I$4:I145,$C$4:C145,C146))) -> 0 | J146: =IF(C146="",0,IF(C146=$C$4,SUMIFS($I$4:I145,$C$4:C145,C145),SUMIFS($I$4:I145,$C$4:C145,C146))) -> 0 | K146: 0
A147: 144 | C147: =IFERROR(VLOOKUP(D147,Nomenclature!$B$2:$C$196,2,0),"") ->  | H147: =IF(C147="",0,IF(SUMIFS($G$5:G147,$C$5:C147,C147)-SUMIFS($I$4:I146,$C$4:C146,C147)<0,0,SUMIFS($G$5:G147,$C$5:C147,C147)-SUMIFS($I$4:I146,$C$4:C146,C147))) -> 0 | J147: =IF(C147="",0,IF(C147=$C$4,SUMIFS($I$4:I146,$C$4:C146,C146),SUMIFS($I$4:I146,$C$4:C146,C147))) -> 0 | K147: 0
A148: 145 | C148: =IFERROR(VLOOKUP(D148,Nomenclature!$B$2:$C$196,2,0),"") ->  | H148: =IF(C148="",0,IF(SUMIFS($G$5:G148,$C$5:C148,C148)-SUMIFS($I$4:I147,$C$4:C147,C148)<0,0,SUMIFS($G$5:G148,$C$5:C148,C148)-SUMIFS($I$4:I147,$C$4:C147,C148))) -> 0 | J148: =IF(C148="",0,IF(C148=$C$4,SUMIFS($I$4:I147,$C$4:C147,C147),SUMIFS($I$4:I147,$C$4:C147,C148))) -> 0 | K148: 0
A149: 146 | C149: =IFERROR(VLOOKUP(D149,Nomenclature!$B$2:$C$196,2,0),"") ->  | H149: =IF(C149="",0,IF(SUMIFS($G$5:G149,$C$5:C149,C149)-SUMIFS($I$4:I148,$C$4:C148,C149)<0,0,SUMIFS($G$5:G149,$C$5:C149,C149)-SUMIFS($I$4:I148,$C$4:C148,C149))) -> 0 | J149: =IF(C149="",0,IF(C149=$C$4,SUMIFS($I$4:I148,$C$4:C148,C148),SUMIFS($I$4:I148,$C$4:C148,C149))) -> 0 | K149: 0
A150: 147 | C150: =IFERROR(VLOOKUP(D150,Nomenclature!$B$2:$C$196,2,0),"") ->  | H150: =IF(C150="",0,IF(SUMIFS($G$5:G150,$C$5:C150,C150)-SUMIFS($I$4:I149,$C$4:C149,C150)<0,0,SUMIFS($G$5:G150,$C$5:C150,C150)-SUMIFS($I$4:I149,$C$4:C149,C150))) -> 0 | J150: =IF(C150="",0,IF(C150=$C$4,SUMIFS($I$4:I149,$C$4:C149,C149),SUMIFS($I$4:I149,$C$4:C149,C150))) -> 0 | K150: 0
A151: 148 | C151: =IFERROR(VLOOKUP(D151,Nomenclature!$B$2:$C$196,2,0),"") ->  | H151: =IF(C151="",0,IF(SUMIFS($G$5:G151,$C$5:C151,C151)-SUMIFS($I$4:I150,$C$4:C150,C151)<0,0,SUMIFS($G$5:G151,$C$5:C151,C151)-SUMIFS($I$4:I150,$C$4:C150,C151))) -> 0 | J151: =IF(C151="",0,IF(C151=$C$4,SUMIFS($I$4:I150,$C$4:C150,C150),SUMIFS($I$4:I150,$C$4:C150,C151))) -> 0 | K151: 0
A152: 149 | C152: =IFERROR(VLOOKUP(D152,Nomenclature!$B$2:$C$196,2,0),"") ->  | H152: =IF(C152="",0,IF(SUMIFS($G$5:G152,$C$5:C152,C152)-SUMIFS($I$4:I151,$C$4:C151,C152)<0,0,SUMIFS($G$5:G152,$C$5:C152,C152)-SUMIFS($I$4:I151,$C$4:C151,C152))) -> 0 | J152: =IF(C152="",0,IF(C152=$C$4,SUMIFS($I$4:I151,$C$4:C151,C151),SUMIFS($I$4:I151,$C$4:C151,C152))) -> 0 | K152: 0
A153: 150 | C153: =IFERROR(VLOOKUP(D153,Nomenclature!$B$2:$C$196,2,0),"") ->  | H153: =IF(C153="",0,IF(SUMIFS($G$5:G153,$C$5:C153,C153)-SUMIFS($I$4:I152,$C$4:C152,C153)<0,0,SUMIFS($G$5:G153,$C$5:C153,C153)-SUMIFS($I$4:I152,$C$4:C152,C153))) -> 0 | J153: =IF(C153="",0,IF(C153=$C$4,SUMIFS($I$4:I152,$C$4:C152,C152),SUMIFS($I$4:I152,$C$4:C152,C153))) -> 0 | K153: 0
A154: 151 | C154: =IFERROR(VLOOKUP(D154,Nomenclature!$B$2:$C$196,2,0),"") ->  | H154: =IF(C154="",0,IF(SUMIFS($G$5:G154,$C$5:C154,C154)-SUMIFS($I$4:I153,$C$4:C153,C154)<0,0,SUMIFS($G$5:G154,$C$5:C154,C154)-SUMIFS($I$4:I153,$C$4:C153,C154))) -> 0 | J154: =IF(C154="",0,IF(C154=$C$4,SUMIFS($I$4:I153,$C$4:C153,C153),SUMIFS($I$4:I153,$C$4:C153,C154))) -> 0 | K154: 0
A155: 152 | C155: =IFERROR(VLOOKUP(D155,Nomenclature!$B$2:$C$196,2,0),"") ->  | H155: =IF(C155="",0,IF(SUMIFS($G$5:G155,$C$5:C155,C155)-SUMIFS($I$4:I154,$C$4:C154,C155)<0,0,SUMIFS($G$5:G155,$C$5:C155,C155)-SUMIFS($I$4:I154,$C$4:C154,C155))) -> 0 | J155: =IF(C155="",0,IF(C155=$C$4,SUMIFS($I$4:I154,$C$4:C154,C154),SUMIFS($I$4:I154,$C$4:C154,C155))) -> 0 | K155: 0
A156: 153 | C156: =IFERROR(VLOOKUP(D156,Nomenclature!$B$2:$C$196,2,0),"") ->  | H156: =IF(C156="",0,IF(SUMIFS($G$5:G156,$C$5:C156,C156)-SUMIFS($I$4:I155,$C$4:C155,C156)<0,0,SUMIFS($G$5:G156,$C$5:C156,C156)-SUMIFS($I$4:I155,$C$4:C155,C156))) -> 0 | J156: =IF(C156="",0,IF(C156=$C$4,SUMIFS($I$4:I155,$C$4:C155,C155),SUMIFS($I$4:I155,$C$4:C155,C156))) -> 0 | K156: 0
A157: 154 | C157: =IFERROR(VLOOKUP(D157,Nomenclature!$B$2:$C$196,2,0),"") ->  | H157: =IF(C157="",0,IF(SUMIFS($G$5:G157,$C$5:C157,C157)-SUMIFS($I$4:I156,$C$4:C156,C157)<0,0,SUMIFS($G$5:G157,$C$5:C157,C157)-SUMIFS($I$4:I156,$C$4:C156,C157))) -> 0 | J157: =IF(C157="",0,IF(C157=$C$4,SUMIFS($I$4:I156,$C$4:C156,C156),SUMIFS($I$4:I156,$C$4:C156,C157))) -> 0 | K157: 0
A158: 155 | C158: =IFERROR(VLOOKUP(D158,Nomenclature!$B$2:$C$196,2,0),"") ->  | H158: =IF(C158="",0,IF(SUMIFS($G$5:G158,$C$5:C158,C158)-SUMIFS($I$4:I157,$C$4:C157,C158)<0,0,SUMIFS($G$5:G158,$C$5:C158,C158)-SUMIFS($I$4:I157,$C$4:C157,C158))) -> 0 | J158: =IF(C158="",0,IF(C158=$C$4,SUMIFS($I$4:I157,$C$4:C157,C157),SUMIFS($I$4:I157,$C$4:C157,C158))) -> 0 | K158: 0
A159: 156 | C159: =IFERROR(VLOOKUP(D159,Nomenclature!$B$2:$C$196,2,0),"") ->  | H159: =IF(C159="",0,IF(SUMIFS($G$5:G159,$C$5:C159,C159)-SUMIFS($I$4:I158,$C$4:C158,C159)<0,0,SUMIFS($G$5:G159,$C$5:C159,C159)-SUMIFS($I$4:I158,$C$4:C158,C159))) -> 0 | J159: =IF(C159="",0,IF(C159=$C$4,SUMIFS($I$4:I158,$C$4:C158,C158),SUMIFS($I$4:I158,$C$4:C158,C159))) -> 0 | K159: 0
A160: 157 | C160: =IFERROR(VLOOKUP(D160,Nomenclature!$B$2:$C$196,2,0),"") ->  | H160: =IF(C160="",0,IF(SUMIFS($G$5:G160,$C$5:C160,C160)-SUMIFS($I$4:I159,$C$4:C159,C160)<0,0,SUMIFS($G$5:G160,$C$5:C160,C160)-SUMIFS($I$4:I159,$C$4:C159,C160))) -> 0 | J160: =IF(C160="",0,IF(C160=$C$4,SUMIFS($I$4:I159,$C$4:C159,C159),SUMIFS($I$4:I159,$C$4:C159,C160))) -> 0 | K160: 0
A161: 158 | C161: =IFERROR(VLOOKUP(D161,Nomenclature!$B$2:$C$196,2,0),"") ->  | H161: =IF(C161="",0,IF(SUMIFS($G$5:G161,$C$5:C161,C161)-SUMIFS($I$4:I160,$C$4:C160,C161)<0,0,SUMIFS($G$5:G161,$C$5:C161,C161)-SUMIFS($I$4:I160,$C$4:C160,C161))) -> 0 | J161: =IF(C161="",0,IF(C161=$C$4,SUMIFS($I$4:I160,$C$4:C160,C160),SUMIFS($I$4:I160,$C$4:C160,C161))) -> 0 | K161: 0
A162: 159 | C162: =IFERROR(VLOOKUP(D162,Nomenclature!$B$2:$C$196,2,0),"") ->  | H162: =IF(C162="",0,IF(SUMIFS($G$5:G162,$C$5:C162,C162)-SUMIFS($I$4:I161,$C$4:C161,C162)<0,0,SUMIFS($G$5:G162,$C$5:C162,C162)-SUMIFS($I$4:I161,$C$4:C161,C162))) -> 0 | J162: =IF(C162="",0,IF(C162=$C$4,SUMIFS($I$4:I161,$C$4:C161,C161),SUMIFS($I$4:I161,$C$4:C161,C162))) -> 0 | K162: 0
A163: 160 | C163: =IFERROR(VLOOKUP(D163,Nomenclature!$B$2:$C$196,2,0),"") ->  | H163: =IF(C163="",0,IF(SUMIFS($G$5:G163,$C$5:C163,C163)-SUMIFS($I$4:I162,$C$4:C162,C163)<0,0,SUMIFS($G$5:G163,$C$5:C163,C163)-SUMIFS($I$4:I162,$C$4:C162,C163))) -> 0 | J163: =IF(C163="",0,IF(C163=$C$4,SUMIFS($I$4:I162,$C$4:C162,C162),SUMIFS($I$4:I162,$C$4:C162,C163))) -> 0 | K163: 0
A164: 161 | C164: =IFERROR(VLOOKUP(D164,Nomenclature!$B$2:$C$196,2,0),"") ->  | H164: =IF(C164="",0,IF(SUMIFS($G$5:G164,$C$5:C164,C164)-SUMIFS($I$4:I163,$C$4:C163,C164)<0,0,SUMIFS($G$5:G164,$C$5:C164,C164)-SUMIFS($I$4:I163,$C$4:C163,C164))) -> 0 | J164: =IF(C164="",0,IF(C164=$C$4,SUMIFS($I$4:I163,$C$4:C163,C163),SUMIFS($I$4:I163,$C$4:C163,C164))) -> 0 | K164: 0
A165: 162 | C165: =IFERROR(VLOOKUP(D165,Nomenclature!$B$2:$C$196,2,0),"") ->  | H165: =IF(C165="",0,IF(SUMIFS($G$5:G165,$C$5:C165,C165)-SUMIFS($I$4:I164,$C$4:C164,C165)<0,0,SUMIFS($G$5:G165,$C$5:C165,C165)-SUMIFS($I$4:I164,$C$4:C164,C165))) -> 0 | J165: =IF(C165="",0,IF(C165=$C$4,SUMIFS($I$4:I164,$C$4:C164,C164),SUMIFS($I$4:I164,$C$4:C164,C165))) -> 0 | K165: 0
A166: 163 | C166: =IFERROR(VLOOKUP(D166,Nomenclature!$B$2:$C$196,2,0),"") ->  | H166: =IF(C166="",0,IF(SUMIFS($G$5:G166,$C$5:C166,C166)-SUMIFS($I$4:I165,$C$4:C165,C166)<0,0,SUMIFS($G$5:G166,$C$5:C166,C166)-SUMIFS($I$4:I165,$C$4:C165,C166))) -> 0 | J166: =IF(C166="",0,IF(C166=$C$4,SUMIFS($I$4:I165,$C$4:C165,C165),SUMIFS($I$4:I165,$C$4:C165,C166))) -> 0 | K166: 0
A167: 164 | C167: =IFERROR(VLOOKUP(D167,Nomenclature!$B$2:$C$196,2,0),"") ->  | H167: =IF(C167="",0,IF(SUMIFS($G$5:G167,$C$5:C167,C167)-SUMIFS($I$4:I166,$C$4:C166,C167)<0,0,SUMIFS($G$5:G167,$C$5:C167,C167)-SUMIFS($I$4:I166,$C$4:C166,C167))) -> 0 | J167: =IF(C167="",0,IF(C167=$C$4,SUMIFS($I$4:I166,$C$4:C166,C166),SUMIFS($I$4:I166,$C$4:C166,C167))) -> 0 | K167: 0
A168: 165 | C168: =IFERROR(VLOOKUP(D168,Nomenclature!$B$2:$C$196,2,0),"") ->  | H168: =IF(C168="",0,IF(SUMIFS($G$5:G168,$C$5:C168,C168)-SUMIFS($I$4:I167,$C$4:C167,C168)<0,0,SUMIFS($G$5:G168,$C$5:C168,C168)-SUMIFS($I$4:I167,$C$4:C167,C168))) -> 0 | J168: =IF(C168="",0,IF(C168=$C$4,SUMIFS($I$4:I167,$C$4:C167,C167),SUMIFS($I$4:I167,$C$4:C167,C168))) -> 0 | K168: 0
A169: 166 | C169: =IFERROR(VLOOKUP(D169,Nomenclature!$B$2:$C$196,2,0),"") ->  | H169: =IF(C169="",0,IF(SUMIFS($G$5:G169,$C$5:C169,C169)-SUMIFS($I$4:I168,$C$4:C168,C169)<0,0,SUMIFS($G$5:G169,$C$5:C169,C169)-SUMIFS($I$4:I168,$C$4:C168,C169))) -> 0 | J169: =IF(C169="",0,IF(C169=$C$4,SUMIFS($I$4:I168,$C$4:C168,C168),SUMIFS($I$4:I168,$C$4:C168,C169))) -> 0 | K169: 0
A170: 167 | C170: =IFERROR(VLOOKUP(D170,Nomenclature!$B$2:$C$196,2,0),"") ->  | H170: =IF(C170="",0,IF(SUMIFS($G$5:G170,$C$5:C170,C170)-SUMIFS($I$4:I169,$C$4:C169,C170)<0,0,SUMIFS($G$5:G170,$C$5:C170,C170)-SUMIFS($I$4:I169,$C$4:C169,C170))) -> 0 | J170: =IF(C170="",0,IF(C170=$C$4,SUMIFS($I$4:I169,$C$4:C169,C169),SUMIFS($I$4:I169,$C$4:C169,C170))) -> 0 | K170: 0
A171: 168 | C171: =IFERROR(VLOOKUP(D171,Nomenclature!$B$2:$C$196,2,0),"") ->  | H171: =IF(C171="",0,IF(SUMIFS($G$5:G171,$C$5:C171,C171)-SUMIFS($I$4:I170,$C$4:C170,C171)<0,0,SUMIFS($G$5:G171,$C$5:C171,C171)-SUMIFS($I$4:I170,$C$4:C170,C171))) -> 0 | J171: =IF(C171="",0,IF(C171=$C$4,SUMIFS($I$4:I170,$C$4:C170,C170),SUMIFS($I$4:I170,$C$4:C170,C171))) -> 0 | K171: 0
A172: 169 | C172: =IFERROR(VLOOKUP(D172,Nomenclature!$B$2:$C$196,2,0),"") ->  | H172: =IF(C172="",0,IF(SUMIFS($G$5:G172,$C$5:C172,C172)-SUMIFS($I$4:I171,$C$4:C171,C172)<0,0,SUMIFS($G$5:G172,$C$5:C172,C172)-SUMIFS($I$4:I171,$C$4:C171,C172))) -> 0 | J172: =IF(C172="",0,IF(C172=$C$4,SUMIFS($I$4:I171,$C$4:C171,C171),SUMIFS($I$4:I171,$C$4:C171,C172))) -> 0 | K172: 0
A173: 170 | C173: =IFERROR(VLOOKUP(D173,Nomenclature!$B$2:$C$196,2,0),"") ->  | H173: =IF(C173="",0,IF(SUMIFS($G$5:G173,$C$5:C173,C173)-SUMIFS($I$4:I172,$C$4:C172,C173)<0,0,SUMIFS($G$5:G173,$C$5:C173,C173)-SUMIFS($I$4:I172,$C$4:C172,C173))) -> 0 | J173: =IF(C173="",0,IF(C173=$C$4,SUMIFS($I$4:I172,$C$4:C172,C172),SUMIFS($I$4:I172,$C$4:C172,C173))) -> 0 | K173: 0
A174: 171 | C174: =IFERROR(VLOOKUP(D174,Nomenclature!$B$2:$C$196,2,0),"") ->  | H174: =IF(C174="",0,IF(SUMIFS($G$5:G174,$C$5:C174,C174)-SUMIFS($I$4:I173,$C$4:C173,C174)<0,0,SUMIFS($G$5:G174,$C$5:C174,C174)-SUMIFS($I$4:I173,$C$4:C173,C174))) -> 0 | J174: =IF(C174="",0,IF(C174=$C$4,SUMIFS($I$4:I173,$C$4:C173,C173),SUMIFS($I$4:I173,$C$4:C173,C174))) -> 0 | K174: 0
A175: 172 | C175: =IFERROR(VLOOKUP(D175,Nomenclature!$B$2:$C$196,2,0),"") ->  | H175: =IF(C175="",0,IF(SUMIFS($G$5:G175,$C$5:C175,C175)-SUMIFS($I$4:I174,$C$4:C174,C175)<0,0,SUMIFS($G$5:G175,$C$5:C175,C175)-SUMIFS($I$4:I174,$C$4:C174,C175))) -> 0 | J175: =IF(C175="",0,IF(C175=$C$4,SUMIFS($I$4:I174,$C$4:C174,C174),SUMIFS($I$4:I174,$C$4:C174,C175))) -> 0 | K175: 0
A176: 173 | C176: =IFERROR(VLOOKUP(D176,Nomenclature!$B$2:$C$196,2,0),"") ->  | H176: =IF(C176="",0,IF(SUMIFS($G$5:G176,$C$5:C176,C176)-SUMIFS($I$4:I175,$C$4:C175,C176)<0,0,SUMIFS($G$5:G176,$C$5:C176,C176)-SUMIFS($I$4:I175,$C$4:C175,C176))) -> 0 | J176: =IF(C176="",0,IF(C176=$C$4,SUMIFS($I$4:I175,$C$4:C175,C175),SUMIFS($I$4:I175,$C$4:C175,C176))) -> 0 | K176: 0
A177: 174 | C177: =IFERROR(VLOOKUP(D177,Nomenclature!$B$2:$C$196,2,0),"") ->  | H177: =IF(C177="",0,IF(SUMIFS($G$5:G177,$C$5:C177,C177)-SUMIFS($I$4:I176,$C$4:C176,C177)<0,0,SUMIFS($G$5:G177,$C$5:C177,C177)-SUMIFS($I$4:I176,$C$4:C176,C177))) -> 0 | J177: =IF(C177="",0,IF(C177=$C$4,SUMIFS($I$4:I176,$C$4:C176,C176),SUMIFS($I$4:I176,$C$4:C176,C177))) -> 0 | K177: 0
A178: 175 | C178: =IFERROR(VLOOKUP(D178,Nomenclature!$B$2:$C$196,2,0),"") ->  | H178: =IF(C178="",0,IF(SUMIFS($G$5:G178,$C$5:C178,C178)-SUMIFS($I$4:I177,$C$4:C177,C178)<0,0,SUMIFS($G$5:G178,$C$5:C178,C178)-SUMIFS($I$4:I177,$C$4:C177,C178))) -> 0 | J178: =IF(C178="",0,IF(C178=$C$4,SUMIFS($I$4:I177,$C$4:C177,C177),SUMIFS($I$4:I177,$C$4:C177,C178))) -> 0 | K178: 0
A179: 176 | C179: =IFERROR(VLOOKUP(D179,Nomenclature!$B$2:$C$196,2,0),"") ->  | H179: =IF(C179="",0,IF(SUMIFS($G$5:G179,$C$5:C179,C179)-SUMIFS($I$4:I178,$C$4:C178,C179)<0,0,SUMIFS($G$5:G179,$C$5:C179,C179)-SUMIFS($I$4:I178,$C$4:C178,C179))) -> 0 | J179: =IF(C179="",0,IF(C179=$C$4,SUMIFS($I$4:I178,$C$4:C178,C178),SUMIFS($I$4:I178,$C$4:C178,C179))) -> 0 | K179: 0
A180: 177 | C180: =IFERROR(VLOOKUP(D180,Nomenclature!$B$2:$C$196,2,0),"") ->  | H180: =IF(C180="",0,IF(SUMIFS($G$5:G180,$C$5:C180,C180)-SUMIFS($I$4:I179,$C$4:C179,C180)<0,0,SUMIFS($G$5:G180,$C$5:C180,C180)-SUMIFS($I$4:I179,$C$4:C179,C180))) -> 0 | J180: =IF(C180="",0,IF(C180=$C$4,SUMIFS($I$4:I179,$C$4:C179,C179),SUMIFS($I$4:I179,$C$4:C179,C180))) -> 0 | K180: 0
A181: 178 | C181: =IFERROR(VLOOKUP(D181,Nomenclature!$B$2:$C$196,2,0),"") ->  | H181: =IF(C181="",0,IF(SUMIFS($G$5:G181,$C$5:C181,C181)-SUMIFS($I$4:I180,$C$4:C180,C181)<0,0,SUMIFS($G$5:G181,$C$5:C181,C181)-SUMIFS($I$4:I180,$C$4:C180,C181))) -> 0 | J181: =IF(C181="",0,IF(C181=$C$4,SUMIFS($I$4:I180,$C$4:C180,C180),SUMIFS($I$4:I180,$C$4:C180,C181))) -> 0 | K181: 0
A182: 179 | C182: =IFERROR(VLOOKUP(D182,Nomenclature!$B$2:$C$196,2,0),"") ->  | H182: =IF(C182="",0,IF(SUMIFS($G$5:G182,$C$5:C182,C182)-SUMIFS($I$4:I181,$C$4:C181,C182)<0,0,SUMIFS($G$5:G182,$C$5:C182,C182)-SUMIFS($I$4:I181,$C$4:C181,C182))) -> 0 | J182: =IF(C182="",0,IF(C182=$C$4,SUMIFS($I$4:I181,$C$4:C181,C181),SUMIFS($I$4:I181,$C$4:C181,C182))) -> 0 | K182: 0
A183: 180 | C183: =IFERROR(VLOOKUP(D183,Nomenclature!$B$2:$C$196,2,0),"") ->  | H183: =IF(C183="",0,IF(SUMIFS($G$5:G183,$C$5:C183,C183)-SUMIFS($I$4:I182,$C$4:C182,C183)<0,0,SUMIFS($G$5:G183,$C$5:C183,C183)-SUMIFS($I$4:I182,$C$4:C182,C183))) -> 0 | J183: =IF(C183="",0,IF(C183=$C$4,SUMIFS($I$4:I182,$C$4:C182,C182),SUMIFS($I$4:I182,$C$4:C182,C183))) -> 0 | K183: 0
A184: 181 | C184: =IFERROR(VLOOKUP(D184,Nomenclature!$B$2:$C$196,2,0),"") ->  | H184: =IF(C184="",0,IF(SUMIFS($G$5:G184,$C$5:C184,C184)-SUMIFS($I$4:I183,$C$4:C183,C184)<0,0,SUMIFS($G$5:G184,$C$5:C184,C184)-SUMIFS($I$4:I183,$C$4:C183,C184))) -> 0 | J184: =IF(C184="",0,IF(C184=$C$4,SUMIFS($I$4:I183,$C$4:C183,C183),SUMIFS($I$4:I183,$C$4:C183,C184))) -> 0 | K184: 0
A185: 182 | C185: =IFERROR(VLOOKUP(D185,Nomenclature!$B$2:$C$196,2,0),"") ->  | H185: =IF(C185="",0,IF(SUMIFS($G$5:G185,$C$5:C185,C185)-SUMIFS($I$4:I184,$C$4:C184,C185)<0,0,SUMIFS($G$5:G185,$C$5:C185,C185)-SUMIFS($I$4:I184,$C$4:C184,C185))) -> 0 | J185: =IF(C185="",0,IF(C185=$C$4,SUMIFS($I$4:I184,$C$4:C184,C184),SUMIFS($I$4:I184,$C$4:C184,C185))) -> 0 | K185: 0
A186: 183 | C186: =IFERROR(VLOOKUP(D186,Nomenclature!$B$2:$C$196,2,0),"") ->  | H186: =IF(C186="",0,IF(SUMIFS($G$5:G186,$C$5:C186,C186)-SUMIFS($I$4:I185,$C$4:C185,C186)<0,0,SUMIFS($G$5:G186,$C$5:C186,C186)-SUMIFS($I$4:I185,$C$4:C185,C186))) -> 0 | J186: =IF(C186="",0,IF(C186=$C$4,SUMIFS($I$4:I185,$C$4:C185,C185),SUMIFS($I$4:I185,$C$4:C185,C186))) -> 0 | K186: 0
A187: 184 | C187: =IFERROR(VLOOKUP(D187,Nomenclature!$B$2:$C$196,2,0),"") ->  | H187: =IF(C187="",0,IF(SUMIFS($G$5:G187,$C$5:C187,C187)-SUMIFS($I$4:I186,$C$4:C186,C187)<0,0,SUMIFS($G$5:G187,$C$5:C187,C187)-SUMIFS($I$4:I186,$C$4:C186,C187))) -> 0 | J187: =IF(C187="",0,IF(C187=$C$4,SUMIFS($I$4:I186,$C$4:C186,C186),SUMIFS($I$4:I186,$C$4:C186,C187))) -> 0 | K187: 0
A188: 185 | C188: =IFERROR(VLOOKUP(D188,Nomenclature!$B$2:$C$196,2,0),"") ->  | H188: =IF(C188="",0,IF(SUMIFS($G$5:G188,$C$5:C188,C188)-SUMIFS($I$4:I187,$C$4:C187,C188)<0,0,SUMIFS($G$5:G188,$C$5:C188,C188)-SUMIFS($I$4:I187,$C$4:C187,C188))) -> 0 | J188: =IF(C188="",0,IF(C188=$C$4,SUMIFS($I$4:I187,$C$4:C187,C187),SUMIFS($I$4:I187,$C$4:C187,C188))) -> 0 | K188: 0
A189: 186 | C189: =IFERROR(VLOOKUP(D189,Nomenclature!$B$2:$C$196,2,0),"") ->  | H189: =IF(C189="",0,IF(SUMIFS($G$5:G189,$C$5:C189,C189)-SUMIFS($I$4:I188,$C$4:C188,C189)<0,0,SUMIFS($G$5:G189,$C$5:C189,C189)-SUMIFS($I$4:I188,$C$4:C188,C189))) -> 0 | J189: =IF(C189="",0,IF(C189=$C$4,SUMIFS($I$4:I188,$C$4:C188,C188),SUMIFS($I$4:I188,$C$4:C188,C189))) -> 0 | K189: 0
A190: 187 | C190: =IFERROR(VLOOKUP(D190,Nomenclature!$B$2:$C$196,2,0),"") ->  | H190: =IF(C190="",0,IF(SUMIFS($G$5:G190,$C$5:C190,C190)-SUMIFS($I$4:I189,$C$4:C189,C190)<0,0,SUMIFS($G$5:G190,$C$5:C190,C190)-SUMIFS($I$4:I189,$C$4:C189,C190))) -> 0 | J190: =IF(C190="",0,IF(C190=$C$4,SUMIFS($I$4:I189,$C$4:C189,C189),SUMIFS($I$4:I189,$C$4:C189,C190))) -> 0 | K190: 0
A191: 188 | C191: =IFERROR(VLOOKUP(D191,Nomenclature!$B$2:$C$196,2,0),"") ->  | H191: =IF(C191="",0,IF(SUMIFS($G$5:G191,$C$5:C191,C191)-SUMIFS($I$4:I190,$C$4:C190,C191)<0,0,SUMIFS($G$5:G191,$C$5:C191,C191)-SUMIFS($I$4:I190,$C$4:C190,C191))) -> 0 | J191: =IF(C191="",0,IF(C191=$C$4,SUMIFS($I$4:I190,$C$4:C190,C190),SUMIFS($I$4:I190,$C$4:C190,C191))) -> 0 | K191: 0
A192: 189 | C192: =IFERROR(VLOOKUP(D192,Nomenclature!$B$2:$C$196,2,0),"") ->  | H192: =IF(C192="",0,IF(SUMIFS($G$5:G192,$C$5:C192,C192)-SUMIFS($I$4:I191,$C$4:C191,C192)<0,0,SUMIFS($G$5:G192,$C$5:C192,C192)-SUMIFS($I$4:I191,$C$4:C191,C192))) -> 0 | J192: =IF(C192="",0,IF(C192=$C$4,SUMIFS($I$4:I191,$C$4:C191,C191),SUMIFS($I$4:I191,$C$4:C191,C192))) -> 0 | K192: 0
A193: 190 | C193: =IFERROR(VLOOKUP(D193,Nomenclature!$B$2:$C$196,2,0),"") ->  | H193: =IF(C193="",0,IF(SUMIFS($G$5:G193,$C$5:C193,C193)-SUMIFS($I$4:I192,$C$4:C192,C193)<0,0,SUMIFS($G$5:G193,$C$5:C193,C193)-SUMIFS($I$4:I192,$C$4:C192,C193))) -> 0 | J193: =IF(C193="",0,IF(C193=$C$4,SUMIFS($I$4:I192,$C$4:C192,C192),SUMIFS($I$4:I192,$C$4:C192,C193))) -> 0 | K193: 0
A194: 191 | C194: =IFERROR(VLOOKUP(D194,Nomenclature!$B$2:$C$196,2,0),"") ->  | H194: =IF(C194="",0,IF(SUMIFS($G$5:G194,$C$5:C194,C194)-SUMIFS($I$4:I193,$C$4:C193,C194)<0,0,SUMIFS($G$5:G194,$C$5:C194,C194)-SUMIFS($I$4:I193,$C$4:C193,C194))) -> 0 | J194: =IF(C194="",0,IF(C194=$C$4,SUMIFS($I$4:I193,$C$4:C193,C193),SUMIFS($I$4:I193,$C$4:C193,C194))) -> 0 | K194: 0
A195: 192 | C195: =IFERROR(VLOOKUP(D195,Nomenclature!$B$2:$C$196,2,0),"") ->  | H195: =IF(C195="",0,IF(SUMIFS($G$5:G195,$C$5:C195,C195)-SUMIFS($I$4:I194,$C$4:C194,C195)<0,0,SUMIFS($G$5:G195,$C$5:C195,C195)-SUMIFS($I$4:I194,$C$4:C194,C195))) -> 0 | J195: =IF(C195="",0,IF(C195=$C$4,SUMIFS($I$4:I194,$C$4:C194,C194),SUMIFS($I$4:I194,$C$4:C194,C195))) -> 0 | K195: 0
A196: 193 | C196: =IFERROR(VLOOKUP(D196,Nomenclature!$B$2:$C$196,2,0),"") ->  | H196: =IF(C196="",0,IF(SUMIFS($G$5:G196,$C$5:C196,C196)-SUMIFS($I$4:I195,$C$4:C195,C196)<0,0,SUMIFS($G$5:G196,$C$5:C196,C196)-SUMIFS($I$4:I195,$C$4:C195,C196))) -> 0 | J196: =IF(C196="",0,IF(C196=$C$4,SUMIFS($I$4:I195,$C$4:C195,C195),SUMIFS($I$4:I195,$C$4:C195,C196))) -> 0 | K196: =IF(C196="",0,H196-I196) -> 0
A197: 194 | C197: =IFERROR(VLOOKUP(D197,Nomenclature!$B$2:$C$196,2,0),"") ->  | H197: =IF(C197="",0,IF(SUMIFS($G$5:G197,$C$5:C197,C197)-SUMIFS($I$4:I196,$C$4:C196,C197)<0,0,SUMIFS($G$5:G197,$C$5:C197,C197)-SUMIFS($I$4:I196,$C$4:C196,C197))) -> 0 | J197: =IF(C197="",0,IF(C197=$C$4,SUMIFS($I$4:I196,$C$4:C196,C196),SUMIFS($I$4:I196,$C$4:C196,C197))) -> 0 | K197: 0
A198: 195 | C198: =IFERROR(VLOOKUP(D198,Nomenclature!$B$2:$C$196,2,0),"") ->  | H198: =IF(C198="",0,IF(SUMIFS($G$5:G198,$C$5:C198,C198)-SUMIFS($I$4:I197,$C$4:C197,C198)<0,0,SUMIFS($G$5:G198,$C$5:C198,C198)-SUMIFS($I$4:I197,$C$4:C197,C198))) -> 0 | J198: =IF(C198="",0,IF(C198=$C$4,SUMIFS($I$4:I197,$C$4:C197,C197),SUMIFS($I$4:I197,$C$4:C197,C198))) -> 0 | K198: 0
A199: 196 | C199: =IFERROR(VLOOKUP(D199,Nomenclature!$B$2:$C$196,2,0),"") ->  | H199: =IF(C199="",0,IF(SUMIFS($G$5:G199,$C$5:C199,C199)-SUMIFS($I$4:I198,$C$4:C198,C199)<0,0,SUMIFS($G$5:G199,$C$5:C199,C199)-SUMIFS($I$4:I198,$C$4:C198,C199))) -> 0 | J199: =IF(C199="",0,IF(C199=$C$4,SUMIFS($I$4:I198,$C$4:C198,C198),SUMIFS($I$4:I198,$C$4:C198,C199))) -> 0 | K199: 0
A200: 197 | C200: =IFERROR(VLOOKUP(D200,Nomenclature!$B$2:$C$196,2,0),"") ->  | H200: =IF(C200="",0,IF(SUMIFS($G$5:G200,$C$5:C200,C200)-SUMIFS($I$4:I199,$C$4:C199,C200)<0,0,SUMIFS($G$5:G200,$C$5:C200,C200)-SUMIFS($I$4:I199,$C$4:C199,C200))) -> 0 | J200: =IF(C200="",0,IF(C200=$C$4,SUMIFS($I$4:I199,$C$4:C199,C199),SUMIFS($I$4:I199,$C$4:C199,C200))) -> 0 | K200: 0
A201: 198 | C201: =IFERROR(VLOOKUP(D201,Nomenclature!$B$2:$C$196,2,0),"") ->  | H201: =IF(C201="",0,IF(SUMIFS($G$5:G201,$C$5:C201,C201)-SUMIFS($I$4:I200,$C$4:C200,C201)<0,0,SUMIFS($G$5:G201,$C$5:C201,C201)-SUMIFS($I$4:I200,$C$4:C200,C201))) -> 0 | J201: =IF(C201="",0,IF(C201=$C$4,SUMIFS($I$4:I200,$C$4:C200,C200),SUMIFS($I$4:I200,$C$4:C200,C201))) -> 0 | K201: 0
... 2 more rows

Sheet 13000
A1: رقم الاستمارة | B1: التاريخ | C1: الترميز | D1: الصنف / الصنف الفرعي | E1: ملاحظات المصلحة | F1: AP Cat | G1: =IF(SUM(G4:G203)-SUM(F4:F203)<0,"نقص في توزيع الاعتمادات على الاصناف الفرعية", IF(SUM(G4:G203)-SUM(F4:F203)>0,"تجاوز في الاعتمادات الموزعة على الاصناف الفرعية","AP S.Cat")) -> AP S.Cat | H1: AP Sous_Cat | I1: =IF(I3>G3,"تجاوز في الالتزامات","∑ Engagements") -> ∑ Engagements | J1: ∑ Eng Sous_Cat | K1: Reste | L1: السند القانوني للعنوان الرابع | N1: 1
F3: =SUM(F4:F203) -> 6500000 | G3: =SUM(G4:G203) -> 6500000 | I3: =SUM(I5:I203) -> 0 | K3: =SUM(K4:K104) -> 6500000
A4: 1 | B4: 2023-03-13 | C4: =IFERROR(VLOOKUP(D4,Nomenclature!$B$2:$C$196,2,0),"") -> 13000 | D4: الزيادات | E4: تكفل برخصة الالتزام المفتوحة لسنة 2023. | F4: 6500000 | H4: =IF(C4="",0,IF(SUMIFS($G4:G$5,$C4:C$5,C4)-SUMIFS($I3:I$4,$C3:C$4,C4)<0,0,SUMIFS($G4:G$5,$C4:C$5,C4)-SUMIFS($I3:I$4,$C3:C$4,C4))) -> 0 | J4: =IF(I4=0,0,IF(C4="",0,SUMIFS($I4:I$4,$C4:C$4,C4))) -> 0 | K4: =IF(C4="",0,H4-I4) -> 0 | O4: الجمهورية الجزائرية الديمقراطية الشعبية
A5: 2 | B5: 2023-04-01 | C5: =IFERROR(VLOOKUP(D5,Nomenclature!$B$2:$C$196,2,0),"") -> 13100 | D5: الزيادات الاستدلالية | E5: التزام في الجدول الأصلي الأولي رقم 2023/01 الخاص بالمرتبات الشهرية للموظفين من 2023/01/01 إلى غاية 2023/12/31 | G5: 6500000 | H5: =IF(C5="",0,IF(SUMIFS($G$5:G5,$C$5:C5,C5)-SUMIFS($I$4:I4,$C$4:C4,C5)<0,0,SUMIFS($G$5:G5,$C$5:C5,C5)-SUMIFS($I$4:I4,$C$4:C4,C5))) -> 6500000 | J5: =IF(C5="",0,IF(C5=$C$4,SUMIFS($I$4:I4,$C$4:C4,C4),SUMIFS($I$4:I4,$C$4:C4,C5))) -> 0 | K5: 6500000 | O5: الـوزارة: | T5: =الواجهة!C2 -> وزارة البيئة و الطاقات المتجددة
A6: 3 | C6: =IFERROR(VLOOKUP(D6,Nomenclature!$B$2:$C$196,2,0),"") ->  | H6: =IF(C6="",0,IF(SUMIFS($G$5:G6,$C$5:C6,C6)-SUMIFS($I$4:I5,$C$4:C5,C6)<0,0,SUMIFS($G$5:G6,$C$5:C6,C6)-SUMIFS($I$4:I5,$C$4:C5,C6))) -> 0 | J6: =IF(C6="",0,IF(C6=$C$4,SUMIFS($I$4:I5,$C$4:C5,C5),SUMIFS($I$4:I5,$C$4:C5,C6))) -> 0 | K6: 0 | O6: الهيئة الإدارية: | T6: =الواجهة!C3 -> مديرية البيئة لولاية المسيلة
A7: 4 | C7: =IFERROR(VLOOKUP(D7,Nomenclature!$B$2:$C$196,2,0),"") ->  | H7: =IF(C7="",0,IF(SUMIFS($G$5:G7,$C$5:C7,C7)-SUMIFS($I$4:I6,$C$4:C6,C7)<0,0,SUMIFS($G$5:G7,$C$5:C7,C7)-SUMIFS($I$4:I6,$C$4:C6,C7))) -> 0 | J7: =IF(C7="",0,IF(C7=$C$4,SUMIFS($I$4:I6,$C$4:C6,C6),SUMIFS($I$4:I6,$C$4:C6,C7))) -> 0 | K7: 0 | O7: رمز الآمر بالصرف: | T7: =الواجهة!C4 -> 144 0 28 01
A8: 5 | C8: =IFERROR(VLOOKUP(D8,Nomenclature!$B$2:$C$196,2,0),"") ->  | H8: =IF(C8="",0,IF(SUMIFS($G$5:G8,$C$5:C8,C8)-SUMIFS($I$4:I7,$C$4:C7,C8)<0,0,SUMIFS($G$5:G8,$C$5:C8,C8)-SUMIFS($I$4:I7,$C$4:C7,C8))) -> 0 | J8: =IF(C8="",0,IF(C8=$C$4,SUMIFS($I$4:I7,$C$4:C7,C7),SUMIFS($I$4:I7,$C$4:C7,C8))) -> 0 | K8: 0 | AH8: .
A9: 6 | C9: =IFERROR(VLOOKUP(D9,Nomenclature!$B$2:$C$196,2,0),"") ->  | H9: =IF(C9="",0,IF(SUMIFS($G$5:G9,$C$5:C9,C9)-SUMIFS($I$4:I8,$C$4:C8,C9)<0,0,SUMIFS($G$5:G9,$C$5:C9,C9)-SUMIFS($I$4:I8,$C$4:C8,C9))) -> 0 | J9: =IF(C9="",0,IF(C9=$C$4,SUMIFS($I$4:I8,$C$4:C8,C8),SUMIFS($I$4:I8,$C$4:C8,C9))) -> 0 | K9: 0
A10: 7 | C10: =IFERROR(VLOOKUP(D10,Nomenclature!$B$2:$C$196,2,0),"") ->  | H10: =IF(C10="",0,IF(SUMIFS($G$5:G10,$C$5:C10,C10)-SUMIFS($I$4:I9,$C$4:C9,C10)<0,0,SUMIFS($G$5:G10,$C$5:C10,C10)-SUMIFS($I$4:I9,$C$4:C9,C10))) -> 0 | J10: =IF(C10="",0,IF(C10=$C$4,SUMIFS($I$4:I9,$C$4:C9,C9),SUMIFS($I$4:I9,$C$4:C9,C10))) -> 0 | K10: 0
A11: 8 | C11: =IFERROR(VLOOKUP(D11,Nomenclature!$B$2:$C$196,2,0),"") ->  | H11: =IF(C11="",0,IF(SUMIFS($G$5:G11,$C$5:C11,C11)-SUMIFS($I$4:I10,$C$4:C10,C11)<0,0,SUMIFS($G$5:G11,$C$5:C11,C11)-SUMIFS($I$4:I10,$C$4:C10,C11))) -> 0 | J11: =IF(C11="",0,IF(C11=$C$4,SUMIFS($I$4:I10,$C$4:C10,C10),SUMIFS($I$4:I10,$C$4:C10,C11))) -> 0 | K11: 0 | P11: رقم بطاقة الالتزام: | U11: =IFERROR(VLOOKUP(N1,A4:L203,1,0),0) -> 1 | AF11: التاريخ: | AH11: =IF(IFERROR(VLOOKUP(N1,A4:L203,2,0),0)=0,"",IFERROR(VLOOKUP(N1,A4:L203,2,0),0)) -> 2023-03-13
A12: 9 | C12: =IFERROR(VLOOKUP(D12,Nomenclature!$B$2:$C$196,2,0),"") ->  | H12: =IF(C12="",0,IF(SUMIFS($G$5:G12,$C$5:C12,C12)-SUMIFS($I$4:I11,$C$4:C11,C12)<0,0,SUMIFS($G$5:G12,$C$5:C12,C12)-SUMIFS($I$4:I11,$C$4:C11,C12))) -> 0 | J12: =IF(C12="",0,IF(C12=$C$4,SUMIFS($I$4:I11,$C$4:C11,C11),SUMIFS($I$4:I11,$C$4:C11,C12))) -> 0 | K12: 0
A13: 10 | C13: =IFERROR(VLOOKUP(D13,Nomenclature!$B$2:$C$196,2,0),"") ->  | H13: =IF(C13="",0,IF(SUMIFS($G$5:G13,$C$5:C13,C13)-SUMIFS($I$4:I12,$C$4:C12,C13)<0,0,SUMIFS($G$5:G13,$C$5:C13,C13)-SUMIFS($I$4:I12,$C$4:C12,C13))) -> 0 | J13: =IF(C13="",0,IF(C13=$C$4,SUMIFS($I$4:I12,$C$4:C12,C12),SUMIFS($I$4:I12,$C$4:C12,C13))) -> 0 | K13: 0
A14: 11 | C14: =IFERROR(VLOOKUP(D14,Nomenclature!$B$2:$C$196,2,0),"") ->  | H14: =IF(C14="",0,IF(SUMIFS($G$5:G14,$C$5:C14,C14)-SUMIFS($I$4:I13,$C$4:C13,C14)<0,0,SUMIFS($G$5:G14,$C$5:C14,C14)-SUMIFS($I$4:I13,$C$4:C13,C14))) -> 0 | J14: =IF(C14="",0,IF(C14=$C$4,SUMIFS($I$4:I13,$C$4:C13,C13),SUMIFS($I$4:I13,$C$4:C13,C14))) -> 0 | K14: 0 | O14: رمز البرنــامج: | T14: =الواجهة!C7 -> 116
A15: 12 | C15: =IFERROR(VLOOKUP(D15,Nomenclature!$B$2:$C$196,2,0),"") ->  | H15: =IF(C15="",0,IF(SUMIFS($G$5:G15,$C$5:C15,C15)-SUMIFS($I$4:I14,$C$4:C14,C15)<0,0,SUMIFS($G$5:G15,$C$5:C15,C15)-SUMIFS($I$4:I14,$C$4:C14,C15))) -> 0 | J15: =IF(C15="",0,IF(C15=$C$4,SUMIFS($I$4:I14,$C$4:C14,C14),SUMIFS($I$4:I14,$C$4:C14,C15))) -> 0 | K15: 0 | O15: رمز النشــاط: | T15: =الواجهة!C6&" "&الواجهة!C7&" "&الواجهة!C10&" "&الواجهة!C8&" "&الواجهة!C9&" "&الواجهة!C11 -> 030 116 02 2001 000 028
A16: 13 | C16: =IFERROR(VLOOKUP(D16,Nomenclature!$B$2:$C$196,2,0),"") ->  | H16: =IF(C16="",0,IF(SUMIFS($G$5:G16,$C$5:C16,C16)-SUMIFS($I$4:I15,$C$4:C15,C16)<0,0,SUMIFS($G$5:G16,$C$5:C16,C16)-SUMIFS($I$4:I15,$C$4:C15,C16))) -> 0 | J16: =IF(C16="",0,IF(C16=$C$4,SUMIFS($I$4:I15,$C$4:C15,C15),SUMIFS($I$4:I15,$C$4:C15,C16))) -> 0 | K16: 0 | O16: رمز النشــاط الفرعي: | T16: =الواجهة!C9 -> 000
A17: 14 | C17: =IFERROR(VLOOKUP(D17,Nomenclature!$B$2:$C$196,2,0),"") ->  | H17: =IF(C17="",0,IF(SUMIFS($G$5:G17,$C$5:C17,C17)-SUMIFS($I$4:I16,$C$4:C16,C17)<0,0,SUMIFS($G$5:G17,$C$5:C17,C17)-SUMIFS($I$4:I16,$C$4:C16,C17))) -> 0 | J17: =IF(C17="",0,IF(C17=$C$4,SUMIFS($I$4:I16,$C$4:C16,C16),SUMIFS($I$4:I16,$C$4:C16,C17))) -> 0 | K17: 0 | O17: رمز البرنـامج الفرعي: | T17: =الواجهة!C10 -> 02
A18: 15 | C18: =IFERROR(VLOOKUP(D18,Nomenclature!$B$2:$C$196,2,0),"") ->  | H18: =IF(C18="",0,IF(SUMIFS($G$5:G18,$C$5:C18,C18)-SUMIFS($I$4:I17,$C$4:C17,C18)<0,0,SUMIFS($G$5:G18,$C$5:C18,C18)-SUMIFS($I$4:I17,$C$4:C17,C18))) -> 0 | J18: =IF(C18="",0,IF(C18=$C$4,SUMIFS($I$4:I17,$C$4:C17,C17),SUMIFS($I$4:I17,$C$4:C17,C18))) -> 0 | K18: 0
A19: 16 | C19: =IFERROR(VLOOKUP(D19,Nomenclature!$B$2:$C$196,2,0),"") ->  | H19: =IF(C19="",0,IF(SUMIFS($G$5:G19,$C$5:C19,C19)-SUMIFS($I$4:I18,$C$4:C18,C19)<0,0,SUMIFS($G$5:G19,$C$5:C19,C19)-SUMIFS($I$4:I18,$C$4:C18,C19))) -> 0 | J19: =IF(C19="",0,IF(C19=$C$4,SUMIFS($I$4:I18,$C$4:C18,C18),SUMIFS($I$4:I18,$C$4:C18,C19))) -> 0 | K19: 0
A20: 17 | C20: =IFERROR(VLOOKUP(D20,Nomenclature!$B$2:$C$196,2,0),"") ->  | H20: =IF(C20="",0,IF(SUMIFS($G$5:G20,$C$5:C20,C20)-SUMIFS($I$4:I19,$C$4:C19,C20)<0,0,SUMIFS($G$5:G20,$C$5:C20,C20)-SUMIFS($I$4:I19,$C$4:C19,C20))) -> 0 | J20: =IF(C20="",0,IF(C20=$C$4,SUMIFS($I$4:I19,$C$4:C19,C19),SUMIFS($I$4:I19,$C$4:C19,C20))) -> 0 | K20: 0 | O20: العنوان:
A21: 18 | C21: =IFERROR(VLOOKUP(D21,Nomenclature!$B$2:$C$196,2,0),"") ->  | H21: =IF(C21="",0,IF(SUMIFS($G$5:G21,$C$5:C21,C21)-SUMIFS($I$4:I20,$C$4:C20,C21)<0,0,SUMIFS($G$5:G21,$C$5:C21,C21)-SUMIFS($I$4:I20,$C$4:C20,C21))) -> 0 | J21: =IF(C21="",0,IF(C21=$C$4,SUMIFS($I$4:I20,$C$4:C20,C20),SUMIFS($I$4:I20,$C$4:C20,C21))) -> 0 | K21: 0 | Q21: =IF(C4<20000,"X","") -> X | S21: العنوان الأول: | W21: نفقات المستخدمين
A22: 19 | C22: =IFERROR(VLOOKUP(D22,Nomenclature!$B$2:$C$196,2,0),"") ->  | H22: =IF(C22="",0,IF(SUMIFS($G$5:G22,$C$5:C22,C22)-SUMIFS($I$4:I21,$C$4:C21,C22)<0,0,SUMIFS($G$5:G22,$C$5:C22,C22)-SUMIFS($I$4:I21,$C$4:C21,C22))) -> 0 | J22: =IF(C22="",0,IF(C22=$C$4,SUMIFS($I$4:I21,$C$4:C21,C21),SUMIFS($I$4:I21,$C$4:C21,C22))) -> 0 | K22: 0 | Q22: =IF(AND(C4>19999,C4<40000),"X","") ->  | S22: العنوان الثاني: | W22: نفقات تسيير المصالح
A23: 20 | C23: =IFERROR(VLOOKUP(D23,Nomenclature!$B$2:$C$196,2,0),"") ->  | H23: =IF(C23="",0,IF(SUMIFS($G$5:G23,$C$5:C23,C23)-SUMIFS($I$4:I22,$C$4:C22,C23)<0,0,SUMIFS($G$5:G23,$C$5:C23,C23)-SUMIFS($I$4:I22,$C$4:C22,C23))) -> 0 | J23: =IF(C23="",0,IF(C23=$C$4,SUMIFS($I$4:I22,$C$4:C22,C22),SUMIFS($I$4:I22,$C$4:C22,C23))) -> 0 | K23: 0 | Q23: =IF(AND(Q21="",Q22=""),"X","") ->  | S23: العنوان الرابع: | W23: نفقات التحويل
A24: 21 | C24: =IFERROR(VLOOKUP(D24,Nomenclature!$B$2:$C$196,2,0),"") ->  | H24: =IF(C24="",0,IF(SUMIFS($G$5:G24,$C$5:C24,C24)-SUMIFS($I$4:I23,$C$4:C23,C24)<0,0,SUMIFS($G$5:G24,$C$5:C24,C24)-SUMIFS($I$4:I23,$C$4:C23,C24))) -> 0 | J24: =IF(C24="",0,IF(C24=$C$4,SUMIFS($I$4:I23,$C$4:C23,C23),SUMIFS($I$4:I23,$C$4:C23,C24))) -> 0 | K24: 0 | R24: =IF(VLOOKUP(N1,A4:L203,12,0)="","- - - - - - - - - - - - - - - - - - - - - - - - - - - - - - - - - - - - - - - - - - - - - - - / / / - - - - - - - - - - - - - - - - - - - - - - - - - - - - - - - - - - - - - - - - - - - - - - -"& CHAR(10)&"- - - - - - - - - - - - - - - - - - - - - - - - - - - - - - - - - - - - - - - - - - - - - - - / / / - - - - - - - - - - - - - - - - - - - - - - - - - - - - - - - - - - - - - - - - - - - - - - -",VLOOKUP(N1,A4:L203,12,0)) -> - - - - - - - - - - - - - - - - - - - - - - - - - - - - - - - - - - - - - - - - - - - - - - - / / / - - - - - - - - - - - - - - - - - - - - - - - - - - - - - - - - - - - - - - - - - - - - - - - - - - - - - - - - - - - - - - - - - - - - - - - - - - - - - - - - - - - - - - - - - - - - - - / / / - - - - - - - - - - - - - - - - - - - - - - - - - - - - - - - - - - - - - - - - - - - - - - -
A25: 22 | C25: =IFERROR(VLOOKUP(D25,Nomenclature!$B$2:$C$196,2,0),"") ->  | H25: =IF(C25="",0,IF(SUMIFS($G$5:G25,$C$5:C25,C25)-SUMIFS($I$4:I24,$C$4:C24,C25)<0,0,SUMIFS($G$5:G25,$C$5:C25,C25)-SUMIFS($I$4:I24,$C$4:C24,C25))) -> 0 | J25: =IF(C25="",0,IF(C25=$C$4,SUMIFS($I$4:I24,$C$4:C24,C24),SUMIFS($I$4:I24,$C$4:C24,C25))) -> 0 | K25: 0
A26: 23 | C26: =IFERROR(VLOOKUP(D26,Nomenclature!$B$2:$C$196,2,0),"") ->  | H26: =IF(C26="",0,IF(SUMIFS($G$5:G26,$C$5:C26,C26)-SUMIFS($I$4:I25,$C$4:C25,C26)<0,0,SUMIFS($G$5:G26,$C$5:C26,C26)-SUMIFS($I$4:I25,$C$4:C25,C26))) -> 0 | J26: =IF(C26="",0,IF(C26=$C$4,SUMIFS($I$4:I25,$C$4:C25,C25),SUMIFS($I$4:I25,$C$4:C25,C26))) -> 0 | K26: 0
A27: 24 | C27: =IFERROR(VLOOKUP(D27,Nomenclature!$B$2:$C$196,2,0),"") ->  | H27: =IF(C27="",0,IF(SUMIFS($G$5:G27,$C$5:C27,C27)-SUMIFS($I$4:I26,$C$4:C26,C27)<0,0,SUMIFS($G$5:G27,$C$5:C27,C27)-SUMIFS($I$4:I26,$C$4:C26,C27))) -> 0 | J27: =IF(C27="",0,IF(C27=$C$4,SUMIFS($I$4:I26,$C$4:C26,C26),SUMIFS($I$4:I26,$C$4:C26,C27))) -> 0 | K27: 0 | O27: الصنف / الصنف الفرعي | W27: رخصة الالتزام المفتوحة/المعدلة | AA27: مجموع الالتزامات السابقة | AE27: الرصيد الأولي | AI27: الالتزام المقترح | AM27: الرصيد المتبقى
A28: 25 | C28: =IFERROR(VLOOKUP(D28,Nomenclature!$B$2:$C$196,2,0),"") ->  | H28: =IF(C28="",0,IF(SUMIFS($G$5:G28,$C$5:C28,C28)-SUMIFS($I$4:I27,$C$4:C27,C28)<0,0,SUMIFS($G$5:G28,$C$5:C28,C28)-SUMIFS($I$4:I27,$C$4:C27,C28))) -> 0 | J28: =IF(C28="",0,IF(C28=$C$4,SUMIFS($I$4:I27,$C$4:C27,C27),SUMIFS($I$4:I27,$C$4:C27,C28))) -> 0 | K28: 0
A29: 26 | C29: =IFERROR(VLOOKUP(D29,Nomenclature!$B$2:$C$196,2,0),"") ->  | H29: =IF(C29="",0,IF(SUMIFS($G$5:G29,$C$5:C29,C29)-SUMIFS($I$4:I28,$C$4:C28,C29)<0,0,SUMIFS($G$5:G29,$C$5:C29,C29)-SUMIFS($I$4:I28,$C$4:C28,C29))) -> 0 | J29: =IF(C29="",0,IF(C29=$C$4,SUMIFS($I$4:I28,$C$4:C28,C28),SUMIFS($I$4:I28,$C$4:C28,C29))) -> 0 | K29: 0 | O29: الصنف | S29: =C4 -> 13000 | W29: =SUM($F$4:INDIRECT("f"&N1+3)) -> 6500000 | AA29: =SUM($I$4:INDIRECT("i"&N1+2)) -> 0 | AE29: =W29-AA29 -> 6500000 | AI29: =IF(S31="",0,VLOOKUP(N1,A4:L103,9,0)) -> 0 | AM29: =IF((AE29-AI29)<0,"رصيد غير كاف",AE29-AI29) -> 6500000
A30: 27 | C30: =IFERROR(VLOOKUP(D30,Nomenclature!$B$2:$C$196,2,0),"") ->  | H30: =IF(C30="",0,IF(SUMIFS($G$5:G30,$C$5:C30,C30)-SUMIFS($I$4:I29,$C$4:C29,C30)<0,0,SUMIFS($G$5:G30,$C$5:C30,C30)-SUMIFS($I$4:I29,$C$4:C29,C30))) -> 0 | J30: =IF(C30="",0,IF(C30=$C$4,SUMIFS($I$4:I29,$C$4:C29,C29),SUMIFS($I$4:I29,$C$4:C29,C30))) -> 0 | K30: 0
A31: 28 | C31: =IFERROR(VLOOKUP(D31,Nomenclature!$B$2:$C$196,2,0),"") ->  | H31: =IF(C31="",0,IF(SUMIFS($G$5:G31,$C$5:C31,C31)-SUMIFS($I$4:I30,$C$4:C30,C31)<0,0,SUMIFS($G$5:G31,$C$5:C31,C31)-SUMIFS($I$4:I30,$C$4:C30,C31))) -> 0 | J31: =IF(C31="",0,IF(C31=$C$4,SUMIFS($I$4:I30,$C$4:C30,C30),SUMIFS($I$4:I30,$C$4:C30,C31))) -> 0 | K31: 0 | O31: الصنف الفرعي | S31: =IF(IFERROR(VLOOKUP(N1,A4:L103,3,0),"انتبه خطأ")=S29,"",IFERROR(VLOOKUP(N1,A4:L103,3,0),"انتبه خطأ")) ->  | W31: =IF(S31="","",VLOOKUP(N1,A4:L103,8,0)) ->  | AA31: =IF(S31="","",VLOOKUP(N1,A4:L103,10,0)) ->  | AE31: =IF(S31="","",W31-AA31) ->  | AI31: =IF(S31="","",VLOOKUP(N1,A4:L103,9,0)) ->  | AM31: =IF(S31="","",IF((AE31-AI31)<0,"رصيد غير كاف",AE31-AI31)) -> 
A32: 29 | C32: =IFERROR(VLOOKUP(D32,Nomenclature!$B$2:$C$196,2,0),"") ->  | H32: =IF(C32="",0,IF(SUMIFS($G$5:G32,$C$5:C32,C32)-SUMIFS($I$4:I31,$C$4:C31,C32)<0,0,SUMIFS($G$5:G32,$C$5:C32,C32)-SUMIFS($I$4:I31,$C$4:C31,C32))) -> 0 | J32: =IF(C32="",0,IF(C32=$C$4,SUMIFS($I$4:I31,$C$4:C31,C31),SUMIFS($I$4:I31,$C$4:C31,C32))) -> 0 | K32: 0
A33: 30 | C33: =IFERROR(VLOOKUP(D33,Nomenclature!$B$2:$C$196,2,0),"") ->  | H33: =IF(C33="",0,IF(SUMIFS($G$5:G33,$C$5:C33,C33)-SUMIFS($I$4:I32,$C$4:C32,C33)<0,0,SUMIFS($G$5:G33,$C$5:C33,C33)-SUMIFS($I$4:I32,$C$4:C32,C33))) -> 0 | J33: =IF(C33="",0,IF(C33=$C$4,SUMIFS($I$4:I32,$C$4:C32,C32),SUMIFS($I$4:I32,$C$4:C32,C33))) -> 0 | K33: 0
A34: 31 | C34: =IFERROR(VLOOKUP(D34,Nomenclature!$B$2:$C$196,2,0),"") ->  | H34: =IF(C34="",0,IF(SUMIFS($G$5:G34,$C$5:C34,C34)-SUMIFS($I$4:I33,$C$4:C33,C34)<0,0,SUMIFS($G$5:G34,$C$5:C34,C34)-SUMIFS($I$4:I33,$C$4:C33,C34))) -> 0 | J34: =IF(C34="",0,IF(C34=$C$4,SUMIFS($I$4:I33,$C$4:C33,C33),SUMIFS($I$4:I33,$C$4:C33,C34))) -> 0 | K34: 0 | O34: موضوع الالتزام:
A35: 32 | C35: =IFERROR(VLOOKUP(D35,Nomenclature!$B$2:$C$196,2,0),"") ->  | H35: =IF(C35="",0,IF(SUMIFS($G$5:G35,$C$5:C35,C35)-SUMIFS($I$4:I34,$C$4:C34,C35)<0,0,SUMIFS($G$5:G35,$C$5:C35,C35)-SUMIFS($I$4:I34,$C$4:C34,C35))) -> 0 | J35: =IF(C35="",0,IF(C35=$C$4,SUMIFS($I$4:I34,$C$4:C34,C34),SUMIFS($I$4:I34,$C$4:C34,C35))) -> 0 | K35: 0 | O35: =IF(VLOOKUP(N1,A4:L203,5,0)=0,"",IFERROR(VLOOKUP(N1,A4:L203,5,0),"انتبه خطأ")) -> تكفل برخصة الالتزام المفتوحة لسنة 2023.
A36: 33 | C36: =IFERROR(VLOOKUP(D36,Nomenclature!$B$2:$C$196,2,0),"") ->  | H36: =IF(C36="",0,IF(SUMIFS($G$5:G36,$C$5:C36,C36)-SUMIFS($I$4:I35,$C$4:C35,C36)<0,0,SUMIFS($G$5:G36,$C$5:C36,C36)-SUMIFS($I$4:I35,$C$4:C35,C36))) -> 0 | J36: =IF(C36="",0,IF(C36=$C$4,SUMIFS($I$4:I35,$C$4:C35,C35),SUMIFS($I$4:I35,$C$4:C35,C36))) -> 0 | K36: 0
A37: 34 | C37: =IFERROR(VLOOKUP(D37,Nomenclature!$B$2:$C$196,2,0),"") ->  | H37: =IF(C37="",0,IF(SUMIFS($G$5:G37,$C$5:C37,C37)-SUMIFS($I$4:I36,$C$4:C36,C37)<0,0,SUMIFS($G$5:G37,$C$5:C37,C37)-SUMIFS($I$4:I36,$C$4:C36,C37))) -> 0 | J37: =IF(C37="",0,IF(C37=$C$4,SUMIFS($I$4:I36,$C$4:C36,C36),SUMIFS($I$4:I36,$C$4:C36,C37))) -> 0 | K37: 0
A38: 35 | C38: =IFERROR(VLOOKUP(D38,Nomenclature!$B$2:$C$196,2,0),"") ->  | H38: =IF(C38="",0,IF(SUMIFS($G$5:G38,$C$5:C38,C38)-SUMIFS($I$4:I37,$C$4:C37,C38)<0,0,SUMIFS($G$5:G38,$C$5:C38,C38)-SUMIFS($I$4:I37,$C$4:C37,C38))) -> 0 | J38: =IF(C38="",0,IF(C38=$C$4,SUMIFS($I$4:I37,$C$4:C37,C37),SUMIFS($I$4:I37,$C$4:C37,C38))) -> 0 | K38: 0
A39: 36 | C39: =IFERROR(VLOOKUP(D39,Nomenclature!$B$2:$C$196,2,0),"") ->  | H39: =IF(C39="",0,IF(SUMIFS($G$5:G39,$C$5:C39,C39)-SUMIFS($I$4:I38,$C$4:C38,C39)<0,0,SUMIFS($G$5:G39,$C$5:C39,C39)-SUMIFS($I$4:I38,$C$4:C38,C39))) -> 0 | J39: =IF(C39="",0,IF(C39=$C$4,SUMIFS($I$4:I38,$C$4:C38,C38),SUMIFS($I$4:I38,$C$4:C38,C39))) -> 0 | K39: 0
A40: 37 | C40: =IFERROR(VLOOKUP(D40,Nomenclature!$B$2:$C$196,2,0),"") ->  | H40: =IF(C40="",0,IF(SUMIFS($G$5:G40,$C$5:C40,C40)-SUMIFS($I$4:I39,$C$4:C39,C40)<0,0,SUMIFS($G$5:G40,$C$5:C40,C40)-SUMIFS($I$4:I39,$C$4:C39,C40))) -> 0 | J40: =IF(C40="",0,IF(C40=$C$4,SUMIFS($I$4:I39,$C$4:C39,C39),SUMIFS($I$4:I39,$C$4:C39,C40))) -> 0 | K40: 0 | O40: المبلغ بالحروف: | S40: =IFERROR(arretera(AI31),"") -> 
A41: 38 | C41: =IFERROR(VLOOKUP(D41,Nomenclature!$B$2:$C$196,2,0),"") ->  | H41: =IF(C41="",0,IF(SUMIFS($G$5:G41,$C$5:C41,C41)-SUMIFS($I$4:I40,$C$4:C40,C41)<0,0,SUMIFS($G$5:G41,$C$5:C41,C41)-SUMIFS($I$4:I40,$C$4:C40,C41))) -> 0 | J41: =IF(C41="",0,IF(C41=$C$4,SUMIFS($I$4:I40,$C$4:C40,C40),SUMIFS($I$4:I40,$C$4:C40,C41))) -> 0 | K41: 0
A42: 39 | C42: =IFERROR(VLOOKUP(D42,Nomenclature!$B$2:$C$196,2,0),"") ->  | H42: =IF(C42="",0,IF(SUMIFS($G$5:G42,$C$5:C42,C42)-SUMIFS($I$4:I41,$C$4:C41,C42)<0,0,SUMIFS($G$5:G42,$C$5:C42,C42)-SUMIFS($I$4:I41,$C$4:C41,C42))) -> 0 | J42: =IF(C42="",0,IF(C42=$C$4,SUMIFS($I$4:I41,$C$4:C41,C41),SUMIFS($I$4:I41,$C$4:C41,C42))) -> 0 | K42: 0
A43: 40 | C43: =IFERROR(VLOOKUP(D43,Nomenclature!$B$2:$C$196,2,0),"") ->  | H43: =IF(C43="",0,IF(SUMIFS($G$5:G43,$C$5:C43,C43)-SUMIFS($I$4:I42,$C$4:C42,C43)<0,0,SUMIFS($G$5:G43,$C$5:C43,C43)-SUMIFS($I$4:I42,$C$4:C42,C43))) -> 0 | J43: =IF(C43="",0,IF(C43=$C$4,SUMIFS($I$4:I42,$C$4:C42,C42),SUMIFS($I$4:I42,$C$4:C42,C43))) -> 0 | K43: 0 | O43: إطار مخصص للمراقب الميزانياتي | AC43: إطار مخصص للآمر بالصرف
A44: 41 | C44: =IFERROR(VLOOKUP(D44,Nomenclature!$B$2:$C$196,2,0),"") ->  | H44: =IF(C44="",0,IF(SUMIFS($G$5:G44,$C$5:C44,C44)-SUMIFS($I$4:I43,$C$4:C43,C44)<0,0,SUMIFS($G$5:G44,$C$5:C44,C44)-SUMIFS($I$4:I43,$C$4:C43,C44))) -> 0 | J44: =IF(C44="",0,IF(C44=$C$4,SUMIFS($I$4:I43,$C$4:C43,C43),SUMIFS($I$4:I43,$C$4:C43,C44))) -> 0 | K44: 0
A45: 42 | C45: =IFERROR(VLOOKUP(D45,Nomenclature!$B$2:$C$196,2,0),"") ->  | H45: =IF(C45="",0,IF(SUMIFS($G$5:G45,$C$5:C45,C45)-SUMIFS($I$4:I44,$C$4:C44,C45)<0,0,SUMIFS($G$5:G45,$C$5:C45,C45)-SUMIFS($I$4:I44,$C$4:C44,C45))) -> 0 | J45: =IF(C45="",0,IF(C45=$C$4,SUMIFS($I$4:I44,$C$4:C44,C44),SUMIFS($I$4:I44,$C$4:C44,C45))) -> 0 | K45: 0 | O45: رقم التأشيرة: | AD45: ختم
A46: 43 | C46: =IFERROR(VLOOKUP(D46,Nomenclature!$B$2:$C$196,2,0),"") ->  | H46: =IF(C46="",0,IF(SUMIFS($G$5:G46,$C$5:C46,C46)-SUMIFS($I$4:I45,$C$4:C45,C46)<0,0,SUMIFS($G$5:G46,$C$5:C46,C46)-SUMIFS($I$4:I45,$C$4:C45,C46))) -> 0 | J46: =IF(C46="",0,IF(C46=$C$4,SUMIFS($I$4:I45,$C$4:C45,C45),SUMIFS($I$4:I45,$C$4:C45,C46))) -> 0 | K46: 0
A47: 44 | C47: =IFERROR(VLOOKUP(D47,Nomenclature!$B$2:$C$196,2,0),"") ->  | H47: =IF(C47="",0,IF(SUMIFS($G$5:G47,$C$5:C47,C47)-SUMIFS($I$4:I46,$C$4:C46,C47)<0,0,SUMIFS($G$5:G47,$C$5:C47,C47)-SUMIFS($I$4:I46,$C$4:C46,C47))) -> 0 | J47: =IF(C47="",0,IF(C47=$C$4,SUMIFS($I$4:I46,$C$4:C46,C46),SUMIFS($I$4:I46,$C$4:C46,C47))) -> 0 | K47: 0 | O47: تاريخ التأشيرة:
A48: 45 | C48: =IFERROR(VLOOKUP(D48,Nomenclature!$B$2:$C$196,2,0),"") ->  | H48: =IF(C48="",0,IF(SUMIFS($G$5:G48,$C$5:C48,C48)-SUMIFS($I$4:I47,$C$4:C47,C48)<0,0,SUMIFS($G$5:G48,$C$5:C48,C48)-SUMIFS($I$4:I47,$C$4:C47,C48))) -> 0 | J48: =IF(C48="",0,IF(C48=$C$4,SUMIFS($I$4:I47,$C$4:C47,C47),SUMIFS($I$4:I47,$C$4:C47,C48))) -> 0 | K48: 0 | AD48: امضاء
A49: 46 | C49: =IFERROR(VLOOKUP(D49,Nomenclature!$B$2:$C$196,2,0),"") ->  | H49: =IF(C49="",0,IF(SUMIFS($G$5:G49,$C$5:C49,C49)-SUMIFS($I$4:I48,$C$4:C48,C49)<0,0,SUMIFS($G$5:G49,$C$5:C49,C49)-SUMIFS($I$4:I48,$C$4:C48,C49))) -> 0 | J49: =IF(C49="",0,IF(C49=$C$4,SUMIFS($I$4:I48,$C$4:C48,C48),SUMIFS($I$4:I48,$C$4:C48,C49))) -> 0 | K49: 0
A50: 47 | C50: =IFERROR(VLOOKUP(D50,Nomenclature!$B$2:$C$196,2,0),"") ->  | H50: =IF(C50="",0,IF(SUMIFS($G$5:G50,$C$5:C50,C50)-SUMIFS($I$4:I49,$C$4:C49,C50)<0,0,SUMIFS($G$5:G50,$C$5:C50,C50)-SUMIFS($I$4:I49,$C$4:C49,C50))) -> 0 | J50: =IF(C50="",0,IF(C50=$C$4,SUMIFS($I$4:I49,$C$4:C49,C49),SUMIFS($I$4:I49,$C$4:C49,C50))) -> 0 | K50: 0
A51: 48 | C51: =IFERROR(VLOOKUP(D51,Nomenclature!$B$2:$C$196,2,0),"") ->  | H51: =IF(C51="",0,IF(SUMIFS($G$5:G51,$C$5:C51,C51)-SUMIFS($I$4:I50,$C$4:C50,C51)<0,0,SUMIFS($G$5:G51,$C$5:C51,C51)-SUMIFS($I$4:I50,$C$4:C50,C51))) -> 0 | J51: =IF(C51="",0,IF(C51=$C$4,SUMIFS($I$4:I50,$C$4:C50,C50),SUMIFS($I$4:I50,$C$4:C50,C51))) -> 0 | K51: 0 | P51: =AD48 -> امضاء | X51: =AD45 -> ختم
A52: 49 | C52: =IFERROR(VLOOKUP(D52,Nomenclature!$B$2:$C$196,2,0),"") ->  | H52: =IF(C52="",0,IF(SUMIFS($G$5:G52,$C$5:C52,C52)-SUMIFS($I$4:I51,$C$4:C51,C52)<0,0,SUMIFS($G$5:G52,$C$5:C52,C52)-SUMIFS($I$4:I51,$C$4:C51,C52))) -> 0 | J52: =IF(C52="",0,IF(C52=$C$4,SUMIFS($I$4:I51,$C$4:C51,C51),SUMIFS($I$4:I51,$C$4:C51,C52))) -> 0 | K52: 0
A53: 50 | C53: =IFERROR(VLOOKUP(D53,Nomenclature!$B$2:$C$196,2,0),"") ->  | H53: =IF(C53="",0,IF(SUMIFS($G$5:G53,$C$5:C53,C53)-SUMIFS($I$4:I52,$C$4:C52,C53)<0,0,SUMIFS($G$5:G53,$C$5:C53,C53)-SUMIFS($I$4:I52,$C$4:C52,C53))) -> 0 | J53: =IF(C53="",0,IF(C53=$C$4,SUMIFS($I$4:I52,$C$4:C52,C52),SUMIFS($I$4:I52,$C$4:C52,C53))) -> 0 | K53: 0
A54: 51 | C54: =IFERROR(VLOOKUP(D54,Nomenclature!$B$2:$C$196,2,0),"") ->  | H54: =IF(C54="",0,IF(SUMIFS($G$5:G54,$C$5:C54,C54)-SUMIFS($I$4:I53,$C$4:C53,C54)<0,0,SUMIFS($G$5:G54,$C$5:C54,C54)-SUMIFS($I$4:I53,$C$4:C53,C54))) -> 0 | J54: =IF(C54="",0,IF(C54=$C$4,SUMIFS($I$4:I53,$C$4:C53,C53),SUMIFS($I$4:I53,$C$4:C53,C54))) -> 0 | K54: 0
A55: 52 | C55: =IFERROR(VLOOKUP(D55,Nomenclature!$B$2:$C$196,2,0),"") ->  | H55: =IF(C55="",0,IF(SUMIFS($G$5:G55,$C$5:C55,C55)-SUMIFS($I$4:I54,$C$4:C54,C55)<0,0,SUMIFS($G$5:G55,$C$5:C55,C55)-SUMIFS($I$4:I54,$C$4:C54,C55))) -> 0 | J55: =IF(C55="",0,IF(C55=$C$4,SUMIFS($I$4:I54,$C$4:C54,C54),SUMIFS($I$4:I54,$C$4:C54,C55))) -> 0 | K55: 0
A56: 53 | C56: =IFERROR(VLOOKUP(D56,Nomenclature!$B$2:$C$196,2,0),"") ->  | H56: =IF(C56="",0,IF(SUMIFS($G$5:G56,$C$5:C56,C56)-SUMIFS($I$4:I55,$C$4:C55,C56)<0,0,SUMIFS($G$5:G56,$C$5:C56,C56)-SUMIFS($I$4:I55,$C$4:C55,C56))) -> 0 | J56: =IF(C56="",0,IF(C56=$C$4,SUMIFS($I$4:I55,$C$4:C55,C55),SUMIFS($I$4:I55,$C$4:C55,C56))) -> 0 | K56: 0
A57: 54 | C57: =IFERROR(VLOOKUP(D57,Nomenclature!$B$2:$C$196,2,0),"") ->  | H57: =IF(C57="",0,IF(SUMIFS($G$5:G57,$C$5:C57,C57)-SUMIFS($I$4:I56,$C$4:C56,C57)<0,0,SUMIFS($G$5:G57,$C$5:C57,C57)-SUMIFS($I$4:I56,$C$4:C56,C57))) -> 0 | J57: =IF(C57="",0,IF(C57=$C$4,SUMIFS($I$4:I56,$C$4:C56,C56),SUMIFS($I$4:I56,$C$4:C56,C57))) -> 0 | K57: 0
A58: 55 | C58: =IFERROR(VLOOKUP(D58,Nomenclature!$B$2:$C$196,2,0),"") ->  | H58: =IF(C58="",0,IF(SUMIFS($G$5:G58,$C$5:C58,C58)-SUMIFS($I$4:I57,$C$4:C57,C58)<0,0,SUMIFS($G$5:G58,$C$5:C58,C58)-SUMIFS($I$4:I57,$C$4:C57,C58))) -> 0 | J58: =IF(C58="",0,IF(C58=$C$4,SUMIFS($I$4:I57,$C$4:C57,C57),SUMIFS($I$4:I57,$C$4:C57,C58))) -> 0 | K58: 0
A59: 56 | C59: =IFERROR(VLOOKUP(D59,Nomenclature!$B$2:$C$196,2,0),"") ->  | H59: =IF(C59="",0,IF(SUMIFS($G$5:G59,$C$5:C59,C59)-SUMIFS($I$4:I58,$C$4:C58,C59)<0,0,SUMIFS($G$5:G59,$C$5:C59,C59)-SUMIFS($I$4:I58,$C$4:C58,C59))) -> 0 | J59: =IF(C59="",0,IF(C59=$C$4,SUMIFS($I$4:I58,$C$4:C58,C58),SUMIFS($I$4:I58,$C$4:C58,C59))) -> 0 | K59: 0
A60: 57 | C60: =IFERROR(VLOOKUP(D60,Nomenclature!$B$2:$C$196,2,0),"") ->  | H60: =IF(C60="",0,IF(SUMIFS($G$5:G60,$C$5:C60,C60)-SUMIFS($I$4:I59,$C$4:C59,C60)<0,0,SUMIFS($G$5:G60,$C$5:C60,C60)-SUMIFS($I$4:I59,$C$4:C59,C60))) -> 0 | J60: =IF(C60="",0,IF(C60=$C$4,SUMIFS($I$4:I59,$C$4:C59,C59),SUMIFS($I$4:I59,$C$4:C59,C60))) -> 0 | K60: 0
A61: 58 | C61: =IFERROR(VLOOKUP(D61,Nomenclature!$B$2:$C$196,2,0),"") ->  | H61: =IF(C61="",0,IF(SUMIFS($G$5:G61,$C$5:C61,C61)-SUMIFS($I$4:I60,$C$4:C60,C61)<0,0,SUMIFS($G$5:G61,$C$5:C61,C61)-SUMIFS($I$4:I60,$C$4:C60,C61))) -> 0 | J61: =IF(C61="",0,IF(C61=$C$4,SUMIFS($I$4:I60,$C$4:C60,C60),SUMIFS($I$4:I60,$C$4:C60,C61))) -> 0 | K61: 0
A62: 59 | C62: =IFERROR(VLOOKUP(D62,Nomenclature!$B$2:$C$196,2,0),"") ->  | H62: =IF(C62="",0,IF(SUMIFS($G$5:G62,$C$5:C62,C62)-SUMIFS($I$4:I61,$C$4:C61,C62)<0,0,SUMIFS($G$5:G62,$C$5:C62,C62)-SUMIFS($I$4:I61,$C$4:C61,C62))) -> 0 | J62: =IF(C62="",0,IF(C62=$C$4,SUMIFS($I$4:I61,$C$4:C61,C61),SUMIFS($I$4:I61,$C$4:C61,C62))) -> 0 | K62: 0
A63: 60 | C63: =IFERROR(VLOOKUP(D63,Nomenclature!$B$2:$C$196,2,0),"") ->  | H63: =IF(C63="",0,IF(SUMIFS($G$5:G63,$C$5:C63,C63)-SUMIFS($I$4:I62,$C$4:C62,C63)<0,0,SUMIFS($G$5:G63,$C$5:C63,C63)-SUMIFS($I$4:I62,$C$4:C62,C63))) -> 0 | J63: =IF(C63="",0,IF(C63=$C$4,SUMIFS($I$4:I62,$C$4:C62,C62),SUMIFS($I$4:I62,$C$4:C62,C63))) -> 0 | K63: 0
A64: 61 | C64: =IFERROR(VLOOKUP(D64,Nomenclature!$B$2:$C$196,2,0),"") ->  | H64: =IF(C64="",0,IF(SUMIFS($G$5:G64,$C$5:C64,C64)-SUMIFS($I$4:I63,$C$4:C63,C64)<0,0,SUMIFS($G$5:G64,$C$5:C64,C64)-SUMIFS($I$4:I63,$C$4:C63,C64))) -> 0 | J64: =IF(C64="",0,IF(C64=$C$4,SUMIFS($I$4:I63,$C$4:C63,C63),SUMIFS($I$4:I63,$C$4:C63,C64))) -> 0 | K64: 0
A65: 62 | C65: =IFERROR(VLOOKUP(D65,Nomenclature!$B$2:$C$196,2,0),"") ->  | H65: =IF(C65="",0,IF(SUMIFS($G$5:G65,$C$5:C65,C65)-SUMIFS($I$4:I64,$C$4:C64,C65)<0,0,SUMIFS($G$5:G65,$C$5:C65,C65)-SUMIFS($I$4:I64,$C$4:C64,C65))) -> 0 | J65: =IF(C65="",0,IF(C65=$C$4,SUMIFS($I$4:I64,$C$4:C64,C64),SUMIFS($I$4:I64,$C$4:C64,C65))) -> 0 | K65: 0
A66: 63 | C66: =IFERROR(VLOOKUP(D66,Nomenclature!$B$2:$C$196,2,0),"") ->  | H66: =IF(C66="",0,IF(SUMIFS($G$5:G66,$C$5:C66,C66)-SUMIFS($I$4:I65,$C$4:C65,C66)<0,0,SUMIFS($G$5:G66,$C$5:C66,C66)-SUMIFS($I$4:I65,$C$4:C65,C66))) -> 0 | J66: =IF(C66="",0,IF(C66=$C$4,SUMIFS($I$4:I65,$C$4:C65,C65),SUMIFS($I$4:I65,$C$4:C65,C66))) -> 0 | K66: 0
A67: 64 | C67: =IFERROR(VLOOKUP(D67,Nomenclature!$B$2:$C$196,2,0),"") ->  | H67: =IF(C67="",0,IF(SUMIFS($G$5:G67,$C$5:C67,C67)-SUMIFS($I$4:I66,$C$4:C66,C67)<0,0,SUMIFS($G$5:G67,$C$5:C67,C67)-SUMIFS($I$4:I66,$C$4:C66,C67))) -> 0 | J67: =IF(C67="",0,IF(C67=$C$4,SUMIFS($I$4:I66,$C$4:C66,C66),SUMIFS($I$4:I66,$C$4:C66,C67))) -> 0 | K67: 0
A68: 65 | C68: =IFERROR(VLOOKUP(D68,Nomenclature!$B$2:$C$196,2,0),"") ->  | H68: =IF(C68="",0,IF(SUMIFS($G$5:G68,$C$5:C68,C68)-SUMIFS($I$4:I67,$C$4:C67,C68)<0,0,SUMIFS($G$5:G68,$C$5:C68,C68)-SUMIFS($I$4:I67,$C$4:C67,C68))) -> 0 | J68: =IF(C68="",0,IF(C68=$C$4,SUMIFS($I$4:I67,$C$4:C67,C67),SUMIFS($I$4:I67,$C$4:C67,C68))) -> 0 | K68: =IF(C68="",0,H68-I68) -> 0
A69: 66 | C69: =IFERROR(VLOOKUP(D69,Nomenclature!$B$2:$C$196,2,0),"") ->  | H69: =IF(C69="",0,IF(SUMIFS($G$5:G69,$C$5:C69,C69)-SUMIFS($I$4:I68,$C$4:C68,C69)<0,0,SUMIFS($G$5:G69,$C$5:C69,C69)-SUMIFS($I$4:I68,$C$4:C68,C69))) -> 0 | J69: =IF(C69="",0,IF(C69=$C$4,SUMIFS($I$4:I68,$C$4:C68,C68),SUMIFS($I$4:I68,$C$4:C68,C69))) -> 0 | K69: 0
A70: 67 | C70: =IFERROR(VLOOKUP(D70,Nomenclature!$B$2:$C$196,2,0),"") ->  | H70: =IF(C70="",0,IF(SUMIFS($G$5:G70,$C$5:C70,C70)-SUMIFS($I$4:I69,$C$4:C69,C70)<0,0,SUMIFS($G$5:G70,$C$5:C70,C70)-SUMIFS($I$4:I69,$C$4:C69,C70))) -> 0 | J70: =IF(C70="",0,IF(C70=$C$4,SUMIFS($I$4:I69,$C$4:C69,C69),SUMIFS($I$4:I69,$C$4:C69,C70))) -> 0 | K70: 0
A71: 68 | C71: =IFERROR(VLOOKUP(D71,Nomenclature!$B$2:$C$196,2,0),"") ->  | H71: =IF(C71="",0,IF(SUMIFS($G$5:G71,$C$5:C71,C71)-SUMIFS($I$4:I70,$C$4:C70,C71)<0,0,SUMIFS($G$5:G71,$C$5:C71,C71)-SUMIFS($I$4:I70,$C$4:C70,C71))) -> 0 | J71: =IF(C71="",0,IF(C71=$C$4,SUMIFS($I$4:I70,$C$4:C70,C70),SUMIFS($I$4:I70,$C$4:C70,C71))) -> 0 | K71: 0
A72: 69 | C72: =IFERROR(VLOOKUP(D72,Nomenclature!$B$2:$C$196,2,0),"") ->  | H72: =IF(C72="",0,IF(SUMIFS($G$5:G72,$C$5:C72,C72)-SUMIFS($I$4:I71,$C$4:C71,C72)<0,0,SUMIFS($G$5:G72,$C$5:C72,C72)-SUMIFS($I$4:I71,$C$4:C71,C72))) -> 0 | J72: =IF(C72="",0,IF(C72=$C$4,SUMIFS($I$4:I71,$C$4:C71,C71),SUMIFS($I$4:I71,$C$4:C71,C72))) -> 0 | K72: 0
A73: 70 | C73: =IFERROR(VLOOKUP(D73,Nomenclature!$B$2:$C$196,2,0),"") ->  | H73: =IF(C73="",0,IF(SUMIFS($G$5:G73,$C$5:C73,C73)-SUMIFS($I$4:I72,$C$4:C72,C73)<0,0,SUMIFS($G$5:G73,$C$5:C73,C73)-SUMIFS($I$4:I72,$C$4:C72,C73))) -> 0 | J73: =IF(C73="",0,IF(C73=$C$4,SUMIFS($I$4:I72,$C$4:C72,C72),SUMIFS($I$4:I72,$C$4:C72,C73))) -> 0 | K73: 0
A74: 71 | C74: =IFERROR(VLOOKUP(D74,Nomenclature!$B$2:$C$196,2,0),"") ->  | H74: =IF(C74="",0,IF(SUMIFS($G$5:G74,$C$5:C74,C74)-SUMIFS($I$4:I73,$C$4:C73,C74)<0,0,SUMIFS($G$5:G74,$C$5:C74,C74)-SUMIFS($I$4:I73,$C$4:C73,C74))) -> 0 | J74: =IF(C74="",0,IF(C74=$C$4,SUMIFS($I$4:I73,$C$4:C73,C73),SUMIFS($I$4:I73,$C$4:C73,C74))) -> 0 | K74: 0
A75: 72 | C75: =IFERROR(VLOOKUP(D75,Nomenclature!$B$2:$C$196,2,0),"") ->  | H75: =IF(C75="",0,IF(SUMIFS($G$5:G75,$C$5:C75,C75)-SUMIFS($I$4:I74,$C$4:C74,C75)<0,0,SUMIFS($G$5:G75,$C$5:C75,C75)-SUMIFS($I$4:I74,$C$4:C74,C75))) -> 0 | J75: =IF(C75="",0,IF(C75=$C$4,SUMIFS($I$4:I74,$C$4:C74,C74),SUMIFS($I$4:I74,$C$4:C74,C75))) -> 0 | K75: 0
A76: 73 | C76: =IFERROR(VLOOKUP(D76,Nomenclature!$B$2:$C$196,2,0),"") ->  | H76: =IF(C76="",0,IF(SUMIFS($G$5:G76,$C$5:C76,C76)-SUMIFS($I$4:I75,$C$4:C75,C76)<0,0,SUMIFS($G$5:G76,$C$5:C76,C76)-SUMIFS($I$4:I75,$C$4:C75,C76))) -> 0 | J76: =IF(C76="",0,IF(C76=$C$4,SUMIFS($I$4:I75,$C$4:C75,C75),SUMIFS($I$4:I75,$C$4:C75,C76))) -> 0 | K76: 0
A77: 74 | C77: =IFERROR(VLOOKUP(D77,Nomenclature!$B$2:$C$196,2,0),"") ->  | H77: =IF(C77="",0,IF(SUMIFS($G$5:G77,$C$5:C77,C77)-SUMIFS($I$4:I76,$C$4:C76,C77)<0,0,SUMIFS($G$5:G77,$C$5:C77,C77)-SUMIFS($I$4:I76,$C$4:C76,C77))) -> 0 | J77: =IF(C77="",0,IF(C77=$C$4,SUMIFS($I$4:I76,$C$4:C76,C76),SUMIFS($I$4:I76,$C$4:C76,C77))) -> 0 | K77: 0
A78: 75 | C78: =IFERROR(VLOOKUP(D78,Nomenclature!$B$2:$C$196,2,0),"") ->  | H78: =IF(C78="",0,IF(SUMIFS($G$5:G78,$C$5:C78,C78)-SUMIFS($I$4:I77,$C$4:C77,C78)<0,0,SUMIFS($G$5:G78,$C$5:C78,C78)-SUMIFS($I$4:I77,$C$4:C77,C78))) -> 0 | J78: =IF(C78="",0,IF(C78=$C$4,SUMIFS($I$4:I77,$C$4:C77,C77),SUMIFS($I$4:I77,$C$4:C77,C78))) -> 0 | K78: 0
A79: 76 | C79: =IFERROR(VLOOKUP(D79,Nomenclature!$B$2:$C$196,2,0),"") ->  | H79: =IF(C79="",0,IF(SUMIFS($G$5:G79,$C$5:C79,C79)-SUMIFS($I$4:I78,$C$4:C78,C79)<0,0,SUMIFS($G$5:G79,$C$5:C79,C79)-SUMIFS($I$4:I78,$C$4:C78,C79))) -> 0 | J79: =IF(C79="",0,IF(C79=$C$4,SUMIFS($I$4:I78,$C$4:C78,C78),SUMIFS($I$4:I78,$C$4:C78,C79))) -> 0 | K79: 0
A80: 77 | C80: =IFERROR(VLOOKUP(D80,Nomenclature!$B$2:$C$196,2,0),"") ->  | H80: =IF(C80="",0,IF(SUMIFS($G$5:G80,$C$5:C80,C80)-SUMIFS($I$4:I79,$C$4:C79,C80)<0,0,SUMIFS($G$5:G80,$C$5:C80,C80)-SUMIFS($I$4:I79,$C$4:C79,C80))) -> 0 | J80: =IF(C80="",0,IF(C80=$C$4,SUMIFS($I$4:I79,$C$4:C79,C79),SUMIFS($I$4:I79,$C$4:C79,C80))) -> 0 | K80: 0
A81: 78 | C81: =IFERROR(VLOOKUP(D81,Nomenclature!$B$2:$C$196,2,0),"") ->  | H81: =IF(C81="",0,IF(SUMIFS($G$5:G81,$C$5:C81,C81)-SUMIFS($I$4:I80,$C$4:C80,C81)<0,0,SUMIFS($G$5:G81,$C$5:C81,C81)-SUMIFS($I$4:I80,$C$4:C80,C81))) -> 0 | J81: =IF(C81="",0,IF(C81=$C$4,SUMIFS($I$4:I80,$C$4:C80,C80),SUMIFS($I$4:I80,$C$4:C80,C81))) -> 0 | K81: 0
A82: 79 | C82: =IFERROR(VLOOKUP(D82,Nomenclature!$B$2:$C$196,2,0),"") ->  | H82: =IF(C82="",0,IF(SUMIFS($G$5:G82,$C$5:C82,C82)-SUMIFS($I$4:I81,$C$4:C81,C82)<0,0,SUMIFS($G$5:G82,$C$5:C82,C82)-SUMIFS($I$4:I81,$C$4:C81,C82))) -> 0 | J82: =IF(C82="",0,IF(C82=$C$4,SUMIFS($I$4:I81,$C$4:C81,C81),SUMIFS($I$4:I81,$C$4:C81,C82))) -> 0 | K82: 0
A83: 80 | C83: =IFERROR(VLOOKUP(D83,Nomenclature!$B$2:$C$196,2,0),"") ->  | H83: =IF(C83="",0,IF(SUMIFS($G$5:G83,$C$5:C83,C83)-SUMIFS($I$4:I82,$C$4:C82,C83)<0,0,SUMIFS($G$5:G83,$C$5:C83,C83)-SUMIFS($I$4:I82,$C$4:C82,C83))) -> 0 | J83: =IF(C83="",0,IF(C83=$C$4,SUMIFS($I$4:I82,$C$4:C82,C82),SUMIFS($I$4:I82,$C$4:C82,C83))) -> 0 | K83: 0
A84: 81 | C84: =IFERROR(VLOOKUP(D84,Nomenclature!$B$2:$C$196,2,0),"") ->  | H84: =IF(C84="",0,IF(SUMIFS($G$5:G84,$C$5:C84,C84)-SUMIFS($I$4:I83,$C$4:C83,C84)<0,0,SUMIFS($G$5:G84,$C$5:C84,C84)-SUMIFS($I$4:I83,$C$4:C83,C84))) -> 0 | J84: =IF(C84="",0,IF(C84=$C$4,SUMIFS($I$4:I83,$C$4:C83,C83),SUMIFS($I$4:I83,$C$4:C83,C84))) -> 0 | K84: 0
A85: 82 | C85: =IFERROR(VLOOKUP(D85,Nomenclature!$B$2:$C$196,2,0),"") ->  | H85: =IF(C85="",0,IF(SUMIFS($G$5:G85,$C$5:C85,C85)-SUMIFS($I$4:I84,$C$4:C84,C85)<0,0,SUMIFS($G$5:G85,$C$5:C85,C85)-SUMIFS($I$4:I84,$C$4:C84,C85))) -> 0 | J85: =IF(C85="",0,IF(C85=$C$4,SUMIFS($I$4:I84,$C$4:C84,C84),SUMIFS($I$4:I84,$C$4:C84,C85))) -> 0 | K85: 0
A86: 83 | C86: =IFERROR(VLOOKUP(D86,Nomenclature!$B$2:$C$196,2,0),"") ->  | H86: =IF(C86="",0,IF(SUMIFS($G$5:G86,$C$5:C86,C86)-SUMIFS($I$4:I85,$C$4:C85,C86)<0,0,SUMIFS($G$5:G86,$C$5:C86,C86)-SUMIFS($I$4:I85,$C$4:C85,C86))) -> 0 | J86: =IF(C86="",0,IF(C86=$C$4,SUMIFS($I$4:I85,$C$4:C85,C85),SUMIFS($I$4:I85,$C$4:C85,C86))) -> 0 | K86: 0
A87: 84 | C87: =IFERROR(VLOOKUP(D87,Nomenclature!$B$2:$C$196,2,0),"") ->  | H87: =IF(C87="",0,IF(SUMIFS($G$5:G87,$C$5:C87,C87)-SUMIFS($I$4:I86,$C$4:C86,C87)<0,0,SUMIFS($G$5:G87,$C$5:C87,C87)-SUMIFS($I$4:I86,$C$4:C86,C87))) -> 0 | J87: =IF(C87="",0,IF(C87=$C$4,SUMIFS($I$4:I86,$C$4:C86,C86),SUMIFS($I$4:I86,$C$4:C86,C87))) -> 0 | K87: 0
A88: 85 | C88: =IFERROR(VLOOKUP(D88,Nomenclature!$B$2:$C$196,2,0),"") ->  | H88: =IF(C88="",0,IF(SUMIFS($G$5:G88,$C$5:C88,C88)-SUMIFS($I$4:I87,$C$4:C87,C88)<0,0,SUMIFS($G$5:G88,$C$5:C88,C88)-SUMIFS($I$4:I87,$C$4:C87,C88))) -> 0 | J88: =IF(C88="",0,IF(C88=$C$4,SUMIFS($I$4:I87,$C$4:C87,C87),SUMIFS($I$4:I87,$C$4:C87,C88))) -> 0 | K88: 0
A89: 86 | C89: =IFERROR(VLOOKUP(D89,Nomenclature!$B$2:$C$196,2,0),"") ->  | H89: =IF(C89="",0,IF(SUMIFS($G$5:G89,$C$5:C89,C89)-SUMIFS($I$4:I88,$C$4:C88,C89)<0,0,SUMIFS($G$5:G89,$C$5:C89,C89)-SUMIFS($I$4:I88,$C$4:C88,C89))) -> 0 | J89: =IF(C89="",0,IF(C89=$C$4,SUMIFS($I$4:I88,$C$4:C88,C88),SUMIFS($I$4:I88,$C$4:C88,C89))) -> 0 | K89: 0
A90: 87 | C90: =IFERROR(VLOOKUP(D90,Nomenclature!$B$2:$C$196,2,0),"") ->  | H90: =IF(C90="",0,IF(SUMIFS($G$5:G90,$C$5:C90,C90)-SUMIFS($I$4:I89,$C$4:C89,C90)<0,0,SUMIFS($G$5:G90,$C$5:C90,C90)-SUMIFS($I$4:I89,$C$4:C89,C90))) -> 0 | J90: =IF(C90="",0,IF(C90=$C$4,SUMIFS($I$4:I89,$C$4:C89,C89),SUMIFS($I$4:I89,$C$4:C89,C90))) -> 0 | K90: 0
A91: 88 | C91: =IFERROR(VLOOKUP(D91,Nomenclature!$B$2:$C$196,2,0),"") ->  | H91: =IF(C91="",0,IF(SUMIFS($G$5:G91,$C$5:C91,C91)-SUMIFS($I$4:I90,$C$4:C90,C91)<0,0,SUMIFS($G$5:G91,$C$5:C91,C91)-SUMIFS($I$4:I90,$C$4:C90,C91))) -> 0 | J91: =IF(C91="",0,IF(C91=$C$4,SUMIFS($I$4:I90,$C$4:C90,C90),SUMIFS($I$4:I90,$C$4:C90,C91))) -> 0 | K91: 0
A92: 89 | C92: =IFERROR(VLOOKUP(D92,Nomenclature!$B$2:$C$196,2,0),"") ->  | H92: =IF(C92="",0,IF(SUMIFS($G$5:G92,$C$5:C92,C92)-SUMIFS($I$4:I91,$C$4:C91,C92)<0,0,SUMIFS($G$5:G92,$C$5:C92,C92)-SUMIFS($I$4:I91,$C$4:C91,C92))) -> 0 | J92: =IF(C92="",0,IF(C92=$C$4,SUMIFS($I$4:I91,$C$4:C91,C91),SUMIFS($I$4:I91,$C$4:C91,C92))) -> 0 | K92: 0
A93: 90 | C93: =IFERROR(VLOOKUP(D93,Nomenclature!$B$2:$C$196,2,0),"") ->  | H93: =IF(C93="",0,IF(SUMIFS($G$5:G93,$C$5:C93,C93)-SUMIFS($I$4:I92,$C$4:C92,C93)<0,0,SUMIFS($G$5:G93,$C$5:C93,C93)-SUMIFS($I$4:I92,$C$4:C92,C93))) -> 0 | J93: =IF(C93="",0,IF(C93=$C$4,SUMIFS($I$4:I92,$C$4:C92,C92),SUMIFS($I$4:I92,$C$4:C92,C93))) -> 0 | K93: 0
A94: 91 | C94: =IFERROR(VLOOKUP(D94,Nomenclature!$B$2:$C$196,2,0),"") ->  | H94: =IF(C94="",0,IF(SUMIFS($G$5:G94,$C$5:C94,C94)-SUMIFS($I$4:I93,$C$4:C93,C94)<0,0,SUMIFS($G$5:G94,$C$5:C94,C94)-SUMIFS($I$4:I93,$C$4:C93,C94))) -> 0 | J94: =IF(C94="",0,IF(C94=$C$4,SUMIFS($I$4:I93,$C$4:C93,C93),SUMIFS($I$4:I93,$C$4:C93,C94))) -> 0 | K94: 0
A95: 92 | C95: =IFERROR(VLOOKUP(D95,Nomenclature!$B$2:$C$196,2,0),"") ->  | H95: =IF(C95="",0,IF(SUMIFS($G$5:G95,$C$5:C95,C95)-SUMIFS($I$4:I94,$C$4:C94,C95)<0,0,SUMIFS($G$5:G95,$C$5:C95,C95)-SUMIFS($I$4:I94,$C$4:C94,C95))) -> 0 | J95: =IF(C95="",0,IF(C95=$C$4,SUMIFS($I$4:I94,$C$4:C94,C94),SUMIFS($I$4:I94,$C$4:C94,C95))) -> 0 | K95: 0
A96: 93 | C96: =IFERROR(VLOOKUP(D96,Nomenclature!$B$2:$C$196,2,0),"") ->  | H96: =IF(C96="",0,IF(SUMIFS($G$5:G96,$C$5:C96,C96)-SUMIFS($I$4:I95,$C$4:C95,C96)<0,0,SUMIFS($G$5:G96,$C$5:C96,C96)-SUMIFS($I$4:I95,$C$4:C95,C96))) -> 0 | J96: =IF(C96="",0,IF(C96=$C$4,SUMIFS($I$4:I95,$C$4:C95,C95),SUMIFS($I$4:I95,$C$4:C95,C96))) -> 0 | K96: 0
A97: 94 | C97: =IFERROR(VLOOKUP(D97,Nomenclature!$B$2:$C$196,2,0),"") ->  | H97: =IF(C97="",0,IF(SUMIFS($G$5:G97,$C$5:C97,C97)-SUMIFS($I$4:I96,$C$4:C96,C97)<0,0,SUMIFS($G$5:G97,$C$5:C97,C97)-SUMIFS($I$4:I96,$C$4:C96,C97))) -> 0 | J97: =IF(C97="",0,IF(C97=$C$4,SUMIFS($I$4:I96,$C$4:C96,C96),SUMIFS($I$4:I96,$C$4:C96,C97))) -> 0 | K97: 0
A98: 95 | C98: =IFERROR(VLOOKUP(D98,Nomenclature!$B$2:$C$196,2,0),"") ->  | H98: =IF(C98="",0,IF(SUMIFS($G$5:G98,$C$5:C98,C98)-SUMIFS($I$4:I97,$C$4:C97,C98)<0,0,SUMIFS($G$5:G98,$C$5:C98,C98)-SUMIFS($I$4:I97,$C$4:C97,C98))) -> 0 | J98: =IF(C98="",0,IF(C98=$C$4,SUMIFS($I$4:I97,$C$4:C97,C97),SUMIFS($I$4:I97,$C$4:C97,C98))) -> 0 | K98: 0
A99: 96 | C99: =IFERROR(VLOOKUP(D99,Nomenclature!$B$2:$C$196,2,0),"") ->  | H99: =IF(C99="",0,IF(SUMIFS($G$5:G99,$C$5:C99,C99)-SUMIFS($I$4:I98,$C$4:C98,C99)<0,0,SUMIFS($G$5:G99,$C$5:C99,C99)-SUMIFS($I$4:I98,$C$4:C98,C99))) -> 0 | J99: =IF(C99="",0,IF(C99=$C$4,SUMIFS($I$4:I98,$C$4:C98,C98),SUMIFS($I$4:I98,$C$4:C98,C99))) -> 0 | K99: 0
A100: 97 | C100: =IFERROR(VLOOKUP(D100,Nomenclature!$B$2:$C$196,2,0),"") ->  | H100: =IF(C100="",0,IF(SUMIFS($G$5:G100,$C$5:C100,C100)-SUMIFS($I$4:I99,$C$4:C99,C100)<0,0,SUMIFS($G$5:G100,$C$5:C100,C100)-SUMIFS($I$4:I99,$C$4:C99,C100))) -> 0 | J100: =IF(C100="",0,IF(C100=$C$4,SUMIFS($I$4:I99,$C$4:C99,C99),SUMIFS($I$4:I99,$C$4:C99,C100))) -> 0 | K100: 0
A101: 98 | C101: =IFERROR(VLOOKUP(D101,Nomenclature!$B$2:$C$196,2,0),"") ->  | H101: =IF(C101="",0,IF(SUMIFS($G$5:G101,$C$5:C101,C101)-SUMIFS($I$4:I100,$C$4:C100,C101)<0,0,SUMIFS($G$5:G101,$C$5:C101,C101)-SUMIFS($I$4:I100,$C$4:C100,C101))) -> 0 | J101: =IF(C101="",0,IF(C101=$C$4,SUMIFS($I$4:I100,$C$4:C100,C100),SUMIFS($I$4:I100,$C$4:C100,C101))) -> 0 | K101: 0
A102: 99 | C102: =IFERROR(VLOOKUP(D102,Nomenclature!$B$2:$C$196,2,0),"") ->  | H102: =IF(C102="",0,IF(SUMIFS($G$5:G102,$C$5:C102,C102)-SUMIFS($I$4:I101,$C$4:C101,C102)<0,0,SUMIFS($G$5:G102,$C$5:C102,C102)-SUMIFS($I$4:I101,$C$4:C101,C102))) -> 0 | J102: =IF(C102="",0,IF(C102=$C$4,SUMIFS($I$4:I101,$C$4:C101,C101),SUMIFS($I$4:I101,$C$4:C101,C102))) -> 0 | K102: 0
A103: 100 | C103: =IFERROR(VLOOKUP(D103,Nomenclature!$B$2:$C$196,2,0),"") ->  | H103: =IF(C103="",0,IF(SUMIFS($G$5:G103,$C$5:C103,C103)-SUMIFS($I$4:I102,$C$4:C102,C103)<0,0,SUMIFS($G$5:G103,$C$5:C103,C103)-SUMIFS($I$4:I102,$C$4:C102,C103))) -> 0 | J103: =IF(C103="",0,IF(C103=$C$4,SUMIFS($I$4:I102,$C$4:C102,C102),SUMIFS($I$4:I102,$C$4:C102,C103))) -> 0 | K103: 0
A104: 101 | C104: =IFERROR(VLOOKUP(D104,Nomenclature!$B$2:$C$196,2,0),"") ->  | H104: =IF(C104="",0,IF(SUMIFS($G$5:G104,$C$5:C104,C104)-SUMIFS($I$4:I103,$C$4:C103,C104)<0,0,SUMIFS($G$5:G104,$C$5:C104,C104)-SUMIFS($I$4:I103,$C$4:C103,C104))) -> 0 | J104: =IF(C104="",0,IF(C104=$C$4,SUMIFS($I$4:I103,$C$4:C103,C103),SUMIFS($I$4:I103,$C$4:C103,C104))) -> 0 | K104: 0
A105: 102 | C105: =IFERROR(VLOOKUP(D105,Nomenclature!$B$2:$C$196,2,0),"") ->  | H105: =IF(C105="",0,IF(SUMIFS($G$5:G105,$C$5:C105,C105)-SUMIFS($I$4:I104,$C$4:C104,C105)<0,0,SUMIFS($G$5:G105,$C$5:C105,C105)-SUMIFS($I$4:I104,$C$4:C104,C105))) -> 0 | J105: =IF(C105="",0,IF(C105=$C$4,SUMIFS($I$4:I104,$C$4:C104,C104),SUMIFS($I$4:I104,$C$4:C104,C105))) -> 0 | K105: 0
A106: 103 | C106: =IFERROR(VLOOKUP(D106,Nomenclature!$B$2:$C$196,2,0),"") ->  | H106: =IF(C106="",0,IF(SUMIFS($G$5:G106,$C$5:C106,C106)-SUMIFS($I$4:I105,$C$4:C105,C106)<0,0,SUMIFS($G$5:G106,$C$5:C106,C106)-SUMIFS($I$4:I105,$C$4:C105,C106))) -> 0 | J106: =IF(C106="",0,IF(C106=$C$4,SUMIFS($I$4:I105,$C$4:C105,C105),SUMIFS($I$4:I105,$C$4:C105,C106))) -> 0 | K106: 0
A107: 104 | C107: =IFERROR(VLOOKUP(D107,Nomenclature!$B$2:$C$196,2,0),"") ->  | H107: =IF(C107="",0,IF(SUMIFS($G$5:G107,$C$5:C107,C107)-SUMIFS($I$4:I106,$C$4:C106,C107)<0,0,SUMIFS($G$5:G107,$C$5:C107,C107)-SUMIFS($I$4:I106,$C$4:C106,C107))) -> 0 | J107: =IF(C107="",0,IF(C107=$C$4,SUMIFS($I$4:I106,$C$4:C106,C106),SUMIFS($I$4:I106,$C$4:C106,C107))) -> 0 | K107: 0
A108: 105 | C108: =IFERROR(VLOOKUP(D108,Nomenclature!$B$2:$C$196,2,0),"") ->  | H108: =IF(C108="",0,IF(SUMIFS($G$5:G108,$C$5:C108,C108)-SUMIFS($I$4:I107,$C$4:C107,C108)<0,0,SUMIFS($G$5:G108,$C$5:C108,C108)-SUMIFS($I$4:I107,$C$4:C107,C108))) -> 0 | J108: =IF(C108="",0,IF(C108=$C$4,SUMIFS($I$4:I107,$C$4:C107,C107),SUMIFS($I$4:I107,$C$4:C107,C108))) -> 0 | K108: 0
A109: 106 | C109: =IFERROR(VLOOKUP(D109,Nomenclature!$B$2:$C$196,2,0),"") ->  | H109: =IF(C109="",0,IF(SUMIFS($G$5:G109,$C$5:C109,C109)-SUMIFS($I$4:I108,$C$4:C108,C109)<0,0,SUMIFS($G$5:G109,$C$5:C109,C109)-SUMIFS($I$4:I108,$C$4:C108,C109))) -> 0 | J109: =IF(C109="",0,IF(C109=$C$4,SUMIFS($I$4:I108,$C$4:C108,C108),SUMIFS($I$4:I108,$C$4:C108,C109))) -> 0 | K109: 0
A110: 107 | C110: =IFERROR(VLOOKUP(D110,Nomenclature!$B$2:$C$196,2,0),"") ->  | H110: =IF(C110="",0,IF(SUMIFS($G$5:G110,$C$5:C110,C110)-SUMIFS($I$4:I109,$C$4:C109,C110)<0,0,SUMIFS($G$5:G110,$C$5:C110,C110)-SUMIFS($I$4:I109,$C$4:C109,C110))) -> 0 | J110: =IF(C110="",0,IF(C110=$C$4,SUMIFS($I$4:I109,$C$4:C109,C109),SUMIFS($I$4:I109,$C$4:C109,C110))) -> 0 | K110: 0
A111: 108 | C111: =IFERROR(VLOOKUP(D111,Nomenclature!$B$2:$C$196,2,0),"") ->  | H111: =IF(C111="",0,IF(SUMIFS($G$5:G111,$C$5:C111,C111)-SUMIFS($I$4:I110,$C$4:C110,C111)<0,0,SUMIFS($G$5:G111,$C$5:C111,C111)-SUMIFS($I$4:I110,$C$4:C110,C111))) -> 0 | J111: =IF(C111="",0,IF(C111=$C$4,SUMIFS($I$4:I110,$C$4:C110,C110),SUMIFS($I$4:I110,$C$4:C110,C111))) -> 0 | K111: 0
A112: 109 | C112: =IFERROR(VLOOKUP(D112,Nomenclature!$B$2:$C$196,2,0),"") ->  | H112: =IF(C112="",0,IF(SUMIFS($G$5:G112,$C$5:C112,C112)-SUMIFS($I$4:I111,$C$4:C111,C112)<0,0,SUMIFS($G$5:G112,$C$5:C112,C112)-SUMIFS($I$4:I111,$C$4:C111,C112))) -> 0 | J112: =IF(C112="",0,IF(C112=$C$4,SUMIFS($I$4:I111,$C$4:C111,C111),SUMIFS($I$4:I111,$C$4:C111,C112))) -> 0 | K112: 0
A113: 110 | C113: =IFERROR(VLOOKUP(D113,Nomenclature!$B$2:$C$196,2,0),"") ->  | H113: =IF(C113="",0,IF(SUMIFS($G$5:G113,$C$5:C113,C113)-SUMIFS($I$4:I112,$C$4:C112,C113)<0,0,SUMIFS($G$5:G113,$C$5:C113,C113)-SUMIFS($I$4:I112,$C$4:C112,C113))) -> 0 | J113: =IF(C113="",0,IF(C113=$C$4,SUMIFS($I$4:I112,$C$4:C112,C112),SUMIFS($I$4:I112,$C$4:C112,C113))) -> 0 | K113: 0
A114: 111 | C114: =IFERROR(VLOOKUP(D114,Nomenclature!$B$2:$C$196,2,0),"") ->  | H114: =IF(C114="",0,IF(SUMIFS($G$5:G114,$C$5:C114,C114)-SUMIFS($I$4:I113,$C$4:C113,C114)<0,0,SUMIFS($G$5:G114,$C$5:C114,C114)-SUMIFS($I$4:I113,$C$4:C113,C114))) -> 0 | J114: =IF(C114="",0,IF(C114=$C$4,SUMIFS($I$4:I113,$C$4:C113,C113),SUMIFS($I$4:I113,$C$4:C113,C114))) -> 0 | K114: 0
A115: 112 | C115: =IFERROR(VLOOKUP(D115,Nomenclature!$B$2:$C$196,2,0),"") ->  | H115: =IF(C115="",0,IF(SUMIFS($G$5:G115,$C$5:C115,C115)-SUMIFS($I$4:I114,$C$4:C114,C115)<0,0,SUMIFS($G$5:G115,$C$5:C115,C115)-SUMIFS($I$4:I114,$C$4:C114,C115))) -> 0 | J115: =IF(C115="",0,IF(C115=$C$4,SUMIFS($I$4:I114,$C$4:C114,C114),SUMIFS($I$4:I114,$C$4:C114,C115))) -> 0 | K115: 0
A116: 113 | C116: =IFERROR(VLOOKUP(D116,Nomenclature!$B$2:$C$196,2,0),"") ->  | H116: =IF(C116="",0,IF(SUMIFS($G$5:G116,$C$5:C116,C116)-SUMIFS($I$4:I115,$C$4:C115,C116)<0,0,SUMIFS($G$5:G116,$C$5:C116,C116)-SUMIFS($I$4:I115,$C$4:C115,C116))) -> 0 | J116: =IF(C116="",0,IF(C116=$C$4,SUMIFS($I$4:I115,$C$4:C115,C115),SUMIFS($I$4:I115,$C$4:C115,C116))) -> 0 | K116: 0
A117: 114 | C117: =IFERROR(VLOOKUP(D117,Nomenclature!$B$2:$C$196,2,0),"") ->  | H117: =IF(C117="",0,IF(SUMIFS($G$5:G117,$C$5:C117,C117)-SUMIFS($I$4:I116,$C$4:C116,C117)<0,0,SUMIFS($G$5:G117,$C$5:C117,C117)-SUMIFS($I$4:I116,$C$4:C116,C117))) -> 0 | J117: =IF(C117="",0,IF(C117=$C$4,SUMIFS($I$4:I116,$C$4:C116,C116),SUMIFS($I$4:I116,$C$4:C116,C117))) -> 0 | K117: 0
A118: 115 | C118: =IFERROR(VLOOKUP(D118,Nomenclature!$B$2:$C$196,2,0),"") ->  | H118: =IF(C118="",0,IF(SUMIFS($G$5:G118,$C$5:C118,C118)-SUMIFS($I$4:I117,$C$4:C117,C118)<0,0,SUMIFS($G$5:G118,$C$5:C118,C118)-SUMIFS($I$4:I117,$C$4:C117,C118))) -> 0 | J118: =IF(C118="",0,IF(C118=$C$4,SUMIFS($I$4:I117,$C$4:C117,C117),SUMIFS($I$4:I117,$C$4:C117,C118))) -> 0 | K118: 0
A119: 116 | C119: =IFERROR(VLOOKUP(D119,Nomenclature!$B$2:$C$196,2,0),"") ->  | H119: =IF(C119="",0,IF(SUMIFS($G$5:G119,$C$5:C119,C119)-SUMIFS($I$4:I118,$C$4:C118,C119)<0,0,SUMIFS($G$5:G119,$C$5:C119,C119)-SUMIFS($I$4:I118,$C$4:C118,C119))) -> 0 | J119: =IF(C119="",0,IF(C119=$C$4,SUMIFS($I$4:I118,$C$4:C118,C118),SUMIFS($I$4:I118,$C$4:C118,C119))) -> 0 | K119: 0
A120: 117 | C120: =IFERROR(VLOOKUP(D120,Nomenclature!$B$2:$C$196,2,0),"") ->  | H120: =IF(C120="",0,IF(SUMIFS($G$5:G120,$C$5:C120,C120)-SUMIFS($I$4:I119,$C$4:C119,C120)<0,0,SUMIFS($G$5:G120,$C$5:C120,C120)-SUMIFS($I$4:I119,$C$4:C119,C120))) -> 0 | J120: =IF(C120="",0,IF(C120=$C$4,SUMIFS($I$4:I119,$C$4:C119,C119),SUMIFS($I$4:I119,$C$4:C119,C120))) -> 0 | K120: 0
A121: 118 | C121: =IFERROR(VLOOKUP(D121,Nomenclature!$B$2:$C$196,2,0),"") ->  | H121: =IF(C121="",0,IF(SUMIFS($G$5:G121,$C$5:C121,C121)-SUMIFS($I$4:I120,$C$4:C120,C121)<0,0,SUMIFS($G$5:G121,$C$5:C121,C121)-SUMIFS($I$4:I120,$C$4:C120,C121))) -> 0 | J121: =IF(C121="",0,IF(C121=$C$4,SUMIFS($I$4:I120,$C$4:C120,C120),SUMIFS($I$4:I120,$C$4:C120,C121))) -> 0 | K121: 0
A122: 119 | C122: =IFERROR(VLOOKUP(D122,Nomenclature!$B$2:$C$196,2,0),"") ->  | H122: =IF(C122="",0,IF(SUMIFS($G$5:G122,$C$5:C122,C122)-SUMIFS($I$4:I121,$C$4:C121,C122)<0,0,SUMIFS($G$5:G122,$C$5:C122,C122)-SUMIFS($I$4:I121,$C$4:C121,C122))) -> 0 | J122: =IF(C122="",0,IF(C122=$C$4,SUMIFS($I$4:I121,$C$4:C121,C121),SUMIFS($I$4:I121,$C$4:C121,C122))) -> 0 | K122: 0
A123: 120 | C123: =IFERROR(VLOOKUP(D123,Nomenclature!$B$2:$C$196,2,0),"") ->  | H123: =IF(C123="",0,IF(SUMIFS($G$5:G123,$C$5:C123,C123)-SUMIFS($I$4:I122,$C$4:C122,C123)<0,0,SUMIFS($G$5:G123,$C$5:C123,C123)-SUMIFS($I$4:I122,$C$4:C122,C123))) -> 0 | J123: =IF(C123="",0,IF(C123=$C$4,SUMIFS($I$4:I122,$C$4:C122,C122),SUMIFS($I$4:I122,$C$4:C122,C123))) -> 0 | K123: 0
A124: 121 | C124: =IFERROR(VLOOKUP(D124,Nomenclature!$B$2:$C$196,2,0),"") ->  | H124: =IF(C124="",0,IF(SUMIFS($G$5:G124,$C$5:C124,C124)-SUMIFS($I$4:I123,$C$4:C123,C124)<0,0,SUMIFS($G$5:G124,$C$5:C124,C124)-SUMIFS($I$4:I123,$C$4:C123,C124))) -> 0 | J124: =IF(C124="",0,IF(C124=$C$4,SUMIFS($I$4:I123,$C$4:C123,C123),SUMIFS($I$4:I123,$C$4:C123,C124))) -> 0 | K124: 0
A125: 122 | C125: =IFERROR(VLOOKUP(D125,Nomenclature!$B$2:$C$196,2,0),"") ->  | H125: =IF(C125="",0,IF(SUMIFS($G$5:G125,$C$5:C125,C125)-SUMIFS($I$4:I124,$C$4:C124,C125)<0,0,SUMIFS($G$5:G125,$C$5:C125,C125)-SUMIFS($I$4:I124,$C$4:C124,C125))) -> 0 | J125: =IF(C125="",0,IF(C125=$C$4,SUMIFS($I$4:I124,$C$4:C124,C124),SUMIFS($I$4:I124,$C$4:C124,C125))) -> 0 | K125: 0
A126: 123 | C126: =IFERROR(VLOOKUP(D126,Nomenclature!$B$2:$C$196,2,0),"") ->  | H126: =IF(C126="",0,IF(SUMIFS($G$5:G126,$C$5:C126,C126)-SUMIFS($I$4:I125,$C$4:C125,C126)<0,0,SUMIFS($G$5:G126,$C$5:C126,C126)-SUMIFS($I$4:I125,$C$4:C125,C126))) -> 0 | J126: =IF(C126="",0,IF(C126=$C$4,SUMIFS($I$4:I125,$C$4:C125,C125),SUMIFS($I$4:I125,$C$4:C125,C126))) -> 0 | K126: 0
A127: 124 | C127: =IFERROR(VLOOKUP(D127,Nomenclature!$B$2:$C$196,2,0),"") ->  | H127: =IF(C127="",0,IF(SUMIFS($G$5:G127,$C$5:C127,C127)-SUMIFS($I$4:I126,$C$4:C126,C127)<0,0,SUMIFS($G$5:G127,$C$5:C127,C127)-SUMIFS($I$4:I126,$C$4:C126,C127))) -> 0 | J127: =IF(C127="",0,IF(C127=$C$4,SUMIFS($I$4:I126,$C$4:C126,C126),SUMIFS($I$4:I126,$C$4:C126,C127))) -> 0 | K127: 0
A128: 125 | C128: =IFERROR(VLOOKUP(D128,Nomenclature!$B$2:$C$196,2,0),"") ->  | H128: =IF(C128="",0,IF(SUMIFS($G$5:G128,$C$5:C128,C128)-SUMIFS($I$4:I127,$C$4:C127,C128)<0,0,SUMIFS($G$5:G128,$C$5:C128,C128)-SUMIFS($I$4:I127,$C$4:C127,C128))) -> 0 | J128: =IF(C128="",0,IF(C128=$C$4,SUMIFS($I$4:I127,$C$4:C127,C127),SUMIFS($I$4:I127,$C$4:C127,C128))) -> 0 | K128: 0
A129: 126 | C129: =IFERROR(VLOOKUP(D129,Nomenclature!$B$2:$C$196,2,0),"") ->  | H129: =IF(C129="",0,IF(SUMIFS($G$5:G129,$C$5:C129,C129)-SUMIFS($I$4:I128,$C$4:C128,C129)<0,0,SUMIFS($G$5:G129,$C$5:C129,C129)-SUMIFS($I$4:I128,$C$4:C128,C129))) -> 0 | J129: =IF(C129="",0,IF(C129=$C$4,SUMIFS($I$4:I128,$C$4:C128,C128),SUMIFS($I$4:I128,$C$4:C128,C129))) -> 0 | K129: 0
A130: 127 | C130: =IFERROR(VLOOKUP(D130,Nomenclature!$B$2:$C$196,2,0),"") ->  | H130: =IF(C130="",0,IF(SUMIFS($G$5:G130,$C$5:C130,C130)-SUMIFS($I$4:I129,$C$4:C129,C130)<0,0,SUMIFS($G$5:G130,$C$5:C130,C130)-SUMIFS($I$4:I129,$C$4:C129,C130))) -> 0 | J130: =IF(C130="",0,IF(C130=$C$4,SUMIFS($I$4:I129,$C$4:C129,C129),SUMIFS($I$4:I129,$C$4:C129,C130))) -> 0 | K130: 0
A131: 128 | C131: =IFERROR(VLOOKUP(D131,Nomenclature!$B$2:$C$196,2,0),"") ->  | H131: =IF(C131="",0,IF(SUMIFS($G$5:G131,$C$5:C131,C131)-SUMIFS($I$4:I130,$C$4:C130,C131)<0,0,SUMIFS($G$5:G131,$C$5:C131,C131)-SUMIFS($I$4:I130,$C$4:C130,C131))) -> 0 | J131: =IF(C131="",0,IF(C131=$C$4,SUMIFS($I$4:I130,$C$4:C130,C130),SUMIFS($I$4:I130,$C$4:C130,C131))) -> 0 | K131: 0
A132: 129 | C132: =IFERROR(VLOOKUP(D132,Nomenclature!$B$2:$C$196,2,0),"") ->  | H132: =IF(C132="",0,IF(SUMIFS($G$5:G132,$C$5:C132,C132)-SUMIFS($I$4:I131,$C$4:C131,C132)<0,0,SUMIFS($G$5:G132,$C$5:C132,C132)-SUMIFS($I$4:I131,$C$4:C131,C132))) -> 0 | J132: =IF(C132="",0,IF(C132=$C$4,SUMIFS($I$4:I131,$C$4:C131,C131),SUMIFS($I$4:I131,$C$4:C131,C132))) -> 0 | K132: =IF(C132="",0,H132-I132) -> 0
A133: 130 | C133: =IFERROR(VLOOKUP(D133,Nomenclature!$B$2:$C$196,2,0),"") ->  | H133: =IF(C133="",0,IF(SUMIFS($G$5:G133,$C$5:C133,C133)-SUMIFS($I$4:I132,$C$4:C132,C133)<0,0,SUMIFS($G$5:G133,$C$5:C133,C133)-SUMIFS($I$4:I132,$C$4:C132,C133))) -> 0 | J133: =IF(C133="",0,IF(C133=$C$4,SUMIFS($I$4:I132,$C$4:C132,C132),SUMIFS($I$4:I132,$C$4:C132,C133))) -> 0 | K133: 0
A134: 131 | C134: =IFERROR(VLOOKUP(D134,Nomenclature!$B$2:$C$196,2,0),"") ->  | H134: =IF(C134="",0,IF(SUMIFS($G$5:G134,$C$5:C134,C134)-SUMIFS($I$4:I133,$C$4:C133,C134)<0,0,SUMIFS($G$5:G134,$C$5:C134,C134)-SUMIFS($I$4:I133,$C$4:C133,C134))) -> 0 | J134: =IF(C134="",0,IF(C134=$C$4,SUMIFS($I$4:I133,$C$4:C133,C133),SUMIFS($I$4:I133,$C$4:C133,C134))) -> 0 | K134: 0
A135: 132 | C135: =IFERROR(VLOOKUP(D135,Nomenclature!$B$2:$C$196,2,0),"") ->  | H135: =IF(C135="",0,IF(SUMIFS($G$5:G135,$C$5:C135,C135)-SUMIFS($I$4:I134,$C$4:C134,C135)<0,0,SUMIFS($G$5:G135,$C$5:C135,C135)-SUMIFS($I$4:I134,$C$4:C134,C135))) -> 0 | J135: =IF(C135="",0,IF(C135=$C$4,SUMIFS($I$4:I134,$C$4:C134,C134),SUMIFS($I$4:I134,$C$4:C134,C135))) -> 0 | K135: 0
A136: 133 | C136: =IFERROR(VLOOKUP(D136,Nomenclature!$B$2:$C$196,2,0),"") ->  | H136: =IF(C136="",0,IF(SUMIFS($G$5:G136,$C$5:C136,C136)-SUMIFS($I$4:I135,$C$4:C135,C136)<0,0,SUMIFS($G$5:G136,$C$5:C136,C136)-SUMIFS($I$4:I135,$C$4:C135,C136))) -> 0 | J136: =IF(C136="",0,IF(C136=$C$4,SUMIFS($I$4:I135,$C$4:C135,C135),SUMIFS($I$4:I135,$C$4:C135,C136))) -> 0 | K136: 0
A137: 134 | C137: =IFERROR(VLOOKUP(D137,Nomenclature!$B$2:$C$196,2,0),"") ->  | H137: =IF(C137="",0,IF(SUMIFS($G$5:G137,$C$5:C137,C137)-SUMIFS($I$4:I136,$C$4:C136,C137)<0,0,SUMIFS($G$5:G137,$C$5:C137,C137)-SUMIFS($I$4:I136,$C$4:C136,C137))) -> 0 | J137: =IF(C137="",0,IF(C137=$C$4,SUMIFS($I$4:I136,$C$4:C136,C136),SUMIFS($I$4:I136,$C$4:C136,C137))) -> 0 | K137: 0
A138: 135 | C138: =IFERROR(VLOOKUP(D138,Nomenclature!$B$2:$C$196,2,0),"") ->  | H138: =IF(C138="",0,IF(SUMIFS($G$5:G138,$C$5:C138,C138)-SUMIFS($I$4:I137,$C$4:C137,C138)<0,0,SUMIFS($G$5:G138,$C$5:C138,C138)-SUMIFS($I$4:I137,$C$4:C137,C138))) -> 0 | J138: =IF(C138="",0,IF(C138=$C$4,SUMIFS($I$4:I137,$C$4:C137,C137),SUMIFS($I$4:I137,$C$4:C137,C138))) -> 0 | K138: 0
A139: 136 | C139: =IFERROR(VLOOKUP(D139,Nomenclature!$B$2:$C$196,2,0),"") ->  | H139: =IF(C139="",0,IF(SUMIFS($G$5:G139,$C$5:C139,C139)-SUMIFS($I$4:I138,$C$4:C138,C139)<0,0,SUMIFS($G$5:G139,$C$5:C139,C139)-SUMIFS($I$4:I138,$C$4:C138,C139))) -> 0 | J139: =IF(C139="",0,IF(C139=$C$4,SUMIFS($I$4:I138,$C$4:C138,C138),SUMIFS($I$4:I138,$C$4:C138,C139))) -> 0 | K139: 0
A140: 137 | C140: =IFERROR(VLOOKUP(D140,Nomenclature!$B$2:$C$196,2,0),"") ->  | H140: =IF(C140="",0,IF(SUMIFS($G$5:G140,$C$5:C140,C140)-SUMIFS($I$4:I139,$C$4:C139,C140)<0,0,SUMIFS($G$5:G140,$C$5:C140,C140)-SUMIFS($I$4:I139,$C$4:C139,C140))) -> 0 | J140: =IF(C140="",0,IF(C140=$C$4,SUMIFS($I$4:I139,$C$4:C139,C139),SUMIFS($I$4:I139,$C$4:C139,C140))) -> 0 | K140: 0
A141: 138 | C141: =IFERROR(VLOOKUP(D141,Nomenclature!$B$2:$C$196,2,0),"") ->  | H141: =IF(C141="",0,IF(SUMIFS($G$5:G141,$C$5:C141,C141)-SUMIFS($I$4:I140,$C$4:C140,C141)<0,0,SUMIFS($G$5:G141,$C$5:C141,C141)-SUMIFS($I$4:I140,$C$4:C140,C141))) -> 0 | J141: =IF(C141="",0,IF(C141=$C$4,SUMIFS($I$4:I140,$C$4:C140,C140),SUMIFS($I$4:I140,$C$4:C140,C141))) -> 0 | K141: 0
A142: 139 | C142: =IFERROR(VLOOKUP(D142,Nomenclature!$B$2:$C$196,2,0),"") ->  | H142: =IF(C142="",0,IF(SUMIFS($G$5:G142,$C$5:C142,C142)-SUMIFS($I$4:I141,$C$4:C141,C142)<0,0,SUMIFS($G$5:G142,$C$5:C142,C142)-SUMIFS($I$4:I141,$C$4:C141,C142))) -> 0 | J142: =IF(C142="",0,IF(C142=$C$4,SUMIFS($I$4:I141,$C$4:C141,C141),SUMIFS($I$4:I141,$C$4:C141,C142))) -> 0 | K142: 0
A143: 140 | C143: =IFERROR(VLOOKUP(D143,Nomenclature!$B$2:$C$196,2,0),"") ->  | H143: =IF(C143="",0,IF(SUMIFS($G$5:G143,$C$5:C143,C143)-SUMIFS($I$4:I142,$C$4:C142,C143)<0,0,SUMIFS($G$5:G143,$C$5:C143,C143)-SUMIFS($I$4:I142,$C$4:C142,C143))) -> 0 | J143: =IF(C143="",0,IF(C143=$C$4,SUMIFS($I$4:I142,$C$4:C142,C142),SUMIFS($I$4:I142,$C$4:C142,C143))) -> 0 | K143: 0
A144: 141 | C144: =IFERROR(VLOOKUP(D144,Nomenclature!$B$2:$C$196,2,0),"") ->  | H144: =IF(C144="",0,IF(SUMIFS($G$5:G144,$C$5:C144,C144)-SUMIFS($I$4:I143,$C$4:C143,C144)<0,0,SUMIFS($G$5:G144,$C$5:C144,C144)-SUMIFS($I$4:I143,$C$4:C143,C144))) -> 0 | J144: =IF(C144="",0,IF(C144=$C$4,SUMIFS($I$4:I143,$C$4:C143,C143),SUMIFS($I$4:I143,$C$4:C143,C144))) -> 0 | K144: 0
A145: 142 | C145: =IFERROR(VLOOKUP(D145,Nomenclature!$B$2:$C$196,2,0),"") ->  | H145: =IF(C145="",0,IF(SUMIFS($G$5:G145,$C$5:C145,C145)-SUMIFS($I$4:I144,$C$4:C144,C145)<0,0,SUMIFS($G$5:G145,$C$5:C145,C145)-SUMIFS($I$4:I144,$C$4:C144,C145))) -> 0 | J145: =IF(C145="",0,IF(C145=$C$4,SUMIFS($I$4:I144,$C$4:C144,C144),SUMIFS($I$4:I144,$C$4:C144,C145))) -> 0 | K145: 0
A146: 143 | C146: =IFERROR(VLOOKUP(D146,Nomenclature!$B$2:$C$196,2,0),"") ->  | H146: =IF(C146="",0,IF(SUMIFS($G$5:G146,$C$5:C146,C146)-SUMIFS($I$4:I145,$C$4:C145,C146)<0,0,SUMIFS($G$5:G146,$C$5:C146,C146)-SUMIFS($I$4:I145,$C$4:C145,C146))) -> 0 | J146: =IF(C146="",0,IF(C146=$C$4,SUMIFS($I$4:I145,$C$4:C145,C145),SUMIFS($I$4:I145,$C$4:C145,C146))) -> 0 | K146: 0
A147: 144 | C147: =IFERROR(VLOOKUP(D147,Nomenclature!$B$2:$C$196,2,0),"") ->  | H147: =IF(C147="",0,IF(SUMIFS($G$5:G147,$C$5:C147,C147)-SUMIFS($I$4:I146,$C$4:C146,C147)<0,0,SUMIFS($G$5:G147,$C$5:C147,C147)-SUMIFS($I$4:I146,$C$4:C146,C147))) -> 0 | J147: =IF(C147="",0,IF(C147=$C$4,SUMIFS($I$4:I146,$C$4:C146,C146),SUMIFS($I$4:I146,$C$4:C146,C147))) -> 0 | K147: 0
A148: 145 | C148: =IFERROR(VLOOKUP(D148,Nomenclature!$B$2:$C$196,2,0),"") ->  | H148: =IF(C148="",0,IF(SUMIFS($G$5:G148,$C$5:C148,C148)-SUMIFS($I$4:I147,$C$4:C147,C148)<0,0,SUMIFS($G$5:G148,$C$5:C148,C148)-SUMIFS($I$4:I147,$C$4:C147,C148))) -> 0 | J148: =IF(C148="",0,IF(C148=$C$4,SUMIFS($I$4:I147,$C$4:C147,C147),SUMIFS($I$4:I147,$C$4:C147,C148))) -> 0 | K148: 0
A149: 146 | C149: =IFERROR(VLOOKUP(D149,Nomenclature!$B$2:$C$196,2,0),"") ->  | H149: =IF(C149="",0,IF(SUMIFS($G$5:G149,$C$5:C149,C149)-SUMIFS($I$4:I148,$C$4:C148,C149)<0,0,SUMIFS($G$5:G149,$C$5:C149,C149)-SUMIFS($I$4:I148,$C$4:C148,C149))) -> 0 | J149: =IF(C149="",0,IF(C149=$C$4,SUMIFS($I$4:I148,$C$4:C148,C148),SUMIFS($I$4:I148,$C$4:C148,C149))) -> 0 | K149: 0
A150: 147 | C150: =IFERROR(VLOOKUP(D150,Nomenclature!$B$2:$C$196,2,0),"") ->  | H150: =IF(C150="",0,IF(SUMIFS($G$5:G150,$C$5:C150,C150)-SUMIFS($I$4:I149,$C$4:C149,C150)<0,0,SUMIFS($G$5:G150,$C$5:C150,C150)-SUMIFS($I$4:I149,$C$4:C149,C150))) -> 0 | J150: =IF(C150="",0,IF(C150=$C$4,SUMIFS($I$4:I149,$C$4:C149,C149),SUMIFS($I$4:I149,$C$4:C149,C150))) -> 0 | K150: 0
A151: 148 | C151: =IFERROR(VLOOKUP(D151,Nomenclature!$B$2:$C$196,2,0),"") ->  | H151: =IF(C151="",0,IF(SUMIFS($G$5:G151,$C$5:C151,C151)-SUMIFS($I$4:I150,$C$4:C150,C151)<0,0,SUMIFS($G$5:G151,$C$5:C151,C151)-SUMIFS($I$4:I150,$C$4:C150,C151))) -> 0 | J151: =IF(C151="",0,IF(C151=$C$4,SUMIFS($I$4:I150,$C$4:C150,C150),SUMIFS($I$4:I150,$C$4:C150,C151))) -> 0 | K151: 0
A152: 149 | C152: =IFERROR(VLOOKUP(D152,Nomenclature!$B$2:$C$196,2,0),"") ->  | H152: =IF(C152="",0,IF(SUMIFS($G$5:G152,$C$5:C152,C152)-SUMIFS($I$4:I151,$C$4:C151,C152)<0,0,SUMIFS($G$5:G152,$C$5:C152,C152)-SUMIFS($I$4:I151,$C$4:C151,C152))) -> 0 | J152: =IF(C152="",0,IF(C152=$C$4,SUMIFS($I$4:I151,$C$4:C151,C151),SUMIFS($I$4:I151,$C$4:C151,C152))) -> 0 | K152: 0
A153: 150 | C153: =IFERROR(VLOOKUP(D153,Nomenclature!$B$2:$C$196,2,0),"") ->  | H153: =IF(C153="",0,IF(SUMIFS($G$5:G153,$C$5:C153,C153)-SUMIFS($I$4:I152,$C$4:C152,C153)<0,0,SUMIFS($G$5:G153,$C$5:C153,C153)-SUMIFS($I$4:I152,$C$4:C152,C153))) -> 0 | J153: =IF(C153="",0,IF(C153=$C$4,SUMIFS($I$4:I152,$C$4:C152,C152),SUMIFS($I$4:I152,$C$4:C152,C153))) -> 0 | K153: 0
A154: 151 | C154: =IFERROR(VLOOKUP(D154,Nomenclature!$B$2:$C$196,2,0),"") ->  | H154: =IF(C154="",0,IF(SUMIFS($G$5:G154,$C$5:C154,C154)-SUMIFS($I$4:I153,$C$4:C153,C154)<0,0,SUMIFS($G$5:G154,$C$5:C154,C154)-SUMIFS($I$4:I153,$C$4:C153,C154))) -> 0 | J154: =IF(C154="",0,IF(C154=$C$4,SUMIFS($I$4:I153,$C$4:C153,C153),SUMIFS($I$4:I153,$C$4:C153,C154))) -> 0 | K154: 0
A155: 152 | C155: =IFERROR(VLOOKUP(D155,Nomenclature!$B$2:$C$196,2,0),"") ->  | H155: =IF(C155="",0,IF(SUMIFS($G$5:G155,$C$5:C155,C155)-SUMIFS($I$4:I154,$C$4:C154,C155)<0,0,SUMIFS($G$5:G155,$C$5:C155,C155)-SUMIFS($I$4:I154,$C$4:C154,C155))) -> 0 | J155: =IF(C155="",0,IF(C155=$C$4,SUMIFS($I$4:I154,$C$4:C154,C154),SUMIFS($I$4:I154,$C$4:C154,C155))) -> 0 | K155: 0
A156: 153 | C156: =IFERROR(VLOOKUP(D156,Nomenclature!$B$2:$C$196,2,0),"") ->  | H156: =IF(C156="",0,IF(SUMIFS($G$5:G156,$C$5:C156,C156)-SUMIFS($I$4:I155,$C$4:C155,C156)<0,0,SUMIFS($G$5:G156,$C$5:C156,C156)-SUMIFS($I$4:I155,$C$4:C155,C156))) -> 0 | J156: =IF(C156="",0,IF(C156=$C$4,SUMIFS($I$4:I155,$C$4:C155,C155),SUMIFS($I$4:I155,$C$4:C155,C156))) -> 0 | K156: 0
A157: 154 | C157: =IFERROR(VLOOKUP(D157,Nomenclature!$B$2:$C$196,2,0),"") ->  | H157: =IF(C157="",0,IF(SUMIFS($G$5:G157,$C$5:C157,C157)-SUMIFS($I$4:I156,$C$4:C156,C157)<0,0,SUMIFS($G$5:G157,$C$5:C157,C157)-SUMIFS($I$4:I156,$C$4:C156,C157))) -> 0 | J157: =IF(C157="",0,IF(C157=$C$4,SUMIFS($I$4:I156,$C$4:C156,C156),SUMIFS($I$4:I156,$C$4:C156,C157))) -> 0 | K157: 0
A158: 155 | C158: =IFERROR(VLOOKUP(D158,Nomenclature!$B$2:$C$196,2,0),"") ->  | H158: =IF(C158="",0,IF(SUMIFS($G$5:G158,$C$5:C158,C158)-SUMIFS($I$4:I157,$C$4:C157,C158)<0,0,SUMIFS($G$5:G158,$C$5:C158,C158)-SUMIFS($I$4:I157,$C$4:C157,C158))) -> 0 | J158: =IF(C158="",0,IF(C158=$C$4,SUMIFS($I$4:I157,$C$4:C157,C157),SUMIFS($I$4:I157,$C$4:C157,C158))) -> 0 | K158: 0
A159: 156 | C159: =IFERROR(VLOOKUP(D159,Nomenclature!$B$2:$C$196,2,0),"") ->  | H159: =IF(C159="",0,IF(SUMIFS($G$5:G159,$C$5:C159,C159)-SUMIFS($I$4:I158,$C$4:C158,C159)<0,0,SUMIFS($G$5:G159,$C$5:C159,C159)-SUMIFS($I$4:I158,$C$4:C158,C159))) -> 0 | J159: =IF(C159="",0,IF(C159=$C$4,SUMIFS($I$4:I158,$C$4:C158,C158),SUMIFS($I$4:I158,$C$4:C158,C159))) -> 0 | K159: 0
A160: 157 | C160: =IFERROR(VLOOKUP(D160,Nomenclature!$B$2:$C$196,2,0),"") ->  | H160: =IF(C160="",0,IF(SUMIFS($G$5:G160,$C$5:C160,C160)-SUMIFS($I$4:I159,$C$4:C159,C160)<0,0,SUMIFS($G$5:G160,$C$5:C160,C160)-SUMIFS($I$4:I159,$C$4:C159,C160))) -> 0 | J160: =IF(C160="",0,IF(C160=$C$4,SUMIFS($I$4:I159,$C$4:C159,C159),SUMIFS($I$4:I159,$C$4:C159,C160))) -> 0 | K160: 0
A161: 158 | C161: =IFERROR(VLOOKUP(D161,Nomenclature!$B$2:$C$196,2,0),"") ->  | H161: =IF(C161="",0,IF(SUMIFS($G$5:G161,$C$5:C161,C161)-SUMIFS($I$4:I160,$C$4:C160,C161)<0,0,SUMIFS($G$5:G161,$C$5:C161,C161)-SUMIFS($I$4:I160,$C$4:C160,C161))) -> 0 | J161: =IF(C161="",0,IF(C161=$C$4,SUMIFS($I$4:I160,$C$4:C160,C160),SUMIFS($I$4:I160,$C$4:C160,C161))) -> 0 | K161: 0
A162: 159 | C162: =IFERROR(VLOOKUP(D162,Nomenclature!$B$2:$C$196,2,0),"") ->  | H162: =IF(C162="",0,IF(SUMIFS($G$5:G162,$C$5:C162,C162)-SUMIFS($I$4:I161,$C$4:C161,C162)<0,0,SUMIFS($G$5:G162,$C$5:C162,C162)-SUMIFS($I$4:I161,$C$4:C161,C162))) -> 0 | J162: =IF(C162="",0,IF(C162=$C$4,SUMIFS($I$4:I161,$C$4:C161,C161),SUMIFS($I$4:I161,$C$4:C161,C162))) -> 0 | K162: 0
A163: 160 | C163: =IFERROR(VLOOKUP(D163,Nomenclature!$B$2:$C$196,2,0),"") ->  | H163: =IF(C163="",0,IF(SUMIFS($G$5:G163,$C$5:C163,C163)-SUMIFS($I$4:I162,$C$4:C162,C163)<0,0,SUMIFS($G$5:G163,$C$5:C163,C163)-SUMIFS($I$4:I162,$C$4:C162,C163))) -> 0 | J163: =IF(C163="",0,IF(C163=$C$4,SUMIFS($I$4:I162,$C$4:C162,C162),SUMIFS($I$4:I162,$C$4:C162,C163))) -> 0 | K163: 0
A164: 161 | C164: =IFERROR(VLOOKUP(D164,Nomenclature!$B$2:$C$196,2,0),"") ->  | H164: =IF(C164="",0,IF(SUMIFS($G$5:G164,$C$5:C164,C164)-SUMIFS($I$4:I163,$C$4:C163,C164)<0,0,SUMIFS($G$5:G164,$C$5:C164,C164)-SUMIFS($I$4:I163,$C$4:C163,C164))) -> 0 | J164: =IF(C164="",0,IF(C164=$C$4,SUMIFS($I$4:I163,$C$4:C163,C163),SUMIFS($I$4:I163,$C$4:C163,C164))) -> 0 | K164: 0
A165: 162 | C165: =IFERROR(VLOOKUP(D165,Nomenclature!$B$2:$C$196,2,0),"") ->  | H165: =IF(C165="",0,IF(SUMIFS($G$5:G165,$C$5:C165,C165)-SUMIFS($I$4:I164,$C$4:C164,C165)<0,0,SUMIFS($G$5:G165,$C$5:C165,C165)-SUMIFS($I$4:I164,$C$4:C164,C165))) -> 0 | J165: =IF(C165="",0,IF(C165=$C$4,SUMIFS($I$4:I164,$C$4:C164,C164),SUMIFS($I$4:I164,$C$4:C164,C165))) -> 0 | K165: 0
A166: 163 | C166: =IFERROR(VLOOKUP(D166,Nomenclature!$B$2:$C$196,2,0),"") ->  | H166: =IF(C166="",0,IF(SUMIFS($G$5:G166,$C$5:C166,C166)-SUMIFS($I$4:I165,$C$4:C165,C166)<0,0,SUMIFS($G$5:G166,$C$5:C166,C166)-SUMIFS($I$4:I165,$C$4:C165,C166))) -> 0 | J166: =IF(C166="",0,IF(C166=$C$4,SUMIFS($I$4:I165,$C$4:C165,C165),SUMIFS($I$4:I165,$C$4:C165,C166))) -> 0 | K166: 0
A167: 164 | C167: =IFERROR(VLOOKUP(D167,Nomenclature!$B$2:$C$196,2,0),"") ->  | H167: =IF(C167="",0,IF(SUMIFS($G$5:G167,$C$5:C167,C167)-SUMIFS($I$4:I166,$C$4:C166,C167)<0,0,SUMIFS($G$5:G167,$C$5:C167,C167)-SUMIFS($I$4:I166,$C$4:C166,C167))) -> 0 | J167: =IF(C167="",0,IF(C167=$C$4,SUMIFS($I$4:I166,$C$4:C166,C166),SUMIFS($I$4:I166,$C$4:C166,C167))) -> 0 | K167: 0
A168: 165 | C168: =IFERROR(VLOOKUP(D168,Nomenclature!$B$2:$C$196,2,0),"") ->  | H168: =IF(C168="",0,IF(SUMIFS($G$5:G168,$C$5:C168,C168)-SUMIFS($I$4:I167,$C$4:C167,C168)<0,0,SUMIFS($G$5:G168,$C$5:C168,C168)-SUMIFS($I$4:I167,$C$4:C167,C168))) -> 0 | J168: =IF(C168="",0,IF(C168=$C$4,SUMIFS($I$4:I167,$C$4:C167,C167),SUMIFS($I$4:I167,$C$4:C167,C168))) -> 0 | K168: 0
A169: 166 | C169: =IFERROR(VLOOKUP(D169,Nomenclature!$B$2:$C$196,2,0),"") ->  | H169: =IF(C169="",0,IF(SUMIFS($G$5:G169,$C$5:C169,C169)-SUMIFS($I$4:I168,$C$4:C168,C169)<0,0,SUMIFS($G$5:G169,$C$5:C169,C169)-SUMIFS($I$4:I168,$C$4:C168,C169))) -> 0 | J169: =IF(C169="",0,IF(C169=$C$4,SUMIFS($I$4:I168,$C$4:C168,C168),SUMIFS($I$4:I168,$C$4:C168,C169))) -> 0 | K169: 0
A170: 167 | C170: =IFERROR(VLOOKUP(D170,Nomenclature!$B$2:$C$196,2,0),"") ->  | H170: =IF(C170="",0,IF(SUMIFS($G$5:G170,$C$5:C170,C170)-SUMIFS($I$4:I169,$C$4:C169,C170)<0,0,SUMIFS($G$5:G170,$C$5:C170,C170)-SUMIFS($I$4:I169,$C$4:C169,C170))) -> 0 | J170: =IF(C170="",0,IF(C170=$C$4,SUMIFS($I$4:I169,$C$4:C169,C169),SUMIFS($I$4:I169,$C$4:C169,C170))) -> 0 | K170: 0
A171: 168 | C171: =IFERROR(VLOOKUP(D171,Nomenclature!$B$2:$C$196,2,0),"") ->  | H171: =IF(C171="",0,IF(SUMIFS($G$5:G171,$C$5:C171,C171)-SUMIFS($I$4:I170,$C$4:C170,C171)<0,0,SUMIFS($G$5:G171,$C$5:C171,C171)-SUMIFS($I$4:I170,$C$4:C170,C171))) -> 0 | J171: =IF(C171="",0,IF(C171=$C$4,SUMIFS($I$4:I170,$C$4:C170,C170),SUMIFS($I$4:I170,$C$4:C170,C171))) -> 0 | K171: 0
A172: 169 | C172: =IFERROR(VLOOKUP(D172,Nomenclature!$B$2:$C$196,2,0),"") ->  | H172: =IF(C172="",0,IF(SUMIFS($G$5:G172,$C$5:C172,C172)-SUMIFS($I$4:I171,$C$4:C171,C172)<0,0,SUMIFS($G$5:G172,$C$5:C172,C172)-SUMIFS($I$4:I171,$C$4:C171,C172))) -> 0 | J172: =IF(C172="",0,IF(C172=$C$4,SUMIFS($I$4:I171,$C$4:C171,C171),SUMIFS($I$4:I171,$C$4:C171,C172))) -> 0 | K172: 0
A173: 170 | C173: =IFERROR(VLOOKUP(D173,Nomenclature!$B$2:$C$196,2,0),"") ->  | H173: =IF(C173="",0,IF(SUMIFS($G$5:G173,$C$5:C173,C173)-SUMIFS($I$4:I172,$C$4:C172,C173)<0,0,SUMIFS($G$5:G173,$C$5:C173,C173)-SUMIFS($I$4:I172,$C$4:C172,C173))) -> 0 | J173: =IF(C173="",0,IF(C173=$C$4,SUMIFS($I$4:I172,$C$4:C172,C172),SUMIFS($I$4:I172,$C$4:C172,C173))) -> 0 | K173: 0
A174: 171 | C174: =IFERROR(VLOOKUP(D174,Nomenclature!$B$2:$C$196,2,0),"") ->  | H174: =IF(C174="",0,IF(SUMIFS($G$5:G174,$C$5:C174,C174)-SUMIFS($I$4:I173,$C$4:C173,C174)<0,0,SUMIFS($G$5:G174,$C$5:C174,C174)-SUMIFS($I$4:I173,$C$4:C173,C174))) -> 0 | J174: =IF(C174="",0,IF(C174=$C$4,SUMIFS($I$4:I173,$C$4:C173,C173),SUMIFS($I$4:I173,$C$4:C173,C174))) -> 0 | K174: 0
A175: 172 | C175: =IFERROR(VLOOKUP(D175,Nomenclature!$B$2:$C$196,2,0),"") ->  | H175: =IF(C175="",0,IF(SUMIFS($G$5:G175,$C$5:C175,C175)-SUMIFS($I$4:I174,$C$4:C174,C175)<0,0,SUMIFS($G$5:G175,$C$5:C175,C175)-SUMIFS($I$4:I174,$C$4:C174,C175))) -> 0 | J175: =IF(C175="",0,IF(C175=$C$4,SUMIFS($I$4:I174,$C$4:C174,C174),SUMIFS($I$4:I174,$C$4:C174,C175))) -> 0 | K175: 0
A176: 173 | C176: =IFERROR(VLOOKUP(D176,Nomenclature!$B$2:$C$196,2,0),"") ->  | H176: =IF(C176="",0,IF(SUMIFS($G$5:G176,$C$5:C176,C176)-SUMIFS($I$4:I175,$C$4:C175,C176)<0,0,SUMIFS($G$5:G176,$C$5:C176,C176)-SUMIFS($I$4:I175,$C$4:C175,C176))) -> 0 | J176: =IF(C176="",0,IF(C176=$C$4,SUMIFS($I$4:I175,$C$4:C175,C175),SUMIFS($I$4:I175,$C$4:C175,C176))) -> 0 | K176: 0
A177: 174 | C177: =IFERROR(VLOOKUP(D177,Nomenclature!$B$2:$C$196,2,0),"") ->  | H177: =IF(C177="",0,IF(SUMIFS($G$5:G177,$C$5:C177,C177)-SUMIFS($I$4:I176,$C$4:C176,C177)<0,0,SUMIFS($G$5:G177,$C$5:C177,C177)-SUMIFS($I$4:I176,$C$4:C176,C177))) -> 0 | J177: =IF(C177="",0,IF(C177=$C$4,SUMIFS($I$4:I176,$C$4:C176,C176),SUMIFS($I$4:I176,$C$4:C176,C177))) -> 0 | K177: 0
A178: 175 | C178: =IFERROR(VLOOKUP(D178,Nomenclature!$B$2:$C$196,2,0),"") ->  | H178: =IF(C178="",0,IF(SUMIFS($G$5:G178,$C$5:C178,C178)-SUMIFS($I$4:I177,$C$4:C177,C178)<0,0,SUMIFS($G$5:G178,$C$5:C178,C178)-SUMIFS($I$4:I177,$C$4:C177,C178))) -> 0 | J178: =IF(C178="",0,IF(C178=$C$4,SUMIFS($I$4:I177,$C$4:C177,C177),SUMIFS($I$4:I177,$C$4:C177,C178))) -> 0 | K178: 0
A179: 176 | C179: =IFERROR(VLOOKUP(D179,Nomenclature!$B$2:$C$196,2,0),"") ->  | H179: =IF(C179="",0,IF(SUMIFS($G$5:G179,$C$5:C179,C179)-SUMIFS($I$4:I178,$C$4:C178,C179)<0,0,SUMIFS($G$5:G179,$C$5:C179,C179)-SUMIFS($I$4:I178,$C$4:C178,C179))) -> 0 | J179: =IF(C179="",0,IF(C179=$C$4,SUMIFS($I$4:I178,$C$4:C178,C178),SUMIFS($I$4:I178,$C$4:C178,C179))) -> 0 | K179: 0
A180: 177 | C180: =IFERROR(VLOOKUP(D180,Nomenclature!$B$2:$C$196,2,0),"") ->  | H180: =IF(C180="",0,IF(SUMIFS($G$5:G180,$C$5:C180,C180)-SUMIFS($I$4:I179,$C$4:C179,C180)<0,0,SUMIFS($G$5:G180,$C$5:C180,C180)-SUMIFS($I$4:I179,$C$4:C179,C180))) -> 0 | J180: =IF(C180="",0,IF(C180=$C$4,SUMIFS($I$4:I179,$C$4:C179,C179),SUMIFS($I$4:I179,$C$4:C179,C180))) -> 0 | K180: 0
A181: 178 | C181: =IFERROR(VLOOKUP(D181,Nomenclature!$B$2:$C$196,2,0),"") ->  | H181: =IF(C181="",0,IF(SUMIFS($G$5:G181,$C$5:C181,C181)-SUMIFS($I$4:I180,$C$4:C180,C181)<0,0,SUMIFS($G$5:G181,$C$5:C181,C181)-SUMIFS($I$4:I180,$C$4:C180,C181))) -> 0 | J181: =IF(C181="",0,IF(C181=$C$4,SUMIFS($I$4:I180,$C$4:C180,C180),SUMIFS($I$4:I180,$C$4:C180,C181))) -> 0 | K181: 0
A182: 179 | C182: =IFERROR(VLOOKUP(D182,Nomenclature!$B$2:$C$196,2,0),"") ->  | H182: =IF(C182="",0,IF(SUMIFS($G$5:G182,$C$5:C182,C182)-SUMIFS($I$4:I181,$C$4:C181,C182)<0,0,SUMIFS($G$5:G182,$C$5:C182,C182)-SUMIFS($I$4:I181,$C$4:C181,C182))) -> 0 | J182: =IF(C182="",0,IF(C182=$C$4,SUMIFS($I$4:I181,$C$4:C181,C181),SUMIFS($I$4:I181,$C$4:C181,C182))) -> 0 | K182: 0
A183: 180 | C183: =IFERROR(VLOOKUP(D183,Nomenclature!$B$2:$C$196,2,0),"") ->  | H183: =IF(C183="",0,IF(SUMIFS($G$5:G183,$C$5:C183,C183)-SUMIFS($I$4:I182,$C$4:C182,C183)<0,0,SUMIFS($G$5:G183,$C$5:C183,C183)-SUMIFS($I$4:I182,$C$4:C182,C183))) -> 0 | J183: =IF(C183="",0,IF(C183=$C$4,SUMIFS($I$4:I182,$C$4:C182,C182),SUMIFS($I$4:I182,$C$4:C182,C183))) -> 0 | K183: 0
A184: 181 | C184: =IFERROR(VLOOKUP(D184,Nomenclature!$B$2:$C$196,2,0),"") ->  | H184: =IF(C184="",0,IF(SUMIFS($G$5:G184,$C$5:C184,C184)-SUMIFS($I$4:I183,$C$4:C183,C184)<0,0,SUMIFS($G$5:G184,$C$5:C184,C184)-SUMIFS($I$4:I183,$C$4:C183,C184))) -> 0 | J184: =IF(C184="",0,IF(C184=$C$4,SUMIFS($I$4:I183,$C$4:C183,C183),SUMIFS($I$4:I183,$C$4:C183,C184))) -> 0 | K184: 0
A185: 182 | C185: =IFERROR(VLOOKUP(D185,Nomenclature!$B$2:$C$196,2,0),"") ->  | H185: =IF(C185="",0,IF(SUMIFS($G$5:G185,$C$5:C185,C185)-SUMIFS($I$4:I184,$C$4:C184,C185)<0,0,SUMIFS($G$5:G185,$C$5:C185,C185)-SUMIFS($I$4:I184,$C$4:C184,C185))) -> 0 | J185: =IF(C185="",0,IF(C185=$C$4,SUMIFS($I$4:I184,$C$4:C184,C184),SUMIFS($I$4:I184,$C$4:C184,C185))) -> 0 | K185: 0
A186: 183 | C186: =IFERROR(VLOOKUP(D186,Nomenclature!$B$2:$C$196,2,0),"") ->  | H186: =IF(C186="",0,IF(SUMIFS($G$5:G186,$C$5:C186,C186)-SUMIFS($I$4:I185,$C$4:C185,C186)<0,0,SUMIFS($G$5:G186,$C$5:C186,C186)-SUMIFS($I$4:I185,$C$4:C185,C186))) -> 0 | J186: =IF(C186="",0,IF(C186=$C$4,SUMIFS($I$4:I185,$C$4:C185,C185),SUMIFS($I$4:I185,$C$4:C185,C186))) -> 0 | K186: 0
A187: 184 | C187: =IFERROR(VLOOKUP(D187,Nomenclature!$B$2:$C$196,2,0),"") ->  | H187: =IF(C187="",0,IF(SUMIFS($G$5:G187,$C$5:C187,C187)-SUMIFS($I$4:I186,$C$4:C186,C187)<0,0,SUMIFS($G$5:G187,$C$5:C187,C187)-SUMIFS($I$4:I186,$C$4:C186,C187))) -> 0 | J187: =IF(C187="",0,IF(C187=$C$4,SUMIFS($I$4:I186,$C$4:C186,C186),SUMIFS($I$4:I186,$C$4:C186,C187))) -> 0 | K187: 0
A188: 185 | C188: =IFERROR(VLOOKUP(D188,Nomenclature!$B$2:$C$196,2,0),"") ->  | H188: =IF(C188="",0,IF(SUMIFS($G$5:G188,$C$5:C188,C188)-SUMIFS($I$4:I187,$C$4:C187,C188)<0,0,SUMIFS($G$5:G188,$C$5:C188,C188)-SUMIFS($I$4:I187,$C$4:C187,C188))) -> 0 | J188: =IF(C188="",0,IF(C188=$C$4,SUMIFS($I$4:I187,$C$4:C187,C187),SUMIFS($I$4:I187,$C$4:C187,C188))) -> 0 | K188: 0
A189: 186 | C189: =IFERROR(VLOOKUP(D189,Nomenclature!$B$2:$C$196,2,0),"") ->  | H189: =IF(C189="",0,IF(SUMIFS($G$5:G189,$C$5:C189,C189)-SUMIFS($I$4:I188,$C$4:C188,C189)<0,0,SUMIFS($G$5:G189,$C$5:C189,C189)-SUMIFS($I$4:I188,$C$4:C188,C189))) -> 0 | J189: =IF(C189="",0,IF(C189=$C$4,SUMIFS($I$4:I188,$C$4:C188,C188),SUMIFS($I$4:I188,$C$4:C188,C189))) -> 0 | K189: 0
A190: 187 | C190: =IFERROR(VLOOKUP(D190,Nomenclature!$B$2:$C$196,2,0),"") ->  | H190: =IF(C190="",0,IF(SUMIFS($G$5:G190,$C$5:C190,C190)-SUMIFS($I$4:I189,$C$4:C189,C190)<0,0,SUMIFS($G$5:G190,$C$5:C190,C190)-SUMIFS($I$4:I189,$C$4:C189,C190))) -> 0 | J190: =IF(C190="",0,IF(C190=$C$4,SUMIFS($I$4:I189,$C$4:C189,C189),SUMIFS($I$4:I189,$C$4:C189,C190))) -> 0 | K190: 0
A191: 188 | C191: =IFERROR(VLOOKUP(D191,Nomenclature!$B$2:$C$196,2,0),"") ->  | H191: =IF(C191="",0,IF(SUMIFS($G$5:G191,$C$5:C191,C191)-SUMIFS($I$4:I190,$C$4:C190,C191)<0,0,SUMIFS($G$5:G191,$C$5:C191,C191)-SUMIFS($I$4:I190,$C$4:C190,C191))) -> 0 | J191: =IF(C191="",0,IF(C191=$C$4,SUMIFS($I$4:I190,$C$4:C190,C190),SUMIFS($I$4:I190,$C$4:C190,C191))) -> 0 | K191: 0
A192: 189 | C192: =IFERROR(VLOOKUP(D192,Nomenclature!$B$2:$C$196,2,0),"") ->  | H192: =IF(C192="",0,IF(SUMIFS($G$5:G192,$C$5:C192,C192)-SUMIFS($I$4:I191,$C$4:C191,C192)<0,0,SUMIFS($G$5:G192,$C$5:C192,C192)-SUMIFS($I$4:I191,$C$4:C191,C192))) -> 0 | J192: =IF(C192="",0,IF(C192=$C$4,SUMIFS($I$4:I191,$C$4:C191,C191),SUMIFS($I$4:I191,$C$4:C191,C192))) -> 0 | K192: 0
A193: 190 | C193: =IFERROR(VLOOKUP(D193,Nomenclature!$B$2:$C$196,2,0),"") ->  | H193: =IF(C193="",0,IF(SUMIFS($G$5:G193,$C$5:C193,C193)-SUMIFS($I$4:I192,$C$4:C192,C193)<0,0,SUMIFS($G$5:G193,$C$5:C193,C193)-SUMIFS($I$4:I192,$C$4:C192,C193))) -> 0 | J193: =IF(C193="",0,IF(C193=$C$4,SUMIFS($I$4:I192,$C$4:C192,C192),SUMIFS($I$4:I192,$C$4:C192,C193))) -> 0 | K193: 0
A194: 191 | C194: =IFERROR(VLOOKUP(D194,Nomenclature!$B$2:$C$196,2,0),"") ->  | H194: =IF(C194="",0,IF(SUMIFS($G$5:G194,$C$5:C194,C194)-SUMIFS($I$4:I193,$C$4:C193,C194)<0,0,SUMIFS($G$5:G194,$C$5:C194,C194)-SUMIFS($I$4:I193,$C$4:C193,C194))) -> 0 | J194: =IF(C194="",0,IF(C194=$C$4,SUMIFS($I$4:I193,$C$4:C193,C193),SUMIFS($I$4:I193,$C$4:C193,C194))) -> 0 | K194: 0
A195: 192 | C195: =IFERROR(VLOOKUP(D195,Nomenclature!$B$2:$C$196,2,0),"") ->  | H195: =IF(C195="",0,IF(SUMIFS($G$5:G195,$C$5:C195,C195)-SUMIFS($I$4:I194,$C$4:C194,C195)<0,0,SUMIFS($G$5:G195,$C$5:C195,C195)-SUMIFS($I$4:I194,$C$4:C194,C195))) -> 0 | J195: =IF(C195="",0,IF(C195=$C$4,SUMIFS($I$4:I194,$C$4:C194,C194),SUMIFS($I$4:I194,$C$4:C194,C195))) -> 0 | K195: 0
A196: 193 | C196: =IFERROR(VLOOKUP(D196,Nomenclature!$B$2:$C$196,2,0),"") ->  | H196: =IF(C196="",0,IF(SUMIFS($G$5:G196,$C$5:C196,C196)-SUMIFS($I$4:I195,$C$4:C195,C196)<0,0,SUMIFS($G$5:G196,$C$5:C196,C196)-SUMIFS($I$4:I195,$C$4:C195,C196))) -> 0 | J196: =IF(C196="",0,IF(C196=$C$4,SUMIFS($I$4:I195,$C$4:C195,C195),SUMIFS($I$4:I195,$C$4:C195,C196))) -> 0 | K196: =IF(C196="",0,H196-I196) -> 0
A197: 194 | C197: =IFERROR(VLOOKUP(D197,Nomenclature!$B$2:$C$196,2,0),"") ->  | H197: =IF(C197="",0,IF(SUMIFS($G$5:G197,$C$5:C197,C197)-SUMIFS($I$4:I196,$C$4:C196,C197)<0,0,SUMIFS($G$5:G197,$C$5:C197,C197)-SUMIFS($I$4:I196,$C$4:C196,C197))) -> 0 | J197: =IF(C197="",0,IF(C197=$C$4,SUMIFS($I$4:I196,$C$4:C196,C196),SUMIFS($I$4:I196,$C$4:C196,C197))) -> 0 | K197: 0
A198: 195 | C198: =IFERROR(VLOOKUP(D198,Nomenclature!$B$2:$C$196,2,0),"") ->  | H198: =IF(C198="",0,IF(SUMIFS($G$5:G198,$C$5:C198,C198)-SUMIFS($I$4:I197,$C$4:C197,C198)<0,0,SUMIFS($G$5:G198,$C$5:C198,C198)-SUMIFS($I$4:I197,$C$4:C197,C198))) -> 0 | J198: =IF(C198="",0,IF(C198=$C$4,SUMIFS($I$4:I197,$C$4:C197,C197),SUMIFS($I$4:I197,$C$4:C197,C198))) -> 0 | K198: 0
A199: 196 | C199: =IFERROR(VLOOKUP(D199,Nomenclature!$B$2:$C$196,2,0),"") ->  | H199: =IF(C199="",0,IF(SUMIFS($G$5:G199,$C$5:C199,C199)-SUMIFS($I$4:I198,$C$4:C198,C199)<0,0,SUMIFS($G$5:G199,$C$5:C199,C199)-SUMIFS($I$4:I198,$C$4:C198,C199))) -> 0 | J199: =IF(C199="",0,IF(C199=$C$4,SUMIFS($I$4:I198,$C$4:C198,C198),SUMIFS($I$4:I198,$C$4:C198,C199))) -> 0 | K199: 0
A200: 197 | C200: =IFERROR(VLOOKUP(D200,Nomenclature!$B$2:$C$196,2,0),"") ->  | H200: =IF(C200="",0,IF(SUMIFS($G$5:G200,$C$5:C200,C200)-SUMIFS($I$4:I199,$C$4:C199,C200)<0,0,SUMIFS($G$5:G200,$C$5:C200,C200)-SUMIFS($I$4:I199,$C$4:C199,C200))) -> 0 | J200: =IF(C200="",0,IF(C200=$C$4,SUMIFS($I$4:I199,$C$4:C199,C199),SUMIFS($I$4:I199,$C$4:C199,C200))) -> 0 | K200: 0
A201: 198 | C201: =IFERROR(VLOOKUP(D201,Nomenclature!$B$2:$C$196,2,0),"") ->  | H201: =IF(C201="",0,IF(SUMIFS($G$5:G201,$C$5:C201,C201)-SUMIFS($I$4:I200,$C$4:C200,C201)<0,0,SUMIFS($G$5:G201,$C$5:C201,C201)-SUMIFS($I$4:I200,$C$4:C200,C201))) -> 0 | J201: =IF(C201="",0,IF(C201=$C$4,SUMIFS($I$4:I200,$C$4:C200,C200),SUMIFS($I$4:I200,$C$4:C200,C201))) -> 0 | K201: 0
... 2 more rows

Sheet 14000
A1: رقم الاستمارة | B1: التاريخ | C1: الترميز | D1: الصنف / الصنف الفرعي | E1: ملاحظات المصلحة | F1: AP Cat | G1: =IF(SUM(G4:G203)-SUM(F4:F203)<0,"نقص في توزيع الاعتمادات على الاصناف الفرعية", IF(SUM(G4:G203)-SUM(F4:F203)>0,"تجاوز في الاعتمادات الموزعة على الاصناف الفرعية","AP S.Cat")) -> AP S.Cat | H1: AP Sous_Cat | I1: =IF(I3>G3,"تجاوز في الالتزامات","∑ Engagements") -> ∑ Engagements | J1: ∑ Eng Sous_Cat | K1: Reste | L1: السند القانوني للعنوان الرابع | N1: 1
F3: =SUM(F4:F203) -> 6500000 | G3: =SUM(G4:G203) -> 6500000 | I3: =SUM(I5:I203) -> 0 | K3: =SUM(K4:K104) -> 6500000
A4: 1 | B4: 2023-03-13 | C4: =IFERROR(VLOOKUP(D4,Nomenclature!$B$2:$C$196,2,0),"") -> 14000 | D4: مساهمات صاحب العمل | E4: تكفل برخصة الالتزام المفتوحة لسنة 2023. | F4: 6500000 | H4: =IF(C4="",0,IF(SUMIFS($G4:G$5,$C4:C$5,C4)-SUMIFS($I3:I$4,$C3:C$4,C4)<0,0,SUMIFS($G4:G$5,$C4:C$5,C4)-SUMIFS($I3:I$4,$C3:C$4,C4))) -> 0 | J4: =IF(I4=0,0,IF(C4="",0,SUMIFS($I4:I$4,$C4:C$4,C4))) -> 0 | K4: =IF(C4="",0,H4-I4) -> 0 | O4: الجمهورية الجزائرية الديمقراطية الشعبية
A5: 2 | B5: 2023-04-01 | C5: =IFERROR(VLOOKUP(D5,Nomenclature!$B$2:$C$196,2,0),"") -> 14100 | D5: مساهمات في هيئات الضمان الاجتماعي و التقاعد | E5: التزام في الجدول الأصلي الأولي رقم 2023/01 الخاص بالمرتبات الشهرية للموظفين من 2023/01/01 إلى غاية 2023/12/31 | G5: 6500000 | H5: =IF(C5="",0,IF(SUMIFS($G$5:G5,$C$5:C5,C5)-SUMIFS($I$4:I4,$C$4:C4,C5)<0,0,SUMIFS($G$5:G5,$C$5:C5,C5)-SUMIFS($I$4:I4,$C$4:C4,C5))) -> 6500000 | J5: =IF(C5="",0,IF(C5=$C$4,SUMIFS($I$4:I4,$C$4:C4,C4),SUMIFS($I$4:I4,$C$4:C4,C5))) -> 0 | K5: 6500000 | O5: الـوزارة: | T5: =الواجهة!C2 -> وزارة البيئة و الطاقات المتجددة
A6: 3 | C6: =IFERROR(VLOOKUP(D6,Nomenclature!$B$2:$C$196,2,0),"") ->  | H6: =IF(C6="",0,IF(SUMIFS($G$5:G6,$C$5:C6,C6)-SUMIFS($I$4:I5,$C$4:C5,C6)<0,0,SUMIFS($G$5:G6,$C$5:C6,C6)-SUMIFS($I$4:I5,$C$4:C5,C6))) -> 0 | J6: =IF(C6="",0,IF(C6=$C$4,SUMIFS($I$4:I5,$C$4:C5,C5),SUMIFS($I$4:I5,$C$4:C5,C6))) -> 0 | K6: 0 | O6: الهيئة الإدارية: | T6: =الواجهة!C3 -> مديرية البيئة لولاية المسيلة
A7: 4 | C7: =IFERROR(VLOOKUP(D7,Nomenclature!$B$2:$C$196,2,0),"") ->  | H7: =IF(C7="",0,IF(SUMIFS($G$5:G7,$C$5:C7,C7)-SUMIFS($I$4:I6,$C$4:C6,C7)<0,0,SUMIFS($G$5:G7,$C$5:C7,C7)-SUMIFS($I$4:I6,$C$4:C6,C7))) -> 0 | J7: =IF(C7="",0,IF(C7=$C$4,SUMIFS($I$4:I6,$C$4:C6,C6),SUMIFS($I$4:I6,$C$4:C6,C7))) -> 0 | K7: 0 | O7: رمز الآمر بالصرف: | T7: =الواجهة!C4 -> 144 0 28 01
A8: 5 | C8: =IFERROR(VLOOKUP(D8,Nomenclature!$B$2:$C$196,2,0),"") ->  | H8: =IF(C8="",0,IF(SUMIFS($G$5:G8,$C$5:C8,C8)-SUMIFS($I$4:I7,$C$4:C7,C8)<0,0,SUMIFS($G$5:G8,$C$5:C8,C8)-SUMIFS($I$4:I7,$C$4:C7,C8))) -> 0 | J8: =IF(C8="",0,IF(C8=$C$4,SUMIFS($I$4:I7,$C$4:C7,C7),SUMIFS($I$4:I7,$C$4:C7,C8))) -> 0 | K8: 0 | AH8: .
A9: 6 | C9: =IFERROR(VLOOKUP(D9,Nomenclature!$B$2:$C$196,2,0),"") ->  | H9: =IF(C9="",0,IF(SUMIFS($G$5:G9,$C$5:C9,C9)-SUMIFS($I$4:I8,$C$4:C8,C9)<0,0,SUMIFS($G$5:G9,$C$5:C9,C9)-SUMIFS($I$4:I8,$C$4:C8,C9))) -> 0 | J9: =IF(C9="",0,IF(C9=$C$4,SUMIFS($I$4:I8,$C$4:C8,C8),SUMIFS($I$4:I8,$C$4:C8,C9))) -> 0 | K9: 0
A10: 7 | C10: =IFERROR(VLOOKUP(D10,Nomenclature!$B$2:$C$196,2,0),"") ->  | H10: =IF(C10="",0,IF(SUMIFS($G$5:G10,$C$5:C10,C10)-SUMIFS($I$4:I9,$C$4:C9,C10)<0,0,SUMIFS($G$5:G10,$C$5:C10,C10)-SUMIFS($I$4:I9,$C$4:C9,C10))) -> 0 | J10: =IF(C10="",0,IF(C10=$C$4,SUMIFS($I$4:I9,$C$4:C9,C9),SUMIFS($I$4:I9,$C$4:C9,C10))) -> 0 | K10: 0
A11: 8 | C11: =IFERROR(VLOOKUP(D11,Nomenclature!$B$2:$C$196,2,0),"") ->  | H11: =IF(C11="",0,IF(SUMIFS($G$5:G11,$C$5:C11,C11)-SUMIFS($I$4:I10,$C$4:C10,C11)<0,0,SUMIFS($G$5:G11,$C$5:C11,C11)-SUMIFS($I$4:I10,$C$4:C10,C11))) -> 0 | J11: =IF(C11="",0,IF(C11=$C$4,SUMIFS($I$4:I10,$C$4:C10,C10),SUMIFS($I$4:I10,$C$4:C10,C11))) -> 0 | K11: 0 | P11: رقم بطاقة الالتزام: | U11: =IFERROR(VLOOKUP(N1,A4:L203,1,0),0) -> 1 | AF11: التاريخ: | AH11: =IF(IFERROR(VLOOKUP(N1,A4:L203,2,0),0)=0,"",IFERROR(VLOOKUP(N1,A4:L203,2,0),0)) -> 2023-03-13
A12: 9 | C12: =IFERROR(VLOOKUP(D12,Nomenclature!$B$2:$C$196,2,0),"") ->  | H12: =IF(C12="",0,IF(SUMIFS($G$5:G12,$C$5:C12,C12)-SUMIFS($I$4:I11,$C$4:C11,C12)<0,0,SUMIFS($G$5:G12,$C$5:C12,C12)-SUMIFS($I$4:I11,$C$4:C11,C12))) -> 0 | J12: =IF(C12="",0,IF(C12=$C$4,SUMIFS($I$4:I11,$C$4:C11,C11),SUMIFS($I$4:I11,$C$4:C11,C12))) -> 0 | K12: 0
A13: 10 | C13: =IFERROR(VLOOKUP(D13,Nomenclature!$B$2:$C$196,2,0),"") ->  | H13: =IF(C13="",0,IF(SUMIFS($G$5:G13,$C$5:C13,C13)-SUMIFS($I$4:I12,$C$4:C12,C13)<0,0,SUMIFS($G$5:G13,$C$5:C13,C13)-SUMIFS($I$4:I12,$C$4:C12,C13))) -> 0 | J13: =IF(C13="",0,IF(C13=$C$4,SUMIFS($I$4:I12,$C$4:C12,C12),SUMIFS($I$4:I12,$C$4:C12,C13))) -> 0 | K13: 0
A14: 11 | C14: =IFERROR(VLOOKUP(D14,Nomenclature!$B$2:$C$196,2,0),"") ->  | H14: =IF(C14="",0,IF(SUMIFS($G$5:G14,$C$5:C14,C14)-SUMIFS($I$4:I13,$C$4:C13,C14)<0,0,SUMIFS($G$5:G14,$C$5:C14,C14)-SUMIFS($I$4:I13,$C$4:C13,C14))) -> 0 | J14: =IF(C14="",0,IF(C14=$C$4,SUMIFS($I$4:I13,$C$4:C13,C13),SUMIFS($I$4:I13,$C$4:C13,C14))) -> 0 | K14: 0 | O14: رمز البرنــامج: | T14: =الواجهة!C7 -> 116
A15: 12 | C15: =IFERROR(VLOOKUP(D15,Nomenclature!$B$2:$C$196,2,0),"") ->  | H15: =IF(C15="",0,IF(SUMIFS($G$5:G15,$C$5:C15,C15)-SUMIFS($I$4:I14,$C$4:C14,C15)<0,0,SUMIFS($G$5:G15,$C$5:C15,C15)-SUMIFS($I$4:I14,$C$4:C14,C15))) -> 0 | J15: =IF(C15="",0,IF(C15=$C$4,SUMIFS($I$4:I14,$C$4:C14,C14),SUMIFS($I$4:I14,$C$4:C14,C15))) -> 0 | K15: 0 | O15: رمز النشــاط: | T15: =الواجهة!C6&" "&الواجهة!C7&" "&الواجهة!C10&" "&الواجهة!C8&" "&الواجهة!C9&" "&الواجهة!C11 -> 030 116 02 2001 000 028
A16: 13 | C16: =IFERROR(VLOOKUP(D16,Nomenclature!$B$2:$C$196,2,0),"") ->  | H16: =IF(C16="",0,IF(SUMIFS($G$5:G16,$C$5:C16,C16)-SUMIFS($I$4:I15,$C$4:C15,C16)<0,0,SUMIFS($G$5:G16,$C$5:C16,C16)-SUMIFS($I$4:I15,$C$4:C15,C16))) -> 0 | J16: =IF(C16="",0,IF(C16=$C$4,SUMIFS($I$4:I15,$C$4:C15,C15),SUMIFS($I$4:I15,$C$4:C15,C16))) -> 0 | K16: 0 | O16: رمز النشــاط الفرعي: | T16: =الواجهة!C9 -> 000
A17: 14 | C17: =IFERROR(VLOOKUP(D17,Nomenclature!$B$2:$C$196,2,0),"") ->  | H17: =IF(C17="",0,IF(SUMIFS($G$5:G17,$C$5:C17,C17)-SUMIFS($I$4:I16,$C$4:C16,C17)<0,0,SUMIFS($G$5:G17,$C$5:C17,C17)-SUMIFS($I$4:I16,$C$4:C16,C17))) -> 0 | J17: =IF(C17="",0,IF(C17=$C$4,SUMIFS($I$4:I16,$C$4:C16,C16),SUMIFS($I$4:I16,$C$4:C16,C17))) -> 0 | K17: 0 | O17: رمز البرنـامج الفرعي: | T17: =الواجهة!C10 -> 02
A18: 15 | C18: =IFERROR(VLOOKUP(D18,Nomenclature!$B$2:$C$196,2,0),"") ->  | H18: =IF(C18="",0,IF(SUMIFS($G$5:G18,$C$5:C18,C18)-SUMIFS($I$4:I17,$C$4:C17,C18)<0,0,SUMIFS($G$5:G18,$C$5:C18,C18)-SUMIFS($I$4:I17,$C$4:C17,C18))) -> 0 | J18: =IF(C18="",0,IF(C18=$C$4,SUMIFS($I$4:I17,$C$4:C17,C17),SUMIFS($I$4:I17,$C$4:C17,C18))) -> 0 | K18: 0
A19: 16 | C19: =IFERROR(VLOOKUP(D19,Nomenclature!$B$2:$C$196,2,0),"") ->  | H19: =IF(C19="",0,IF(SUMIFS($G$5:G19,$C$5:C19,C19)-SUMIFS($I$4:I18,$C$4:C18,C19)<0,0,SUMIFS($G$5:G19,$C$5:C19,C19)-SUMIFS($I$4:I18,$C$4:C18,C19))) -> 0 | J19: =IF(C19="",0,IF(C19=$C$4,SUMIFS($I$4:I18,$C$4:C18,C18),SUMIFS($I$4:I18,$C$4:C18,C19))) -> 0 | K19: 0
A20: 17 | C20: =IFERROR(VLOOKUP(D20,Nomenclature!$B$2:$C$196,2,0),"") ->  | H20: =IF(C20="",0,IF(SUMIFS($G$5:G20,$C$5:C20,C20)-SUMIFS($I$4:I19,$C$4:C19,C20)<0,0,SUMIFS($G$5:G20,$C$5:C20,C20)-SUMIFS($I$4:I19,$C$4:C19,C20))) -> 0 | J20: =IF(C20="",0,IF(C20=$C$4,SUMIFS($I$4:I19,$C$4:C19,C19),SUMIFS($I$4:I19,$C$4:C19,C20))) -> 0 | K20: 0 | O20: العنوان:
A21: 18 | C21: =IFERROR(VLOOKUP(D21,Nomenclature!$B$2:$C$196,2,0),"") ->  | H21: =IF(C21="",0,IF(SUMIFS($G$5:G21,$C$5:C21,C21)-SUMIFS($I$4:I20,$C$4:C20,C21)<0,0,SUMIFS($G$5:G21,$C$5:C21,C21)-SUMIFS($I$4:I20,$C$4:C20,C21))) -> 0 | J21: =IF(C21="",0,IF(C21=$C$4,SUMIFS($I$4:I20,$C$4:C20,C20),SUMIFS($I$4:I20,$C$4:C20,C21))) -> 0 | K21: 0 | Q21: =IF(C4<20000,"X","") -> X | S21: العنوان الأول: | W21: نفقات المستخدمين
A22: 19 | C22: =IFERROR(VLOOKUP(D22,Nomenclature!$B$2:$C$196,2,0),"") ->  | H22: =IF(C22="",0,IF(SUMIFS($G$5:G22,$C$5:C22,C22)-SUMIFS($I$4:I21,$C$4:C21,C22)<0,0,SUMIFS($G$5:G22,$C$5:C22,C22)-SUMIFS($I$4:I21,$C$4:C21,C22))) -> 0 | J22: =IF(C22="",0,IF(C22=$C$4,SUMIFS($I$4:I21,$C$4:C21,C21),SUMIFS($I$4:I21,$C$4:C21,C22))) -> 0 | K22: 0 | Q22: =IF(AND(C4>19999,C4<40000),"X","") ->  | S22: العنوان الثاني: | W22: نفقات تسيير المصالح
A23: 20 | C23: =IFERROR(VLOOKUP(D23,Nomenclature!$B$2:$C$196,2,0),"") ->  | H23: =IF(C23="",0,IF(SUMIFS($G$5:G23,$C$5:C23,C23)-SUMIFS($I$4:I22,$C$4:C22,C23)<0,0,SUMIFS($G$5:G23,$C$5:C23,C23)-SUMIFS($I$4:I22,$C$4:C22,C23))) -> 0 | J23: =IF(C23="",0,IF(C23=$C$4,SUMIFS($I$4:I22,$C$4:C22,C22),SUMIFS($I$4:I22,$C$4:C22,C23))) -> 0 | K23: 0 | Q23: =IF(AND(Q21="",Q22=""),"X","") ->  | S23: العنوان الرابع: | W23: نفقات التحويل
A24: 21 | C24: =IFERROR(VLOOKUP(D24,Nomenclature!$B$2:$C$196,2,0),"") ->  | H24: =IF(C24="",0,IF(SUMIFS($G$5:G24,$C$5:C24,C24)-SUMIFS($I$4:I23,$C$4:C23,C24)<0,0,SUMIFS($G$5:G24,$C$5:C24,C24)-SUMIFS($I$4:I23,$C$4:C23,C24))) -> 0 | J24: =IF(C24="",0,IF(C24=$C$4,SUMIFS($I$4:I23,$C$4:C23,C23),SUMIFS($I$4:I23,$C$4:C23,C24))) -> 0 | K24: 0 | R24: =IF(VLOOKUP(N1,A4:L203,12,0)="","- - - - - - - - - - - - - - - - - - - - - - - - - - - - - - - - - - - - - - - - - - - - - - - / / / - - - - - - - - - - - - - - - - - - - - - - - - - - - - - - - - - - - - - - - - - - - - - - -"& CHAR(10)&"- - - - - - - - - - - - - - - - - - - - - - - - - - - - - - - - - - - - - - - - - - - - - - - / / / - - - - - - - - - - - - - - - - - - - - - - - - - - - - - - - - - - - - - - - - - - - - - - -",VLOOKUP(N1,A4:L203,12,0)) -> - - - - - - - - - - - - - - - - - - - - - - - - - - - - - - - - - - - - - - - - - - - - - - - / / / - - - - - - - - - - - - - - - - - - - - - - - - - - - - - - - - - - - - - - - - - - - - - - - - - - - - - - - - - - - - - - - - - - - - - - - - - - - - - - - - - - - - - - - - - - - - - - / / / - - - - - - - - - - - - - - - - - - - - - - - - - - - - - - - - - - - - - - - - - - - - - - -
A25: 22 | C25: =IFERROR(VLOOKUP(D25,Nomenclature!$B$2:$C$196,2,0),"") ->  | H25: =IF(C25="",0,IF(SUMIFS($G$5:G25,$C$5:C25,C25)-SUMIFS($I$4:I24,$C$4:C24,C25)<0,0,SUMIFS($G$5:G25,$C$5:C25,C25)-SUMIFS($I$4:I24,$C$4:C24,C25))) -> 0 | J25: =IF(C25="",0,IF(C25=$C$4,SUMIFS($I$4:I24,$C$4:C24,C24),SUMIFS($I$4:I24,$C$4:C24,C25))) -> 0 | K25: 0
A26: 23 | C26: =IFERROR(VLOOKUP(D26,Nomenclature!$B$2:$C$196,2,0),"") ->  | H26: =IF(C26="",0,IF(SUMIFS($G$5:G26,$C$5:C26,C26)-SUMIFS($I$4:I25,$C$4:C25,C26)<0,0,SUMIFS($G$5:G26,$C$5:C26,C26)-SUMIFS($I$4:I25,$C$4:C25,C26))) -> 0 | J26: =IF(C26="",0,IF(C26=$C$4,SUMIFS($I$4:I25,$C$4:C25,C25),SUMIFS($I$4:I25,$C$4:C25,C26))) -> 0 | K26: 0
A27: 24 | C27: =IFERROR(VLOOKUP(D27,Nomenclature!$B$2:$C$196,2,0),"") ->  | H27: =IF(C27="",0,IF(SUMIFS($G$5:G27,$C$5:C27,C27)-SUMIFS($I$4:I26,$C$4:C26,C27)<0,0,SUMIFS($G$5:G27,$C$5:C27,C27)-SUMIFS($I$4:I26,$C$4:C26,C27))) -> 0 | J27: =IF(C27="",0,IF(C27=$C$4,SUMIFS($I$4:I26,$C$4:C26,C26),SUMIFS($I$4:I26,$C$4:C26,C27))) -> 0 | K27: 0 | O27: الصنف / الصنف الفرعي | W27: رخصة الالتزام المفتوحة/المعدلة | AA27: مجموع الالتزامات السابقة | AE27: الرصيد الأولي | AI27: الالتزام المقترح | AM27: الرصيد المتبقى
A28: 25 | C28: =IFERROR(VLOOKUP(D28,Nomenclature!$B$2:$C$196,2,0),"") ->  | H28: =IF(C28="",0,IF(SUMIFS($G$5:G28,$C$5:C28,C28)-SUMIFS($I$4:I27,$C$4:C27,C28)<0,0,SUMIFS($G$5:G28,$C$5:C28,C28)-SUMIFS($I$4:I27,$C$4:C27,C28))) -> 0 | J28: =IF(C28="",0,IF(C28=$C$4,SUMIFS($I$4:I27,$C$4:C27,C27),SUMIFS($I$4:I27,$C$4:C27,C28))) -> 0 | K28: 0
A29: 26 | C29: =IFERROR(VLOOKUP(D29,Nomenclature!$B$2:$C$196,2,0),"") ->  | H29: =IF(C29="",0,IF(SUMIFS($G$5:G29,$C$5:C29,C29)-SUMIFS($I$4:I28,$C$4:C28,C29)<0,0,SUMIFS($G$5:G29,$C$5:C29,C29)-SUMIFS($I$4:I28,$C$4:C28,C29))) -> 0 | J29: =IF(C29="",0,IF(C29=$C$4,SUMIFS($I$4:I28,$C$4:C28,C28),SUMIFS($I$4:I28,$C$4:C28,C29))) -> 0 | K29: 0 | O29: الصنف | S29: =C4 -> 14000 | W29: =SUM($F$4:INDIRECT("f"&N1+3)) -> 6500000 | AA29: =SUM($I$4:INDIRECT("i"&N1+2)) -> 0 | AE29: =W29-AA29 -> 6500000 | AI29: =IF(S31="",0,VLOOKUP(N1,A4:L103,9,0)) -> 0 | AM29: =IF((AE29-AI29)<0,"رصيد غير كاف",AE29-AI29) -> 6500000
A30: 27 | C30: =IFERROR(VLOOKUP(D30,Nomenclature!$B$2:$C$196,2,0),"") ->  | H30: =IF(C30="",0,IF(SUMIFS($G$5:G30,$C$5:C30,C30)-SUMIFS($I$4:I29,$C$4:C29,C30)<0,0,SUMIFS($G$5:G30,$C$5:C30,C30)-SUMIFS($I$4:I29,$C$4:C29,C30))) -> 0 | J30: =IF(C30="",0,IF(C30=$C$4,SUMIFS($I$4:I29,$C$4:C29,C29),SUMIFS($I$4:I29,$C$4:C29,C30))) -> 0 | K30: 0
A31: 28 | C31: =IFERROR(VLOOKUP(D31,Nomenclature!$B$2:$C$196,2,0),"") ->  | H31: =IF(C31="",0,IF(SUMIFS($G$5:G31,$C$5:C31,C31)-SUMIFS($I$4:I30,$C$4:C30,C31)<0,0,SUMIFS($G$5:G31,$C$5:C31,C31)-SUMIFS($I$4:I30,$C$4:C30,C31))) -> 0 | J31: =IF(C31="",0,IF(C31=$C$4,SUMIFS($I$4:I30,$C$4:C30,C30),SUMIFS($I$4:I30,$C$4:C30,C31))) -> 0 | K31: 0 | O31: الصنف الفرعي | S31: =IF(IFERROR(VLOOKUP(N1,A4:L103,3,0),"انتبه خطأ")=S29,"",IFERROR(VLOOKUP(N1,A4:L103,3,0),"انتبه خطأ")) ->  | W31: =IF(S31="","",VLOOKUP(N1,A4:L103,8,0)) ->  | AA31: =IF(S31="","",VLOOKUP(N1,A4:L103,10,0)) ->  | AE31: =IF(S31="","",W31-AA31) ->  | AI31: =IF(S31="","",VLOOKUP(N1,A4:L103,9,0)) ->  | AM31: =IF(S31="","",IF((AE31-AI31)<0,"رصيد غير كاف",AE31-AI31)) -> 
A32: 29 | C32: =IFERROR(VLOOKUP(D32,Nomenclature!$B$2:$C$196,2,0),"") ->  | H32: =IF(C32="",0,IF(SUMIFS($G$5:G32,$C$5:C32,C32)-SUMIFS($I$4:I31,$C$4:C31,C32)<0,0,SUMIFS($G$5:G32,$C$5:C32,C32)-SUMIFS($I$4:I31,$C$4:C31,C32))) -> 0 | J32: =IF(C32="",0,IF(C32=$C$4,SUMIFS($I$4:I31,$C$4:C31,C31),SUMIFS($I$4:I31,$C$4:C31,C32))) -> 0 | K32: 0
A33: 30 | C33: =IFERROR(VLOOKUP(D33,Nomenclature!$B$2:$C$196,2,0),"") ->  | H33: =IF(C33="",0,IF(SUMIFS($G$5:G33,$C$5:C33,C33)-SUMIFS($I$4:I32,$C$4:C32,C33)<0,0,SUMIFS($G$5:G33,$C$5:C33,C33)-SUMIFS($I$4:I32,$C$4:C32,C33))) -> 0 | J33: =IF(C33="",0,IF(C33=$C$4,SUMIFS($I$4:I32,$C$4:C32,C32),SUMIFS($I$4:I32,$C$4:C32,C33))) -> 0 | K33: 0
A34: 31 | C34: =IFERROR(VLOOKUP(D34,Nomenclature!$B$2:$C$196,2,0),"") ->  | H34: =IF(C34="",0,IF(SUMIFS($G$5:G34,$C$5:C34,C34)-SUMIFS($I$4:I33,$C$4:C33,C34)<0,0,SUMIFS($G$5:G34,$C$5:C34,C34)-SUMIFS($I$4:I33,$C$4:C33,C34))) -> 0 | J34: =IF(C34="",0,IF(C34=$C$4,SUMIFS($I$4:I33,$C$4:C33,C33),SUMIFS($I$4:I33,$C$4:C33,C34))) -> 0 | K34: 0 | O34: موضوع الالتزام:
A35: 32 | C35: =IFERROR(VLOOKUP(D35,Nomenclature!$B$2:$C$196,2,0),"") ->  | H35: =IF(C35="",0,IF(SUMIFS($G$5:G35,$C$5:C35,C35)-SUMIFS($I$4:I34,$C$4:C34,C35)<0,0,SUMIFS($G$5:G35,$C$5:C35,C35)-SUMIFS($I$4:I34,$C$4:C34,C35))) -> 0 | J35: =IF(C35="",0,IF(C35=$C$4,SUMIFS($I$4:I34,$C$4:C34,C34),SUMIFS($I$4:I34,$C$4:C34,C35))) -> 0 | K35: 0 | O35: =IF(VLOOKUP(N1,A4:L203,5,0)=0,"",IFERROR(VLOOKUP(N1,A4:L203,5,0),"انتبه خطأ")) -> تكفل برخصة الالتزام المفتوحة لسنة 2023.
A36: 33 | C36: =IFERROR(VLOOKUP(D36,Nomenclature!$B$2:$C$196,2,0),"") ->  | H36: =IF(C36="",0,IF(SUMIFS($G$5:G36,$C$5:C36,C36)-SUMIFS($I$4:I35,$C$4:C35,C36)<0,0,SUMIFS($G$5:G36,$C$5:C36,C36)-SUMIFS($I$4:I35,$C$4:C35,C36))) -> 0 | J36: =IF(C36="",0,IF(C36=$C$4,SUMIFS($I$4:I35,$C$4:C35,C35),SUMIFS($I$4:I35,$C$4:C35,C36))) -> 0 | K36: 0
A37: 34 | C37: =IFERROR(VLOOKUP(D37,Nomenclature!$B$2:$C$196,2,0),"") ->  | H37: =IF(C37="",0,IF(SUMIFS($G$5:G37,$C$5:C37,C37)-SUMIFS($I$4:I36,$C$4:C36,C37)<0,0,SUMIFS($G$5:G37,$C$5:C37,C37)-SUMIFS($I$4:I36,$C$4:C36,C37))) -> 0 | J37: =IF(C37="",0,IF(C37=$C$4,SUMIFS($I$4:I36,$C$4:C36,C36),SUMIFS($I$4:I36,$C$4:C36,C37))) -> 0 | K37: 0
A38: 35 | C38: =IFERROR(VLOOKUP(D38,Nomenclature!$B$2:$C$196,2,0),"") ->  | H38: =IF(C38="",0,IF(SUMIFS($G$5:G38,$C$5:C38,C38)-SUMIFS($I$4:I37,$C$4:C37,C38)<0,0,SUMIFS($G$5:G38,$C$5:C38,C38)-SUMIFS($I$4:I37,$C$4:C37,C38))) -> 0 | J38: =IF(C38="",0,IF(C38=$C$4,SUMIFS($I$4:I37,$C$4:C37,C37),SUMIFS($I$4:I37,$C$4:C37,C38))) -> 0 | K38: 0
A39: 36 | C39: =IFERROR(VLOOKUP(D39,Nomenclature!$B$2:$C$196,2,0),"") ->  | H39: =IF(C39="",0,IF(SUMIFS($G$5:G39,$C$5:C39,C39)-SUMIFS($I$4:I38,$C$4:C38,C39)<0,0,SUMIFS($G$5:G39,$C$5:C39,C39)-SUMIFS($I$4:I38,$C$4:C38,C39))) -> 0 | J39: =IF(C39="",0,IF(C39=$C$4,SUMIFS($I$4:I38,$C$4:C38,C38),SUMIFS($I$4:I38,$C$4:C38,C39))) -> 0 | K39: 0
A40: 37 | C40: =IFERROR(VLOOKUP(D40,Nomenclature!$B$2:$C$196,2,0),"") ->  | H40: =IF(C40="",0,IF(SUMIFS($G$5:G40,$C$5:C40,C40)-SUMIFS($I$4:I39,$C$4:C39,C40)<0,0,SUMIFS($G$5:G40,$C$5:C40,C40)-SUMIFS($I$4:I39,$C$4:C39,C40))) -> 0 | J40: =IF(C40="",0,IF(C40=$C$4,SUMIFS($I$4:I39,$C$4:C39,C39),SUMIFS($I$4:I39,$C$4:C39,C40))) -> 0 | K40: 0 | O40: المبلغ بالحروف: | S40: =IFERROR(arretera(AI31),"") -> 
A41: 38 | C41: =IFERROR(VLOOKUP(D41,Nomenclature!$B$2:$C$196,2,0),"") ->  | H41: =IF(C41="",0,IF(SUMIFS($G$5:G41,$C$5:C41,C41)-SUMIFS($I$4:I40,$C$4:C40,C41)<0,0,SUMIFS($G$5:G41,$C$5:C41,C41)-SUMIFS($I$4:I40,$C$4:C40,C41))) -> 0 | J41: =IF(C41="",0,IF(C41=$C$4,SUMIFS($I$4:I40,$C$4:C40,C40),SUMIFS($I$4:I40,$C$4:C40,C41))) -> 0 | K41: 0
A42: 39 | C42: =IFERROR(VLOOKUP(D42,Nomenclature!$B$2:$C$196,2,0),"") ->  | H42: =IF(C42="",0,IF(SUMIFS($G$5:G42,$C$5:C42,C42)-SUMIFS($I$4:I41,$C$4:C41,C42)<0,0,SUMIFS($G$5:G42,$C$5:C42,C42)-SUMIFS($I$4:I41,$C$4:C41,C42))) -> 0 | J42: =IF(C42="",0,IF(C42=$C$4,SUMIFS($I$4:I41,$C$4:C41,C41),SUMIFS($I$4:I41,$C$4:C41,C42))) -> 0 | K42: 0
A43: 40 | C43: =IFERROR(VLOOKUP(D43,Nomenclature!$B$2:$C$196,2,0),"") ->  | H43: =IF(C43="",0,IF(SUMIFS($G$5:G43,$C$5:C43,C43)-SUMIFS($I$4:I42,$C$4:C42,C43)<0,0,SUMIFS($G$5:G43,$C$5:C43,C43)-SUMIFS($I$4:I42,$C$4:C42,C43))) -> 0 | J43: =IF(C43="",0,IF(C43=$C$4,SUMIFS($I$4:I42,$C$4:C42,C42),SUMIFS($I$4:I42,$C$4:C42,C43))) -> 0 | K43: 0 | O43: إطار مخصص للمراقب الميزانياتي | AC43: إطار مخصص للآمر بالصرف
A44: 41 | C44: =IFERROR(VLOOKUP(D44,Nomenclature!$B$2:$C$196,2,0),"") ->  | H44: =IF(C44="",0,IF(SUMIFS($G$5:G44,$C$5:C44,C44)-SUMIFS($I$4:I43,$C$4:C43,C44)<0,0,SUMIFS($G$5:G44,$C$5:C44,C44)-SUMIFS($I$4:I43,$C$4:C43,C44))) -> 0 | J44: =IF(C44="",0,IF(C44=$C$4,SUMIFS($I$4:I43,$C$4:C43,C43),SUMIFS($I$4:I43,$C$4:C43,C44))) -> 0 | K44: 0
A45: 42 | C45: =IFERROR(VLOOKUP(D45,Nomenclature!$B$2:$C$196,2,0),"") ->  | H45: =IF(C45="",0,IF(SUMIFS($G$5:G45,$C$5:C45,C45)-SUMIFS($I$4:I44,$C$4:C44,C45)<0,0,SUMIFS($G$5:G45,$C$5:C45,C45)-SUMIFS($I$4:I44,$C$4:C44,C45))) -> 0 | J45: =IF(C45="",0,IF(C45=$C$4,SUMIFS($I$4:I44,$C$4:C44,C44),SUMIFS($I$4:I44,$C$4:C44,C45))) -> 0 | K45: 0 | O45: رقم التأشيرة: | AD45: ختم
A46: 43 | C46: =IFERROR(VLOOKUP(D46,Nomenclature!$B$2:$C$196,2,0),"") ->  | H46: =IF(C46="",0,IF(SUMIFS($G$5:G46,$C$5:C46,C46)-SUMIFS($I$4:I45,$C$4:C45,C46)<0,0,SUMIFS($G$5:G46,$C$5:C46,C46)-SUMIFS($I$4:I45,$C$4:C45,C46))) -> 0 | J46: =IF(C46="",0,IF(C46=$C$4,SUMIFS($I$4:I45,$C$4:C45,C45),SUMIFS($I$4:I45,$C$4:C45,C46))) -> 0 | K46: 0
A47: 44 | C47: =IFERROR(VLOOKUP(D47,Nomenclature!$B$2:$C$196,2,0),"") ->  | H47: =IF(C47="",0,IF(SUMIFS($G$5:G47,$C$5:C47,C47)-SUMIFS($I$4:I46,$C$4:C46,C47)<0,0,SUMIFS($G$5:G47,$C$5:C47,C47)-SUMIFS($I$4:I46,$C$4:C46,C47))) -> 0 | J47: =IF(C47="",0,IF(C47=$C$4,SUMIFS($I$4:I46,$C$4:C46,C46),SUMIFS($I$4:I46,$C$4:C46,C47))) -> 0 | K47: 0 | O47: تاريخ التأشيرة:
A48: 45 | C48: =IFERROR(VLOOKUP(D48,Nomenclature!$B$2:$C$196,2,0),"") ->  | H48: =IF(C48="",0,IF(SUMIFS($G$5:G48,$C$5:C48,C48)-SUMIFS($I$4:I47,$C$4:C47,C48)<0,0,SUMIFS($G$5:G48,$C$5:C48,C48)-SUMIFS($I$4:I47,$C$4:C47,C48))) -> 0 | J48: =IF(C48="",0,IF(C48=$C$4,SUMIFS($I$4:I47,$C$4:C47,C47),SUMIFS($I$4:I47,$C$4:C47,C48))) -> 0 | K48: 0 | AD48: امضاء
A49: 46 | C49: =IFERROR(VLOOKUP(D49,Nomenclature!$B$2:$C$196,2,0),"") ->  | H49: =IF(C49="",0,IF(SUMIFS($G$5:G49,$C$5:C49,C49)-SUMIFS($I$4:I48,$C$4:C48,C49)<0,0,SUMIFS($G$5:G49,$C$5:C49,C49)-SUMIFS($I$4:I48,$C$4:C48,C49))) -> 0 | J49: =IF(C49="",0,IF(C49=$C$4,SUMIFS($I$4:I48,$C$4:C48,C48),SUMIFS($I$4:I48,$C$4:C48,C49))) -> 0 | K49: 0
A50: 47 | C50: =IFERROR(VLOOKUP(D50,Nomenclature!$B$2:$C$196,2,0),"") ->  | H50: =IF(C50="",0,IF(SUMIFS($G$5:G50,$C$5:C50,C50)-SUMIFS($I$4:I49,$C$4:C49,C50)<0,0,SUMIFS($G$5:G50,$C$5:C50,C50)-SUMIFS($I$4:I49,$C$4:C49,C50))) -> 0 | J50: =IF(C50="",0,IF(C50=$C$4,SUMIFS($I$4:I49,$C$4:C49,C49),SUMIFS($I$4:I49,$C$4:C49,C50))) -> 0 | K50: 0
A51: 48 | C51: =IFERROR(VLOOKUP(D51,Nomenclature!$B$2:$C$196,2,0),"") ->  | H51: =IF(C51="",0,IF(SUMIFS($G$5:G51,$C$5:C51,C51)-SUMIFS($I$4:I50,$C$4:C50,C51)<0,0,SUMIFS($G$5:G51,$C$5:C51,C51)-SUMIFS($I$4:I50,$C$4:C50,C51))) -> 0 | J51: =IF(C51="",0,IF(C51=$C$4,SUMIFS($I$4:I50,$C$4:C50,C50),SUMIFS($I$4:I50,$C$4:C50,C51))) -> 0 | K51: 0 | P51: =AD48 -> امضاء | X51: =AD45 -> ختم
A52: 49 | C52: =IFERROR(VLOOKUP(D52,Nomenclature!$B$2:$C$196,2,0),"") ->  | H52: =IF(C52="",0,IF(SUMIFS($G$5:G52,$C$5:C52,C52)-SUMIFS($I$4:I51,$C$4:C51,C52)<0,0,SUMIFS($G$5:G52,$C$5:C52,C52)-SUMIFS($I$4:I51,$C$4:C51,C52))) -> 0 | J52: =IF(C52="",0,IF(C52=$C$4,SUMIFS($I$4:I51,$C$4:C51,C51),SUMIFS($I$4:I51,$C$4:C51,C52))) -> 0 | K52: 0
A53: 50 | C53: =IFERROR(VLOOKUP(D53,Nomenclature!$B$2:$C$196,2,0),"") ->  | H53: =IF(C53="",0,IF(SUMIFS($G$5:G53,$C$5:C53,C53)-SUMIFS($I$4:I52,$C$4:C52,C53)<0,0,SUMIFS($G$5:G53,$C$5:C53,C53)-SUMIFS($I$4:I52,$C$4:C52,C53))) -> 0 | J53: =IF(C53="",0,IF(C53=$C$4,SUMIFS($I$4:I52,$C$4:C52,C52),SUMIFS($I$4:I52,$C$4:C52,C53))) -> 0 | K53: 0
A54: 51 | C54: =IFERROR(VLOOKUP(D54,Nomenclature!$B$2:$C$196,2,0),"") ->  | H54: =IF(C54="",0,IF(SUMIFS($G$5:G54,$C$5:C54,C54)-SUMIFS($I$4:I53,$C$4:C53,C54)<0,0,SUMIFS($G$5:G54,$C$5:C54,C54)-SUMIFS($I$4:I53,$C$4:C53,C54))) -> 0 | J54: =IF(C54="",0,IF(C54=$C$4,SUMIFS($I$4:I53,$C$4:C53,C53),SUMIFS($I$4:I53,$C$4:C53,C54))) -> 0 | K54: 0
A55: 52 | C55: =IFERROR(VLOOKUP(D55,Nomenclature!$B$2:$C$196,2,0),"") ->  | H55: =IF(C55="",0,IF(SUMIFS($G$5:G55,$C$5:C55,C55)-SUMIFS($I$4:I54,$C$4:C54,C55)<0,0,SUMIFS($G$5:G55,$C$5:C55,C55)-SUMIFS($I$4:I54,$C$4:C54,C55))) -> 0 | J55: =IF(C55="",0,IF(C55=$C$4,SUMIFS($I$4:I54,$C$4:C54,C54),SUMIFS($I$4:I54,$C$4:C54,C55))) -> 0 | K55: 0
A56: 53 | C56: =IFERROR(VLOOKUP(D56,Nomenclature!$B$2:$C$196,2,0),"") ->  | H56: =IF(C56="",0,IF(SUMIFS($G$5:G56,$C$5:C56,C56)-SUMIFS($I$4:I55,$C$4:C55,C56)<0,0,SUMIFS($G$5:G56,$C$5:C56,C56)-SUMIFS($I$4:I55,$C$4:C55,C56))) -> 0 | J56: =IF(C56="",0,IF(C56=$C$4,SUMIFS($I$4:I55,$C$4:C55,C55),SUMIFS($I$4:I55,$C$4:C55,C56))) -> 0 | K56: 0
A57: 54 | C57: =IFERROR(VLOOKUP(D57,Nomenclature!$B$2:$C$196,2,0),"") ->  | H57: =IF(C57="",0,IF(SUMIFS($G$5:G57,$C$5:C57,C57)-SUMIFS($I$4:I56,$C$4:C56,C57)<0,0,SUMIFS($G$5:G57,$C$5:C57,C57)-SUMIFS($I$4:I56,$C$4:C56,C57))) -> 0 | J57: =IF(C57="",0,IF(C57=$C$4,SUMIFS($I$4:I56,$C$4:C56,C56),SUMIFS($I$4:I56,$C$4:C56,C57))) -> 0 | K57: 0
A58: 55 | C58: =IFERROR(VLOOKUP(D58,Nomenclature!$B$2:$C$196,2,0),"") ->  | H58: =IF(C58="",0,IF(SUMIFS($G$5:G58,$C$5:C58,C58)-SUMIFS($I$4:I57,$C$4:C57,C58)<0,0,SUMIFS($G$5:G58,$C$5:C58,C58)-SUMIFS($I$4:I57,$C$4:C57,C58))) -> 0 | J58: =IF(C58="",0,IF(C58=$C$4,SUMIFS($I$4:I57,$C$4:C57,C57),SUMIFS($I$4:I57,$C$4:C57,C58))) -> 0 | K58: 0
A59: 56 | C59: =IFERROR(VLOOKUP(D59,Nomenclature!$B$2:$C$196,2,0),"") ->  | H59: =IF(C59="",0,IF(SUMIFS($G$5:G59,$C$5:C59,C59)-SUMIFS($I$4:I58,$C$4:C58,C59)<0,0,SUMIFS($G$5:G59,$C$5:C59,C59)-SUMIFS($I$4:I58,$C$4:C58,C59))) -> 0 | J59: =IF(C59="",0,IF(C59=$C$4,SUMIFS($I$4:I58,$C$4:C58,C58),SUMIFS($I$4:I58,$C$4:C58,C59))) -> 0 | K59: 0
A60: 57 | C60: =IFERROR(VLOOKUP(D60,Nomenclature!$B$2:$C$196,2,0),"") ->  | H60: =IF(C60="",0,IF(SUMIFS($G$5:G60,$C$5:C60,C60)-SUMIFS($I$4:I59,$C$4:C59,C60)<0,0,SUMIFS($G$5:G60,$C$5:C60,C60)-SUMIFS($I$4:I59,$C$4:C59,C60))) -> 0 | J60: =IF(C60="",0,IF(C60=$C$4,SUMIFS($I$4:I59,$C$4:C59,C59),SUMIFS($I$4:I59,$C$4:C59,C60))) -> 0 | K60: 0
A61: 58 | C61: =IFERROR(VLOOKUP(D61,Nomenclature!$B$2:$C$196,2,0),"") ->  | H61: =IF(C61="",0,IF(SUMIFS($G$5:G61,$C$5:C61,C61)-SUMIFS($I$4:I60,$C$4:C60,C61)<0,0,SUMIFS($G$5:G61,$C$5:C61,C61)-SUMIFS($I$4:I60,$C$4:C60,C61))) -> 0 | J61: =IF(C61="",0,IF(C61=$C$4,SUMIFS($I$4:I60,$C$4:C60,C60),SUMIFS($I$4:I60,$C$4:C60,C61))) -> 0 | K61: 0
A62: 59 | C62: =IFERROR(VLOOKUP(D62,Nomenclature!$B$2:$C$196,2,0),"") ->  | H62: =IF(C62="",0,IF(SUMIFS($G$5:G62,$C$5:C62,C62)-SUMIFS($I$4:I61,$C$4:C61,C62)<0,0,SUMIFS($G$5:G62,$C$5:C62,C62)-SUMIFS($I$4:I61,$C$4:C61,C62))) -> 0 | J62: =IF(C62="",0,IF(C62=$C$4,SUMIFS($I$4:I61,$C$4:C61,C61),SUMIFS($I$4:I61,$C$4:C61,C62))) -> 0 | K62: 0
A63: 60 | C63: =IFERROR(VLOOKUP(D63,Nomenclature!$B$2:$C$196,2,0),"") ->  | H63: =IF(C63="",0,IF(SUMIFS($G$5:G63,$C$5:C63,C63)-SUMIFS($I$4:I62,$C$4:C62,C63)<0,0,SUMIFS($G$5:G63,$C$5:C63,C63)-SUMIFS($I$4:I62,$C$4:C62,C63))) -> 0 | J63: =IF(C63="",0,IF(C63=$C$4,SUMIFS($I$4:I62,$C$4:C62,C62),SUMIFS($I$4:I62,$C$4:C62,C63))) -> 0 | K63: 0
A64: 61 | C64: =IFERROR(VLOOKUP(D64,Nomenclature!$B$2:$C$196,2,0),"") ->  | H64: =IF(C64="",0,IF(SUMIFS($G$5:G64,$C$5:C64,C64)-SUMIFS($I$4:I63,$C$4:C63,C64)<0,0,SUMIFS($G$5:G64,$C$5:C64,C64)-SUMIFS($I$4:I63,$C$4:C63,C64))) -> 0 | J64: =IF(C64="",0,IF(C64=$C$4,SUMIFS($I$4:I63,$C$4:C63,C63),SUMIFS($I$4:I63,$C$4:C63,C64))) -> 0 | K64: 0
A65: 62 | C65: =IFERROR(VLOOKUP(D65,Nomenclature!$B$2:$C$196,2,0),"") ->  | H65: =IF(C65="",0,IF(SUMIFS($G$5:G65,$C$5:C65,C65)-SUMIFS($I$4:I64,$C$4:C64,C65)<0,0,SUMIFS($G$5:G65,$C$5:C65,C65)-SUMIFS($I$4:I64,$C$4:C64,C65))) -> 0 | J65: =IF(C65="",0,IF(C65=$C$4,SUMIFS($I$4:I64,$C$4:C64,C64),SUMIFS($I$4:I64,$C$4:C64,C65))) -> 0 | K65: 0
A66: 63 | C66: =IFERROR(VLOOKUP(D66,Nomenclature!$B$2:$C$196,2,0),"") ->  | H66: =IF(C66="",0,IF(SUMIFS($G$5:G66,$C$5:C66,C66)-SUMIFS($I$4:I65,$C$4:C65,C66)<0,0,SUMIFS($G$5:G66,$C$5:C66,C66)-SUMIFS($I$4:I65,$C$4:C65,C66))) -> 0 | J66: =IF(C66="",0,IF(C66=$C$4,SUMIFS($I$4:I65,$C$4:C65,C65),SUMIFS($I$4:I65,$C$4:C65,C66))) -> 0 | K66: 0
A67: 64 | C67: =IFERROR(VLOOKUP(D67,Nomenclature!$B$2:$C$196,2,0),"") ->  | H67: =IF(C67="",0,IF(SUMIFS($G$5:G67,$C$5:C67,C67)-SUMIFS($I$4:I66,$C$4:C66,C67)<0,0,SUMIFS($G$5:G67,$C$5:C67,C67)-SUMIFS($I$4:I66,$C$4:C66,C67))) -> 0 | J67: =IF(C67="",0,IF(C67=$C$4,SUMIFS($I$4:I66,$C$4:C66,C66),SUMIFS($I$4:I66,$C$4:C66,C67))) -> 0 | K67: 0
A68: 65 | C68: =IFERROR(VLOOKUP(D68,Nomenclature!$B$2:$C$196,2,0),"") ->  | H68: =IF(C68="",0,IF(SUMIFS($G$5:G68,$C$5:C68,C68)-SUMIFS($I$4:I67,$C$4:C67,C68)<0,0,SUMIFS($G$5:G68,$C$5:C68,C68)-SUMIFS($I$4:I67,$C$4:C67,C68))) -> 0 | J68: =IF(C68="",0,IF(C68=$C$4,SUMIFS($I$4:I67,$C$4:C67,C67),SUMIFS($I$4:I67,$C$4:C67,C68))) -> 0 | K68: =IF(C68="",0,H68-I68) -> 0
A69: 66 | C69: =IFERROR(VLOOKUP(D69,Nomenclature!$B$2:$C$196,2,0),"") ->  | H69: =IF(C69="",0,IF(SUMIFS($G$5:G69,$C$5:C69,C69)-SUMIFS($I$4:I68,$C$4:C68,C69)<0,0,SUMIFS($G$5:G69,$C$5:C69,C69)-SUMIFS($I$4:I68,$C$4:C68,C69))) -> 0 | J69: =IF(C69="",0,IF(C69=$C$4,SUMIFS($I$4:I68,$C$4:C68,C68),SUMIFS($I$4:I68,$C$4:C68,C69))) -> 0 | K69: 0
A70: 67 | C70: =IFERROR(VLOOKUP(D70,Nomenclature!$B$2:$C$196,2,0),"") ->  | H70: =IF(C70="",0,IF(SUMIFS($G$5:G70,$C$5:C70,C70)-SUMIFS($I$4:I69,$C$4:C69,C70)<0,0,SUMIFS($G$5:G70,$C$5:C70,C70)-SUMIFS($I$4:I69,$C$4:C69,C70))) -> 0 | J70: =IF(C70="",0,IF(C70=$C$4,SUMIFS($I$4:I69,$C$4:C69,C69),SUMIFS($I$4:I69,$C$4:C69,C70))) -> 0 | K70: 0
A71: 68 | C71: =IFERROR(VLOOKUP(D71,Nomenclature!$B$2:$C$196,2,0),"") ->  | H71: =IF(C71="",0,IF(SUMIFS($G$5:G71,$C$5:C71,C71)-SUMIFS($I$4:I70,$C$4:C70,C71)<0,0,SUMIFS($G$5:G71,$C$5:C71,C71)-SUMIFS($I$4:I70,$C$4:C70,C71))) -> 0 | J71: =IF(C71="",0,IF(C71=$C$4,SUMIFS($I$4:I70,$C$4:C70,C70),SUMIFS($I$4:I70,$C$4:C70,C71))) -> 0 | K71: 0
A72: 69 | C72: =IFERROR(VLOOKUP(D72,Nomenclature!$B$2:$C$196,2,0),"") ->  | H72: =IF(C72="",0,IF(SUMIFS($G$5:G72,$C$5:C72,C72)-SUMIFS($I$4:I71,$C$4:C71,C72)<0,0,SUMIFS($G$5:G72,$C$5:C72,C72)-SUMIFS($I$4:I71,$C$4:C71,C72))) -> 0 | J72: =IF(C72="",0,IF(C72=$C$4,SUMIFS($I$4:I71,$C$4:C71,C71),SUMIFS($I$4:I71,$C$4:C71,C72))) -> 0 | K72: 0
A73: 70 | C73: =IFERROR(VLOOKUP(D73,Nomenclature!$B$2:$C$196,2,0),"") ->  | H73: =IF(C73="",0,IF(SUMIFS($G$5:G73,$C$5:C73,C73)-SUMIFS($I$4:I72,$C$4:C72,C73)<0,0,SUMIFS($G$5:G73,$C$5:C73,C73)-SUMIFS($I$4:I72,$C$4:C72,C73))) -> 0 | J73: =IF(C73="",0,IF(C73=$C$4,SUMIFS($I$4:I72,$C$4:C72,C72),SUMIFS($I$4:I72,$C$4:C72,C73))) -> 0 | K73: 0
A74: 71 | C74: =IFERROR(VLOOKUP(D74,Nomenclature!$B$2:$C$196,2,0),"") ->  | H74: =IF(C74="",0,IF(SUMIFS($G$5:G74,$C$5:C74,C74)-SUMIFS($I$4:I73,$C$4:C73,C74)<0,0,SUMIFS($G$5:G74,$C$5:C74,C74)-SUMIFS($I$4:I73,$C$4:C73,C74))) -> 0 | J74: =IF(C74="",0,IF(C74=$C$4,SUMIFS($I$4:I73,$C$4:C73,C73),SUMIFS($I$4:I73,$C$4:C73,C74))) -> 0 | K74: 0
A75: 72 | C75: =IFERROR(VLOOKUP(D75,Nomenclature!$B$2:$C$196,2,0),"") ->  | H75: =IF(C75="",0,IF(SUMIFS($G$5:G75,$C$5:C75,C75)-SUMIFS($I$4:I74,$C$4:C74,C75)<0,0,SUMIFS($G$5:G75,$C$5:C75,C75)-SUMIFS($I$4:I74,$C$4:C74,C75))) -> 0 | J75: =IF(C75="",0,IF(C75=$C$4,SUMIFS($I$4:I74,$C$4:C74,C74),SUMIFS($I$4:I74,$C$4:C74,C75))) -> 0 | K75: 0
A76: 73 | C76: =IFERROR(VLOOKUP(D76,Nomenclature!$B$2:$C$196,2,0),"") ->  | H76: =IF(C76="",0,IF(SUMIFS($G$5:G76,$C$5:C76,C76)-SUMIFS($I$4:I75,$C$4:C75,C76)<0,0,SUMIFS($G$5:G76,$C$5:C76,C76)-SUMIFS($I$4:I75,$C$4:C75,C76))) -> 0 | J76: =IF(C76="",0,IF(C76=$C$4,SUMIFS($I$4:I75,$C$4:C75,C75),SUMIFS($I$4:I75,$C$4:C75,C76))) -> 0 | K76: 0
A77: 74 | C77: =IFERROR(VLOOKUP(D77,Nomenclature!$B$2:$C$196,2,0),"") ->  | H77: =IF(C77="",0,IF(SUMIFS($G$5:G77,$C$5:C77,C77)-SUMIFS($I$4:I76,$C$4:C76,C77)<0,0,SUMIFS($G$5:G77,$C$5:C77,C77)-SUMIFS($I$4:I76,$C$4:C76,C77))) -> 0 | J77: =IF(C77="",0,IF(C77=$C$4,SUMIFS($I$4:I76,$C$4:C76,C76),SUMIFS($I$4:I76,$C$4:C76,C77))) -> 0 | K77: 0
A78: 75 | C78: =IFERROR(VLOOKUP(D78,Nomenclature!$B$2:$C$196,2,0),"") ->  | H78: =IF(C78="",0,IF(SUMIFS($G$5:G78,$C$5:C78,C78)-SUMIFS($I$4:I77,$C$4:C77,C78)<0,0,SUMIFS($G$5:G78,$C$5:C78,C78)-SUMIFS($I$4:I77,$C$4:C77,C78))) -> 0 | J78: =IF(C78="",0,IF(C78=$C$4,SUMIFS($I$4:I77,$C$4:C77,C77),SUMIFS($I$4:I77,$C$4:C77,C78))) -> 0 | K78: 0
A79: 76 | C79: =IFERROR(VLOOKUP(D79,Nomenclature!$B$2:$C$196,2,0),"") ->  | H79: =IF(C79="",0,IF(SUMIFS($G$5:G79,$C$5:C79,C79)-SUMIFS($I$4:I78,$C$4:C78,C79)<0,0,SUMIFS($G$5:G79,$C$5:C79,C79)-SUMIFS($I$4:I78,$C$4:C78,C79))) -> 0 | J79: =IF(C79="",0,IF(C79=$C$4,SUMIFS($I$4:I78,$C$4:C78,C78),SUMIFS($I$4:I78,$C$4:C78,C79))) -> 0 | K79: 0
A80: 77 | C80: =IFERROR(VLOOKUP(D80,Nomenclature!$B$2:$C$196,2,0),"") ->  | H80: =IF(C80="",0,IF(SUMIFS($G$5:G80,$C$5:C80,C80)-SUMIFS($I$4:I79,$C$4:C79,C80)<0,0,SUMIFS($G$5:G80,$C$5:C80,C80)-SUMIFS($I$4:I79,$C$4:C79,C80))) -> 0 | J80: =IF(C80="",0,IF(C80=$C$4,SUMIFS($I$4:I79,$C$4:C79,C79),SUMIFS($I$4:I79,$C$4:C79,C80))) -> 0 | K80: 0
A81: 78 | C81: =IFERROR(VLOOKUP(D81,Nomenclature!$B$2:$C$196,2,0),"") ->  | H81: =IF(C81="",0,IF(SUMIFS($G$5:G81,$C$5:C81,C81)-SUMIFS($I$4:I80,$C$4:C80,C81)<0,0,SUMIFS($G$5:G81,$C$5:C81,C81)-SUMIFS($I$4:I80,$C$4:C80,C81))) -> 0 | J81: =IF(C81="",0,IF(C81=$C$4,SUMIFS($I$4:I80,$C$4:C80,C80),SUMIFS($I$4:I80,$C$4:C80,C81))) -> 0 | K81: 0
A82: 79 | C82: =IFERROR(VLOOKUP(D82,Nomenclature!$B$2:$C$196,2,0),"") ->  | H82: =IF(C82="",0,IF(SUMIFS($G$5:G82,$C$5:C82,C82)-SUMIFS($I$4:I81,$C$4:C81,C82)<0,0,SUMIFS($G$5:G82,$C$5:C82,C82)-SUMIFS($I$4:I81,$C$4:C81,C82))) -> 0 | J82: =IF(C82="",0,IF(C82=$C$4,SUMIFS($I$4:I81,$C$4:C81,C81),SUMIFS($I$4:I81,$C$4:C81,C82))) -> 0 | K82: 0
A83: 80 | C83: =IFERROR(VLOOKUP(D83,Nomenclature!$B$2:$C$196,2,0),"") ->  | H83: =IF(C83="",0,IF(SUMIFS($G$5:G83,$C$5:C83,C83)-SUMIFS($I$4:I82,$C$4:C82,C83)<0,0,SUMIFS($G$5:G83,$C$5:C83,C83)-SUMIFS($I$4:I82,$C$4:C82,C83))) -> 0 | J83: =IF(C83="",0,IF(C83=$C$4,SUMIFS($I$4:I82,$C$4:C82,C82),SUMIFS($I$4:I82,$C$4:C82,C83))) -> 0 | K83: 0
A84: 81 | C84: =IFERROR(VLOOKUP(D84,Nomenclature!$B$2:$C$196,2,0),"") ->  | H84: =IF(C84="",0,IF(SUMIFS($G$5:G84,$C$5:C84,C84)-SUMIFS($I$4:I83,$C$4:C83,C84)<0,0,SUMIFS($G$5:G84,$C$5:C84,C84)-SUMIFS($I$4:I83,$C$4:C83,C84))) -> 0 | J84: =IF(C84="",0,IF(C84=$C$4,SUMIFS($I$4:I83,$C$4:C83,C83),SUMIFS($I$4:I83,$C$4:C83,C84))) -> 0 | K84: 0
A85: 82 | C85: =IFERROR(VLOOKUP(D85,Nomenclature!$B$2:$C$196,2,0),"") ->  | H85: =IF(C85="",0,IF(SUMIFS($G$5:G85,$C$5:C85,C85)-SUMIFS($I$4:I84,$C$4:C84,C85)<0,0,SUMIFS($G$5:G85,$C$5:C85,C85)-SUMIFS($I$4:I84,$C$4:C84,C85))) -> 0 | J85: =IF(C85="",0,IF(C85=$C$4,SUMIFS($I$4:I84,$C$4:C84,C84),SUMIFS($I$4:I84,$C$4:C84,C85))) -> 0 | K85: 0
A86: 83 | C86: =IFERROR(VLOOKUP(D86,Nomenclature!$B$2:$C$196,2,0),"") ->  | H86: =IF(C86="",0,IF(SUMIFS($G$5:G86,$C$5:C86,C86)-SUMIFS($I$4:I85,$C$4:C85,C86)<0,0,SUMIFS($G$5:G86,$C$5:C86,C86)-SUMIFS($I$4:I85,$C$4:C85,C86))) -> 0 | J86: =IF(C86="",0,IF(C86=$C$4,SUMIFS($I$4:I85,$C$4:C85,C85),SUMIFS($I$4:I85,$C$4:C85,C86))) -> 0 | K86: 0
A87: 84 | C87: =IFERROR(VLOOKUP(D87,Nomenclature!$B$2:$C$196,2,0),"") ->  | H87: =IF(C87="",0,IF(SUMIFS($G$5:G87,$C$5:C87,C87)-SUMIFS($I$4:I86,$C$4:C86,C87)<0,0,SUMIFS($G$5:G87,$C$5:C87,C87)-SUMIFS($I$4:I86,$C$4:C86,C87))) -> 0 | J87: =IF(C87="",0,IF(C87=$C$4,SUMIFS($I$4:I86,$C$4:C86,C86),SUMIFS($I$4:I86,$C$4:C86,C87))) -> 0 | K87: 0
A88: 85 | C88: =IFERROR(VLOOKUP(D88,Nomenclature!$B$2:$C$196,2,0),"") ->  | H88: =IF(C88="",0,IF(SUMIFS($G$5:G88,$C$5:C88,C88)-SUMIFS($I$4:I87,$C$4:C87,C88)<0,0,SUMIFS($G$5:G88,$C$5:C88,C88)-SUMIFS($I$4:I87,$C$4:C87,C88))) -> 0 | J88: =IF(C88="",0,IF(C88=$C$4,SUMIFS($I$4:I87,$C$4:C87,C87),SUMIFS($I$4:I87,$C$4:C87,C88))) -> 0 | K88: 0
A89: 86 | C89: =IFERROR(VLOOKUP(D89,Nomenclature!$B$2:$C$196,2,0),"") ->  | H89: =IF(C89="",0,IF(SUMIFS($G$5:G89,$C$5:C89,C89)-SUMIFS($I$4:I88,$C$4:C88,C89)<0,0,SUMIFS($G$5:G89,$C$5:C89,C89)-SUMIFS($I$4:I88,$C$4:C88,C89))) -> 0 | J89: =IF(C89="",0,IF(C89=$C$4,SUMIFS($I$4:I88,$C$4:C88,C88),SUMIFS($I$4:I88,$C$4:C88,C89))) -> 0 | K89: 0
A90: 87 | C90: =IFERROR(VLOOKUP(D90,Nomenclature!$B$2:$C$196,2,0),"") ->  | H90: =IF(C90="",0,IF(SUMIFS($G$5:G90,$C$5:C90,C90)-SUMIFS($I$4:I89,$C$4:C89,C90)<0,0,SUMIFS($G$5:G90,$C$5:C90,C90)-SUMIFS($I$4:I89,$C$4:C89,C90))) -> 0 | J90: =IF(C90="",0,IF(C90=$C$4,SUMIFS($I$4:I89,$C$4:C89,C89),SUMIFS($I$4:I89,$C$4:C89,C90))) -> 0 | K90: 0
A91: 88 | C91: =IFERROR(VLOOKUP(D91,Nomenclature!$B$2:$C$196,2,0),"") ->  | H91: =IF(C91="",0,IF(SUMIFS($G$5:G91,$C$5:C91,C91)-SUMIFS($I$4:I90,$C$4:C90,C91)<0,0,SUMIFS($G$5:G91,$C$5:C91,C91)-SUMIFS($I$4:I90,$C$4:C90,C91))) -> 0 | J91: =IF(C91="",0,IF(C91=$C$4,SUMIFS($I$4:I90,$C$4:C90,C90),SUMIFS($I$4:I90,$C$4:C90,C91))) -> 0 | K91: 0
A92: 89 | C92: =IFERROR(VLOOKUP(D92,Nomenclature!$B$2:$C$196,2,0),"") ->  | H92: =IF(C92="",0,IF(SUMIFS($G$5:G92,$C$5:C92,C92)-SUMIFS($I$4:I91,$C$4:C91,C92)<0,0,SUMIFS($G$5:G92,$C$5:C92,C92)-SUMIFS($I$4:I91,$C$4:C91,C92))) -> 0 | J92: =IF(C92="",0,IF(C92=$C$4,SUMIFS($I$4:I91,$C$4:C91,C91),SUMIFS($I$4:I91,$C$4:C91,C92))) -> 0 | K92: 0
A93: 90 | C93: =IFERROR(VLOOKUP(D93,Nomenclature!$B$2:$C$196,2,0),"") ->  | H93: =IF(C93="",0,IF(SUMIFS($G$5:G93,$C$5:C93,C93)-SUMIFS($I$4:I92,$C$4:C92,C93)<0,0,SUMIFS($G$5:G93,$C$5:C93,C93)-SUMIFS($I$4:I92,$C$4:C92,C93))) -> 0 | J93: =IF(C93="",0,IF(C93=$C$4,SUMIFS($I$4:I92,$C$4:C92,C92),SUMIFS($I$4:I92,$C$4:C92,C93))) -> 0 | K93: 0
A94: 91 | C94: =IFERROR(VLOOKUP(D94,Nomenclature!$B$2:$C$196,2,0),"") ->  | H94: =IF(C94="",0,IF(SUMIFS($G$5:G94,$C$5:C94,C94)-SUMIFS($I$4:I93,$C$4:C93,C94)<0,0,SUMIFS($G$5:G94,$C$5:C94,C94)-SUMIFS($I$4:I93,$C$4:C93,C94))) -> 0 | J94: =IF(C94="",0,IF(C94=$C$4,SUMIFS($I$4:I93,$C$4:C93,C93),SUMIFS($I$4:I93,$C$4:C93,C94))) -> 0 | K94: 0
A95: 92 | C95: =IFERROR(VLOOKUP(D95,Nomenclature!$B$2:$C$196,2,0),"") ->  | H95: =IF(C95="",0,IF(SUMIFS($G$5:G95,$C$5:C95,C95)-SUMIFS($I$4:I94,$C$4:C94,C95)<0,0,SUMIFS($G$5:G95,$C$5:C95,C95)-SUMIFS($I$4:I94,$C$4:C94,C95))) -> 0 | J95: =IF(C95="",0,IF(C95=$C$4,SUMIFS($I$4:I94,$C$4:C94,C94),SUMIFS($I$4:I94,$C$4:C94,C95))) -> 0 | K95: 0
A96: 93 | C96: =IFERROR(VLOOKUP(D96,Nomenclature!$B$2:$C$196,2,0),"") ->  | H96: =IF(C96="",0,IF(SUMIFS($G$5:G96,$C$5:C96,C96)-SUMIFS($I$4:I95,$C$4:C95,C96)<0,0,SUMIFS($G$5:G96,$C$5:C96,C96)-SUMIFS($I$4:I95,$C$4:C95,C96))) -> 0 | J96: =IF(C96="",0,IF(C96=$C$4,SUMIFS($I$4:I95,$C$4:C95,C95),SUMIFS($I$4:I95,$C$4:C95,C96))) -> 0 | K96: 0
A97: 94 | C97: =IFERROR(VLOOKUP(D97,Nomenclature!$B$2:$C$196,2,0),"") ->  | H97: =IF(C97="",0,IF(SUMIFS($G$5:G97,$C$5:C97,C97)-SUMIFS($I$4:I96,$C$4:C96,C97)<0,0,SUMIFS($G$5:G97,$C$5:C97,C97)-SUMIFS($I$4:I96,$C$4:C96,C97))) -> 0 | J97: =IF(C97="",0,IF(C97=$C$4,SUMIFS($I$4:I96,$C$4:C96,C96),SUMIFS($I$4:I96,$C$4:C96,C97))) -> 0 | K97: 0
A98: 95 | C98: =IFERROR(VLOOKUP(D98,Nomenclature!$B$2:$C$196,2,0),"") ->  | H98: =IF(C98="",0,IF(SUMIFS($G$5:G98,$C$5:C98,C98)-SUMIFS($I$4:I97,$C$4:C97,C98)<0,0,SUMIFS($G$5:G98,$C$5:C98,C98)-SUMIFS($I$4:I97,$C$4:C97,C98))) -> 0 | J98: =IF(C98="",0,IF(C98=$C$4,SUMIFS($I$4:I97,$C$4:C97,C97),SUMIFS($I$4:I97,$C$4:C97,C98))) -> 0 | K98: 0
A99: 96 | C99: =IFERROR(VLOOKUP(D99,Nomenclature!$B$2:$C$196,2,0),"") ->  | H99: =IF(C99="",0,IF(SUMIFS($G$5:G99,$C$5:C99,C99)-SUMIFS($I$4:I98,$C$4:C98,C99)<0,0,SUMIFS($G$5:G99,$C$5:C99,C99)-SUMIFS($I$4:I98,$C$4:C98,C99))) -> 0 | J99: =IF(C99="",0,IF(C99=$C$4,SUMIFS($I$4:I98,$C$4:C98,C98),SUMIFS($I$4:I98,$C$4:C98,C99))) -> 0 | K99: 0
A100: 97 | C100: =IFERROR(VLOOKUP(D100,Nomenclature!$B$2:$C$196,2,0),"") ->  | H100: =IF(C100="",0,IF(SUMIFS($G$5:G100,$C$5:C100,C100)-SUMIFS($I$4:I99,$C$4:C99,C100)<0,0,SUMIFS($G$5:G100,$C$5:C100,C100)-SUMIFS($I$4:I99,$C$4:C99,C100))) -> 0 | J100: =IF(C100="",0,IF(C100=$C$4,SUMIFS($I$4:I99,$C$4:C99,C99),SUMIFS($I$4:I99,$C$4:C99,C100))) -> 0 | K100: 0
A101: 98 | C101: =IFERROR(VLOOKUP(D101,Nomenclature!$B$2:$C$196,2,0),"") ->  | H101: =IF(C101="",0,IF(SUMIFS($G$5:G101,$C$5:C101,C101)-SUMIFS($I$4:I100,$C$4:C100,C101)<0,0,SUMIFS($G$5:G101,$C$5:C101,C101)-SUMIFS($I$4:I100,$C$4:C100,C101))) -> 0 | J101: =IF(C101="",0,IF(C101=$C$4,SUMIFS($I$4:I100,$C$4:C100,C100),SUMIFS($I$4:I100,$C$4:C100,C101))) -> 0 | K101: 0
A102: 99 | C102: =IFERROR(VLOOKUP(D102,Nomenclature!$B$2:$C$196,2,0),"") ->  | H102: =IF(C102="",0,IF(SUMIFS($G$5:G102,$C$5:C102,C102)-SUMIFS($I$4:I101,$C$4:C101,C102)<0,0,SUMIFS($G$5:G102,$C$5:C102,C102)-SUMIFS($I$4:I101,$C$4:C101,C102))) -> 0 | J102: =IF(C102="",0,IF(C102=$C$4,SUMIFS($I$4:I101,$C$4:C101,C101),SUMIFS($I$4:I101,$C$4:C101,C102))) -> 0 | K102: 0
A103: 100 | C103: =IFERROR(VLOOKUP(D103,Nomenclature!$B$2:$C$196,2,0),"") ->  | H103: =IF(C103="",0,IF(SUMIFS($G$5:G103,$C$5:C103,C103)-SUMIFS($I$4:I102,$C$4:C102,C103)<0,0,SUMIFS($G$5:G103,$C$5:C103,C103)-SUMIFS($I$4:I102,$C$4:C102,C103))) -> 0 | J103: =IF(C103="",0,IF(C103=$C$4,SUMIFS($I$4:I102,$C$4:C102,C102),SUMIFS($I$4:I102,$C$4:C102,C103))) -> 0 | K103: 0
A104: 101 | C104: =IFERROR(VLOOKUP(D104,Nomenclature!$B$2:$C$196,2,0),"") ->  | H104: =IF(C104="",0,IF(SUMIFS($G$5:G104,$C$5:C104,C104)-SUMIFS($I$4:I103,$C$4:C103,C104)<0,0,SUMIFS($G$5:G104,$C$5:C104,C104)-SUMIFS($I$4:I103,$C$4:C103,C104))) -> 0 | J104: =IF(C104="",0,IF(C104=$C$4,SUMIFS($I$4:I103,$C$4:C103,C103),SUMIFS($I$4:I103,$C$4:C103,C104))) -> 0 | K104: 0
A105: 102 | C105: =IFERROR(VLOOKUP(D105,Nomenclature!$B$2:$C$196,2,0),"") ->  | H105: =IF(C105="",0,IF(SUMIFS($G$5:G105,$C$5:C105,C105)-SUMIFS($I$4:I104,$C$4:C104,C105)<0,0,SUMIFS($G$5:G105,$C$5:C105,C105)-SUMIFS($I$4:I104,$C$4:C104,C105))) -> 0 | J105: =IF(C105="",0,IF(C105=$C$4,SUMIFS($I$4:I104,$C$4:C104,C104),SUMIFS($I$4:I104,$C$4:C104,C105))) -> 0 | K105: 0
A106: 103 | C106: =IFERROR(VLOOKUP(D106,Nomenclature!$B$2:$C$196,2,0),"") ->  | H106: =IF(C106="",0,IF(SUMIFS($G$5:G106,$C$5:C106,C106)-SUMIFS($I$4:I105,$C$4:C105,C106)<0,0,SUMIFS($G$5:G106,$C$5:C106,C106)-SUMIFS($I$4:I105,$C$4:C105,C106))) -> 0 | J106: =IF(C106="",0,IF(C106=$C$4,SUMIFS($I$4:I105,$C$4:C105,C105),SUMIFS($I$4:I105,$C$4:C105,C106))) -> 0 | K106: 0
A107: 104 | C107: =IFERROR(VLOOKUP(D107,Nomenclature!$B$2:$C$196,2,0),"") ->  | H107: =IF(C107="",0,IF(SUMIFS($G$5:G107,$C$5:C107,C107)-SUMIFS($I$4:I106,$C$4:C106,C107)<0,0,SUMIFS($G$5:G107,$C$5:C107,C107)-SUMIFS($I$4:I106,$C$4:C106,C107))) -> 0 | J107: =IF(C107="",0,IF(C107=$C$4,SUMIFS($I$4:I106,$C$4:C106,C106),SUMIFS($I$4:I106,$C$4:C106,C107))) -> 0 | K107: 0
A108: 105 | C108: =IFERROR(VLOOKUP(D108,Nomenclature!$B$2:$C$196,2,0),"") ->  | H108: =IF(C108="",0,IF(SUMIFS($G$5:G108,$C$5:C108,C108)-SUMIFS($I$4:I107,$C$4:C107,C108)<0,0,SUMIFS($G$5:G108,$C$5:C108,C108)-SUMIFS($I$4:I107,$C$4:C107,C108))) -> 0 | J108: =IF(C108="",0,IF(C108=$C$4,SUMIFS($I$4:I107,$C$4:C107,C107),SUMIFS($I$4:I107,$C$4:C107,C108))) -> 0 | K108: 0
A109: 106 | C109: =IFERROR(VLOOKUP(D109,Nomenclature!$B$2:$C$196,2,0),"") ->  | H109: =IF(C109="",0,IF(SUMIFS($G$5:G109,$C$5:C109,C109)-SUMIFS($I$4:I108,$C$4:C108,C109)<0,0,SUMIFS($G$5:G109,$C$5:C109,C109)-SUMIFS($I$4:I108,$C$4:C108,C109))) -> 0 | J109: =IF(C109="",0,IF(C109=$C$4,SUMIFS($I$4:I108,$C$4:C108,C108),SUMIFS($I$4:I108,$C$4:C108,C109))) -> 0 | K109: 0
A110: 107 | C110: =IFERROR(VLOOKUP(D110,Nomenclature!$B$2:$C$196,2,0),"") ->  | H110: =IF(C110="",0,IF(SUMIFS($G$5:G110,$C$5:C110,C110)-SUMIFS($I$4:I109,$C$4:C109,C110)<0,0,SUMIFS($G$5:G110,$C$5:C110,C110)-SUMIFS($I$4:I109,$C$4:C109,C110))) -> 0 | J110: =IF(C110="",0,IF(C110=$C$4,SUMIFS($I$4:I109,$C$4:C109,C109),SUMIFS($I$4:I109,$C$4:C109,C110))) -> 0 | K110: 0
A111: 108 | C111: =IFERROR(VLOOKUP(D111,Nomenclature!$B$2:$C$196,2,0),"") ->  | H111: =IF(C111="",0,IF(SUMIFS($G$5:G111,$C$5:C111,C111)-SUMIFS($I$4:I110,$C$4:C110,C111)<0,0,SUMIFS($G$5:G111,$C$5:C111,C111)-SUMIFS($I$4:I110,$C$4:C110,C111))) -> 0 | J111: =IF(C111="",0,IF(C111=$C$4,SUMIFS($I$4:I110,$C$4:C110,C110),SUMIFS($I$4:I110,$C$4:C110,C111))) -> 0 | K111: 0
A112: 109 | C112: =IFERROR(VLOOKUP(D112,Nomenclature!$B$2:$C$196,2,0),"") ->  | H112: =IF(C112="",0,IF(SUMIFS($G$5:G112,$C$5:C112,C112)-SUMIFS($I$4:I111,$C$4:C111,C112)<0,0,SUMIFS($G$5:G112,$C$5:C112,C112)-SUMIFS($I$4:I111,$C$4:C111,C112))) -> 0 | J112: =IF(C112="",0,IF(C112=$C$4,SUMIFS($I$4:I111,$C$4:C111,C111),SUMIFS($I$4:I111,$C$4:C111,C112))) -> 0 | K112: 0
A113: 110 | C113: =IFERROR(VLOOKUP(D113,Nomenclature!$B$2:$C$196,2,0),"") ->  | H113: =IF(C113="",0,IF(SUMIFS($G$5:G113,$C$5:C113,C113)-SUMIFS($I$4:I112,$C$4:C112,C113)<0,0,SUMIFS($G$5:G113,$C$5:C113,C113)-SUMIFS($I$4:I112,$C$4:C112,C113))) -> 0 | J113: =IF(C113="",0,IF(C113=$C$4,SUMIFS($I$4:I112,$C$4:C112,C112),SUMIFS($I$4:I112,$C$4:C112,C113))) -> 0 | K113: 0
A114: 111 | C114: =IFERROR(VLOOKUP(D114,Nomenclature!$B$2:$C$196,2,0),"") ->  | H114: =IF(C114="",0,IF(SUMIFS($G$5:G114,$C$5:C114,C114)-SUMIFS($I$4:I113,$C$4:C113,C114)<0,0,SUMIFS($G$5:G114,$C$5:C114,C114)-SUMIFS($I$4:I113,$C$4:C113,C114))) -> 0 | J114: =IF(C114="",0,IF(C114=$C$4,SUMIFS($I$4:I113,$C$4:C113,C113),SUMIFS($I$4:I113,$C$4:C113,C114))) -> 0 | K114: 0
A115: 112 | C115: =IFERROR(VLOOKUP(D115,Nomenclature!$B$2:$C$196,2,0),"") ->  | H115: =IF(C115="",0,IF(SUMIFS($G$5:G115,$C$5:C115,C115)-SUMIFS($I$4:I114,$C$4:C114,C115)<0,0,SUMIFS($G$5:G115,$C$5:C115,C115)-SUMIFS($I$4:I114,$C$4:C114,C115))) -> 0 | J115: =IF(C115="",0,IF(C115=$C$4,SUMIFS($I$4:I114,$C$4:C114,C114),SUMIFS($I$4:I114,$C$4:C114,C115))) -> 0 | K115: 0
A116: 113 | C116: =IFERROR(VLOOKUP(D116,Nomenclature!$B$2:$C$196,2,0),"") ->  | H116: =IF(C116="",0,IF(SUMIFS($G$5:G116,$C$5:C116,C116)-SUMIFS($I$4:I115,$C$4:C115,C116)<0,0,SUMIFS($G$5:G116,$C$5:C116,C116)-SUMIFS($I$4:I115,$C$4:C115,C116))) -> 0 | J116: =IF(C116="",0,IF(C116=$C$4,SUMIFS($I$4:I115,$C$4:C115,C115),SUMIFS($I$4:I115,$C$4:C115,C116))) -> 0 | K116: 0
A117: 114 | C117: =IFERROR(VLOOKUP(D117,Nomenclature!$B$2:$C$196,2,0),"") ->  | H117: =IF(C117="",0,IF(SUMIFS($G$5:G117,$C$5:C117,C117)-SUMIFS($I$4:I116,$C$4:C116,C117)<0,0,SUMIFS($G$5:G117,$C$5:C117,C117)-SUMIFS($I$4:I116,$C$4:C116,C117))) -> 0 | J117: =IF(C117="",0,IF(C117=$C$4,SUMIFS($I$4:I116,$C$4:C116,C116),SUMIFS($I$4:I116,$C$4:C116,C117))) -> 0 | K117: 0
A118: 115 | C118: =IFERROR(VLOOKUP(D118,Nomenclature!$B$2:$C$196,2,0),"") ->  | H118: =IF(C118="",0,IF(SUMIFS($G$5:G118,$C$5:C118,C118)-SUMIFS($I$4:I117,$C$4:C117,C118)<0,0,SUMIFS($G$5:G118,$C$5:C118,C118)-SUMIFS($I$4:I117,$C$4:C117,C118))) -> 0 | J118: =IF(C118="",0,IF(C118=$C$4,SUMIFS($I$4:I117,$C$4:C117,C117),SUMIFS($I$4:I117,$C$4:C117,C118))) -> 0 | K118: 0
A119: 116 | C119: =IFERROR(VLOOKUP(D119,Nomenclature!$B$2:$C$196,2,0),"") ->  | H119: =IF(C119="",0,IF(SUMIFS($G$5:G119,$C$5:C119,C119)-SUMIFS($I$4:I118,$C$4:C118,C119)<0,0,SUMIFS($G$5:G119,$C$5:C119,C119)-SUMIFS($I$4:I118,$C$4:C118,C119))) -> 0 | J119: =IF(C119="",0,IF(C119=$C$4,SUMIFS($I$4:I118,$C$4:C118,C118),SUMIFS($I$4:I118,$C$4:C118,C119))) -> 0 | K119: 0
A120: 117 | C120: =IFERROR(VLOOKUP(D120,Nomenclature!$B$2:$C$196,2,0),"") ->  | H120: =IF(C120="",0,IF(SUMIFS($G$5:G120,$C$5:C120,C120)-SUMIFS($I$4:I119,$C$4:C119,C120)<0,0,SUMIFS($G$5:G120,$C$5:C120,C120)-SUMIFS($I$4:I119,$C$4:C119,C120))) -> 0 | J120: =IF(C120="",0,IF(C120=$C$4,SUMIFS($I$4:I119,$C$4:C119,C119),SUMIFS($I$4:I119,$C$4:C119,C120))) -> 0 | K120: 0
A121: 118 | C121: =IFERROR(VLOOKUP(D121,Nomenclature!$B$2:$C$196,2,0),"") ->  | H121: =IF(C121="",0,IF(SUMIFS($G$5:G121,$C$5:C121,C121)-SUMIFS($I$4:I120,$C$4:C120,C121)<0,0,SUMIFS($G$5:G121,$C$5:C121,C121)-SUMIFS($I$4:I120,$C$4:C120,C121))) -> 0 | J121: =IF(C121="",0,IF(C121=$C$4,SUMIFS($I$4:I120,$C$4:C120,C120),SUMIFS($I$4:I120,$C$4:C120,C121))) -> 0 | K121: 0
A122: 119 | C122: =IFERROR(VLOOKUP(D122,Nomenclature!$B$2:$C$196,2,0),"") ->  | H122: =IF(C122="",0,IF(SUMIFS($G$5:G122,$C$5:C122,C122)-SUMIFS($I$4:I121,$C$4:C121,C122)<0,0,SUMIFS($G$5:G122,$C$5:C122,C122)-SUMIFS($I$4:I121,$C$4:C121,C122))) -> 0 | J122: =IF(C122="",0,IF(C122=$C$4,SUMIFS($I$4:I121,$C$4:C121,C121),SUMIFS($I$4:I121,$C$4:C121,C122))) -> 0 | K122: 0
A123: 120 | C123: =IFERROR(VLOOKUP(D123,Nomenclature!$B$2:$C$196,2,0),"") ->  | H123: =IF(C123="",0,IF(SUMIFS($G$5:G123,$C$5:C123,C123)-SUMIFS($I$4:I122,$C$4:C122,C123)<0,0,SUMIFS($G$5:G123,$C$5:C123,C123)-SUMIFS($I$4:I122,$C$4:C122,C123))) -> 0 | J123: =IF(C123="",0,IF(C123=$C$4,SUMIFS($I$4:I122,$C$4:C122,C122),SUMIFS($I$4:I122,$C$4:C122,C123))) -> 0 | K123: 0
A124: 121 | C124: =IFERROR(VLOOKUP(D124,Nomenclature!$B$2:$C$196,2,0),"") ->  | H124: =IF(C124="",0,IF(SUMIFS($G$5:G124,$C$5:C124,C124)-SUMIFS($I$4:I123,$C$4:C123,C124)<0,0,SUMIFS($G$5:G124,$C$5:C124,C124)-SUMIFS($I$4:I123,$C$4:C123,C124))) -> 0 | J124: =IF(C124="",0,IF(C124=$C$4,SUMIFS($I$4:I123,$C$4:C123,C123),SUMIFS($I$4:I123,$C$4:C123,C124))) -> 0 | K124: 0
A125: 122 | C125: =IFERROR(VLOOKUP(D125,Nomenclature!$B$2:$C$196,2,0),"") ->  | H125: =IF(C125="",0,IF(SUMIFS($G$5:G125,$C$5:C125,C125)-SUMIFS($I$4:I124,$C$4:C124,C125)<0,0,SUMIFS($G$5:G125,$C$5:C125,C125)-SUMIFS($I$4:I124,$C$4:C124,C125))) -> 0 | J125: =IF(C125="",0,IF(C125=$C$4,SUMIFS($I$4:I124,$C$4:C124,C124),SUMIFS($I$4:I124,$C$4:C124,C125))) -> 0 | K125: 0
A126: 123 | C126: =IFERROR(VLOOKUP(D126,Nomenclature!$B$2:$C$196,2,0),"") ->  | H126: =IF(C126="",0,IF(SUMIFS($G$5:G126,$C$5:C126,C126)-SUMIFS($I$4:I125,$C$4:C125,C126)<0,0,SUMIFS($G$5:G126,$C$5:C126,C126)-SUMIFS($I$4:I125,$C$4:C125,C126))) -> 0 | J126: =IF(C126="",0,IF(C126=$C$4,SUMIFS($I$4:I125,$C$4:C125,C125),SUMIFS($I$4:I125,$C$4:C125,C126))) -> 0 | K126: 0
A127: 124 | C127: =IFERROR(VLOOKUP(D127,Nomenclature!$B$2:$C$196,2,0),"") ->  | H127: =IF(C127="",0,IF(SUMIFS($G$5:G127,$C$5:C127,C127)-SUMIFS($I$4:I126,$C$4:C126,C127)<0,0,SUMIFS($G$5:G127,$C$5:C127,C127)-SUMIFS($I$4:I126,$C$4:C126,C127))) -> 0 | J127: =IF(C127="",0,IF(C127=$C$4,SUMIFS($I$4:I126,$C$4:C126,C126),SUMIFS($I$4:I126,$C$4:C126,C127))) -> 0 | K127: 0
A128: 125 | C128: =IFERROR(VLOOKUP(D128,Nomenclature!$B$2:$C$196,2,0),"") ->  | H128: =IF(C128="",0,IF(SUMIFS($G$5:G128,$C$5:C128,C128)-SUMIFS($I$4:I127,$C$4:C127,C128)<0,0,SUMIFS($G$5:G128,$C$5:C128,C128)-SUMIFS($I$4:I127,$C$4:C127,C128))) -> 0 | J128: =IF(C128="",0,IF(C128=$C$4,SUMIFS($I$4:I127,$C$4:C127,C127),SUMIFS($I$4:I127,$C$4:C127,C128))) -> 0 | K128: 0
A129: 126 | C129: =IFERROR(VLOOKUP(D129,Nomenclature!$B$2:$C$196,2,0),"") ->  | H129: =IF(C129="",0,IF(SUMIFS($G$5:G129,$C$5:C129,C129)-SUMIFS($I$4:I128,$C$4:C128,C129)<0,0,SUMIFS($G$5:G129,$C$5:C129,C129)-SUMIFS($I$4:I128,$C$4:C128,C129))) -> 0 | J129: =IF(C129="",0,IF(C129=$C$4,SUMIFS($I$4:I128,$C$4:C128,C128),SUMIFS($I$4:I128,$C$4:C128,C129))) -> 0 | K129: 0
A130: 127 | C130: =IFERROR(VLOOKUP(D130,Nomenclature!$B$2:$C$196,2,0),"") ->  | H130: =IF(C130="",0,IF(SUMIFS($G$5:G130,$C$5:C130,C130)-SUMIFS($I$4:I129,$C$4:C129,C130)<0,0,SUMIFS($G$5:G130,$C$5:C130,C130)-SUMIFS($I$4:I129,$C$4:C129,C130))) -> 0 | J130: =IF(C130="",0,IF(C130=$C$4,SUMIFS($I$4:I129,$C$4:C129,C129),SUMIFS($I$4:I129,$C$4:C129,C130))) -> 0 | K130: 0
A131: 128 | C131: =IFERROR(VLOOKUP(D131,Nomenclature!$B$2:$C$196,2,0),"") ->  | H131: =IF(C131="",0,IF(SUMIFS($G$5:G131,$C$5:C131,C131)-SUMIFS($I$4:I130,$C$4:C130,C131)<0,0,SUMIFS($G$5:G131,$C$5:C131,C131)-SUMIFS($I$4:I130,$C$4:C130,C131))) -> 0 | J131: =IF(C131="",0,IF(C131=$C$4,SUMIFS($I$4:I130,$C$4:C130,C130),SUMIFS($I$4:I130,$C$4:C130,C131))) -> 0 | K131: 0
A132: 129 | C132: =IFERROR(VLOOKUP(D132,Nomenclature!$B$2:$C$196,2,0),"") ->  | H132: =IF(C132="",0,IF(SUMIFS($G$5:G132,$C$5:C132,C132)-SUMIFS($I$4:I131,$C$4:C131,C132)<0,0,SUMIFS($G$5:G132,$C$5:C132,C132)-SUMIFS($I$4:I131,$C$4:C131,C132))) -> 0 | J132: =IF(C132="",0,IF(C132=$C$4,SUMIFS($I$4:I131,$C$4:C131,C131),SUMIFS($I$4:I131,$C$4:C131,C132))) -> 0 | K132: =IF(C132="",0,H132-I132) -> 0
A133: 130 | C133: =IFERROR(VLOOKUP(D133,Nomenclature!$B$2:$C$196,2,0),"") ->  | H133: =IF(C133="",0,IF(SUMIFS($G$5:G133,$C$5:C133,C133)-SUMIFS($I$4:I132,$C$4:C132,C133)<0,0,SUMIFS($G$5:G133,$C$5:C133,C133)-SUMIFS($I$4:I132,$C$4:C132,C133))) -> 0 | J133: =IF(C133="",0,IF(C133=$C$4,SUMIFS($I$4:I132,$C$4:C132,C132),SUMIFS($I$4:I132,$C$4:C132,C133))) -> 0 | K133: 0
A134: 131 | C134: =IFERROR(VLOOKUP(D134,Nomenclature!$B$2:$C$196,2,0),"") ->  | H134: =IF(C134="",0,IF(SUMIFS($G$5:G134,$C$5:C134,C134)-SUMIFS($I$4:I133,$C$4:C133,C134)<0,0,SUMIFS($G$5:G134,$C$5:C134,C134)-SUMIFS($I$4:I133,$C$4:C133,C134))) -> 0 | J134: =IF(C134="",0,IF(C134=$C$4,SUMIFS($I$4:I133,$C$4:C133,C133),SUMIFS($I$4:I133,$C$4:C133,C134))) -> 0 | K134: 0
A135: 132 | C135: =IFERROR(VLOOKUP(D135,Nomenclature!$B$2:$C$196,2,0),"") ->  | H135: =IF(C135="",0,IF(SUMIFS($G$5:G135,$C$5:C135,C135)-SUMIFS($I$4:I134,$C$4:C134,C135)<0,0,SUMIFS($G$5:G135,$C$5:C135,C135)-SUMIFS($I$4:I134,$C$4:C134,C135))) -> 0 | J135: =IF(C135="",0,IF(C135=$C$4,SUMIFS($I$4:I134,$C$4:C134,C134),SUMIFS($I$4:I134,$C$4:C134,C135))) -> 0 | K135: 0
A136: 133 | C136: =IFERROR(VLOOKUP(D136,Nomenclature!$B$2:$C$196,2,0),"") ->  | H136: =IF(C136="",0,IF(SUMIFS($G$5:G136,$C$5:C136,C136)-SUMIFS($I$4:I135,$C$4:C135,C136)<0,0,SUMIFS($G$5:G136,$C$5:C136,C136)-SUMIFS($I$4:I135,$C$4:C135,C136))) -> 0 | J136: =IF(C136="",0,IF(C136=$C$4,SUMIFS($I$4:I135,$C$4:C135,C135),SUMIFS($I$4:I135,$C$4:C135,C136))) -> 0 | K136: 0
A137: 134 | C137: =IFERROR(VLOOKUP(D137,Nomenclature!$B$2:$C$196,2,0),"") ->  | H137: =IF(C137="",0,IF(SUMIFS($G$5:G137,$C$5:C137,C137)-SUMIFS($I$4:I136,$C$4:C136,C137)<0,0,SUMIFS($G$5:G137,$C$5:C137,C137)-SUMIFS($I$4:I136,$C$4:C136,C137))) -> 0 | J137: =IF(C137="",0,IF(C137=$C$4,SUMIFS($I$4:I136,$C$4:C136,C136),SUMIFS($I$4:I136,$C$4:C136,C137))) -> 0 | K137: 0
A138: 135 | C138: =IFERROR(VLOOKUP(D138,Nomenclature!$B$2:$C$196,2,0),"") ->  | H138: =IF(C138="",0,IF(SUMIFS($G$5:G138,$C$5:C138,C138)-SUMIFS($I$4:I137,$C$4:C137,C138)<0,0,SUMIFS($G$5:G138,$C$5:C138,C138)-SUMIFS($I$4:I137,$C$4:C137,C138))) -> 0 | J138: =IF(C138="",0,IF(C138=$C$4,SUMIFS($I$4:I137,$C$4:C137,C137),SUMIFS($I$4:I137,$C$4:C137,C138))) -> 0 | K138: 0
A139: 136 | C139: =IFERROR(VLOOKUP(D139,Nomenclature!$B$2:$C$196,2,0),"") ->  | H139: =IF(C139="",0,IF(SUMIFS($G$5:G139,$C$5:C139,C139)-SUMIFS($I$4:I138,$C$4:C138,C139)<0,0,SUMIFS($G$5:G139,$C$5:C139,C139)-SUMIFS($I$4:I138,$C$4:C138,C139))) -> 0 | J139: =IF(C139="",0,IF(C139=$C$4,SUMIFS($I$4:I138,$C$4:C138,C138),SUMIFS($I$4:I138,$C$4:C138,C139))) -> 0 | K139: 0
A140: 137 | C140: =IFERROR(VLOOKUP(D140,Nomenclature!$B$2:$C$196,2,0),"") ->  | H140: =IF(C140="",0,IF(SUMIFS($G$5:G140,$C$5:C140,C140)-SUMIFS($I$4:I139,$C$4:C139,C140)<0,0,SUMIFS($G$5:G140,$C$5:C140,C140)-SUMIFS($I$4:I139,$C$4:C139,C140))) -> 0 | J140: =IF(C140="",0,IF(C140=$C$4,SUMIFS($I$4:I139,$C$4:C139,C139),SUMIFS($I$4:I139,$C$4:C139,C140))) -> 0 | K140: 0
A141: 138 | C141: =IFERROR(VLOOKUP(D141,Nomenclature!$B$2:$C$196,2,0),"") ->  | H141: =IF(C141="",0,IF(SUMIFS($G$5:G141,$C$5:C141,C141)-SUMIFS($I$4:I140,$C$4:C140,C141)<0,0,SUMIFS($G$5:G141,$C$5:C141,C141)-SUMIFS($I$4:I140,$C$4:C140,C141))) -> 0 | J141: =IF(C141="",0,IF(C141=$C$4,SUMIFS($I$4:I140,$C$4:C140,C140),SUMIFS($I$4:I140,$C$4:C140,C141))) -> 0 | K141: 0
A142: 139 | C142: =IFERROR(VLOOKUP(D142,Nomenclature!$B$2:$C$196,2,0),"") ->  | H142: =IF(C142="",0,IF(SUMIFS($G$5:G142,$C$5:C142,C142)-SUMIFS($I$4:I141,$C$4:C141,C142)<0,0,SUMIFS($G$5:G142,$C$5:C142,C142)-SUMIFS($I$4:I141,$C$4:C141,C142))) -> 0 | J142: =IF(C142="",0,IF(C142=$C$4,SUMIFS($I$4:I141,$C$4:C141,C141),SUMIFS($I$4:I141,$C$4:C141,C142))) -> 0 | K142: 0
A143: 140 | C143: =IFERROR(VLOOKUP(D143,Nomenclature!$B$2:$C$196,2,0),"") ->  | H143: =IF(C143="",0,IF(SUMIFS($G$5:G143,$C$5:C143,C143)-SUMIFS($I$4:I142,$C$4:C142,C143)<0,0,SUMIFS($G$5:G143,$C$5:C143,C143)-SUMIFS($I$4:I142,$C$4:C142,C143))) -> 0 | J143: =IF(C143="",0,IF(C143=$C$4,SUMIFS($I$4:I142,$C$4:C142,C142),SUMIFS($I$4:I142,$C$4:C142,C143))) -> 0 | K143: 0
A144: 141 | C144: =IFERROR(VLOOKUP(D144,Nomenclature!$B$2:$C$196,2,0),"") ->  | H144: =IF(C144="",0,IF(SUMIFS($G$5:G144,$C$5:C144,C144)-SUMIFS($I$4:I143,$C$4:C143,C144)<0,0,SUMIFS($G$5:G144,$C$5:C144,C144)-SUMIFS($I$4:I143,$C$4:C143,C144))) -> 0 | J144: =IF(C144="",0,IF(C144=$C$4,SUMIFS($I$4:I143,$C$4:C143,C143),SUMIFS($I$4:I143,$C$4:C143,C144))) -> 0 | K144: 0
A145: 142 | C145: =IFERROR(VLOOKUP(D145,Nomenclature!$B$2:$C$196,2,0),"") ->  | H145: =IF(C145="",0,IF(SUMIFS($G$5:G145,$C$5:C145,C145)-SUMIFS($I$4:I144,$C$4:C144,C145)<0,0,SUMIFS($G$5:G145,$C$5:C145,C145)-SUMIFS($I$4:I144,$C$4:C144,C145))) -> 0 | J145: =IF(C145="",0,IF(C145=$C$4,SUMIFS($I$4:I144,$C$4:C144,C144),SUMIFS($I$4:I144,$C$4:C144,C145))) -> 0 | K145: 0
A146: 143 | C146: =IFERROR(VLOOKUP(D146,Nomenclature!$B$2:$C$196,2,0),"") ->  | H146: =IF(C146="",0,IF(SUMIFS($G$5:G146,$C$5:C146,C146)-SUMIFS($I$4:I145,$C$4:C145,C146)<0,0,SUMIFS($G$5:G146,$C$5:C146,C146)-SUMIFS($I$4:I145,$C$4:C145,C146))) -> 0 | J146: =IF(C146="",0,IF(C146=$C$4,SUMIFS($I$4:I145,$C$4:C145,C145),SUMIFS($I$4:I145,$C$4:C145,C146))) -> 0 | K146: 0
A147: 144 | C147: =IFERROR(VLOOKUP(D147,Nomenclature!$B$2:$C$196,2,0),"") ->  | H147: =IF(C147="",0,IF(SUMIFS($G$5:G147,$C$5:C147,C147)-SUMIFS($I$4:I146,$C$4:C146,C147)<0,0,SUMIFS($G$5:G147,$C$5:C147,C147)-SUMIFS($I$4:I146,$C$4:C146,C147))) -> 0 | J147: =IF(C147="",0,IF(C147=$C$4,SUMIFS($I$4:I146,$C$4:C146,C146),SUMIFS($I$4:I146,$C$4:C146,C147))) -> 0 | K147: 0
A148: 145 | C148: =IFERROR(VLOOKUP(D148,Nomenclature!$B$2:$C$196,2,0),"") ->  | H148: =IF(C148="",0,IF(SUMIFS($G$5:G148,$C$5:C148,C148)-SUMIFS($I$4:I147,$C$4:C147,C148)<0,0,SUMIFS($G$5:G148,$C$5:C148,C148)-SUMIFS($I$4:I147,$C$4:C147,C148))) -> 0 | J148: =IF(C148="",0,IF(C148=$C$4,SUMIFS($I$4:I147,$C$4:C147,C147),SUMIFS($I$4:I147,$C$4:C147,C148))) -> 0 | K148: 0
A149: 146 | C149: =IFERROR(VLOOKUP(D149,Nomenclature!$B$2:$C$196,2,0),"") ->  | H149: =IF(C149="",0,IF(SUMIFS($G$5:G149,$C$5:C149,C149)-SUMIFS($I$4:I148,$C$4:C148,C149)<0,0,SUMIFS($G$5:G149,$C$5:C149,C149)-SUMIFS($I$4:I148,$C$4:C148,C149))) -> 0 | J149: =IF(C149="",0,IF(C149=$C$4,SUMIFS($I$4:I148,$C$4:C148,C148),SUMIFS($I$4:I148,$C$4:C148,C149))) -> 0 | K149: 0
A150: 147 | C150: =IFERROR(VLOOKUP(D150,Nomenclature!$B$2:$C$196,2,0),"") ->  | H150: =IF(C150="",0,IF(SUMIFS($G$5:G150,$C$5:C150,C150)-SUMIFS($I$4:I149,$C$4:C149,C150)<0,0,SUMIFS($G$5:G150,$C$5:C150,C150)-SUMIFS($I$4:I149,$C$4:C149,C150))) -> 0 | J150: =IF(C150="",0,IF(C150=$C$4,SUMIFS($I$4:I149,$C$4:C149,C149),SUMIFS($I$4:I149,$C$4:C149,C150))) -> 0 | K150: 0
A151: 148 | C151: =IFERROR(VLOOKUP(D151,Nomenclature!$B$2:$C$196,2,0),"") ->  | H151: =IF(C151="",0,IF(SUMIFS($G$5:G151,$C$5:C151,C151)-SUMIFS($I$4:I150,$C$4:C150,C151)<0,0,SUMIFS($G$5:G151,$C$5:C151,C151)-SUMIFS($I$4:I150,$C$4:C150,C151))) -> 0 | J151: =IF(C151="",0,IF(C151=$C$4,SUMIFS($I$4:I150,$C$4:C150,C150),SUMIFS($I$4:I150,$C$4:C150,C151))) -> 0 | K151: 0
A152: 149 | C152: =IFERROR(VLOOKUP(D152,Nomenclature!$B$2:$C$196,2,0),"") ->  | H152: =IF(C152="",0,IF(SUMIFS($G$5:G152,$C$5:C152,C152)-SUMIFS($I$4:I151,$C$4:C151,C152)<0,0,SUMIFS($G$5:G152,$C$5:C152,C152)-SUMIFS($I$4:I151,$C$4:C151,C152))) -> 0 | J152: =IF(C152="",0,IF(C152=$C$4,SUMIFS($I$4:I151,$C$4:C151,C151),SUMIFS($I$4:I151,$C$4:C151,C152))) -> 0 | K152: 0
A153: 150 | C153: =IFERROR(VLOOKUP(D153,Nomenclature!$B$2:$C$196,2,0),"") ->  | H153: =IF(C153="",0,IF(SUMIFS($G$5:G153,$C$5:C153,C153)-SUMIFS($I$4:I152,$C$4:C152,C153)<0,0,SUMIFS($G$5:G153,$C$5:C153,C153)-SUMIFS($I$4:I152,$C$4:C152,C153))) -> 0 | J153: =IF(C153="",0,IF(C153=$C$4,SUMIFS($I$4:I152,$C$4:C152,C152),SUMIFS($I$4:I152,$C$4:C152,C153))) -> 0 | K153: 0
A154: 151 | C154: =IFERROR(VLOOKUP(D154,Nomenclature!$B$2:$C$196,2,0),"") ->  | H154: =IF(C154="",0,IF(SUMIFS($G$5:G154,$C$5:C154,C154)-SUMIFS($I$4:I153,$C$4:C153,C154)<0,0,SUMIFS($G$5:G154,$C$5:C154,C154)-SUMIFS($I$4:I153,$C$4:C153,C154))) -> 0 | J154: =IF(C154="",0,IF(C154=$C$4,SUMIFS($I$4:I153,$C$4:C153,C153),SUMIFS($I$4:I153,$C$4:C153,C154))) -> 0 | K154: 0
A155: 152 | C155: =IFERROR(VLOOKUP(D155,Nomenclature!$B$2:$C$196,2,0),"") ->  | H155: =IF(C155="",0,IF(SUMIFS($G$5:G155,$C$5:C155,C155)-SUMIFS($I$4:I154,$C$4:C154,C155)<0,0,SUMIFS($G$5:G155,$C$5:C155,C155)-SUMIFS($I$4:I154,$C$4:C154,C155))) -> 0 | J155: =IF(C155="",0,IF(C155=$C$4,SUMIFS($I$4:I154,$C$4:C154,C154),SUMIFS($I$4:I154,$C$4:C154,C155))) -> 0 | K155: 0
A156: 153 | C156: =IFERROR(VLOOKUP(D156,Nomenclature!$B$2:$C$196,2,0),"") ->  | H156: =IF(C156="",0,IF(SUMIFS($G$5:G156,$C$5:C156,C156)-SUMIFS($I$4:I155,$C$4:C155,C156)<0,0,SUMIFS($G$5:G156,$C$5:C156,C156)-SUMIFS($I$4:I155,$C$4:C155,C156))) -> 0 | J156: =IF(C156="",0,IF(C156=$C$4,SUMIFS($I$4:I155,$C$4:C155,C155),SUMIFS($I$4:I155,$C$4:C155,C156))) -> 0 | K156: 0
A157: 154 | C157: =IFERROR(VLOOKUP(D157,Nomenclature!$B$2:$C$196,2,0),"") ->  | H157: =IF(C157="",0,IF(SUMIFS($G$5:G157,$C$5:C157,C157)-SUMIFS($I$4:I156,$C$4:C156,C157)<0,0,SUMIFS($G$5:G157,$C$5:C157,C157)-SUMIFS($I$4:I156,$C$4:C156,C157))) -> 0 | J157: =IF(C157="",0,IF(C157=$C$4,SUMIFS($I$4:I156,$C$4:C156,C156),SUMIFS($I$4:I156,$C$4:C156,C157))) -> 0 | K157: 0
A158: 155 | C158: =IFERROR(VLOOKUP(D158,Nomenclature!$B$2:$C$196,2,0),"") ->  | H158: =IF(C158="",0,IF(SUMIFS($G$5:G158,$C$5:C158,C158)-SUMIFS($I$4:I157,$C$4:C157,C158)<0,0,SUMIFS($G$5:G158,$C$5:C158,C158)-SUMIFS($I$4:I157,$C$4:C157,C158))) -> 0 | J158: =IF(C158="",0,IF(C158=$C$4,SUMIFS($I$4:I157,$C$4:C157,C157),SUMIFS($I$4:I157,$C$4:C157,C158))) -> 0 | K158: 0
A159: 156 | C159: =IFERROR(VLOOKUP(D159,Nomenclature!$B$2:$C$196,2,0),"") ->  | H159: =IF(C159="",0,IF(SUMIFS($G$5:G159,$C$5:C159,C159)-SUMIFS($I$4:I158,$C$4:C158,C159)<0,0,SUMIFS($G$5:G159,$C$5:C159,C159)-SUMIFS($I$4:I158,$C$4:C158,C159))) -> 0 | J159: =IF(C159="",0,IF(C159=$C$4,SUMIFS($I$4:I158,$C$4:C158,C158),SUMIFS($I$4:I158,$C$4:C158,C159))) -> 0 | K159: 0
A160: 157 | C160: =IFERROR(VLOOKUP(D160,Nomenclature!$B$2:$C$196,2,0),"") ->  | H160: =IF(C160="",0,IF(SUMIFS($G$5:G160,$C$5:C160,C160)-SUMIFS($I$4:I159,$C$4:C159,C160)<0,0,SUMIFS($G$5:G160,$C$5:C160,C160)-SUMIFS($I$4:I159,$C$4:C159,C160))) -> 0 | J160: =IF(C160="",0,IF(C160=$C$4,SUMIFS($I$4:I159,$C$4:C159,C159),SUMIFS($I$4:I159,$C$4:C159,C160))) -> 0 | K160: 0
A161: 158 | C161: =IFERROR(VLOOKUP(D161,Nomenclature!$B$2:$C$196,2,0),"") ->  | H161: =IF(C161="",0,IF(SUMIFS($G$5:G161,$C$5:C161,C161)-SUMIFS($I$4:I160,$C$4:C160,C161)<0,0,SUMIFS($G$5:G161,$C$5:C161,C161)-SUMIFS($I$4:I160,$C$4:C160,C161))) -> 0 | J161: =IF(C161="",0,IF(C161=$C$4,SUMIFS($I$4:I160,$C$4:C160,C160),SUMIFS($I$4:I160,$C$4:C160,C161))) -> 0 | K161: 0
A162: 159 | C162: =IFERROR(VLOOKUP(D162,Nomenclature!$B$2:$C$196,2,0),"") ->  | H162: =IF(C162="",0,IF(SUMIFS($G$5:G162,$C$5:C162,C162)-SUMIFS($I$4:I161,$C$4:C161,C162)<0,0,SUMIFS($G$5:G162,$C$5:C162,C162)-SUMIFS($I$4:I161,$C$4:C161,C162))) -> 0 | J162: =IF(C162="",0,IF(C162=$C$4,SUMIFS($I$4:I161,$C$4:C161,C161),SUMIFS($I$4:I161,$C$4:C161,C162))) -> 0 | K162: 0
A163: 160 | C163: =IFERROR(VLOOKUP(D163,Nomenclature!$B$2:$C$196,2,0),"") ->  | H163: =IF(C163="",0,IF(SUMIFS($G$5:G163,$C$5:C163,C163)-SUMIFS($I$4:I162,$C$4:C162,C163)<0,0,SUMIFS($G$5:G163,$C$5:C163,C163)-SUMIFS($I$4:I162,$C$4:C162,C163))) -> 0 | J163: =IF(C163="",0,IF(C163=$C$4,SUMIFS($I$4:I162,$C$4:C162,C162),SUMIFS($I$4:I162,$C$4:C162,C163))) -> 0 | K163: 0
A164: 161 | C164: =IFERROR(VLOOKUP(D164,Nomenclature!$B$2:$C$196,2,0),"") ->  | H164: =IF(C164="",0,IF(SUMIFS($G$5:G164,$C$5:C164,C164)-SUMIFS($I$4:I163,$C$4:C163,C164)<0,0,SUMIFS($G$5:G164,$C$5:C164,C164)-SUMIFS($I$4:I163,$C$4:C163,C164))) -> 0 | J164: =IF(C164="",0,IF(C164=$C$4,SUMIFS($I$4:I163,$C$4:C163,C163),SUMIFS($I$4:I163,$C$4:C163,C164))) -> 0 | K164: 0
A165: 162 | C165: =IFERROR(VLOOKUP(D165,Nomenclature!$B$2:$C$196,2,0),"") ->  | H165: =IF(C165="",0,IF(SUMIFS($G$5:G165,$C$5:C165,C165)-SUMIFS($I$4:I164,$C$4:C164,C165)<0,0,SUMIFS($G$5:G165,$C$5:C165,C165)-SUMIFS($I$4:I164,$C$4:C164,C165))) -> 0 | J165: =IF(C165="",0,IF(C165=$C$4,SUMIFS($I$4:I164,$C$4:C164,C164),SUMIFS($I$4:I164,$C$4:C164,C165))) -> 0 | K165: 0
A166: 163 | C166: =IFERROR(VLOOKUP(D166,Nomenclature!$B$2:$C$196,2,0),"") ->  | H166: =IF(C166="",0,IF(SUMIFS($G$5:G166,$C$5:C166,C166)-SUMIFS($I$4:I165,$C$4:C165,C166)<0,0,SUMIFS($G$5:G166,$C$5:C166,C166)-SUMIFS($I$4:I165,$C$4:C165,C166))) -> 0 | J166: =IF(C166="",0,IF(C166=$C$4,SUMIFS($I$4:I165,$C$4:C165,C165),SUMIFS($I$4:I165,$C$4:C165,C166))) -> 0 | K166: 0
A167: 164 | C167: =IFERROR(VLOOKUP(D167,Nomenclature!$B$2:$C$196,2,0),"") ->  | H167: =IF(C167="",0,IF(SUMIFS($G$5:G167,$C$5:C167,C167)-SUMIFS($I$4:I166,$C$4:C166,C167)<0,0,SUMIFS($G$5:G167,$C$5:C167,C167)-SUMIFS($I$4:I166,$C$4:C166,C167))) -> 0 | J167: =IF(C167="",0,IF(C167=$C$4,SUMIFS($I$4:I166,$C$4:C166,C166),SUMIFS($I$4:I166,$C$4:C166,C167))) -> 0 | K167: 0
A168: 165 | C168: =IFERROR(VLOOKUP(D168,Nomenclature!$B$2:$C$196,2,0),"") ->  | H168: =IF(C168="",0,IF(SUMIFS($G$5:G168,$C$5:C168,C168)-SUMIFS($I$4:I167,$C$4:C167,C168)<0,0,SUMIFS($G$5:G168,$C$5:C168,C168)-SUMIFS($I$4:I167,$C$4:C167,C168))) -> 0 | J168: =IF(C168="",0,IF(C168=$C$4,SUMIFS($I$4:I167,$C$4:C167,C167),SUMIFS($I$4:I167,$C$4:C167,C168))) -> 0 | K168: 0
A169: 166 | C169: =IFERROR(VLOOKUP(D169,Nomenclature!$B$2:$C$196,2,0),"") ->  | H169: =IF(C169="",0,IF(SUMIFS($G$5:G169,$C$5:C169,C169)-SUMIFS($I$4:I168,$C$4:C168,C169)<0,0,SUMIFS($G$5:G169,$C$5:C169,C169)-SUMIFS($I$4:I168,$C$4:C168,C169))) -> 0 | J169: =IF(C169="",0,IF(C169=$C$4,SUMIFS($I$4:I168,$C$4:C168,C168),SUMIFS($I$4:I168,$C$4:C168,C169))) -> 0 | K169: 0
A170: 167 | C170: =IFERROR(VLOOKUP(D170,Nomenclature!$B$2:$C$196,2,0),"") ->  | H170: =IF(C170="",0,IF(SUMIFS($G$5:G170,$C$5:C170,C170)-SUMIFS($I$4:I169,$C$4:C169,C170)<0,0,SUMIFS($G$5:G170,$C$5:C170,C170)-SUMIFS($I$4:I169,$C$4:C169,C170))) -> 0 | J170: =IF(C170="",0,IF(C170=$C$4,SUMIFS($I$4:I169,$C$4:C169,C169),SUMIFS($I$4:I169,$C$4:C169,C170))) -> 0 | K170: 0
A171: 168 | C171: =IFERROR(VLOOKUP(D171,Nomenclature!$B$2:$C$196,2,0),"") ->  | H171: =IF(C171="",0,IF(SUMIFS($G$5:G171,$C$5:C171,C171)-SUMIFS($I$4:I170,$C$4:C170,C171)<0,0,SUMIFS($G$5:G171,$C$5:C171,C171)-SUMIFS($I$4:I170,$C$4:C170,C171))) -> 0 | J171: =IF(C171="",0,IF(C171=$C$4,SUMIFS($I$4:I170,$C$4:C170,C170),SUMIFS($I$4:I170,$C$4:C170,C171))) -> 0 | K171: 0
A172: 169 | C172: =IFERROR(VLOOKUP(D172,Nomenclature!$B$2:$C$196,2,0),"") ->  | H172: =IF(C172="",0,IF(SUMIFS($G$5:G172,$C$5:C172,C172)-SUMIFS($I$4:I171,$C$4:C171,C172)<0,0,SUMIFS($G$5:G172,$C$5:C172,C172)-SUMIFS($I$4:I171,$C$4:C171,C172))) -> 0 | J172: =IF(C172="",0,IF(C172=$C$4,SUMIFS($I$4:I171,$C$4:C171,C171),SUMIFS($I$4:I171,$C$4:C171,C172))) -> 0 | K172: 0
A173: 170 | C173: =IFERROR(VLOOKUP(D173,Nomenclature!$B$2:$C$196,2,0),"") ->  | H173: =IF(C173="",0,IF(SUMIFS($G$5:G173,$C$5:C173,C173)-SUMIFS($I$4:I172,$C$4:C172,C173)<0,0,SUMIFS($G$5:G173,$C$5:C173,C173)-SUMIFS($I$4:I172,$C$4:C172,C173))) -> 0 | J173: =IF(C173="",0,IF(C173=$C$4,SUMIFS($I$4:I172,$C$4:C172,C172),SUMIFS($I$4:I172,$C$4:C172,C173))) -> 0 | K173: 0
A174: 171 | C174: =IFERROR(VLOOKUP(D174,Nomenclature!$B$2:$C$196,2,0),"") ->  | H174: =IF(C174="",0,IF(SUMIFS($G$5:G174,$C$5:C174,C174)-SUMIFS($I$4:I173,$C$4:C173,C174)<0,0,SUMIFS($G$5:G174,$C$5:C174,C174)-SUMIFS($I$4:I173,$C$4:C173,C174))) -> 0 | J174: =IF(C174="",0,IF(C174=$C$4,SUMIFS($I$4:I173,$C$4:C173,C173),SUMIFS($I$4:I173,$C$4:C173,C174))) -> 0 | K174: 0
A175: 172 | C175: =IFERROR(VLOOKUP(D175,Nomenclature!$B$2:$C$196,2,0),"") ->  | H175: =IF(C175="",0,IF(SUMIFS($G$5:G175,$C$5:C175,C175)-SUMIFS($I$4:I174,$C$4:C174,C175)<0,0,SUMIFS($G$5:G175,$C$5:C175,C175)-SUMIFS($I$4:I174,$C$4:C174,C175))) -> 0 | J175: =IF(C175="",0,IF(C175=$C$4,SUMIFS($I$4:I174,$C$4:C174,C174),SUMIFS($I$4:I174,$C$4:C174,C175))) -> 0 | K175: 0
A176: 173 | C176: =IFERROR(VLOOKUP(D176,Nomenclature!$B$2:$C$196,2,0),"") ->  | H176: =IF(C176="",0,IF(SUMIFS($G$5:G176,$C$5:C176,C176)-SUMIFS($I$4:I175,$C$4:C175,C176)<0,0,SUMIFS($G$5:G176,$C$5:C176,C176)-SUMIFS($I$4:I175,$C$4:C175,C176))) -> 0 | J176: =IF(C176="",0,IF(C176=$C$4,SUMIFS($I$4:I175,$C$4:C175,C175),SUMIFS($I$4:I175,$C$4:C175,C176))) -> 0 | K176: 0
A177: 174 | C177: =IFERROR(VLOOKUP(D177,Nomenclature!$B$2:$C$196,2,0),"") ->  | H177: =IF(C177="",0,IF(SUMIFS($G$5:G177,$C$5:C177,C177)-SUMIFS($I$4:I176,$C$4:C176,C177)<0,0,SUMIFS($G$5:G177,$C$5:C177,C177)-SUMIFS($I$4:I176,$C$4:C176,C177))) -> 0 | J177: =IF(C177="",0,IF(C177=$C$4,SUMIFS($I$4:I176,$C$4:C176,C176),SUMIFS($I$4:I176,$C$4:C176,C177))) -> 0 | K177: 0
A178: 175 | C178: =IFERROR(VLOOKUP(D178,Nomenclature!$B$2:$C$196,2,0),"") ->  | H178: =IF(C178="",0,IF(SUMIFS($G$5:G178,$C$5:C178,C178)-SUMIFS($I$4:I177,$C$4:C177,C178)<0,0,SUMIFS($G$5:G178,$C$5:C178,C178)-SUMIFS($I$4:I177,$C$4:C177,C178))) -> 0 | J178: =IF(C178="",0,IF(C178=$C$4,SUMIFS($I$4:I177,$C$4:C177,C177),SUMIFS($I$4:I177,$C$4:C177,C178))) -> 0 | K178: 0
A179: 176 | C179: =IFERROR(VLOOKUP(D179,Nomenclature!$B$2:$C$196,2,0),"") ->  | H179: =IF(C179="",0,IF(SUMIFS($G$5:G179,$C$5:C179,C179)-SUMIFS($I$4:I178,$C$4:C178,C179)<0,0,SUMIFS($G$5:G179,$C$5:C179,C179)-SUMIFS($I$4:I178,$C$4:C178,C179))) -> 0 | J179: =IF(C179="",0,IF(C179=$C$4,SUMIFS($I$4:I178,$C$4:C178,C178),SUMIFS($I$4:I178,$C$4:C178,C179))) -> 0 | K179: 0
A180: 177 | C180: =IFERROR(VLOOKUP(D180,Nomenclature!$B$2:$C$196,2,0),"") ->  | H180: =IF(C180="",0,IF(SUMIFS($G$5:G180,$C$5:C180,C180)-SUMIFS($I$4:I179,$C$4:C179,C180)<0,0,SUMIFS($G$5:G180,$C$5:C180,C180)-SUMIFS($I$4:I179,$C$4:C179,C180))) -> 0 | J180: =IF(C180="",0,IF(C180=$C$4,SUMIFS($I$4:I179,$C$4:C179,C179),SUMIFS($I$4:I179,$C$4:C179,C180))) -> 0 | K180: 0
A181: 178 | C181: =IFERROR(VLOOKUP(D181,Nomenclature!$B$2:$C$196,2,0),"") ->  | H181: =IF(C181="",0,IF(SUMIFS($G$5:G181,$C$5:C181,C181)-SUMIFS($I$4:I180,$C$4:C180,C181)<0,0,SUMIFS($G$5:G181,$C$5:C181,C181)-SUMIFS($I$4:I180,$C$4:C180,C181))) -> 0 | J181: =IF(C181="",0,IF(C181=$C$4,SUMIFS($I$4:I180,$C$4:C180,C180),SUMIFS($I$4:I180,$C$4:C180,C181))) -> 0 | K181: 0
A182: 179 | C182: =IFERROR(VLOOKUP(D182,Nomenclature!$B$2:$C$196,2,0),"") ->  | H182: =IF(C182="",0,IF(SUMIFS($G$5:G182,$C$5:C182,C182)-SUMIFS($I$4:I181,$C$4:C181,C182)<0,0,SUMIFS($G$5:G182,$C$5:C182,C182)-SUMIFS($I$4:I181,$C$4:C181,C182))) -> 0 | J182: =IF(C182="",0,IF(C182=$C$4,SUMIFS($I$4:I181,$C$4:C181,C181),SUMIFS($I$4:I181,$C$4:C181,C182))) -> 0 | K182: 0
A183: 180 | C183: =IFERROR(VLOOKUP(D183,Nomenclature!$B$2:$C$196,2,0),"") ->  | H183: =IF(C183="",0,IF(SUMIFS($G$5:G183,$C$5:C183,C183)-SUMIFS($I$4:I182,$C$4:C182,C183)<0,0,SUMIFS($G$5:G183,$C$5:C183,C183)-SUMIFS($I$4:I182,$C$4:C182,C183))) -> 0 | J183: =IF(C183="",0,IF(C183=$C$4,SUMIFS($I$4:I182,$C$4:C182,C182),SUMIFS($I$4:I182,$C$4:C182,C183))) -> 0 | K183: 0
A184: 181 | C184: =IFERROR(VLOOKUP(D184,Nomenclature!$B$2:$C$196,2,0),"") ->  | H184: =IF(C184="",0,IF(SUMIFS($G$5:G184,$C$5:C184,C184)-SUMIFS($I$4:I183,$C$4:C183,C184)<0,0,SUMIFS($G$5:G184,$C$5:C184,C184)-SUMIFS($I$4:I183,$C$4:C183,C184))) -> 0 | J184: =IF(C184="",0,IF(C184=$C$4,SUMIFS($I$4:I183,$C$4:C183,C183),SUMIFS($I$4:I183,$C$4:C183,C184))) -> 0 | K184: 0
A185: 182 | C185: =IFERROR(VLOOKUP(D185,Nomenclature!$B$2:$C$196,2,0),"") ->  | H185: =IF(C185="",0,IF(SUMIFS($G$5:G185,$C$5:C185,C185)-SUMIFS($I$4:I184,$C$4:C184,C185)<0,0,SUMIFS($G$5:G185,$C$5:C185,C185)-SUMIFS($I$4:I184,$C$4:C184,C185))) -> 0 | J185: =IF(C185="",0,IF(C185=$C$4,SUMIFS($I$4:I184,$C$4:C184,C184),SUMIFS($I$4:I184,$C$4:C184,C185))) -> 0 | K185: 0
A186: 183 | C186: =IFERROR(VLOOKUP(D186,Nomenclature!$B$2:$C$196,2,0),"") ->  | H186: =IF(C186="",0,IF(SUMIFS($G$5:G186,$C$5:C186,C186)-SUMIFS($I$4:I185,$C$4:C185,C186)<0,0,SUMIFS($G$5:G186,$C$5:C186,C186)-SUMIFS($I$4:I185,$C$4:C185,C186))) -> 0 | J186: =IF(C186="",0,IF(C186=$C$4,SUMIFS($I$4:I185,$C$4:C185,C185),SUMIFS($I$4:I185,$C$4:C185,C186))) -> 0 | K186: 0
A187: 184 | C187: =IFERROR(VLOOKUP(D187,Nomenclature!$B$2:$C$196,2,0),"") ->  | H187: =IF(C187="",0,IF(SUMIFS($G$5:G187,$C$5:C187,C187)-SUMIFS($I$4:I186,$C$4:C186,C187)<0,0,SUMIFS($G$5:G187,$C$5:C187,C187)-SUMIFS($I$4:I186,$C$4:C186,C187))) -> 0 | J187: =IF(C187="",0,IF(C187=$C$4,SUMIFS($I$4:I186,$C$4:C186,C186),SUMIFS($I$4:I186,$C$4:C186,C187))) -> 0 | K187: 0
A188: 185 | C188: =IFERROR(VLOOKUP(D188,Nomenclature!$B$2:$C$196,2,0),"") ->  | H188: =IF(C188="",0,IF(SUMIFS($G$5:G188,$C$5:C188,C188)-SUMIFS($I$4:I187,$C$4:C187,C188)<0,0,SUMIFS($G$5:G188,$C$5:C188,C188)-SUMIFS($I$4:I187,$C$4:C187,C188))) -> 0 | J188: =IF(C188="",0,IF(C188=$C$4,SUMIFS($I$4:I187,$C$4:C187,C187),SUMIFS($I$4:I187,$C$4:C187,C188))) -> 0 | K188: 0
A189: 186 | C189: =IFERROR(VLOOKUP(D189,Nomenclature!$B$2:$C$196,2,0),"") ->  | H189: =IF(C189="",0,IF(SUMIFS($G$5:G189,$C$5:C189,C189)-SUMIFS($I$4:I188,$C$4:C188,C189)<0,0,SUMIFS($G$5:G189,$C$5:C189,C189)-SUMIFS($I$4:I188,$C$4:C188,C189))) -> 0 | J189: =IF(C189="",0,IF(C189=$C$4,SUMIFS($I$4:I188,$C$4:C188,C188),SUMIFS($I$4:I188,$C$4:C188,C189))) -> 0 | K189: 0
A190: 187 | C190: =IFERROR(VLOOKUP(D190,Nomenclature!$B$2:$C$196,2,0),"") ->  | H190: =IF(C190="",0,IF(SUMIFS($G$5:G190,$C$5:C190,C190)-SUMIFS($I$4:I189,$C$4:C189,C190)<0,0,SUMIFS($G$5:G190,$C$5:C190,C190)-SUMIFS($I$4:I189,$C$4:C189,C190))) -> 0 | J190: =IF(C190="",0,IF(C190=$C$4,SUMIFS($I$4:I189,$C$4:C189,C189),SUMIFS($I$4:I189,$C$4:C189,C190))) -> 0 | K190: 0
A191: 188 | C191: =IFERROR(VLOOKUP(D191,Nomenclature!$B$2:$C$196,2,0),"") ->  | H191: =IF(C191="",0,IF(SUMIFS($G$5:G191,$C$5:C191,C191)-SUMIFS($I$4:I190,$C$4:C190,C191)<0,0,SUMIFS($G$5:G191,$C$5:C191,C191)-SUMIFS($I$4:I190,$C$4:C190,C191))) -> 0 | J191: =IF(C191="",0,IF(C191=$C$4,SUMIFS($I$4:I190,$C$4:C190,C190),SUMIFS($I$4:I190,$C$4:C190,C191))) -> 0 | K191: 0
A192: 189 | C192: =IFERROR(VLOOKUP(D192,Nomenclature!$B$2:$C$196,2,0),"") ->  | H192: =IF(C192="",0,IF(SUMIFS($G$5:G192,$C$5:C192,C192)-SUMIFS($I$4:I191,$C$4:C191,C192)<0,0,SUMIFS($G$5:G192,$C$5:C192,C192)-SUMIFS($I$4:I191,$C$4:C191,C192))) -> 0 | J192: =IF(C192="",0,IF(C192=$C$4,SUMIFS($I$4:I191,$C$4:C191,C191),SUMIFS($I$4:I191,$C$4:C191,C192))) -> 0 | K192: 0
A193: 190 | C193: =IFERROR(VLOOKUP(D193,Nomenclature!$B$2:$C$196,2,0),"") ->  | H193: =IF(C193="",0,IF(SUMIFS($G$5:G193,$C$5:C193,C193)-SUMIFS($I$4:I192,$C$4:C192,C193)<0,0,SUMIFS($G$5:G193,$C$5:C193,C193)-SUMIFS($I$4:I192,$C$4:C192,C193))) -> 0 | J193: =IF(C193="",0,IF(C193=$C$4,SUMIFS($I$4:I192,$C$4:C192,C192),SUMIFS($I$4:I192,$C$4:C192,C193))) -> 0 | K193: 0
A194: 191 | C194: =IFERROR(VLOOKUP(D194,Nomenclature!$B$2:$C$196,2,0),"") ->  | H194: =IF(C194="",0,IF(SUMIFS($G$5:G194,$C$5:C194,C194)-SUMIFS($I$4:I193,$C$4:C193,C194)<0,0,SUMIFS($G$5:G194,$C$5:C194,C194)-SUMIFS($I$4:I193,$C$4:C193,C194))) -> 0 | J194: =IF(C194="",0,IF(C194=$C$4,SUMIFS($I$4:I193,$C$4:C193,C193),SUMIFS($I$4:I193,$C$4:C193,C194))) -> 0 | K194: 0
A195: 192 | C195: =IFERROR(VLOOKUP(D195,Nomenclature!$B$2:$C$196,2,0),"") ->  | H195: =IF(C195="",0,IF(SUMIFS($G$5:G195,$C$5:C195,C195)-SUMIFS($I$4:I194,$C$4:C194,C195)<0,0,SUMIFS($G$5:G195,$C$5:C195,C195)-SUMIFS($I$4:I194,$C$4:C194,C195))) -> 0 | J195: =IF(C195="",0,IF(C195=$C$4,SUMIFS($I$4:I194,$C$4:C194,C194),SUMIFS($I$4:I194,$C$4:C194,C195))) -> 0 | K195: 0
A196: 193 | C196: =IFERROR(VLOOKUP(D196,Nomenclature!$B$2:$C$196,2,0),"") ->  | H196: =IF(C196="",0,IF(SUMIFS($G$5:G196,$C$5:C196,C196)-SUMIFS($I$4:I195,$C$4:C195,C196)<0,0,SUMIFS($G$5:G196,$C$5:C196,C196)-SUMIFS($I$4:I195,$C$4:C195,C196))) -> 0 | J196: =IF(C196="",0,IF(C196=$C$4,SUMIFS($I$4:I195,$C$4:C195,C195),SUMIFS($I$4:I195,$C$4:C195,C196))) -> 0 | K196: =IF(C196="",0,H196-I196) -> 0
A197: 194 | C197: =IFERROR(VLOOKUP(D197,Nomenclature!$B$2:$C$196,2,0),"") ->  | H197: =IF(C197="",0,IF(SUMIFS($G$5:G197,$C$5:C197,C197)-SUMIFS($I$4:I196,$C$4:C196,C197)<0,0,SUMIFS($G$5:G197,$C$5:C197,C197)-SUMIFS($I$4:I196,$C$4:C196,C197))) -> 0 | J197: =IF(C197="",0,IF(C197=$C$4,SUMIFS($I$4:I196,$C$4:C196,C196),SUMIFS($I$4:I196,$C$4:C196,C197))) -> 0 | K197: 0
A198: 195 | C198: =IFERROR(VLOOKUP(D198,Nomenclature!$B$2:$C$196,2,0),"") ->  | H198: =IF(C198="",0,IF(SUMIFS($G$5:G198,$C$5:C198,C198)-SUMIFS($I$4:I197,$C$4:C197,C198)<0,0,SUMIFS($G$5:G198,$C$5:C198,C198)-SUMIFS($I$4:I197,$C$4:C197,C198))) -> 0 | J198: =IF(C198="",0,IF(C198=$C$4,SUMIFS($I$4:I197,$C$4:C197,C197),SUMIFS($I$4:I197,$C$4:C197,C198))) -> 0 | K198: 0
A199: 196 | C199: =IFERROR(VLOOKUP(D199,Nomenclature!$B$2:$C$196,2,0),"") ->  | H199: =IF(C199="",0,IF(SUMIFS($G$5:G199,$C$5:C199,C199)-SUMIFS($I$4:I198,$C$4:C198,C199)<0,0,SUMIFS($G$5:G199,$C$5:C199,C199)-SUMIFS($I$4:I198,$C$4:C198,C199))) -> 0 | J199: =IF(C199="",0,IF(C199=$C$4,SUMIFS($I$4:I198,$C$4:C198,C198),SUMIFS($I$4:I198,$C$4:C198,C199))) -> 0 | K199: 0
A200: 197 | C200: =IFERROR(VLOOKUP(D200,Nomenclature!$B$2:$C$196,2,0),"") ->  | H200: =IF(C200="",0,IF(SUMIFS($G$5:G200,$C$5:C200,C200)-SUMIFS($I$4:I199,$C$4:C199,C200)<0,0,SUMIFS($G$5:G200,$C$5:C200,C200)-SUMIFS($I$4:I199,$C$4:C199,C200))) -> 0 | J200: =IF(C200="",0,IF(C200=$C$4,SUMIFS($I$4:I199,$C$4:C199,C199),SUMIFS($I$4:I199,$C$4:C199,C200))) -> 0 | K200: 0
A201: 198 | C201: =IFERROR(VLOOKUP(D201,Nomenclature!$B$2:$C$196,2,0),"") ->  | H201: =IF(C201="",0,IF(SUMIFS($G$5:G201,$C$5:C201,C201)-SUMIFS($I$4:I200,$C$4:C200,C201)<0,0,SUMIFS($G$5:G201,$C$5:C201,C201)-SUMIFS($I$4:I200,$C$4:C200,C201))) -> 0 | J201: =IF(C201="",0,IF(C201=$C$4,SUMIFS($I$4:I200,$C$4:C200,C200),SUMIFS($I$4:I200,$C$4:C200,C201))) -> 0 | K201: 0
... 2 more rows

Sheet 15000
A1: رقم الاستمارة | B1: التاريخ | C1: الترميز | D1: الصنف / الصنف الفرعي | E1: ملاحظات المصلحة | F1: AP Cat | G1: =IF(SUM(G4:G203)-SUM(F4:F203)<0,"نقص في توزيع الاعتمادات على الاصناف الفرعية", IF(SUM(G4:G203)-SUM(F4:F203)>0,"تجاوز في الاعتمادات الموزعة على الاصناف الفرعية","AP S.Cat")) -> AP S.Cat | H1: AP Sous_Cat | I1: =IF(I3>G3,"تجاوز في الالتزامات","∑ Engagements") -> ∑ Engagements | J1: ∑ Eng Sous_Cat | K1: Reste | L1: السند القانوني للعنوان الرابع | N1: 1
F3: =SUM(F4:F203) -> 10500000 | G3: =SUM(G4:G203) -> 10500000 | I3: =SUM(I5:I203) -> 0 | K3: =SUM(K4:K104) -> 10500000
A4: 1 | B4: 2023-03-13 | C4: =IFERROR(VLOOKUP(D4,Nomenclature!$B$2:$C$196,2,0),"") -> 15000 | D4: الخدمات الاجتماعية على عاتق صاحب العمل | E4: تكفل برخصة الالتزام المفتوحة لسنة 2023. | F4: 10500000 | H4: =IF(C4="",0,IF(SUMIFS($G4:G$5,$C4:C$5,C4)-SUMIFS($I3:I$4,$C3:C$4,C4)<0,0,SUMIFS($G4:G$5,$C4:C$5,C4)-SUMIFS($I3:I$4,$C3:C$4,C4))) -> 0 | J4: =IF(I4=0,0,IF(C4="",0,SUMIFS($I4:I$4,$C4:C$4,C4))) -> 0 | K4: =IF(C4="",0,H4-I4) -> 0 | O4: الجمهورية الجزائرية الديمقراطية الشعبية
A5: 2 | B5: 2023-04-01 | C5: =IFERROR(VLOOKUP(D5,Nomenclature!$B$2:$C$196,2,0),"") -> 15110 | D5: المنح العائلية | E5: التزام في الجدول الأصلي الأولي رقم 2023/01 الخاص بالمرتبات الشهرية للموظفين من 2023/01/01 إلى غاية 2023/12/31 | G5: 6500000 | H5: =IF(C5="",0,IF(SUMIFS($G$5:G5,$C$5:C5,C5)-SUMIFS($I$4:I4,$C$4:C4,C5)<0,0,SUMIFS($G$5:G5,$C$5:C5,C5)-SUMIFS($I$4:I4,$C$4:C4,C5))) -> 6500000 | J5: =IF(C5="",0,IF(C5=$C$4,SUMIFS($I$4:I4,$C$4:C4,C4),SUMIFS($I$4:I4,$C$4:C4,C5))) -> 0 | K5: 6500000 | O5: الـوزارة: | T5: =الواجهة!C2 -> وزارة البيئة و الطاقات المتجددة
A6: 3 | C6: =IFERROR(VLOOKUP(D6,Nomenclature!$B$2:$C$196,2,0),"") -> 15130 | D6: منحة الأجر الوحيد | E6: التزام في الجدول الأصلي الأولي رقم 2023/02 الخاص بالمرتبات الشهرية للاعوان المتعاقدين بالتوقيت الكامل من 2023/01/01 إلى غاية 2023/12/31 | G6: 4000000 | H6: =IF(C6="",0,IF(SUMIFS($G$5:G6,$C$5:C6,C6)-SUMIFS($I$4:I5,$C$4:C5,C6)<0,0,SUMIFS($G$5:G6,$C$5:C6,C6)-SUMIFS($I$4:I5,$C$4:C5,C6))) -> 4000000 | J6: =IF(C6="",0,IF(C6=$C$4,SUMIFS($I$4:I5,$C$4:C5,C5),SUMIFS($I$4:I5,$C$4:C5,C6))) -> 0 | K6: 4000000 | O6: الهيئة الإدارية: | T6: =الواجهة!C3 -> مديرية البيئة لولاية المسيلة
A7: 4 | C7: =IFERROR(VLOOKUP(D7,Nomenclature!$B$2:$C$196,2,0),"") ->  | H7: =IF(C7="",0,IF(SUMIFS($G$5:G7,$C$5:C7,C7)-SUMIFS($I$4:I6,$C$4:C6,C7)<0,0,SUMIFS($G$5:G7,$C$5:C7,C7)-SUMIFS($I$4:I6,$C$4:C6,C7))) -> 0 | J7: =IF(C7="",0,IF(C7=$C$4,SUMIFS($I$4:I6,$C$4:C6,C6),SUMIFS($I$4:I6,$C$4:C6,C7))) -> 0 | K7: 0 | O7: رمز الآمر بالصرف: | T7: =الواجهة!C4 -> 144 0 28 01
A8: 5 | C8: =IFERROR(VLOOKUP(D8,Nomenclature!$B$2:$C$196,2,0),"") ->  | H8: =IF(C8="",0,IF(SUMIFS($G$5:G8,$C$5:C8,C8)-SUMIFS($I$4:I7,$C$4:C7,C8)<0,0,SUMIFS($G$5:G8,$C$5:C8,C8)-SUMIFS($I$4:I7,$C$4:C7,C8))) -> 0 | J8: =IF(C8="",0,IF(C8=$C$4,SUMIFS($I$4:I7,$C$4:C7,C7),SUMIFS($I$4:I7,$C$4:C7,C8))) -> 0 | K8: 0 | AH8: .
A9: 6 | C9: =IFERROR(VLOOKUP(D9,Nomenclature!$B$2:$C$196,2,0),"") ->  | H9: =IF(C9="",0,IF(SUMIFS($G$5:G9,$C$5:C9,C9)-SUMIFS($I$4:I8,$C$4:C8,C9)<0,0,SUMIFS($G$5:G9,$C$5:C9,C9)-SUMIFS($I$4:I8,$C$4:C8,C9))) -> 0 | J9: =IF(C9="",0,IF(C9=$C$4,SUMIFS($I$4:I8,$C$4:C8,C8),SUMIFS($I$4:I8,$C$4:C8,C9))) -> 0 | K9: 0
A10: 7 | C10: =IFERROR(VLOOKUP(D10,Nomenclature!$B$2:$C$196,2,0),"") ->  | H10: =IF(C10="",0,IF(SUMIFS($G$5:G10,$C$5:C10,C10)-SUMIFS($I$4:I9,$C$4:C9,C10)<0,0,SUMIFS($G$5:G10,$C$5:C10,C10)-SUMIFS($I$4:I9,$C$4:C9,C10))) -> 0 | J10: =IF(C10="",0,IF(C10=$C$4,SUMIFS($I$4:I9,$C$4:C9,C9),SUMIFS($I$4:I9,$C$4:C9,C10))) -> 0 | K10: 0
A11: 8 | C11: =IFERROR(VLOOKUP(D11,Nomenclature!$B$2:$C$196,2,0),"") ->  | H11: =IF(C11="",0,IF(SUMIFS($G$5:G11,$C$5:C11,C11)-SUMIFS($I$4:I10,$C$4:C10,C11)<0,0,SUMIFS($G$5:G11,$C$5:C11,C11)-SUMIFS($I$4:I10,$C$4:C10,C11))) -> 0 | J11: =IF(C11="",0,IF(C11=$C$4,SUMIFS($I$4:I10,$C$4:C10,C10),SUMIFS($I$4:I10,$C$4:C10,C11))) -> 0 | K11: 0 | P11: رقم بطاقة الالتزام: | U11: =IFERROR(VLOOKUP(N1,A4:L203,1,0),0) -> 1 | AF11: التاريخ: | AH11: =IF(IFERROR(VLOOKUP(N1,A4:L203,2,0),0)=0,"",IFERROR(VLOOKUP(N1,A4:L203,2,0),0)) -> 2023-03-13
A12: 9 | C12: =IFERROR(VLOOKUP(D12,Nomenclature!$B$2:$C$196,2,0),"") ->  | H12: =IF(C12="",0,IF(SUMIFS($G$5:G12,$C$5:C12,C12)-SUMIFS($I$4:I11,$C$4:C11,C12)<0,0,SUMIFS($G$5:G12,$C$5:C12,C12)-SUMIFS($I$4:I11,$C$4:C11,C12))) -> 0 | J12: =IF(C12="",0,IF(C12=$C$4,SUMIFS($I$4:I11,$C$4:C11,C11),SUMIFS($I$4:I11,$C$4:C11,C12))) -> 0 | K12: 0
A13: 10 | C13: =IFERROR(VLOOKUP(D13,Nomenclature!$B$2:$C$196,2,0),"") ->  | H13: =IF(C13="",0,IF(SUMIFS($G$5:G13,$C$5:C13,C13)-SUMIFS($I$4:I12,$C$4:C12,C13)<0,0,SUMIFS($G$5:G13,$C$5:C13,C13)-SUMIFS($I$4:I12,$C$4:C12,C13))) -> 0 | J13: =IF(C13="",0,IF(C13=$C$4,SUMIFS($I$4:I12,$C$4:C12,C12),SUMIFS($I$4:I12,$C$4:C12,C13))) -> 0 | K13: 0
